Workbook

Sheet CBA Tool details
A1: Greater Manchester Cost Benefit Analysis Tool
A3: Version | B3: 4.2
A5: Release date | B5: 2015-03-27
A7: Release notes | B7: Updated monetisation of outcomes to match with the updated Unit Cost Database (Hospital admissions, Looked after Children, Adult residential care) Amended the representation of financial years to ensure clarity Updated GDP deflators Added in more spare rows for benefits Added in more spare rows for costs Excluded all costs which do not have an agency owner from the financial case calculations to account for voluntary provision as no money changes hands - these values are retained in the economic (public value) case calculations.
A13: Supporting documents | B13: Supporting Public Service Transformation: Cost Benefit Analysis Guidance for Local Partnerships - April 2014 Unit Cost Database version 1.4 - March 2015
A16: Workbook structure | B16: Blue tab | D16: Input
B17: Green tab | D17: Reference
B18: Orange tab | D18: Outputs/charts
B19: Purple tab | D19: User changeable assumptions
A22: User Support | B22: User support and guidance can be provided by the GM Cost Benefit Analysis team at New Economy. Please contact
B25: cba@neweconomymanchester.com

Sheet Proposition Summary
A1: Summary Sheet
A4: Title
A6: Outline description
A17: Intervention start financial year (price base) | B17: 2016-17
A19: Analysis time frame (years) | B19: 25
A23: Comments
A34: Caveats
A45: Next steps

Sheet Agency list
A1: Drop down lists
B3: Agencies | C3: Included | E3: Shortlisted agencies
A4: 1 | B4: Local Authority | C4: Yes | D4: =INDEX($B$4:$B$23,SMALL(IF($C$4:$C$23="Yes",ROW($B$4:$B$23)-ROW($B$4)+1),ROWS(D$4:D4)),COLUMNS($D4:D4)) -> Local Authority | E4: =IF(ISERR(D4),"",D4) -> Local Authority | H4: Instructions:
A5: 2 | B5: NHS | C5: Yes | D5: =INDEX($B$4:$B$23,SMALL(IF($C$4:$C$23="Yes",ROW($B$4:$B$23)-ROW($B$4)+1),ROWS(D$4:D5)),COLUMNS($D5:D5)) -> NHS | E5: =IF(ISERR(D5),"",D5) -> NHS
A6: 3 | B6: Police | C6: Yes | D6: =INDEX($B$4:$B$23,SMALL(IF($C$4:$C$23="Yes",ROW($B$4:$B$23)-ROW($B$4)+1),ROWS(D$4:D6)),COLUMNS($D6:D6)) -> Police | E6: Police | H6: 1. Select which agencies in the green column are important either in the delivery of the project or receive benefits from improved outcomes
A7: 4 | B7: Probation | C7: Yes | D7: =INDEX($B$4:$B$23,SMALL(IF($C$4:$C$23="Yes",ROW($B$4:$B$23)-ROW($B$4)+1),ROWS(D$4:D7)),COLUMNS($D7:D7)) -> Probation | E7: Probation
A8: 5 | B8: Courts/Legal aid | C8: Yes | D8: =INDEX($B$4:$B$23,SMALL(IF($C$4:$C$23="Yes",ROW($B$4:$B$23)-ROW($B$4)+1),ROWS(D$4:D8)),COLUMNS($D8:D8)) -> Courts/Legal aid | E8: Courts/Legal aid | H8: 2. For those included use the Yes flag, which will allow the drop downs, graphs, agency split calculations and cashability calculations to work
A9: 6 | B9: Prisons | C9: Yes | D9: =INDEX($B$4:$B$23,SMALL(IF($C$4:$C$23="Yes",ROW($B$4:$B$23)-ROW($B$4)+1),ROWS(D$4:D9)),COLUMNS($D9:D9)) -> Prisons | E9: Prisons
A10: 7 | B10: Other CJS | C10: Yes | D10: =INDEX($B$4:$B$23,SMALL(IF($C$4:$C$23="Yes",ROW($B$4:$B$23)-ROW($B$4)+1),ROWS(D$4:D10)),COLUMNS($D10:D10)) -> Other CJS | E10: Other CJS | H10: 3. It is possible to give more specific names to the agencies (e.g. Change local authority to "Stockport MBC"), but don't change the type of agency, otherwise the lookups will work incorrectly.
A11: 8 | B11: DWP (AME) | C11: Yes | D11: =INDEX($B$4:$B$23,SMALL(IF($C$4:$C$23="Yes",ROW($B$4:$B$23)-ROW($B$4)+1),ROWS(D$4:D11)),COLUMNS($D11:D11)) -> DWP (AME) | E11: DWP (AME)
A12: 9 | B12: HMRC | C12: Yes | D12: =INDEX($B$4:$B$23,SMALL(IF($C$4:$C$23="Yes",ROW($B$4:$B$23)-ROW($B$4)+1),ROWS(D$4:D12)),COLUMNS($D12:D12)) -> HMRC | E12: HMRC | H12: 4. If there are more agencies that are delivery partners, then use the Spare categories and overwrite these.
A13: 10 | B13: Schools | C13: Yes | D13: =INDEX($B$4:$B$23,SMALL(IF($C$4:$C$23="Yes",ROW($B$4:$B$23)-ROW($B$4)+1),ROWS(D$4:D13)),COLUMNS($D13:D13)) -> Schools | E13: Schools
A14: 11 | B14: Housing providers | C14: Yes | D14: =INDEX($B$4:$B$23,SMALL(IF($C$4:$C$23="Yes",ROW($B$4:$B$23)-ROW($B$4)+1),ROWS(D$4:D14)),COLUMNS($D14:D14)) -> Housing providers | E14: Housing providers | H14: 5.If new outcomes are added in the Spare Outcomes rows on the benefits tab, resulting in other beneficiaries, the agency percentages and cashability tabs should also be updated to reflect the split to these agencies
A15: 12 | B15: Spare1 | C15: No | D15: =INDEX($B$4:$B$23,SMALL(IF($C$4:$C$23="Yes",ROW($B$4:$B$23)-ROW($B$4)+1),ROWS(D$4:D15)),COLUMNS($D15:D15)) -> 
A16: 13 | B16: Spare2 | C16: No | D16: =INDEX($B$4:$B$23,SMALL(IF($C$4:$C$23="Yes",ROW($B$4:$B$23)-ROW($B$4)+1),ROWS(D$4:D16)),COLUMNS($D16:D16)) -> 
A17: 14 | B17: Spare3 | C17: No | D17: =INDEX($B$4:$B$23,SMALL(IF($C$4:$C$23="Yes",ROW($B$4:$B$23)-ROW($B$4)+1),ROWS(D$4:D17)),COLUMNS($D17:D17)) -> 
A18: 15 | B18: Spare4 | C18: No | D18: =INDEX($B$4:$B$23,SMALL(IF($C$4:$C$23="Yes",ROW($B$4:$B$23)-ROW($B$4)+1),ROWS(D$4:D18)),COLUMNS($D18:D18)) -> 
A19: 16 | B19: Spare5 | C19: No | D19: =INDEX($B$4:$B$23,SMALL(IF($C$4:$C$23="Yes",ROW($B$4:$B$23)-ROW($B$4)+1),ROWS(D$4:D19)),COLUMNS($D19:D19)) -> 
A20: 17 | B20: Spare6 | C20: No | D20: =INDEX($B$4:$B$23,SMALL(IF($C$4:$C$23="Yes",ROW($B$4:$B$23)-ROW($B$4)+1),ROWS(D$4:D20)),COLUMNS($D20:D20)) -> 
A21: 18 | B21: Spare7 | C21: No | D21: =INDEX($B$4:$B$23,SMALL(IF($C$4:$C$23="Yes",ROW($B$4:$B$23)-ROW($B$4)+1),ROWS(D$4:D21)),COLUMNS($D21:D21)) -> 
A22: 19 | B22: Spare8 | C22: No | D22: =INDEX($B$4:$B$23,SMALL(IF($C$4:$C$23="Yes",ROW($B$4:$B$23)-ROW($B$4)+1),ROWS(D$4:D22)),COLUMNS($D22:D22)) -> 
A23: 20 | B23: Spare9 | C23: No | D23: =INDEX($B$4:$B$23,SMALL(IF($C$4:$C$23="Yes",ROW($B$4:$B$23)-ROW($B$4)+1),ROWS(D$4:D23)),COLUMNS($D23:D23)) -> 

Sheet Benefits
A1: Project title: | B1: =Title -> 0
AE2: 1 | AF2: 2 | AG2: 3 | AH2: 4 | AI2: 5 | AJ2: 6 | AK2: 7 | AL2: 8 | AM2: 9 | AN2: 10 | AO2: 11 | AP2: 12 | AQ2: 13 | AR2: 14 | AS2: 15 | AT2: 16 | AU2: 17 | AV2: 18 | AW2: 19 | AX2: 20 | AY2: 21 | AZ2: 22 | BA2: 23 | BB2: 24 | BC2: 25 | BE2: 1 | BF2: 2 | BG2: 3 | BH2: 4 | BI2: 5 | BJ2: 6 | BK2: 7 | BL2: 8 | BM2: 9 | BN2: 10 | BO2: 11 | BP2: 12 | BQ2: 13 | BR2: 14 | BS2: 15 | BT2: 16 | BU2: 17 | BV2: 18 | BW2: 19 | BX2: 20 | BY2: 21 | BZ2: 22 | CA2: 23 | CB2: 24 | CC2: 25 | CF2: 1 | CG2: 2 | CH2: 3 | CI2: 4 | CJ2: 5 | CK2: 6 | CL2: 7 | CM2: 8 | CN2: 9 | CO2: 10 | CP2: 11 | CQ2: 12 | CR2: 13 | CS2: 14 | CT2: 15 | CU2: 16 | CV2: 17 | CW2: 18 | CX2: 19 | CY2: 20 | CZ2: 21 | DA2: 22 | DB2: 23 | DC2: 24 | DD2: 25 | DG2: Agencies benefiting - % split | EB2: Agencies - % short term cashability | EW2: Agencies benefiting - % long term cashability | FR2: Agencies benefiting - £ - Overall gross total | GM2: Agencies benefiting - £ - Overall short term cashable savings | HJ2: Agencies benefiting - £ - Overall at scale cashable savings total
A3: Benefits | S3: Public Value | BE3: Fiscal | CF3: Public Value | DG3: 1 | DH3: =IF((20-COUNTIF(Agencieslist,""))>DG3,DG3+1,"") -> 2 | DI3: 3 | DJ3: 4 | DK3: 5 | DL3: 6 | DM3: 7 | DN3: 8 | DO3: 9 | DP3: 10 | DQ3: 11 | EB3: 1 | EC3: =IF((20-COUNTIF(Agencieslist,""))>EB3,EB3+1,"") -> 2 | ED3: 3 | EE3: 4 | EF3: 5 | EG3: 6 | EH3: 7 | EI3: 8 | EJ3: 9 | EK3: 10 | EL3: 11 | EW3: 1 | EX3: =IF((20-COUNTIF(Agencieslist,""))>EW3,EW3+1,"") -> 2 | EY3: 3 | EZ3: 4 | FA3: 5 | FB3: 6 | FC3: 7 | FD3: 8 | FE3: 9 | FF3: 10 | FG3: 11 | FR3: 1 | FS3: =IF((20-COUNTIF(Agencieslist,""))>FR3,FR3+1,"") -> 2 | FT3: 3 | FU3: 4 | FV3: 5 | FW3: 6 | FX3: 7 | FY3: 8 | FZ3: 9 | GA3: 10 | GB3: 11 | GM3: 1 | GN3: =IF((20-COUNTIF(Agencieslist,""))>GM3,GM3+1,"") -> 2 | GO3: 3 | GP3: 4 | GQ3: 5 | GR3: 6 | GS3: 7 | GT3: 8 | GU3: 9 | GV3: 10 | GW3: 11 | HJ3: 1 | HK3: =IF((20-COUNTIF(Agencieslist,""))>HJ3,HJ3+1,"") -> 2 | HL3: 3 | HM3: 4 | HN3: 5 | HO3: 6 | HP3: 7 | HQ3: 8 | HR3: 9 | HS3: 10 | HT3: 11
A4: Ref. | B4: Outcomes | C4: Included outcome? | D4: Benefits | E4: Who does benefit accrue to? | F4: Target population | G4: Pop notes/ assumptions | H4: Affected population / Predicted incidents | I4: Affected pop notes/ assumptions | J4: Level of engagement with the affected population (%) | K4: % engagement notes / assumptions | L4: Retention rate (%) | M4: % retention notes / assumptions | N4: % impact (effectiveness of changing skills / attitudes / behaviours) | O4: % impact notes / assumptions / sources | P4: % deadweight | Q4: % deadweight notes / assumptions | R4: Unit fiscal benefit (£) | S4: Unit public value (fiscal) benefit (£) | T4: Unit public value (economic) benefit (£) | U4: Unit public value (social) benefit (£) | V4: Unit public value (total) benefit (£) | W4: Monetisation evidence financial year | X4: GDP deflator compared to price base year | Y4: Unit cost notes /assumptions | Z4: Optimism bias correction | AA4: Fiscal benefit | AB4: Public value benefit | AC4: Assumptions on impact lag and drop-off | AE4: % Impact year 1 | AF4: % Impact year 2 | AG4: % Impact year 3 | AH4: % Impact year 4 | AI4: % Impact year 5 | AJ4: % Impact year 6 | AK4: % Impact year 7 | AL4: % Impact year 8 | AM4: % Impact year 9 | AN4: % Impact year 10 | AO4: % Impact year 11 | AP4: % Impact year 12 | AQ4: % Impact year 13 | AR4: % Impact year 14 | AS4: % Impact year 15 | AT4: % Impact year 16 | AU4: % Impact year 17 | AV4: % Impact year 18 | AW4: % Impact year 19 | AX4: % Impact year 20 | AY4: % Impact year 21 | AZ4: % Impact year 22 | BA4: % Impact year 23 | BB4: % Impact year 24 | BC4: % Impact year 25 | BE4: Impact year 1 | BF4: Impact year 2 | BG4: Impact year 3 | BH4: Impact year 4 | BI4: Impact year 5 | BJ4: Impact year 6 | BK4: Impact year 7 | BL4: Impact year 8 | BM4: Impact year 9 | BN4: Impact year 10 | BO4: Impact year 11 | BP4: Impact year 12 | BQ4: Impact year 13 | BR4: Impact year 14 | BS4: Impact year 15 | BT4: Impact year 16 | BU4: Impact year 17 | BV4: Impact year 18 | BW4: Impact year 19 | BX4: Impact year 20 | BY4: Impact year 21 | BZ4: Impact year 22 | CA4: Impact year 23 | CB4: Impact year 24 | CC4: Impact year 25 | CD4: Overall gross fiscal benefit | CF4: Impact year 1 | CG4: Impact year 2 | CH4: Impact year 3 | CI4: Impact year 4 | CJ4: Impact year 5 | CK4: Impact year 6 | CL4: Impact year 7 | CM4: Impact year 8 | CN4: Impact year 9 | CO4: Impact year 10 | CP4: Impact year 11 | CQ4: Impact year 12 | CR4: Impact year 13 | CS4: Impact year 14 | CT4: Impact year 15 | CU4: Impact year 16 | CV4: Impact year 17 | CW4: Impact year 18 | CX4: Impact year 19 | CY4: Impact year 20 | CZ4: Impact year 21 | DA4: Impact year 22 | DB4: Impact year 23 | DC4: Impact year 24 | DD4: Impact year 25 | DE4: Overall public value benefit | DG4: =IF(DG$3<>"",INDEX(Agencieslist,DG$3),"") -> Local Authority | DH4: NHS | DI4: Police | DJ4: Probation | DK4: Courts/Legal aid | DL4: Prisons | DM4: Other CJS | DN4: DWP (AME) | DO4: HMRC | DP4: Schools | DQ4: Housing providers | EB4: Local Authority | EC4: NHS | ED4: Police | EE4: Probation | EF4: Courts/Legal aid | EG4: Prisons | EH4: Other CJS | EI4: DWP (AME) | EJ4: HMRC | EK4: Schools | EL4: Housing providers | EW4: Local Authority | EX4: NHS | EY4: Police | EZ4: Probation | FA4: Courts/Legal aid | FB4: Prisons | FC4: Other CJS | FD4: DWP (AME) | FE4: HMRC | FF4: Schools | FG4: Housing providers | FR4: =IF(FR$3<>0,INDEX(Agencieslist,FR$3),"") -> Local Authority | FS4: =IF(FS$3<>"",INDEX(Agencieslist,FS$3),"") -> NHS | FT4: Police | FU4: Probation | FV4: Courts/Legal aid | FW4: Prisons | FX4: Other CJS | FY4: DWP (AME) | FZ4: HMRC | GA4: Schools | GB4: Housing providers | GM4: =IF(GM$3<>0,INDEX(Agencieslist,GM$3),"") -> Local Authority | GN4: =IF(GN$3<>"",INDEX(Agencieslist,GN$3),"") -> NHS | GO4: Police | GP4: Probation | GQ4: Courts/Legal aid | GR4: Prisons | GS4: Other CJS | GT4: DWP (AME) | GU4: HMRC | GV4: Schools | GW4: Housing providers | HH4: Overall Short term cashability | HJ4: =IF(HJ$3<>0,INDEX(Agencieslist,HJ$3),"") -> Local Authority | HK4: =IF(HK$3<>"",INDEX(Agencieslist,HK$3),"") -> NHS | HL4: Police | HM4: Probation | HN4: Courts/Legal aid | HO4: Prisons | HP4: Other CJS | HQ4: DWP (AME) | HR4: HMRC | HS4: Schools | HT4: Housing providers | IE4: Overall long term/large scale cashability
A5: B1 | B5: Increased employment (reduced benefits payments and health impact) | C5: Yes | D5: 1) Fiscal benefit of moving people off benefits and into work 2) Improved health outcomes 3) Increased income | E5: 1) DWP/HMT 2) DH 3) Individuals | I5: JSA | R5: =9234+566 -> 9800 | S5: 566 | T5: 14044 | V5: =S5+T5+U5 -> 14610 | W5: 2016-17 | X5: =VLOOKUP(W5,'GDP Deflators'!$B$8:$C$72,2,0)*100/VLOOKUP('Model constants'!$B$3,'GDP Deflators'!$B$8:$C$72,2,0) -> 100 | Y5: DWP response to parliamentary questions (HC Deb 6 February 2013, vol 558, col 352W) | AA5: =IF($C5="Yes",($H5*$J5*$L5*($N5-$P5)*R5*100*(1+$Z5)/$X5),0) -> 0 | AB5: =IF($C5="Yes",($H5*$J5*$L5*($N5-$P5)*V5*100*(1+$Z5)/$X5),0) -> 0 | BE5: =IF(BE$2<=time_frame,$AA5*AE5,"") -> 0 | BF5: =IF(BF$2<=time_frame,$AA5*AF5,"") -> 0 | BG5: =IF(BG$2<=time_frame,$AA5*AG5,"") -> 0 | BH5: =IF(BH$2<=time_frame,$AA5*AH5,"") -> 0 | BI5: =IF(BI$2<=time_frame,$AA5*AI5,"") -> 0 | BJ5: =IF(BJ$2<=time_frame,$AA5*AJ5,"") -> 0 | BK5: =IF(BK$2<=time_frame,$AA5*AK5,"") -> 0 | BL5: =IF(BL$2<=time_frame,$AA5*AL5,"") -> 0 | BM5: =IF(BM$2<=time_frame,$AA5*AM5,"") -> 0 | BN5: =IF(BN$2<=time_frame,$AA5*AN5,"") -> 0 | BO5: =IF(BO$2<=time_frame,$AA5*AO5,"") -> 0 | BP5: =IF(BP$2<=time_frame,$AA5*AP5,"") -> 0 | BQ5: =IF(BQ$2<=time_frame,$AA5*AQ5,"") -> 0 | BR5: =IF(BR$2<=time_frame,$AA5*AR5,"") -> 0 | BS5: =IF(BS$2<=time_frame,$AA5*AS5,"") -> 0 | BT5: =IF(BT$2<=time_frame,$AA5*AT5,"") -> 0 | BU5: =IF(BU$2<=time_frame,$AA5*AU5,"") -> 0 | BV5: =IF(BV$2<=time_frame,$AA5*AV5,"") -> 0 | BW5: =IF(BW$2<=time_frame,$AA5*AW5,"") -> 0 | BX5: =IF(BX$2<=time_frame,$AA5*AX5,"") -> 0 | BY5: =IF(BY$2<=time_frame,$AA5*AY5,"") -> 0 | BZ5: =IF(BZ$2<=time_frame,$AA5*AZ5,"") -> 0 | CA5: =IF(CA$2<=time_frame,$AA5*BA5,"") -> 0 | CB5: =IF(CB$2<=time_frame,$AA5*BB5,"") -> 0 | CC5: =IF(CC$2<=time_frame,$AA5*BC5,"") -> 0 | CD5: =SUM(BE5:CC5) -> 0 | CF5: =IF(CF$2<=time_frame,$AB5*AE5,"") -> 0 | CG5: =IF(CG$2<=time_frame,$AB5*AF5,"") -> 0 | CH5: =IF(CH$2<=time_frame,$AB5*AG5,"") -> 0 | CI5: =IF(CI$2<=time_frame,$AB5*AH5,"") -> 0 | CJ5: =IF(CJ$2<=time_frame,$AB5*AI5,"") -> 0 | CK5: =IF(CK$2<=time_frame,$AB5*AJ5,"") -> 0 | CL5: =IF(CL$2<=time_frame,$AB5*AK5,"") -> 0 | CM5: =IF(CM$2<=time_frame,$AB5*AL5,"") -> 0 | CN5: =IF(CN$2<=time_frame,$AB5*AM5,"") -> 0 | CO5: =IF(CO$2<=time_frame,$AB5*AN5,"") -> 0 | CP5: =IF(CP$2<=time_frame,$AB5*AO5,"") -> 0 | CQ5: =IF(CQ$2<=time_frame,$AB5*AP5,"") -> 0 | CR5: =IF(CR$2<=time_frame,$AB5*AQ5,"") -> 0 | CS5: =IF(CS$2<=time_frame,$AB5*AR5,"") -> 0 | CT5: =IF(CT$2<=time_frame,$AB5*AS5,"") -> 0 | CU5: =IF(CU$2<=time_frame,$AB5*AT5,"") -> 0 | CV5: =IF(CV$2<=time_frame,$AB5*AU5,"") -> 0 | CW5: =IF(CW$2<=time_frame,$AB5*AV5,"") -> 0 | CX5: =IF(CX$2<=time_frame,$AB5*AW5,"") -> 0 | CY5: =IF(CY$2<=time_frame,$AB5*AX5,"") -> 0 | CZ5: =IF(CZ$2<=time_frame,$AB5*AY5,"") -> 0 | DA5: =IF(DA$2<=time_frame,$AB5*AZ5,"") -> 0 | DB5: =IF(DB$2<=time_frame,$AB5*BA5,"") -> 0 | DC5: =IF(DC$2<=time_frame,$AB5*BB5,"") -> 0 | DD5: =IF(DD$2<=time_frame,$AB5*BC5,"") -> 0 | DE5: =SUM(CF5:DD5) -> 0 | DG5: =IF(DG$3<>"",VLOOKUP($A5,'Agency percentages'!$A$5:$X$69,(3+MATCH(DG$4,'Agency percentages'!$D$4:$W$4,0)),FALSE),"") -> 0 | DH5: =IF(DH$3<>"",VLOOKUP($A5,'Agency percentages'!$A$5:$X$69,(3+MATCH(DH$4,'Agency percentages'!$D$4:$W$4,0)),FALSE),"") -> 0.06 | DI5: =IF(DI$3<>"",VLOOKUP($A5,'Agency percentages'!$A$5:$X$69,(3+MATCH(DI$4,'Agency percentages'!$D$4:$W$4,0)),FALSE),"") -> 0 | DJ5: =IF(DJ$3<>"",VLOOKUP($A5,'Agency percentages'!$A$5:$X$69,(3+MATCH(DJ$4,'Agency percentages'!$D$4:$W$4,0)),FALSE),"") -> 0 | DK5: =IF(DK$3<>"",VLOOKUP($A5,'Agency percentages'!$A$5:$X$69,(3+MATCH(DK$4,'Agency percentages'!$D$4:$W$4,0)),FALSE),"") -> 0 | DL5: =IF(DL$3<>"",VLOOKUP($A5,'Agency percentages'!$A$5:$X$69,(3+MATCH(DL$4,'Agency percentages'!$D$4:$W$4,0)),FALSE),"") -> 0 | DM5: =IF(DM$3<>"",VLOOKUP($A5,'Agency percentages'!$A$5:$X$69,(3+MATCH(DM$4,'Agency percentages'!$D$4:$W$4,0)),FALSE),"") -> 0 | DN5: =IF(DN$3<>"",VLOOKUP($A5,'Agency percentages'!$A$5:$X$69,(3+MATCH(DN$4,'Agency percentages'!$D$4:$W$4,0)),FALSE),"") -> 0.94 | DO5: =IF(DO$3<>"",VLOOKUP($A5,'Agency percentages'!$A$5:$X$69,(3+MATCH(DO$4,'Agency percentages'!$D$4:$W$4,0)),FALSE),"") -> 0 | DP5: =IF(DP$3<>"",VLOOKUP($A5,'Agency percentages'!$A$5:$X$69,(3+MATCH(DP$4,'Agency percentages'!$D$4:$W$4,0)),FALSE),"") -> 0 | DQ5: =IF(DQ$3<>"",VLOOKUP($A5,'Agency percentages'!$A$5:$X$69,(3+MATCH(DQ$4,'Agency percentages'!$D$4:$W$4,0)),FALSE),"") -> 0 | DR5: =IF(DR$3<>"",VLOOKUP($A5,'Agency percentages'!$A$5:$X$69,(3+MATCH(DR$4,'Agency percentages'!$D$4:$W$4,0)),FALSE),"") ->  | DS5: =IF(DS$3<>"",VLOOKUP($A5,'Agency percentages'!$A$5:$X$69,(3+MATCH(DS$4,'Agency percentages'!$D$4:$W$4,0)),FALSE),"") ->  | DT5: =IF(DT$3<>"",VLOOKUP($A5,'Agency percentages'!$A$5:$X$69,(3+MATCH(DT$4,'Agency percentages'!$D$4:$W$4,0)),FALSE),"") ->  | DU5: =IF(DU$3<>"",VLOOKUP($A5,'Agency percentages'!$A$5:$X$69,(3+MATCH(DU$4,'Agency percentages'!$D$4:$W$4,0)),FALSE),"") ->  | DV5: =IF(DV$3<>"",VLOOKUP($A5,'Agency percentages'!$A$5:$X$69,(3+MATCH(DV$4,'Agency percentages'!$D$4:$W$4,0)),FALSE),"") ->  | DW5: =IF(DW$3<>"",VLOOKUP($A5,'Agency percentages'!$A$5:$X$69,(3+MATCH(DW$4,'Agency percentages'!$D$4:$W$4,0)),FALSE),"") ->  | DX5: =IF(DX$3<>"",VLOOKUP($A5,'Agency percentages'!$A$5:$X$69,(3+MATCH(DX$4,'Agency percentages'!$D$4:$W$4,0)),FALSE),"") ->  | DY5: =IF(DY$3<>"",VLOOKUP($A5,'Agency percentages'!$A$5:$X$69,(3+MATCH(DY$4,'Agency percentages'!$D$4:$W$4,0)),FALSE),"") ->  | DZ5: =IF(DZ$3<>"",VLOOKUP($A5,'Agency percentages'!$A$5:$X$69,(3+MATCH(DZ$4,'Agency percentages'!$D$4:$W$4,0)),FALSE),"") ->  | EB5: =IF(AND(EB$3<>"",DG5<>0),HLOOKUP(EB$4,'Agency cashability'!$B$3:$U$5,2,0),0) -> 0 | EC5: =IF(AND(EC$3<>"",DH5<>0),HLOOKUP(EC$4,'Agency cashability'!$B$3:$U$5,2,0),0) -> 0.2 | ED5: =IF(AND(ED$3<>"",DI5<>0),HLOOKUP(ED$4,'Agency cashability'!$B$3:$U$5,2,0),0) -> 0 | EE5: =IF(AND(EE$3<>"",DJ5<>0),HLOOKUP(EE$4,'Agency cashability'!$B$3:$U$5,2,0),0) -> 0 | EF5: =IF(AND(EF$3<>"",DK5<>0),HLOOKUP(EF$4,'Agency cashability'!$B$3:$U$5,2,0),0) -> 0 | EG5: =IF(AND(EG$3<>"",DL5<>0),HLOOKUP(EG$4,'Agency cashability'!$B$3:$U$5,2,0),0) -> 0 | EH5: =IF(AND(EH$3<>"",DM5<>0),HLOOKUP(EH$4,'Agency cashability'!$B$3:$U$5,2,0),0) -> 0 | EI5: =IF(AND(EI$3<>"",DN5<>0),HLOOKUP(EI$4,'Agency cashability'!$B$3:$U$5,2,0),0) -> 0.95 | EJ5: =IF(AND(EJ$3<>"",DO5<>0),HLOOKUP(EJ$4,'Agency cashability'!$B$3:$U$5,2,0),0) -> 0 | EK5: =IF(AND(EK$3<>"",DP5<>0),HLOOKUP(EK$4,'Agency cashability'!$B$3:$U$5,2,0),0) -> 0 | EL5: =IF(AND(EL$3<>"",DQ5<>0),HLOOKUP(EL$4,'Agency cashability'!$B$3:$U$5,2,0),0) -> 0 | EM5: =IF(AND(EM$3<>"",DR5<>0),HLOOKUP(EM$4,'Agency cashability'!$B$3:$U$5,2,0),0) -> 0 | EN5: =IF(AND(EN$3<>"",DS5<>0),HLOOKUP(EN$4,'Agency cashability'!$B$3:$U$5,2,0),0) -> 0 | EO5: =IF(AND(EO$3<>"",DT5<>0),HLOOKUP(EO$4,'Agency cashability'!$B$3:$U$5,2,0),0) -> 0 | EP5: =IF(AND(EP$3<>"",DU5<>0),HLOOKUP(EP$4,'Agency cashability'!$B$3:$U$5,2,0),0) -> 0 | EQ5: =IF(AND(EQ$3<>"",DV5<>0),HLOOKUP(EQ$4,'Agency cashability'!$B$3:$U$5,2,0),0) -> 0 | ER5: =IF(AND(ER$3<>"",DW5<>0),HLOOKUP(ER$4,'Agency cashability'!$B$3:$U$5,2,0),0) -> 0 | ES5: =IF(AND(ES$3<>"",DX5<>0),HLOOKUP(ES$4,'Agency cashability'!$B$3:$U$5,2,0),0) -> 0 | ET5: =IF(AND(ET$3<>"",DY5<>0),HLOOKUP(ET$4,'Agency cashability'!$B$3:$U$5,2,0),0) -> 0 | EU5: =IF(AND(EU$3<>"",DZ5<>0),HLOOKUP(EU$4,'Agency cashability'!$B$3:$U$5,2,0),0) -> 0 | EW5: =IF(AND(EW$3<>"",DG5<>0),HLOOKUP(EW$4,'Agency cashability'!$B$3:$U$5,3,0),0) -> 0 | EX5: =IF(AND(EX$3<>"",DH5<>0),HLOOKUP(EX$4,'Agency cashability'!$B$3:$U$5,3,0),0) -> 0.5 | EY5: =IF(AND(EY$3<>"",DI5<>0),HLOOKUP(EY$4,'Agency cashability'!$B$3:$U$5,3,0),0) -> 0 | EZ5: =IF(AND(EZ$3<>"",DJ5<>0),HLOOKUP(EZ$4,'Agency cashability'!$B$3:$U$5,3,0),0) -> 0 | FA5: =IF(AND(FA$3<>"",DK5<>0),HLOOKUP(FA$4,'Agency cashability'!$B$3:$U$5,3,0),0) -> 0 | FB5: =IF(AND(FB$3<>"",DL5<>0),HLOOKUP(FB$4,'Agency cashability'!$B$3:$U$5,3,0),0) -> 0 | FC5: =IF(AND(FC$3<>"",DM5<>0),HLOOKUP(FC$4,'Agency cashability'!$B$3:$U$5,3,0),0) -> 0 | FD5: =IF(AND(FD$3<>"",DN5<>0),HLOOKUP(FD$4,'Agency cashability'!$B$3:$U$5,3,0),0) -> 1 | FE5: =IF(AND(FE$3<>"",DO5<>0),HLOOKUP(FE$4,'Agency cashability'!$B$3:$U$5,3,0),0) -> 0 | FF5: =IF(AND(FF$3<>"",DP5<>0),HLOOKUP(FF$4,'Agency cashability'!$B$3:$U$5,3,0),0) -> 0 | FG5: =IF(AND(FG$3<>"",DQ5<>0),HLOOKUP(FG$4,'Agency cashability'!$B$3:$U$5,3,0),0) -> 0 | FH5: =IF(AND(FH$3<>"",DR5<>0),HLOOKUP(FH$4,'Agency cashability'!$B$3:$U$5,3,0),0) -> 0 | FI5: =IF(AND(FI$3<>"",DS5<>0),HLOOKUP(FI$4,'Agency cashability'!$B$3:$U$5,3,0),0) -> 0 | FJ5: =IF(AND(FJ$3<>"",DT5<>0),HLOOKUP(FJ$4,'Agency cashability'!$B$3:$U$5,3,0),0) -> 0 | FK5: =IF(AND(FK$3<>"",DU5<>0),HLOOKUP(FK$4,'Agency cashability'!$B$3:$U$5,3,0),0) -> 0 | FL5: =IF(AND(FL$3<>"",DV5<>0),HLOOKUP(FL$4,'Agency cashability'!$B$3:$U$5,3,0),0) -> 0 | FM5: =IF(AND(FM$3<>"",DW5<>0),HLOOKUP(FM$4,'Agency cashability'!$B$3:$U$5,3,0),0) -> 0 | FN5: =IF(AND(FN$3<>"",DX5<>0),HLOOKUP(FN$4,'Agency cashability'!$B$3:$U$5,3,0),0) -> 0 | FO5: =IF(AND(FO$3<>"",DY5<>0),HLOOKUP(FO$4,'Agency cashability'!$B$3:$U$5,3,0),0) -> 0 | FP5: =IF(AND(FP$3<>"",DZ5<>0),HLOOKUP(FP$4,'Agency cashability'!$B$3:$U$5,3,0),0) -> 0 | FR5: =IF((FR$3<>""),DG5*$CD5,"") -> 0 | FS5: =IF((FS$3<>""),DH5*$CD5,"") -> 0 | FT5: 0 | FU5: 0 | FV5: 0 | FW5: 0 | FX5: 0 | FY5: 0 | FZ5: 0 | GA5: 0 | GB5: 0 | GM5: =IF((GM$3<>""),EB5*FR5,"") -> 0 | GN5: 0 | GO5: 0 | GP5: 0 | GQ5: 0 | GR5: 0 | GS5: 0 | GT5: 0 | GU5: 0 | GV5: 0 | GW5: =IF((GW$3<>""),EL5*GB5,"") -> 0 | HH5: =SUM(GM5:HF5)/SUM(FR5:GK5) ->  | HJ5: =IF((HJ$3<>""),EW5*FR5,"") -> 0 | HK5: 0 | HL5: 0 | HM5: 0 | HN5: 0 | HO5: 0 | HP5: 0 | HQ5: 0 | HR5: 0 | HS5: 0 | HT5: =IF((HT$3<>""),FG5*GB5,"") -> 0 | IE5: =SUM(HJ5:IC5)/SUM(FR5:GK5) -> 
A6: B2 | C6: Yes | I6: ESA/IB | R6: =7500+1132 -> 8632 | S6: 1132 | T6: 12568 | V6: =S6+T6+U6 -> 13700 | W6: 2016-17 | X6: =VLOOKUP(W6,'GDP Deflators'!$B$8:$C$72,2,0)*100/VLOOKUP('Model constants'!$B$3,'GDP Deflators'!$B$8:$C$72,2,0) -> 100 | Y6: DWP modelling (unpublished) | AA6: =IF($C6="Yes",($H6*$J6*$L6*($N6-$P6)*R6*100*(1+$Z6)/$X6),0) -> 0 | AB6: =IF($C6="Yes",($H6*$J6*$L6*($N6-$P6)*V6*100*(1+$Z6)/$X6),0) -> 0 | BE6: 0 | BF6: 0 | BG6: 0 | BH6: 0 | BI6: 0 | BJ6: 0 | BK6: 0 | BL6: 0 | BM6: 0 | BN6: 0 | BO6: 0 | BP6: 0 | BQ6: 0 | BR6: 0 | BS6: 0 | BT6: 0 | BU6: 0 | BV6: 0 | BW6: 0 | BX6: 0 | BY6: 0 | BZ6: 0 | CA6: 0 | CB6: 0 | CC6: 0 | CD6: =SUM(BE6:CC6) -> 0 | CF6: 0 | CG6: 0 | CH6: 0 | CI6: 0 | CJ6: 0 | CK6: 0 | CL6: 0 | CM6: 0 | CN6: 0 | CO6: 0 | CP6: 0 | CQ6: 0 | CR6: 0 | CS6: 0 | CT6: 0 | CU6: 0 | CV6: 0 | CW6: 0 | CX6: 0 | CY6: 0 | CZ6: 0 | DA6: 0 | DB6: 0 | DC6: 0 | DD6: 0 | DE6: =SUM(CF6:DD6) -> 0 | DG6: =IF(DG$3<>"",VLOOKUP($A6,'Agency percentages'!$A$5:$X$69,(3+MATCH(DG$4,'Agency percentages'!$D$4:$W$4,0)),FALSE),"") -> 0 | DH6: =IF(DH$3<>"",VLOOKUP($A6,'Agency percentages'!$A$5:$X$69,(3+MATCH(DH$4,'Agency percentages'!$D$4:$W$4,0)),FALSE),"") -> 0.13 | DI6: =IF(DI$3<>"",VLOOKUP($A6,'Agency percentages'!$A$5:$X$69,(3+MATCH(DI$4,'Agency percentages'!$D$4:$W$4,0)),FALSE),"") -> 0 | DJ6: =IF(DJ$3<>"",VLOOKUP($A6,'Agency percentages'!$A$5:$X$69,(3+MATCH(DJ$4,'Agency percentages'!$D$4:$W$4,0)),FALSE),"") -> 0 | DK6: =IF(DK$3<>"",VLOOKUP($A6,'Agency percentages'!$A$5:$X$69,(3+MATCH(DK$4,'Agency percentages'!$D$4:$W$4,0)),FALSE),"") -> 0 | DL6: =IF(DL$3<>"",VLOOKUP($A6,'Agency percentages'!$A$5:$X$69,(3+MATCH(DL$4,'Agency percentages'!$D$4:$W$4,0)),FALSE),"") -> 0 | DM6: =IF(DM$3<>"",VLOOKUP($A6,'Agency percentages'!$A$5:$X$69,(3+MATCH(DM$4,'Agency percentages'!$D$4:$W$4,0)),FALSE),"") -> 0 | DN6: =IF(DN$3<>"",VLOOKUP($A6,'Agency percentages'!$A$5:$X$69,(3+MATCH(DN$4,'Agency percentages'!$D$4:$W$4,0)),FALSE),"") -> 0.87 | DO6: =IF(DO$3<>"",VLOOKUP($A6,'Agency percentages'!$A$5:$X$69,(3+MATCH(DO$4,'Agency percentages'!$D$4:$W$4,0)),FALSE),"") -> 0 | DP6: =IF(DP$3<>"",VLOOKUP($A6,'Agency percentages'!$A$5:$X$69,(3+MATCH(DP$4,'Agency percentages'!$D$4:$W$4,0)),FALSE),"") -> 0 | DQ6: =IF(DQ$3<>"",VLOOKUP($A6,'Agency percentages'!$A$5:$X$69,(3+MATCH(DQ$4,'Agency percentages'!$D$4:$W$4,0)),FALSE),"") -> 0 | DR6: =IF(DR$3<>"",VLOOKUP($A6,'Agency percentages'!$A$5:$X$69,(3+MATCH(DR$4,'Agency percentages'!$D$4:$W$4,0)),FALSE),"") ->  | DS6: =IF(DS$3<>"",VLOOKUP($A6,'Agency percentages'!$A$5:$X$69,(3+MATCH(DS$4,'Agency percentages'!$D$4:$W$4,0)),FALSE),"") ->  | DT6: =IF(DT$3<>"",VLOOKUP($A6,'Agency percentages'!$A$5:$X$69,(3+MATCH(DT$4,'Agency percentages'!$D$4:$W$4,0)),FALSE),"") ->  | DU6: =IF(DU$3<>"",VLOOKUP($A6,'Agency percentages'!$A$5:$X$69,(3+MATCH(DU$4,'Agency percentages'!$D$4:$W$4,0)),FALSE),"") ->  | DV6: =IF(DV$3<>"",VLOOKUP($A6,'Agency percentages'!$A$5:$X$69,(3+MATCH(DV$4,'Agency percentages'!$D$4:$W$4,0)),FALSE),"") ->  | DW6: =IF(DW$3<>"",VLOOKUP($A6,'Agency percentages'!$A$5:$X$69,(3+MATCH(DW$4,'Agency percentages'!$D$4:$W$4,0)),FALSE),"") ->  | DX6: =IF(DX$3<>"",VLOOKUP($A6,'Agency percentages'!$A$5:$X$69,(3+MATCH(DX$4,'Agency percentages'!$D$4:$W$4,0)),FALSE),"") ->  | DY6: =IF(DY$3<>"",VLOOKUP($A6,'Agency percentages'!$A$5:$X$69,(3+MATCH(DY$4,'Agency percentages'!$D$4:$W$4,0)),FALSE),"") ->  | DZ6: =IF(DZ$3<>"",VLOOKUP($A6,'Agency percentages'!$A$5:$X$69,(3+MATCH(DZ$4,'Agency percentages'!$D$4:$W$4,0)),FALSE),"") ->  | EB6: =IF(AND(EB$3<>"",DG6<>0),HLOOKUP(EB$4,'Agency cashability'!$B$3:$U$5,2,0),0) -> 0 | EC6: =IF(AND(EC$3<>"",DH6<>0),HLOOKUP(EC$4,'Agency cashability'!$B$3:$U$5,2,0),0) -> 0.2 | ED6: =IF(AND(ED$3<>"",DI6<>0),HLOOKUP(ED$4,'Agency cashability'!$B$3:$U$5,2,0),0) -> 0 | EE6: =IF(AND(EE$3<>"",DJ6<>0),HLOOKUP(EE$4,'Agency cashability'!$B$3:$U$5,2,0),0) -> 0 | EF6: =IF(AND(EF$3<>"",DK6<>0),HLOOKUP(EF$4,'Agency cashability'!$B$3:$U$5,2,0),0) -> 0 | EG6: =IF(AND(EG$3<>"",DL6<>0),HLOOKUP(EG$4,'Agency cashability'!$B$3:$U$5,2,0),0) -> 0 | EH6: =IF(AND(EH$3<>"",DM6<>0),HLOOKUP(EH$4,'Agency cashability'!$B$3:$U$5,2,0),0) -> 0 | EI6: =IF(AND(EI$3<>"",DN6<>0),HLOOKUP(EI$4,'Agency cashability'!$B$3:$U$5,2,0),0) -> 0.95 | EJ6: =IF(AND(EJ$3<>"",DO6<>0),HLOOKUP(EJ$4,'Agency cashability'!$B$3:$U$5,2,0),0) -> 0 | EK6: =IF(AND(EK$3<>"",DP6<>0),HLOOKUP(EK$4,'Agency cashability'!$B$3:$U$5,2,0),0) -> 0 | EL6: =IF(AND(EL$3<>"",DQ6<>0),HLOOKUP(EL$4,'Agency cashability'!$B$3:$U$5,2,0),0) -> 0 | EM6: =IF(AND(EM$3<>"",DR6<>0),HLOOKUP(EM$4,'Agency cashability'!$B$3:$U$5,2,0),0) -> 0 | EN6: =IF(AND(EN$3<>"",DS6<>0),HLOOKUP(EN$4,'Agency cashability'!$B$3:$U$5,2,0),0) -> 0 | EO6: =IF(AND(EO$3<>"",DT6<>0),HLOOKUP(EO$4,'Agency cashability'!$B$3:$U$5,2,0),0) -> 0 | EP6: =IF(AND(EP$3<>"",DU6<>0),HLOOKUP(EP$4,'Agency cashability'!$B$3:$U$5,2,0),0) -> 0 | EQ6: =IF(AND(EQ$3<>"",DV6<>0),HLOOKUP(EQ$4,'Agency cashability'!$B$3:$U$5,2,0),0) -> 0 | ER6: =IF(AND(ER$3<>"",DW6<>0),HLOOKUP(ER$4,'Agency cashability'!$B$3:$U$5,2,0),0) -> 0 | ES6: =IF(AND(ES$3<>"",DX6<>0),HLOOKUP(ES$4,'Agency cashability'!$B$3:$U$5,2,0),0) -> 0 | ET6: =IF(AND(ET$3<>"",DY6<>0),HLOOKUP(ET$4,'Agency cashability'!$B$3:$U$5,2,0),0) -> 0 | EU6: =IF(AND(EU$3<>"",DZ6<>0),HLOOKUP(EU$4,'Agency cashability'!$B$3:$U$5,2,0),0) -> 0 | EW6: =IF(AND(EW$3<>"",DG6<>0),HLOOKUP(EW$4,'Agency cashability'!$B$3:$U$5,3,0),0) -> 0 | EX6: =IF(AND(EX$3<>"",DH6<>0),HLOOKUP(EX$4,'Agency cashability'!$B$3:$U$5,3,0),0) -> 0.5 | EY6: =IF(AND(EY$3<>"",DI6<>0),HLOOKUP(EY$4,'Agency cashability'!$B$3:$U$5,3,0),0) -> 0 | EZ6: =IF(AND(EZ$3<>"",DJ6<>0),HLOOKUP(EZ$4,'Agency cashability'!$B$3:$U$5,3,0),0) -> 0 | FA6: =IF(AND(FA$3<>"",DK6<>0),HLOOKUP(FA$4,'Agency cashability'!$B$3:$U$5,3,0),0) -> 0 | FB6: =IF(AND(FB$3<>"",DL6<>0),HLOOKUP(FB$4,'Agency cashability'!$B$3:$U$5,3,0),0) -> 0 | FC6: =IF(AND(FC$3<>"",DM6<>0),HLOOKUP(FC$4,'Agency cashability'!$B$3:$U$5,3,0),0) -> 0 | FD6: =IF(AND(FD$3<>"",DN6<>0),HLOOKUP(FD$4,'Agency cashability'!$B$3:$U$5,3,0),0) -> 1 | FE6: =IF(AND(FE$3<>"",DO6<>0),HLOOKUP(FE$4,'Agency cashability'!$B$3:$U$5,3,0),0) -> 0 | FF6: =IF(AND(FF$3<>"",DP6<>0),HLOOKUP(FF$4,'Agency cashability'!$B$3:$U$5,3,0),0) -> 0 | FG6: =IF(AND(FG$3<>"",DQ6<>0),HLOOKUP(FG$4,'Agency cashability'!$B$3:$U$5,3,0),0) -> 0 | FH6: =IF(AND(FH$3<>"",DR6<>0),HLOOKUP(FH$4,'Agency cashability'!$B$3:$U$5,3,0),0) -> 0 | FI6: =IF(AND(FI$3<>"",DS6<>0),HLOOKUP(FI$4,'Agency cashability'!$B$3:$U$5,3,0),0) -> 0 | FJ6: =IF(AND(FJ$3<>"",DT6<>0),HLOOKUP(FJ$4,'Agency cashability'!$B$3:$U$5,3,0),0) -> 0 | FK6: =IF(AND(FK$3<>"",DU6<>0),HLOOKUP(FK$4,'Agency cashability'!$B$3:$U$5,3,0),0) -> 0 | FL6: =IF(AND(FL$3<>"",DV6<>0),HLOOKUP(FL$4,'Agency cashability'!$B$3:$U$5,3,0),0) -> 0 | FM6: =IF(AND(FM$3<>"",DW6<>0),HLOOKUP(FM$4,'Agency cashability'!$B$3:$U$5,3,0),0) -> 0 | FN6: =IF(AND(FN$3<>"",DX6<>0),HLOOKUP(FN$4,'Agency cashability'!$B$3:$U$5,3,0),0) -> 0 | FO6: =IF(AND(FO$3<>"",DY6<>0),HLOOKUP(FO$4,'Agency cashability'!$B$3:$U$5,3,0),0) -> 0 | FP6: =IF(AND(FP$3<>"",DZ6<>0),HLOOKUP(FP$4,'Agency cashability'!$B$3:$U$5,3,0),0) -> 0 | FR6: =IF((FR$3<>""),DG6*$CD6,"") -> 0 | FS6: =IF((FS$3<>""),DH6*$CD6,"") -> 0 | FT6: =IF((FT$3<>""),DI6*$CD6,"") -> 0 | FU6: =IF((FU$3<>""),DJ6*$CD6,"") -> 0 | FV6: =IF((FV$3<>""),DK6*$CD6,"") -> 0 | FW6: =IF((FW$3<>""),DL6*$CD6,"") -> 0 | FX6: =IF((FX$3<>""),DM6*$CD6,"") -> 0 | FY6: =IF((FY$3<>""),DN6*$CD6,"") -> 0 | FZ6: =IF((FZ$3<>""),DO6*$CD6,"") -> 0 | GA6: =IF((GA$3<>""),DP6*$CD6,"") -> 0 | GB6: =IF((GB$3<>""),DQ6*$CD6,"") -> 0 | GC6: =IF((GC$3<>""),DR6*$CD6,"") ->  | GD6: =IF((GD$3<>""),DS6*$CD6,"") ->  | GE6: =IF((GE$3<>""),DT6*$CD6,"") ->  | GF6: =IF((GF$3<>""),DU6*$CD6,"") ->  | GG6: =IF((GG$3<>""),DV6*$CD6,"") ->  | GH6: =IF((GH$3<>""),DW6*$CD6,"") ->  | GI6: =IF((GI$3<>""),DX6*$CD6,"") ->  | GJ6: =IF((GJ$3<>""),DY6*$CD6,"") ->  | GK6: =IF((GK$3<>""),DZ6*$CD6,"") ->  | GM6: =IF((GM$3<>""),EB6*FR6,"") -> 0 | GN6: 0 | GO6: 0 | GP6: 0 | GQ6: 0 | GR6: 0 | GS6: 0 | GT6: 0 | GU6: 0 | GV6: 0 | GW6: 0 | HJ6: =IF((HJ$3<>""),EW6*FR6,"") -> 0 | HK6: 0 | HL6: 0 | HM6: 0 | HN6: 0 | HO6: 0 | HP6: 0 | HQ6: 0 | HR6: 0 | HS6: 0 | HT6: 0
A7: B3 | C7: Yes | I7: LPIS | R7: =7004+566 -> 7570 | S7: 566 | T7: 8701 | V7: 9267 | W7: 2016-17 | X7: =VLOOKUP(W7,'GDP Deflators'!$B$8:$C$72,2,0)*100/VLOOKUP('Model constants'!$B$3,'GDP Deflators'!$B$8:$C$72,2,0) -> 100 | Y7: DWP modelling (unpublished) | AA7: 0 | AB7: 0 | BE7: 0 | BF7: 0 | BG7: 0 | BH7: 0 | BI7: 0 | BJ7: 0 | BK7: 0 | BL7: 0 | BM7: 0 | BN7: 0 | BO7: 0 | BP7: 0 | BQ7: 0 | BR7: 0 | BS7: 0 | BT7: 0 | BU7: 0 | BV7: 0 | BW7: 0 | BX7: 0 | BY7: 0 | BZ7: 0 | CA7: 0 | CB7: 0 | CC7: 0 | CD7: 0 | CF7: 0 | CG7: 0 | CH7: 0 | CI7: 0 | CJ7: 0 | CK7: 0 | CL7: 0 | CM7: 0 | CN7: 0 | CO7: 0 | CP7: 0 | CQ7: 0 | CR7: 0 | CS7: 0 | CT7: 0 | CU7: 0 | CV7: 0 | CW7: 0 | CX7: 0 | CY7: 0 | CZ7: 0 | DA7: 0 | DB7: 0 | DC7: 0 | DD7: 0 | DE7: 0 | DG7: =IF(DG$3<>"",VLOOKUP($A7,'Agency percentages'!$A$5:$X$69,(3+MATCH(DG$4,'Agency percentages'!$D$4:$W$4,0)),FALSE),"") -> 0 | DH7: =IF(DH$3<>"",VLOOKUP($A7,'Agency percentages'!$A$5:$X$69,(3+MATCH(DH$4,'Agency percentages'!$D$4:$W$4,0)),FALSE),"") -> 0.07 | DI7: =IF(DI$3<>"",VLOOKUP($A7,'Agency percentages'!$A$5:$X$69,(3+MATCH(DI$4,'Agency percentages'!$D$4:$W$4,0)),FALSE),"") -> 0 | DJ7: =IF(DJ$3<>"",VLOOKUP($A7,'Agency percentages'!$A$5:$X$69,(3+MATCH(DJ$4,'Agency percentages'!$D$4:$W$4,0)),FALSE),"") -> 0 | DK7: =IF(DK$3<>"",VLOOKUP($A7,'Agency percentages'!$A$5:$X$69,(3+MATCH(DK$4,'Agency percentages'!$D$4:$W$4,0)),FALSE),"") -> 0 | DL7: =IF(DL$3<>"",VLOOKUP($A7,'Agency percentages'!$A$5:$X$69,(3+MATCH(DL$4,'Agency percentages'!$D$4:$W$4,0)),FALSE),"") -> 0 | DM7: =IF(DM$3<>"",VLOOKUP($A7,'Agency percentages'!$A$5:$X$69,(3+MATCH(DM$4,'Agency percentages'!$D$4:$W$4,0)),FALSE),"") -> 0 | DN7: =IF(DN$3<>"",VLOOKUP($A7,'Agency percentages'!$A$5:$X$69,(3+MATCH(DN$4,'Agency percentages'!$D$4:$W$4,0)),FALSE),"") -> 0.93 | DO7: =IF(DO$3<>"",VLOOKUP($A7,'Agency percentages'!$A$5:$X$69,(3+MATCH(DO$4,'Agency percentages'!$D$4:$W$4,0)),FALSE),"") -> 0 | DP7: =IF(DP$3<>"",VLOOKUP($A7,'Agency percentages'!$A$5:$X$69,(3+MATCH(DP$4,'Agency percentages'!$D$4:$W$4,0)),FALSE),"") -> 0 | DQ7: =IF(DQ$3<>"",VLOOKUP($A7,'Agency percentages'!$A$5:$X$69,(3+MATCH(DQ$4,'Agency percentages'!$D$4:$W$4,0)),FALSE),"") -> 0 | DR7: =IF(DR$3<>"",VLOOKUP($A7,'Agency percentages'!$A$5:$X$69,(3+MATCH(DR$4,'Agency percentages'!$D$4:$W$4,0)),FALSE),"") ->  | DS7: =IF(DS$3<>"",VLOOKUP($A7,'Agency percentages'!$A$5:$X$69,(3+MATCH(DS$4,'Agency percentages'!$D$4:$W$4,0)),FALSE),"") ->  | DT7: =IF(DT$3<>"",VLOOKUP($A7,'Agency percentages'!$A$5:$X$69,(3+MATCH(DT$4,'Agency percentages'!$D$4:$W$4,0)),FALSE),"") ->  | DU7: =IF(DU$3<>"",VLOOKUP($A7,'Agency percentages'!$A$5:$X$69,(3+MATCH(DU$4,'Agency percentages'!$D$4:$W$4,0)),FALSE),"") ->  | DV7: =IF(DV$3<>"",VLOOKUP($A7,'Agency percentages'!$A$5:$X$69,(3+MATCH(DV$4,'Agency percentages'!$D$4:$W$4,0)),FALSE),"") ->  | DW7: =IF(DW$3<>"",VLOOKUP($A7,'Agency percentages'!$A$5:$X$69,(3+MATCH(DW$4,'Agency percentages'!$D$4:$W$4,0)),FALSE),"") ->  | DX7: =IF(DX$3<>"",VLOOKUP($A7,'Agency percentages'!$A$5:$X$69,(3+MATCH(DX$4,'Agency percentages'!$D$4:$W$4,0)),FALSE),"") ->  | DY7: =IF(DY$3<>"",VLOOKUP($A7,'Agency percentages'!$A$5:$X$69,(3+MATCH(DY$4,'Agency percentages'!$D$4:$W$4,0)),FALSE),"") ->  | DZ7: =IF(DZ$3<>"",VLOOKUP($A7,'Agency percentages'!$A$5:$X$69,(3+MATCH(DZ$4,'Agency percentages'!$D$4:$W$4,0)),FALSE),"") ->  | EB7: =IF(AND(EB$3<>"",DG7<>0),HLOOKUP(EB$4,'Agency cashability'!$B$3:$U$5,2,0),0) -> 0 | EC7: =IF(AND(EC$3<>"",DH7<>0),HLOOKUP(EC$4,'Agency cashability'!$B$3:$U$5,2,0),0) -> 0.2 | ED7: =IF(AND(ED$3<>"",DI7<>0),HLOOKUP(ED$4,'Agency cashability'!$B$3:$U$5,2,0),0) -> 0 | EE7: =IF(AND(EE$3<>"",DJ7<>0),HLOOKUP(EE$4,'Agency cashability'!$B$3:$U$5,2,0),0) -> 0 | EF7: =IF(AND(EF$3<>"",DK7<>0),HLOOKUP(EF$4,'Agency cashability'!$B$3:$U$5,2,0),0) -> 0 | EG7: =IF(AND(EG$3<>"",DL7<>0),HLOOKUP(EG$4,'Agency cashability'!$B$3:$U$5,2,0),0) -> 0 | EH7: =IF(AND(EH$3<>"",DM7<>0),HLOOKUP(EH$4,'Agency cashability'!$B$3:$U$5,2,0),0) -> 0 | EI7: =IF(AND(EI$3<>"",DN7<>0),HLOOKUP(EI$4,'Agency cashability'!$B$3:$U$5,2,0),0) -> 0.95 | EJ7: =IF(AND(EJ$3<>"",DO7<>0),HLOOKUP(EJ$4,'Agency cashability'!$B$3:$U$5,2,0),0) -> 0 | EK7: =IF(AND(EK$3<>"",DP7<>0),HLOOKUP(EK$4,'Agency cashability'!$B$3:$U$5,2,0),0) -> 0 | EL7: =IF(AND(EL$3<>"",DQ7<>0),HLOOKUP(EL$4,'Agency cashability'!$B$3:$U$5,2,0),0) -> 0 | EM7: =IF(AND(EM$3<>"",DR7<>0),HLOOKUP(EM$4,'Agency cashability'!$B$3:$U$5,2,0),0) -> 0 | EN7: =IF(AND(EN$3<>"",DS7<>0),HLOOKUP(EN$4,'Agency cashability'!$B$3:$U$5,2,0),0) -> 0 | EO7: =IF(AND(EO$3<>"",DT7<>0),HLOOKUP(EO$4,'Agency cashability'!$B$3:$U$5,2,0),0) -> 0 | EP7: =IF(AND(EP$3<>"",DU7<>0),HLOOKUP(EP$4,'Agency cashability'!$B$3:$U$5,2,0),0) -> 0 | EQ7: =IF(AND(EQ$3<>"",DV7<>0),HLOOKUP(EQ$4,'Agency cashability'!$B$3:$U$5,2,0),0) -> 0 | ER7: =IF(AND(ER$3<>"",DW7<>0),HLOOKUP(ER$4,'Agency cashability'!$B$3:$U$5,2,0),0) -> 0 | ES7: =IF(AND(ES$3<>"",DX7<>0),HLOOKUP(ES$4,'Agency cashability'!$B$3:$U$5,2,0),0) -> 0 | ET7: =IF(AND(ET$3<>"",DY7<>0),HLOOKUP(ET$4,'Agency cashability'!$B$3:$U$5,2,0),0) -> 0 | EU7: =IF(AND(EU$3<>"",DZ7<>0),HLOOKUP(EU$4,'Agency cashability'!$B$3:$U$5,2,0),0) -> 0 | EW7: =IF(AND(EW$3<>"",DG7<>0),HLOOKUP(EW$4,'Agency cashability'!$B$3:$U$5,3,0),0) -> 0 | EX7: =IF(AND(EX$3<>"",DH7<>0),HLOOKUP(EX$4,'Agency cashability'!$B$3:$U$5,3,0),0) -> 0.5 | EY7: =IF(AND(EY$3<>"",DI7<>0),HLOOKUP(EY$4,'Agency cashability'!$B$3:$U$5,3,0),0) -> 0 | EZ7: =IF(AND(EZ$3<>"",DJ7<>0),HLOOKUP(EZ$4,'Agency cashability'!$B$3:$U$5,3,0),0) -> 0 | FA7: =IF(AND(FA$3<>"",DK7<>0),HLOOKUP(FA$4,'Agency cashability'!$B$3:$U$5,3,0),0) -> 0 | FB7: =IF(AND(FB$3<>"",DL7<>0),HLOOKUP(FB$4,'Agency cashability'!$B$3:$U$5,3,0),0) -> 0 | FC7: =IF(AND(FC$3<>"",DM7<>0),HLOOKUP(FC$4,'Agency cashability'!$B$3:$U$5,3,0),0) -> 0 | FD7: =IF(AND(FD$3<>"",DN7<>0),HLOOKUP(FD$4,'Agency cashability'!$B$3:$U$5,3,0),0) -> 1 | FE7: =IF(AND(FE$3<>"",DO7<>0),HLOOKUP(FE$4,'Agency cashability'!$B$3:$U$5,3,0),0) -> 0 | FF7: =IF(AND(FF$3<>"",DP7<>0),HLOOKUP(FF$4,'Agency cashability'!$B$3:$U$5,3,0),0) -> 0 | FG7: =IF(AND(FG$3<>"",DQ7<>0),HLOOKUP(FG$4,'Agency cashability'!$B$3:$U$5,3,0),0) -> 0 | FH7: =IF(AND(FH$3<>"",DR7<>0),HLOOKUP(FH$4,'Agency cashability'!$B$3:$U$5,3,0),0) -> 0 | FI7: =IF(AND(FI$3<>"",DS7<>0),HLOOKUP(FI$4,'Agency cashability'!$B$3:$U$5,3,0),0) -> 0 | FJ7: =IF(AND(FJ$3<>"",DT7<>0),HLOOKUP(FJ$4,'Agency cashability'!$B$3:$U$5,3,0),0) -> 0 | FK7: =IF(AND(FK$3<>"",DU7<>0),HLOOKUP(FK$4,'Agency cashability'!$B$3:$U$5,3,0),0) -> 0 | FL7: =IF(AND(FL$3<>"",DV7<>0),HLOOKUP(FL$4,'Agency cashability'!$B$3:$U$5,3,0),0) -> 0 | FM7: =IF(AND(FM$3<>"",DW7<>0),HLOOKUP(FM$4,'Agency cashability'!$B$3:$U$5,3,0),0) -> 0 | FN7: =IF(AND(FN$3<>"",DX7<>0),HLOOKUP(FN$4,'Agency cashability'!$B$3:$U$5,3,0),0) -> 0 | FO7: =IF(AND(FO$3<>"",DY7<>0),HLOOKUP(FO$4,'Agency cashability'!$B$3:$U$5,3,0),0) -> 0 | FP7: =IF(AND(FP$3<>"",DZ7<>0),HLOOKUP(FP$4,'Agency cashability'!$B$3:$U$5,3,0),0) -> 0 | FR7: 0 | FS7: 0 | FT7: 0 | FU7: 0 | FV7: 0 | FW7: 0 | FX7: 0 | FY7: 0 | FZ7: 0 | GA7: 0 | GB7: 0 | GM7: 0 | GN7: 0 | GO7: 0 | GP7: 0 | GQ7: 0 | GR7: 0 | GS7: 0 | GT7: 0 | GU7: 0 | GV7: 0 | GW7: 0 | HJ7: 0 | HK7: 0 | HL7: 0 | HM7: 0 | HN7: 0 | HO7: 0 | HP7: 0 | HQ7: 0 | HR7: 0 | HS7: 0 | HT7: 0
A8: B4a | B8: Improved skill levels | C8: Yes | D8: Increase in earnings amongst residents achieving Level 2 NVQ | E8: Population without Level 2 qualifications | I8: Population without Level 2 qualifications | R8: 83 | T8: 443 | V8: 443 | W8: 2016-17 | X8: =VLOOKUP(W8,'GDP Deflators'!$B$8:$C$72,2,0)*100/VLOOKUP('Model constants'!$B$3,'GDP Deflators'!$B$8:$C$72,2,0) -> 100 | Y8: BIS (2011): Returns to vocational qualifications. Research Paper 53 pg9-10; and IER (2008): Net Benefits of Training Study 2008 p62-64 | AA8: 0 | AB8: 0 | BE8: 0 | BF8: 0 | BG8: 0 | BH8: 0 | BI8: 0 | BJ8: 0 | BK8: 0 | BL8: 0 | BM8: 0 | BN8: 0 | BO8: 0 | BP8: 0 | BQ8: 0 | BR8: 0 | BS8: 0 | BT8: 0 | BU8: 0 | BV8: 0 | BW8: 0 | BX8: 0 | BY8: 0 | BZ8: 0 | CA8: 0 | CB8: 0 | CC8: 0 | CD8: 0 | CF8: 0 | CG8: 0 | CH8: 0 | CI8: 0 | CJ8: 0 | CK8: 0 | CL8: 0 | CM8: 0 | CN8: 0 | CO8: 0 | CP8: 0 | CQ8: 0 | CR8: 0 | CS8: 0 | CT8: 0 | CU8: 0 | CV8: 0 | CW8: 0 | CX8: 0 | CY8: 0 | CZ8: 0 | DA8: 0 | DB8: 0 | DC8: 0 | DD8: 0 | DE8: 0 | DG8: =IF(DG$3<>"",VLOOKUP($A8,'Agency percentages'!$A$5:$X$69,(3+MATCH(DG$4,'Agency percentages'!$D$4:$W$4,0)),FALSE),"") -> 0 | DH8: =IF(DH$3<>"",VLOOKUP($A8,'Agency percentages'!$A$5:$X$69,(3+MATCH(DH$4,'Agency percentages'!$D$4:$W$4,0)),FALSE),"") -> 0 | DI8: =IF(DI$3<>"",VLOOKUP($A8,'Agency percentages'!$A$5:$X$69,(3+MATCH(DI$4,'Agency percentages'!$D$4:$W$4,0)),FALSE),"") -> 0 | DJ8: =IF(DJ$3<>"",VLOOKUP($A8,'Agency percentages'!$A$5:$X$69,(3+MATCH(DJ$4,'Agency percentages'!$D$4:$W$4,0)),FALSE),"") -> 0 | DK8: =IF(DK$3<>"",VLOOKUP($A8,'Agency percentages'!$A$5:$X$69,(3+MATCH(DK$4,'Agency percentages'!$D$4:$W$4,0)),FALSE),"") -> 0 | DL8: =IF(DL$3<>"",VLOOKUP($A8,'Agency percentages'!$A$5:$X$69,(3+MATCH(DL$4,'Agency percentages'!$D$4:$W$4,0)),FALSE),"") -> 0 | DM8: =IF(DM$3<>"",VLOOKUP($A8,'Agency percentages'!$A$5:$X$69,(3+MATCH(DM$4,'Agency percentages'!$D$4:$W$4,0)),FALSE),"") -> 0 | DN8: =IF(DN$3<>"",VLOOKUP($A8,'Agency percentages'!$A$5:$X$69,(3+MATCH(DN$4,'Agency percentages'!$D$4:$W$4,0)),FALSE),"") -> 0 | DO8: =IF(DO$3<>"",VLOOKUP($A8,'Agency percentages'!$A$5:$X$69,(3+MATCH(DO$4,'Agency percentages'!$D$4:$W$4,0)),FALSE),"") -> 1 | DP8: =IF(DP$3<>"",VLOOKUP($A8,'Agency percentages'!$A$5:$X$69,(3+MATCH(DP$4,'Agency percentages'!$D$4:$W$4,0)),FALSE),"") -> 0 | DQ8: =IF(DQ$3<>"",VLOOKUP($A8,'Agency percentages'!$A$5:$X$69,(3+MATCH(DQ$4,'Agency percentages'!$D$4:$W$4,0)),FALSE),"") -> 0 | DR8: =IF(DR$3<>"",VLOOKUP($A8,'Agency percentages'!$A$5:$X$69,(3+MATCH(DR$4,'Agency percentages'!$D$4:$W$4,0)),FALSE),"") ->  | DS8: =IF(DS$3<>"",VLOOKUP($A8,'Agency percentages'!$A$5:$X$69,(3+MATCH(DS$4,'Agency percentages'!$D$4:$W$4,0)),FALSE),"") ->  | DT8: =IF(DT$3<>"",VLOOKUP($A8,'Agency percentages'!$A$5:$X$69,(3+MATCH(DT$4,'Agency percentages'!$D$4:$W$4,0)),FALSE),"") ->  | DU8: =IF(DU$3<>"",VLOOKUP($A8,'Agency percentages'!$A$5:$X$69,(3+MATCH(DU$4,'Agency percentages'!$D$4:$W$4,0)),FALSE),"") ->  | DV8: =IF(DV$3<>"",VLOOKUP($A8,'Agency percentages'!$A$5:$X$69,(3+MATCH(DV$4,'Agency percentages'!$D$4:$W$4,0)),FALSE),"") ->  | DW8: =IF(DW$3<>"",VLOOKUP($A8,'Agency percentages'!$A$5:$X$69,(3+MATCH(DW$4,'Agency percentages'!$D$4:$W$4,0)),FALSE),"") ->  | DX8: =IF(DX$3<>"",VLOOKUP($A8,'Agency percentages'!$A$5:$X$69,(3+MATCH(DX$4,'Agency percentages'!$D$4:$W$4,0)),FALSE),"") ->  | DY8: =IF(DY$3<>"",VLOOKUP($A8,'Agency percentages'!$A$5:$X$69,(3+MATCH(DY$4,'Agency percentages'!$D$4:$W$4,0)),FALSE),"") ->  | DZ8: =IF(DZ$3<>"",VLOOKUP($A8,'Agency percentages'!$A$5:$X$69,(3+MATCH(DZ$4,'Agency percentages'!$D$4:$W$4,0)),FALSE),"") ->  | EB8: =IF(AND(EB$3<>"",DG8<>0),HLOOKUP(EB$4,'Agency cashability'!$B$3:$U$5,2,0),0) -> 0 | EC8: =IF(AND(EC$3<>"",DH8<>0),HLOOKUP(EC$4,'Agency cashability'!$B$3:$U$5,2,0),0) -> 0 | ED8: =IF(AND(ED$3<>"",DI8<>0),HLOOKUP(ED$4,'Agency cashability'!$B$3:$U$5,2,0),0) -> 0 | EE8: =IF(AND(EE$3<>"",DJ8<>0),HLOOKUP(EE$4,'Agency cashability'!$B$3:$U$5,2,0),0) -> 0 | EF8: =IF(AND(EF$3<>"",DK8<>0),HLOOKUP(EF$4,'Agency cashability'!$B$3:$U$5,2,0),0) -> 0 | EG8: =IF(AND(EG$3<>"",DL8<>0),HLOOKUP(EG$4,'Agency cashability'!$B$3:$U$5,2,0),0) -> 0 | EH8: =IF(AND(EH$3<>"",DM8<>0),HLOOKUP(EH$4,'Agency cashability'!$B$3:$U$5,2,0),0) -> 0 | EI8: =IF(AND(EI$3<>"",DN8<>0),HLOOKUP(EI$4,'Agency cashability'!$B$3:$U$5,2,0),0) -> 0 | EJ8: =IF(AND(EJ$3<>"",DO8<>0),HLOOKUP(EJ$4,'Agency cashability'!$B$3:$U$5,2,0),0) -> 1 | EK8: =IF(AND(EK$3<>"",DP8<>0),HLOOKUP(EK$4,'Agency cashability'!$B$3:$U$5,2,0),0) -> 0 | EL8: =IF(AND(EL$3<>"",DQ8<>0),HLOOKUP(EL$4,'Agency cashability'!$B$3:$U$5,2,0),0) -> 0 | EM8: =IF(AND(EM$3<>"",DR8<>0),HLOOKUP(EM$4,'Agency cashability'!$B$3:$U$5,2,0),0) -> 0 | EN8: =IF(AND(EN$3<>"",DS8<>0),HLOOKUP(EN$4,'Agency cashability'!$B$3:$U$5,2,0),0) -> 0 | EO8: =IF(AND(EO$3<>"",DT8<>0),HLOOKUP(EO$4,'Agency cashability'!$B$3:$U$5,2,0),0) -> 0 | EP8: =IF(AND(EP$3<>"",DU8<>0),HLOOKUP(EP$4,'Agency cashability'!$B$3:$U$5,2,0),0) -> 0 | EQ8: =IF(AND(EQ$3<>"",DV8<>0),HLOOKUP(EQ$4,'Agency cashability'!$B$3:$U$5,2,0),0) -> 0 | ER8: =IF(AND(ER$3<>"",DW8<>0),HLOOKUP(ER$4,'Agency cashability'!$B$3:$U$5,2,0),0) -> 0 | ES8: =IF(AND(ES$3<>"",DX8<>0),HLOOKUP(ES$4,'Agency cashability'!$B$3:$U$5,2,0),0) -> 0 | ET8: =IF(AND(ET$3<>"",DY8<>0),HLOOKUP(ET$4,'Agency cashability'!$B$3:$U$5,2,0),0) -> 0 | EU8: =IF(AND(EU$3<>"",DZ8<>0),HLOOKUP(EU$4,'Agency cashability'!$B$3:$U$5,2,0),0) -> 0 | EW8: =IF(AND(EW$3<>"",DG8<>0),HLOOKUP(EW$4,'Agency cashability'!$B$3:$U$5,3,0),0) -> 0 | EX8: =IF(AND(EX$3<>"",DH8<>0),HLOOKUP(EX$4,'Agency cashability'!$B$3:$U$5,3,0),0) -> 0 | EY8: =IF(AND(EY$3<>"",DI8<>0),HLOOKUP(EY$4,'Agency cashability'!$B$3:$U$5,3,0),0) -> 0 | EZ8: =IF(AND(EZ$3<>"",DJ8<>0),HLOOKUP(EZ$4,'Agency cashability'!$B$3:$U$5,3,0),0) -> 0 | FA8: =IF(AND(FA$3<>"",DK8<>0),HLOOKUP(FA$4,'Agency cashability'!$B$3:$U$5,3,0),0) -> 0 | FB8: =IF(AND(FB$3<>"",DL8<>0),HLOOKUP(FB$4,'Agency cashability'!$B$3:$U$5,3,0),0) -> 0 | FC8: =IF(AND(FC$3<>"",DM8<>0),HLOOKUP(FC$4,'Agency cashability'!$B$3:$U$5,3,0),0) -> 0 | FD8: =IF(AND(FD$3<>"",DN8<>0),HLOOKUP(FD$4,'Agency cashability'!$B$3:$U$5,3,0),0) -> 0 | FE8: =IF(AND(FE$3<>"",DO8<>0),HLOOKUP(FE$4,'Agency cashability'!$B$3:$U$5,3,0),0) -> 1 | FF8: =IF(AND(FF$3<>"",DP8<>0),HLOOKUP(FF$4,'Agency cashability'!$B$3:$U$5,3,0),0) -> 0 | FG8: =IF(AND(FG$3<>"",DQ8<>0),HLOOKUP(FG$4,'Agency cashability'!$B$3:$U$5,3,0),0) -> 0 | FH8: =IF(AND(FH$3<>"",DR8<>0),HLOOKUP(FH$4,'Agency cashability'!$B$3:$U$5,3,0),0) -> 0 | FI8: =IF(AND(FI$3<>"",DS8<>0),HLOOKUP(FI$4,'Agency cashability'!$B$3:$U$5,3,0),0) -> 0 | FJ8: =IF(AND(FJ$3<>"",DT8<>0),HLOOKUP(FJ$4,'Agency cashability'!$B$3:$U$5,3,0),0) -> 0 | FK8: =IF(AND(FK$3<>"",DU8<>0),HLOOKUP(FK$4,'Agency cashability'!$B$3:$U$5,3,0),0) -> 0 | FL8: =IF(AND(FL$3<>"",DV8<>0),HLOOKUP(FL$4,'Agency cashability'!$B$3:$U$5,3,0),0) -> 0 | FM8: =IF(AND(FM$3<>"",DW8<>0),HLOOKUP(FM$4,'Agency cashability'!$B$3:$U$5,3,0),0) -> 0 | FN8: =IF(AND(FN$3<>"",DX8<>0),HLOOKUP(FN$4,'Agency cashability'!$B$3:$U$5,3,0),0) -> 0 | FO8: =IF(AND(FO$3<>"",DY8<>0),HLOOKUP(FO$4,'Agency cashability'!$B$3:$U$5,3,0),0) -> 0 | FP8: =IF(AND(FP$3<>"",DZ8<>0),HLOOKUP(FP$4,'Agency cashability'!$B$3:$U$5,3,0),0) -> 0 | FR8: 0 | FS8: 0 | FT8: 0 | FU8: 0 | FV8: 0 | FW8: 0 | FX8: 0 | FY8: 0 | FZ8: 0 | GA8: 0 | GB8: 0 | GM8: =IF((GM$3<>""),EB8*FR8,"") -> 0 | GN8: 0 | GO8: 0 | GP8: 0 | GQ8: 0 | GR8: 0 | GS8: 0 | GT8: 0 | GU8: 0 | GV8: 0 | GW8: =IF((GW$3<>""),EL8*GB8,"") -> 0 | HJ8: =IF((HJ$3<>""),EW8*FR8,"") -> 0 | HK8: 0 | HL8: 0 | HM8: 0 | HN8: 0 | HO8: 0 | HP8: 0 | HQ8: 0 | HR8: 0 | HS8: 0 | HT8: =IF((HT$3<>""),FG8*GB8,"") -> 0
A9: B4b | C9: Yes | D9: Increase in earnings amongst residents achieving Level 3 NVQ progressing from Level 2 | E9: Population qualified to Level 2 but not qualified to Level 3+ | I9: Population qualified to Level 2 but not qualified to Level 3+ | R9: 513 | T9: 921 | V9: 921 | W9: 2016-17 | X9: =VLOOKUP(W9,'GDP Deflators'!$B$8:$C$72,2,0)*100/VLOOKUP('Model constants'!$B$3,'GDP Deflators'!$B$8:$C$72,2,0) -> 100 | Y9: BIS (2011): Returns to vocational qualifications. Research Paper 53 pg9-10; and IER (2008): Net Benefits of Training Study 2008 p62-64 | AA9: 0 | AB9: 0 | BE9: 0 | BF9: 0 | BG9: 0 | BH9: 0 | BI9: 0 | BJ9: 0 | BK9: 0 | BL9: 0 | BM9: 0 | BN9: 0 | BO9: 0 | BP9: 0 | BQ9: 0 | BR9: 0 | BS9: 0 | BT9: 0 | BU9: 0 | BV9: 0 | BW9: 0 | BX9: 0 | BY9: 0 | BZ9: 0 | CA9: 0 | CB9: 0 | CC9: 0 | CD9: 0 | CF9: 0 | CG9: 0 | CH9: 0 | CI9: 0 | CJ9: 0 | CK9: 0 | CL9: 0 | CM9: 0 | CN9: 0 | CO9: 0 | CP9: 0 | CQ9: 0 | CR9: 0 | CS9: 0 | CT9: 0 | CU9: 0 | CV9: 0 | CW9: 0 | CX9: 0 | CY9: 0 | CZ9: 0 | DA9: 0 | DB9: 0 | DC9: 0 | DD9: 0 | DE9: 0 | DG9: =IF(DG$3<>"",VLOOKUP($A9,'Agency percentages'!$A$5:$X$69,(3+MATCH(DG$4,'Agency percentages'!$D$4:$W$4,0)),FALSE),"") -> 0 | DH9: =IF(DH$3<>"",VLOOKUP($A9,'Agency percentages'!$A$5:$X$69,(3+MATCH(DH$4,'Agency percentages'!$D$4:$W$4,0)),FALSE),"") -> 0 | DI9: =IF(DI$3<>"",VLOOKUP($A9,'Agency percentages'!$A$5:$X$69,(3+MATCH(DI$4,'Agency percentages'!$D$4:$W$4,0)),FALSE),"") -> 0 | DJ9: =IF(DJ$3<>"",VLOOKUP($A9,'Agency percentages'!$A$5:$X$69,(3+MATCH(DJ$4,'Agency percentages'!$D$4:$W$4,0)),FALSE),"") -> 0 | DK9: =IF(DK$3<>"",VLOOKUP($A9,'Agency percentages'!$A$5:$X$69,(3+MATCH(DK$4,'Agency percentages'!$D$4:$W$4,0)),FALSE),"") -> 0 | DL9: =IF(DL$3<>"",VLOOKUP($A9,'Agency percentages'!$A$5:$X$69,(3+MATCH(DL$4,'Agency percentages'!$D$4:$W$4,0)),FALSE),"") -> 0 | DM9: =IF(DM$3<>"",VLOOKUP($A9,'Agency percentages'!$A$5:$X$69,(3+MATCH(DM$4,'Agency percentages'!$D$4:$W$4,0)),FALSE),"") -> 0 | DN9: =IF(DN$3<>"",VLOOKUP($A9,'Agency percentages'!$A$5:$X$69,(3+MATCH(DN$4,'Agency percentages'!$D$4:$W$4,0)),FALSE),"") -> 0 | DO9: =IF(DO$3<>"",VLOOKUP($A9,'Agency percentages'!$A$5:$X$69,(3+MATCH(DO$4,'Agency percentages'!$D$4:$W$4,0)),FALSE),"") -> 1 | DP9: =IF(DP$3<>"",VLOOKUP($A9,'Agency percentages'!$A$5:$X$69,(3+MATCH(DP$4,'Agency percentages'!$D$4:$W$4,0)),FALSE),"") -> 0 | DQ9: =IF(DQ$3<>"",VLOOKUP($A9,'Agency percentages'!$A$5:$X$69,(3+MATCH(DQ$4,'Agency percentages'!$D$4:$W$4,0)),FALSE),"") -> 0 | DR9: =IF(DR$3<>"",VLOOKUP($A9,'Agency percentages'!$A$5:$X$69,(3+MATCH(DR$4,'Agency percentages'!$D$4:$W$4,0)),FALSE),"") ->  | DS9: =IF(DS$3<>"",VLOOKUP($A9,'Agency percentages'!$A$5:$X$69,(3+MATCH(DS$4,'Agency percentages'!$D$4:$W$4,0)),FALSE),"") ->  | DT9: =IF(DT$3<>"",VLOOKUP($A9,'Agency percentages'!$A$5:$X$69,(3+MATCH(DT$4,'Agency percentages'!$D$4:$W$4,0)),FALSE),"") ->  | DU9: =IF(DU$3<>"",VLOOKUP($A9,'Agency percentages'!$A$5:$X$69,(3+MATCH(DU$4,'Agency percentages'!$D$4:$W$4,0)),FALSE),"") ->  | DV9: =IF(DV$3<>"",VLOOKUP($A9,'Agency percentages'!$A$5:$X$69,(3+MATCH(DV$4,'Agency percentages'!$D$4:$W$4,0)),FALSE),"") ->  | DW9: =IF(DW$3<>"",VLOOKUP($A9,'Agency percentages'!$A$5:$X$69,(3+MATCH(DW$4,'Agency percentages'!$D$4:$W$4,0)),FALSE),"") ->  | DX9: =IF(DX$3<>"",VLOOKUP($A9,'Agency percentages'!$A$5:$X$69,(3+MATCH(DX$4,'Agency percentages'!$D$4:$W$4,0)),FALSE),"") ->  | DY9: =IF(DY$3<>"",VLOOKUP($A9,'Agency percentages'!$A$5:$X$69,(3+MATCH(DY$4,'Agency percentages'!$D$4:$W$4,0)),FALSE),"") ->  | DZ9: =IF(DZ$3<>"",VLOOKUP($A9,'Agency percentages'!$A$5:$X$69,(3+MATCH(DZ$4,'Agency percentages'!$D$4:$W$4,0)),FALSE),"") ->  | EB9: =IF(AND(EB$3<>"",DG9<>0),HLOOKUP(EB$4,'Agency cashability'!$B$3:$U$5,2,0),0) -> 0 | EC9: =IF(AND(EC$3<>"",DH9<>0),HLOOKUP(EC$4,'Agency cashability'!$B$3:$U$5,2,0),0) -> 0 | ED9: =IF(AND(ED$3<>"",DI9<>0),HLOOKUP(ED$4,'Agency cashability'!$B$3:$U$5,2,0),0) -> 0 | EE9: =IF(AND(EE$3<>"",DJ9<>0),HLOOKUP(EE$4,'Agency cashability'!$B$3:$U$5,2,0),0) -> 0 | EF9: =IF(AND(EF$3<>"",DK9<>0),HLOOKUP(EF$4,'Agency cashability'!$B$3:$U$5,2,0),0) -> 0 | EG9: =IF(AND(EG$3<>"",DL9<>0),HLOOKUP(EG$4,'Agency cashability'!$B$3:$U$5,2,0),0) -> 0 | EH9: =IF(AND(EH$3<>"",DM9<>0),HLOOKUP(EH$4,'Agency cashability'!$B$3:$U$5,2,0),0) -> 0 | EI9: =IF(AND(EI$3<>"",DN9<>0),HLOOKUP(EI$4,'Agency cashability'!$B$3:$U$5,2,0),0) -> 0 | EJ9: =IF(AND(EJ$3<>"",DO9<>0),HLOOKUP(EJ$4,'Agency cashability'!$B$3:$U$5,2,0),0) -> 1 | EK9: =IF(AND(EK$3<>"",DP9<>0),HLOOKUP(EK$4,'Agency cashability'!$B$3:$U$5,2,0),0) -> 0 | EL9: =IF(AND(EL$3<>"",DQ9<>0),HLOOKUP(EL$4,'Agency cashability'!$B$3:$U$5,2,0),0) -> 0 | EM9: =IF(AND(EM$3<>"",DR9<>0),HLOOKUP(EM$4,'Agency cashability'!$B$3:$U$5,2,0),0) -> 0 | EN9: =IF(AND(EN$3<>"",DS9<>0),HLOOKUP(EN$4,'Agency cashability'!$B$3:$U$5,2,0),0) -> 0 | EO9: =IF(AND(EO$3<>"",DT9<>0),HLOOKUP(EO$4,'Agency cashability'!$B$3:$U$5,2,0),0) -> 0 | EP9: =IF(AND(EP$3<>"",DU9<>0),HLOOKUP(EP$4,'Agency cashability'!$B$3:$U$5,2,0),0) -> 0 | EQ9: =IF(AND(EQ$3<>"",DV9<>0),HLOOKUP(EQ$4,'Agency cashability'!$B$3:$U$5,2,0),0) -> 0 | ER9: =IF(AND(ER$3<>"",DW9<>0),HLOOKUP(ER$4,'Agency cashability'!$B$3:$U$5,2,0),0) -> 0 | ES9: =IF(AND(ES$3<>"",DX9<>0),HLOOKUP(ES$4,'Agency cashability'!$B$3:$U$5,2,0),0) -> 0 | ET9: =IF(AND(ET$3<>"",DY9<>0),HLOOKUP(ET$4,'Agency cashability'!$B$3:$U$5,2,0),0) -> 0 | EU9: =IF(AND(EU$3<>"",DZ9<>0),HLOOKUP(EU$4,'Agency cashability'!$B$3:$U$5,2,0),0) -> 0 | EW9: =IF(AND(EW$3<>"",DG9<>0),HLOOKUP(EW$4,'Agency cashability'!$B$3:$U$5,3,0),0) -> 0 | EX9: =IF(AND(EX$3<>"",DH9<>0),HLOOKUP(EX$4,'Agency cashability'!$B$3:$U$5,3,0),0) -> 0 | EY9: =IF(AND(EY$3<>"",DI9<>0),HLOOKUP(EY$4,'Agency cashability'!$B$3:$U$5,3,0),0) -> 0 | EZ9: =IF(AND(EZ$3<>"",DJ9<>0),HLOOKUP(EZ$4,'Agency cashability'!$B$3:$U$5,3,0),0) -> 0 | FA9: =IF(AND(FA$3<>"",DK9<>0),HLOOKUP(FA$4,'Agency cashability'!$B$3:$U$5,3,0),0) -> 0 | FB9: =IF(AND(FB$3<>"",DL9<>0),HLOOKUP(FB$4,'Agency cashability'!$B$3:$U$5,3,0),0) -> 0 | FC9: =IF(AND(FC$3<>"",DM9<>0),HLOOKUP(FC$4,'Agency cashability'!$B$3:$U$5,3,0),0) -> 0 | FD9: =IF(AND(FD$3<>"",DN9<>0),HLOOKUP(FD$4,'Agency cashability'!$B$3:$U$5,3,0),0) -> 0 | FE9: =IF(AND(FE$3<>"",DO9<>0),HLOOKUP(FE$4,'Agency cashability'!$B$3:$U$5,3,0),0) -> 1 | FF9: =IF(AND(FF$3<>"",DP9<>0),HLOOKUP(FF$4,'Agency cashability'!$B$3:$U$5,3,0),0) -> 0 | FG9: =IF(AND(FG$3<>"",DQ9<>0),HLOOKUP(FG$4,'Agency cashability'!$B$3:$U$5,3,0),0) -> 0 | FH9: =IF(AND(FH$3<>"",DR9<>0),HLOOKUP(FH$4,'Agency cashability'!$B$3:$U$5,3,0),0) -> 0 | FI9: =IF(AND(FI$3<>"",DS9<>0),HLOOKUP(FI$4,'Agency cashability'!$B$3:$U$5,3,0),0) -> 0 | FJ9: =IF(AND(FJ$3<>"",DT9<>0),HLOOKUP(FJ$4,'Agency cashability'!$B$3:$U$5,3,0),0) -> 0 | FK9: =IF(AND(FK$3<>"",DU9<>0),HLOOKUP(FK$4,'Agency cashability'!$B$3:$U$5,3,0),0) -> 0 | FL9: =IF(AND(FL$3<>"",DV9<>0),HLOOKUP(FL$4,'Agency cashability'!$B$3:$U$5,3,0),0) -> 0 | FM9: =IF(AND(FM$3<>"",DW9<>0),HLOOKUP(FM$4,'Agency cashability'!$B$3:$U$5,3,0),0) -> 0 | FN9: =IF(AND(FN$3<>"",DX9<>0),HLOOKUP(FN$4,'Agency cashability'!$B$3:$U$5,3,0),0) -> 0 | FO9: =IF(AND(FO$3<>"",DY9<>0),HLOOKUP(FO$4,'Agency cashability'!$B$3:$U$5,3,0),0) -> 0 | FP9: =IF(AND(FP$3<>"",DZ9<>0),HLOOKUP(FP$4,'Agency cashability'!$B$3:$U$5,3,0),0) -> 0 | FR9: 0 | FS9: 0 | FT9: 0 | FU9: 0 | FV9: 0 | FW9: 0 | FX9: 0 | FY9: 0 | FZ9: 0 | GA9: 0 | GB9: 0 | GM9: 0 | GN9: 0 | GO9: 0 | GP9: 0 | GQ9: 0 | GR9: 0 | GS9: 0 | GT9: 0 | GU9: 0 | GV9: 0 | GW9: 0 | HJ9: 0 | HK9: 0 | HL9: 0 | HM9: 0 | HN9: 0 | HO9: 0 | HP9: 0 | HQ9: 0 | HR9: 0 | HS9: 0 | HT9: 0
A10: B5 | B10: Mental health | C10: Yes | D10: Reduced health cost of interventions | E10: NHS/Individuals | R10: 830 | S10: 830 | T10: ='Mental Health'!G6 -> 3840.909091 | V10: 4670.909091 | W10: 2016-17 | X10: =VLOOKUP(W10,'GDP Deflators'!$B$8:$C$72,2,0)*100/VLOOKUP('Model constants'!$B$3,'GDP Deflators'!$B$8:$C$72,2,0) -> 100 | Y10: “Paying the Price - The cost of mental health care in England to 2026” - Kings Fund, 2008 | AA10: 0 | AB10: 0 | BE10: 0 | BF10: 0 | BG10: 0 | BH10: 0 | BI10: 0 | BJ10: 0 | BK10: 0 | BL10: 0 | BM10: 0 | BN10: 0 | BO10: 0 | BP10: 0 | BQ10: 0 | BR10: 0 | BS10: 0 | BT10: 0 | BU10: 0 | BV10: 0 | BW10: 0 | BX10: 0 | BY10: 0 | BZ10: 0 | CA10: 0 | CB10: 0 | CC10: 0 | CD10: 0 | CF10: 0 | CG10: 0 | CH10: 0 | CI10: 0 | CJ10: 0 | CK10: 0 | CL10: 0 | CM10: 0 | CN10: 0 | CO10: 0 | CP10: 0 | CQ10: 0 | CR10: 0 | CS10: 0 | CT10: 0 | CU10: 0 | CV10: 0 | CW10: 0 | CX10: 0 | CY10: 0 | CZ10: 0 | DA10: 0 | DB10: 0 | DC10: 0 | DD10: 0 | DE10: 0 | DG10: =IF(DG$3<>"",VLOOKUP($A10,'Agency percentages'!$A$5:$X$69,(3+MATCH(DG$4,'Agency percentages'!$D$4:$W$4,0)),FALSE),"") -> 0.08 | DH10: =IF(DH$3<>"",VLOOKUP($A10,'Agency percentages'!$A$5:$X$69,(3+MATCH(DH$4,'Agency percentages'!$D$4:$W$4,0)),FALSE),"") -> 0.92 | DI10: =IF(DI$3<>"",VLOOKUP($A10,'Agency percentages'!$A$5:$X$69,(3+MATCH(DI$4,'Agency percentages'!$D$4:$W$4,0)),FALSE),"") -> 0 | DJ10: =IF(DJ$3<>"",VLOOKUP($A10,'Agency percentages'!$A$5:$X$69,(3+MATCH(DJ$4,'Agency percentages'!$D$4:$W$4,0)),FALSE),"") -> 0 | DK10: =IF(DK$3<>"",VLOOKUP($A10,'Agency percentages'!$A$5:$X$69,(3+MATCH(DK$4,'Agency percentages'!$D$4:$W$4,0)),FALSE),"") -> 0 | DL10: =IF(DL$3<>"",VLOOKUP($A10,'Agency percentages'!$A$5:$X$69,(3+MATCH(DL$4,'Agency percentages'!$D$4:$W$4,0)),FALSE),"") -> 0 | DM10: =IF(DM$3<>"",VLOOKUP($A10,'Agency percentages'!$A$5:$X$69,(3+MATCH(DM$4,'Agency percentages'!$D$4:$W$4,0)),FALSE),"") -> 0 | DN10: =IF(DN$3<>"",VLOOKUP($A10,'Agency percentages'!$A$5:$X$69,(3+MATCH(DN$4,'Agency percentages'!$D$4:$W$4,0)),FALSE),"") -> 0 | DO10: =IF(DO$3<>"",VLOOKUP($A10,'Agency percentages'!$A$5:$X$69,(3+MATCH(DO$4,'Agency percentages'!$D$4:$W$4,0)),FALSE),"") -> 0 | DP10: =IF(DP$3<>"",VLOOKUP($A10,'Agency percentages'!$A$5:$X$69,(3+MATCH(DP$4,'Agency percentages'!$D$4:$W$4,0)),FALSE),"") -> 0 | DQ10: =IF(DQ$3<>"",VLOOKUP($A10,'Agency percentages'!$A$5:$X$69,(3+MATCH(DQ$4,'Agency percentages'!$D$4:$W$4,0)),FALSE),"") -> 0 | DR10: =IF(DR$3<>"",VLOOKUP($A10,'Agency percentages'!$A$5:$X$69,(3+MATCH(DR$4,'Agency percentages'!$D$4:$W$4,0)),FALSE),"") ->  | DS10: =IF(DS$3<>"",VLOOKUP($A10,'Agency percentages'!$A$5:$X$69,(3+MATCH(DS$4,'Agency percentages'!$D$4:$W$4,0)),FALSE),"") ->  | DT10: =IF(DT$3<>"",VLOOKUP($A10,'Agency percentages'!$A$5:$X$69,(3+MATCH(DT$4,'Agency percentages'!$D$4:$W$4,0)),FALSE),"") ->  | DU10: =IF(DU$3<>"",VLOOKUP($A10,'Agency percentages'!$A$5:$X$69,(3+MATCH(DU$4,'Agency percentages'!$D$4:$W$4,0)),FALSE),"") ->  | DV10: =IF(DV$3<>"",VLOOKUP($A10,'Agency percentages'!$A$5:$X$69,(3+MATCH(DV$4,'Agency percentages'!$D$4:$W$4,0)),FALSE),"") ->  | DW10: =IF(DW$3<>"",VLOOKUP($A10,'Agency percentages'!$A$5:$X$69,(3+MATCH(DW$4,'Agency percentages'!$D$4:$W$4,0)),FALSE),"") ->  | DX10: =IF(DX$3<>"",VLOOKUP($A10,'Agency percentages'!$A$5:$X$69,(3+MATCH(DX$4,'Agency percentages'!$D$4:$W$4,0)),FALSE),"") ->  | DY10: =IF(DY$3<>"",VLOOKUP($A10,'Agency percentages'!$A$5:$X$69,(3+MATCH(DY$4,'Agency percentages'!$D$4:$W$4,0)),FALSE),"") ->  | DZ10: =IF(DZ$3<>"",VLOOKUP($A10,'Agency percentages'!$A$5:$X$69,(3+MATCH(DZ$4,'Agency percentages'!$D$4:$W$4,0)),FALSE),"") ->  | EB10: =IF(AND(EB$3<>"",DG10<>0),HLOOKUP(EB$4,'Agency cashability'!$B$3:$U$5,2,0),0) -> 0.5 | EC10: =IF(AND(EC$3<>"",DH10<>0),HLOOKUP(EC$4,'Agency cashability'!$B$3:$U$5,2,0),0) -> 0.2 | ED10: =IF(AND(ED$3<>"",DI10<>0),HLOOKUP(ED$4,'Agency cashability'!$B$3:$U$5,2,0),0) -> 0 | EE10: =IF(AND(EE$3<>"",DJ10<>0),HLOOKUP(EE$4,'Agency cashability'!$B$3:$U$5,2,0),0) -> 0 | EF10: =IF(AND(EF$3<>"",DK10<>0),HLOOKUP(EF$4,'Agency cashability'!$B$3:$U$5,2,0),0) -> 0 | EG10: =IF(AND(EG$3<>"",DL10<>0),HLOOKUP(EG$4,'Agency cashability'!$B$3:$U$5,2,0),0) -> 0 | EH10: =IF(AND(EH$3<>"",DM10<>0),HLOOKUP(EH$4,'Agency cashability'!$B$3:$U$5,2,0),0) -> 0 | EI10: =IF(AND(EI$3<>"",DN10<>0),HLOOKUP(EI$4,'Agency cashability'!$B$3:$U$5,2,0),0) -> 0 | EJ10: =IF(AND(EJ$3<>"",DO10<>0),HLOOKUP(EJ$4,'Agency cashability'!$B$3:$U$5,2,0),0) -> 0 | EK10: =IF(AND(EK$3<>"",DP10<>0),HLOOKUP(EK$4,'Agency cashability'!$B$3:$U$5,2,0),0) -> 0 | EL10: =IF(AND(EL$3<>"",DQ10<>0),HLOOKUP(EL$4,'Agency cashability'!$B$3:$U$5,2,0),0) -> 0 | EM10: =IF(AND(EM$3<>"",DR10<>0),HLOOKUP(EM$4,'Agency cashability'!$B$3:$U$5,2,0),0) -> 0 | EN10: =IF(AND(EN$3<>"",DS10<>0),HLOOKUP(EN$4,'Agency cashability'!$B$3:$U$5,2,0),0) -> 0 | EO10: =IF(AND(EO$3<>"",DT10<>0),HLOOKUP(EO$4,'Agency cashability'!$B$3:$U$5,2,0),0) -> 0 | EP10: =IF(AND(EP$3<>"",DU10<>0),HLOOKUP(EP$4,'Agency cashability'!$B$3:$U$5,2,0),0) -> 0 | EQ10: =IF(AND(EQ$3<>"",DV10<>0),HLOOKUP(EQ$4,'Agency cashability'!$B$3:$U$5,2,0),0) -> 0 | ER10: =IF(AND(ER$3<>"",DW10<>0),HLOOKUP(ER$4,'Agency cashability'!$B$3:$U$5,2,0),0) -> 0 | ES10: =IF(AND(ES$3<>"",DX10<>0),HLOOKUP(ES$4,'Agency cashability'!$B$3:$U$5,2,0),0) -> 0 | ET10: =IF(AND(ET$3<>"",DY10<>0),HLOOKUP(ET$4,'Agency cashability'!$B$3:$U$5,2,0),0) -> 0 | EU10: =IF(AND(EU$3<>"",DZ10<>0),HLOOKUP(EU$4,'Agency cashability'!$B$3:$U$5,2,0),0) -> 0 | EW10: =IF(AND(EW$3<>"",DG10<>0),HLOOKUP(EW$4,'Agency cashability'!$B$3:$U$5,3,0),0) -> 0.9 | EX10: =IF(AND(EX$3<>"",DH10<>0),HLOOKUP(EX$4,'Agency cashability'!$B$3:$U$5,3,0),0) -> 0.5 | EY10: =IF(AND(EY$3<>"",DI10<>0),HLOOKUP(EY$4,'Agency cashability'!$B$3:$U$5,3,0),0) -> 0 | EZ10: =IF(AND(EZ$3<>"",DJ10<>0),HLOOKUP(EZ$4,'Agency cashability'!$B$3:$U$5,3,0),0) -> 0 | FA10: =IF(AND(FA$3<>"",DK10<>0),HLOOKUP(FA$4,'Agency cashability'!$B$3:$U$5,3,0),0) -> 0 | FB10: =IF(AND(FB$3<>"",DL10<>0),HLOOKUP(FB$4,'Agency cashability'!$B$3:$U$5,3,0),0) -> 0 | FC10: =IF(AND(FC$3<>"",DM10<>0),HLOOKUP(FC$4,'Agency cashability'!$B$3:$U$5,3,0),0) -> 0 | FD10: =IF(AND(FD$3<>"",DN10<>0),HLOOKUP(FD$4,'Agency cashability'!$B$3:$U$5,3,0),0) -> 0 | FE10: =IF(AND(FE$3<>"",DO10<>0),HLOOKUP(FE$4,'Agency cashability'!$B$3:$U$5,3,0),0) -> 0 | FF10: =IF(AND(FF$3<>"",DP10<>0),HLOOKUP(FF$4,'Agency cashability'!$B$3:$U$5,3,0),0) -> 0 | FG10: =IF(AND(FG$3<>"",DQ10<>0),HLOOKUP(FG$4,'Agency cashability'!$B$3:$U$5,3,0),0) -> 0 | FH10: =IF(AND(FH$3<>"",DR10<>0),HLOOKUP(FH$4,'Agency cashability'!$B$3:$U$5,3,0),0) -> 0 | FI10: =IF(AND(FI$3<>"",DS10<>0),HLOOKUP(FI$4,'Agency cashability'!$B$3:$U$5,3,0),0) -> 0 | FJ10: =IF(AND(FJ$3<>"",DT10<>0),HLOOKUP(FJ$4,'Agency cashability'!$B$3:$U$5,3,0),0) -> 0 | FK10: =IF(AND(FK$3<>"",DU10<>0),HLOOKUP(FK$4,'Agency cashability'!$B$3:$U$5,3,0),0) -> 0 | FL10: =IF(AND(FL$3<>"",DV10<>0),HLOOKUP(FL$4,'Agency cashability'!$B$3:$U$5,3,0),0) -> 0 | FM10: =IF(AND(FM$3<>"",DW10<>0),HLOOKUP(FM$4,'Agency cashability'!$B$3:$U$5,3,0),0) -> 0 | FN10: =IF(AND(FN$3<>"",DX10<>0),HLOOKUP(FN$4,'Agency cashability'!$B$3:$U$5,3,0),0) -> 0 | FO10: =IF(AND(FO$3<>"",DY10<>0),HLOOKUP(FO$4,'Agency cashability'!$B$3:$U$5,3,0),0) -> 0 | FP10: =IF(AND(FP$3<>"",DZ10<>0),HLOOKUP(FP$4,'Agency cashability'!$B$3:$U$5,3,0),0) -> 0 | FR10: 0 | FS10: 0 | FT10: 0 | FU10: 0 | FV10: 0 | FW10: 0 | FX10: 0 | FY10: 0 | FZ10: 0 | GA10: 0 | GB10: 0 | GM10: =IF((GM$3<>""),EB10*FR10,"") -> 0 | GN10: 0 | GO10: 0 | GP10: 0 | GQ10: 0 | GR10: 0 | GS10: 0 | GT10: 0 | GU10: 0 | GV10: 0 | GW10: 0 | HJ10: =IF((HJ$3<>""),EW10*FR10,"") -> 0 | HK10: 0 | HL10: 0 | HM10: 0 | HN10: 0 | HO10: 0 | HP10: 0 | HQ10: 0 | HR10: 0 | HS10: 0 | HT10: 0
A11: B6 | B11: A&E attendance | C11: Yes | D11: Reduced cost of unnecessary attendance | E11: NHS | R11: 64 | S11: 64 | V11: 64 | W11: 2016-17 | X11: =VLOOKUP(W11,'GDP Deflators'!$B$8:$C$72,2,0)*100/VLOOKUP('Model constants'!$B$3,'GDP Deflators'!$B$8:$C$72,2,0) -> 100 | Y11: National Schedule of Reference Costs 2011-12 for NHS trusts and NHS foundation trusts (HRG code VB11Z) | AA11: 0 | AB11: 0 | BE11: 0 | BF11: 0 | BG11: 0 | BH11: 0 | BI11: 0 | BJ11: 0 | BK11: 0 | BL11: 0 | BM11: 0 | BN11: 0 | BO11: 0 | BP11: 0 | BQ11: 0 | BR11: 0 | BS11: 0 | BT11: 0 | BU11: 0 | BV11: 0 | BW11: 0 | BX11: 0 | BY11: 0 | BZ11: 0 | CA11: 0 | CB11: 0 | CC11: 0 | CD11: 0 | CF11: 0 | CG11: 0 | CH11: 0 | CI11: 0 | CJ11: 0 | CK11: 0 | CL11: 0 | CM11: 0 | CN11: 0 | CO11: 0 | CP11: 0 | CQ11: 0 | CR11: 0 | CS11: 0 | CT11: 0 | CU11: 0 | CV11: 0 | CW11: 0 | CX11: 0 | CY11: 0 | CZ11: 0 | DA11: 0 | DB11: 0 | DC11: 0 | DD11: 0 | DE11: 0 | DG11: =IF(DG$3<>"",VLOOKUP($A11,'Agency percentages'!$A$5:$X$69,(3+MATCH(DG$4,'Agency percentages'!$D$4:$W$4,0)),FALSE),"") -> 0 | DH11: =IF(DH$3<>"",VLOOKUP($A11,'Agency percentages'!$A$5:$X$69,(3+MATCH(DH$4,'Agency percentages'!$D$4:$W$4,0)),FALSE),"") -> 1 | DI11: =IF(DI$3<>"",VLOOKUP($A11,'Agency percentages'!$A$5:$X$69,(3+MATCH(DI$4,'Agency percentages'!$D$4:$W$4,0)),FALSE),"") -> 0 | DJ11: =IF(DJ$3<>"",VLOOKUP($A11,'Agency percentages'!$A$5:$X$69,(3+MATCH(DJ$4,'Agency percentages'!$D$4:$W$4,0)),FALSE),"") -> 0 | DK11: =IF(DK$3<>"",VLOOKUP($A11,'Agency percentages'!$A$5:$X$69,(3+MATCH(DK$4,'Agency percentages'!$D$4:$W$4,0)),FALSE),"") -> 0 | DL11: =IF(DL$3<>"",VLOOKUP($A11,'Agency percentages'!$A$5:$X$69,(3+MATCH(DL$4,'Agency percentages'!$D$4:$W$4,0)),FALSE),"") -> 0 | DM11: =IF(DM$3<>"",VLOOKUP($A11,'Agency percentages'!$A$5:$X$69,(3+MATCH(DM$4,'Agency percentages'!$D$4:$W$4,0)),FALSE),"") -> 0 | DN11: =IF(DN$3<>"",VLOOKUP($A11,'Agency percentages'!$A$5:$X$69,(3+MATCH(DN$4,'Agency percentages'!$D$4:$W$4,0)),FALSE),"") -> 0 | DO11: =IF(DO$3<>"",VLOOKUP($A11,'Agency percentages'!$A$5:$X$69,(3+MATCH(DO$4,'Agency percentages'!$D$4:$W$4,0)),FALSE),"") -> 0 | DP11: =IF(DP$3<>"",VLOOKUP($A11,'Agency percentages'!$A$5:$X$69,(3+MATCH(DP$4,'Agency percentages'!$D$4:$W$4,0)),FALSE),"") -> 0 | DQ11: =IF(DQ$3<>"",VLOOKUP($A11,'Agency percentages'!$A$5:$X$69,(3+MATCH(DQ$4,'Agency percentages'!$D$4:$W$4,0)),FALSE),"") -> 0 | DR11: =IF(DR$3<>"",VLOOKUP($A11,'Agency percentages'!$A$5:$X$69,(3+MATCH(DR$4,'Agency percentages'!$D$4:$W$4,0)),FALSE),"") ->  | DS11: =IF(DS$3<>"",VLOOKUP($A11,'Agency percentages'!$A$5:$X$69,(3+MATCH(DS$4,'Agency percentages'!$D$4:$W$4,0)),FALSE),"") ->  | DT11: =IF(DT$3<>"",VLOOKUP($A11,'Agency percentages'!$A$5:$X$69,(3+MATCH(DT$4,'Agency percentages'!$D$4:$W$4,0)),FALSE),"") ->  | DU11: =IF(DU$3<>"",VLOOKUP($A11,'Agency percentages'!$A$5:$X$69,(3+MATCH(DU$4,'Agency percentages'!$D$4:$W$4,0)),FALSE),"") ->  | DV11: =IF(DV$3<>"",VLOOKUP($A11,'Agency percentages'!$A$5:$X$69,(3+MATCH(DV$4,'Agency percentages'!$D$4:$W$4,0)),FALSE),"") ->  | DW11: =IF(DW$3<>"",VLOOKUP($A11,'Agency percentages'!$A$5:$X$69,(3+MATCH(DW$4,'Agency percentages'!$D$4:$W$4,0)),FALSE),"") ->  | DX11: =IF(DX$3<>"",VLOOKUP($A11,'Agency percentages'!$A$5:$X$69,(3+MATCH(DX$4,'Agency percentages'!$D$4:$W$4,0)),FALSE),"") ->  | DY11: =IF(DY$3<>"",VLOOKUP($A11,'Agency percentages'!$A$5:$X$69,(3+MATCH(DY$4,'Agency percentages'!$D$4:$W$4,0)),FALSE),"") ->  | DZ11: =IF(DZ$3<>"",VLOOKUP($A11,'Agency percentages'!$A$5:$X$69,(3+MATCH(DZ$4,'Agency percentages'!$D$4:$W$4,0)),FALSE),"") ->  | EB11: =IF(AND(EB$3<>"",DG11<>0),HLOOKUP(EB$4,'Agency cashability'!$B$3:$U$5,2,0),0) -> 0 | EC11: =IF(AND(EC$3<>"",DH11<>0),HLOOKUP(EC$4,'Agency cashability'!$B$3:$U$5,2,0),0) -> 0.2 | ED11: =IF(AND(ED$3<>"",DI11<>0),HLOOKUP(ED$4,'Agency cashability'!$B$3:$U$5,2,0),0) -> 0 | EE11: =IF(AND(EE$3<>"",DJ11<>0),HLOOKUP(EE$4,'Agency cashability'!$B$3:$U$5,2,0),0) -> 0 | EF11: =IF(AND(EF$3<>"",DK11<>0),HLOOKUP(EF$4,'Agency cashability'!$B$3:$U$5,2,0),0) -> 0 | EG11: =IF(AND(EG$3<>"",DL11<>0),HLOOKUP(EG$4,'Agency cashability'!$B$3:$U$5,2,0),0) -> 0 | EH11: =IF(AND(EH$3<>"",DM11<>0),HLOOKUP(EH$4,'Agency cashability'!$B$3:$U$5,2,0),0) -> 0 | EI11: =IF(AND(EI$3<>"",DN11<>0),HLOOKUP(EI$4,'Agency cashability'!$B$3:$U$5,2,0),0) -> 0 | EJ11: =IF(AND(EJ$3<>"",DO11<>0),HLOOKUP(EJ$4,'Agency cashability'!$B$3:$U$5,2,0),0) -> 0 | EK11: =IF(AND(EK$3<>"",DP11<>0),HLOOKUP(EK$4,'Agency cashability'!$B$3:$U$5,2,0),0) -> 0 | EL11: =IF(AND(EL$3<>"",DQ11<>0),HLOOKUP(EL$4,'Agency cashability'!$B$3:$U$5,2,0),0) -> 0 | EM11: =IF(AND(EM$3<>"",DR11<>0),HLOOKUP(EM$4,'Agency cashability'!$B$3:$U$5,2,0),0) -> 0 | EN11: =IF(AND(EN$3<>"",DS11<>0),HLOOKUP(EN$4,'Agency cashability'!$B$3:$U$5,2,0),0) -> 0 | EO11: =IF(AND(EO$3<>"",DT11<>0),HLOOKUP(EO$4,'Agency cashability'!$B$3:$U$5,2,0),0) -> 0 | EP11: =IF(AND(EP$3<>"",DU11<>0),HLOOKUP(EP$4,'Agency cashability'!$B$3:$U$5,2,0),0) -> 0 | EQ11: =IF(AND(EQ$3<>"",DV11<>0),HLOOKUP(EQ$4,'Agency cashability'!$B$3:$U$5,2,0),0) -> 0 | ER11: =IF(AND(ER$3<>"",DW11<>0),HLOOKUP(ER$4,'Agency cashability'!$B$3:$U$5,2,0),0) -> 0 | ES11: =IF(AND(ES$3<>"",DX11<>0),HLOOKUP(ES$4,'Agency cashability'!$B$3:$U$5,2,0),0) -> 0 | ET11: =IF(AND(ET$3<>"",DY11<>0),HLOOKUP(ET$4,'Agency cashability'!$B$3:$U$5,2,0),0) -> 0 | EU11: =IF(AND(EU$3<>"",DZ11<>0),HLOOKUP(EU$4,'Agency cashability'!$B$3:$U$5,2,0),0) -> 0 | EW11: =IF(AND(EW$3<>"",DG11<>0),HLOOKUP(EW$4,'Agency cashability'!$B$3:$U$5,3,0),0) -> 0 | EX11: =IF(AND(EX$3<>"",DH11<>0),HLOOKUP(EX$4,'Agency cashability'!$B$3:$U$5,3,0),0) -> 0.5 | EY11: =IF(AND(EY$3<>"",DI11<>0),HLOOKUP(EY$4,'Agency cashability'!$B$3:$U$5,3,0),0) -> 0 | EZ11: =IF(AND(EZ$3<>"",DJ11<>0),HLOOKUP(EZ$4,'Agency cashability'!$B$3:$U$5,3,0),0) -> 0 | FA11: =IF(AND(FA$3<>"",DK11<>0),HLOOKUP(FA$4,'Agency cashability'!$B$3:$U$5,3,0),0) -> 0 | FB11: =IF(AND(FB$3<>"",DL11<>0),HLOOKUP(FB$4,'Agency cashability'!$B$3:$U$5,3,0),0) -> 0 | FC11: =IF(AND(FC$3<>"",DM11<>0),HLOOKUP(FC$4,'Agency cashability'!$B$3:$U$5,3,0),0) -> 0 | FD11: =IF(AND(FD$3<>"",DN11<>0),HLOOKUP(FD$4,'Agency cashability'!$B$3:$U$5,3,0),0) -> 0 | FE11: =IF(AND(FE$3<>"",DO11<>0),HLOOKUP(FE$4,'Agency cashability'!$B$3:$U$5,3,0),0) -> 0 | FF11: =IF(AND(FF$3<>"",DP11<>0),HLOOKUP(FF$4,'Agency cashability'!$B$3:$U$5,3,0),0) -> 0 | FG11: =IF(AND(FG$3<>"",DQ11<>0),HLOOKUP(FG$4,'Agency cashability'!$B$3:$U$5,3,0),0) -> 0 | FH11: =IF(AND(FH$3<>"",DR11<>0),HLOOKUP(FH$4,'Agency cashability'!$B$3:$U$5,3,0),0) -> 0 | FI11: =IF(AND(FI$3<>"",DS11<>0),HLOOKUP(FI$4,'Agency cashability'!$B$3:$U$5,3,0),0) -> 0 | FJ11: =IF(AND(FJ$3<>"",DT11<>0),HLOOKUP(FJ$4,'Agency cashability'!$B$3:$U$5,3,0),0) -> 0 | FK11: =IF(AND(FK$3<>"",DU11<>0),HLOOKUP(FK$4,'Agency cashability'!$B$3:$U$5,3,0),0) -> 0 | FL11: =IF(AND(FL$3<>"",DV11<>0),HLOOKUP(FL$4,'Agency cashability'!$B$3:$U$5,3,0),0) -> 0 | FM11: =IF(AND(FM$3<>"",DW11<>0),HLOOKUP(FM$4,'Agency cashability'!$B$3:$U$5,3,0),0) -> 0 | FN11: =IF(AND(FN$3<>"",DX11<>0),HLOOKUP(FN$4,'Agency cashability'!$B$3:$U$5,3,0),0) -> 0 | FO11: =IF(AND(FO$3<>"",DY11<>0),HLOOKUP(FO$4,'Agency cashability'!$B$3:$U$5,3,0),0) -> 0 | FP11: =IF(AND(FP$3<>"",DZ11<>0),HLOOKUP(FP$4,'Agency cashability'!$B$3:$U$5,3,0),0) -> 0 | FR11: 0 | FS11: 0 | FT11: 0 | FU11: 0 | FV11: 0 | FW11: 0 | FX11: 0 | FY11: 0 | FZ11: 0 | GA11: 0 | GB11: 0 | GM11: =IF((GM$3<>""),EB11*FR11,"") -> 0 | GN11: 0 | GO11: 0 | GP11: 0 | GQ11: 0 | GR11: 0 | GS11: 0 | GT11: 0 | GU11: 0 | GV11: 0 | GW11: 0 | HJ11: =IF((HJ$3<>""),EW11*FR11,"") -> 0 | HK11: 0 | HL11: 0 | HM11: 0 | HN11: 0 | HO11: 0 | HP11: 0 | HQ11: 0 | HR11: 0 | HS11: 0 | HT11: 0
A12: B7 | B12: Reduced incidents of domestic violence | C12: Yes | D12: Reduced health and criminal justice costs | E12: NHS, LA, CJS | R12: 2470 | S12: 2470 | T12: 1473 | U12: 6795 | V12: 10738 | W12: 2016-17 | X12: =VLOOKUP(W12,'GDP Deflators'!$B$8:$C$72,2,0)*100/VLOOKUP('Model constants'!$B$3,'GDP Deflators'!$B$8:$C$72,2,0) -> 100 | Y12: Based on Silvia Walby paper “The Cost of Domestic Violence: Up-date 2009” | AA12: 0 | AB12: 0 | BE12: 0 | BF12: 0 | BG12: 0 | BH12: 0 | BI12: 0 | BJ12: 0 | BK12: 0 | BL12: 0 | BM12: 0 | BN12: 0 | BO12: 0 | BP12: 0 | BQ12: 0 | BR12: 0 | BS12: 0 | BT12: 0 | BU12: 0 | BV12: 0 | BW12: 0 | BX12: 0 | BY12: 0 | BZ12: 0 | CA12: 0 | CB12: 0 | CC12: 0 | CD12: 0 | CF12: 0 | CG12: 0 | CH12: 0 | CI12: 0 | CJ12: 0 | CK12: 0 | CL12: 0 | CM12: 0 | CN12: 0 | CO12: 0 | CP12: 0 | CQ12: 0 | CR12: 0 | CS12: 0 | CT12: 0 | CU12: 0 | CV12: 0 | CW12: 0 | CX12: 0 | CY12: 0 | CZ12: 0 | DA12: 0 | DB12: 0 | DC12: 0 | DD12: 0 | DE12: 0 | DG12: =IF(DG$3<>"",VLOOKUP($A12,'Agency percentages'!$A$5:$X$69,(3+MATCH(DG$4,'Agency percentages'!$D$4:$W$4,0)),FALSE),"") -> 0.12 | DH12: =IF(DH$3<>"",VLOOKUP($A12,'Agency percentages'!$A$5:$X$69,(3+MATCH(DH$4,'Agency percentages'!$D$4:$W$4,0)),FALSE),"") -> 0.47 | DI12: =IF(DI$3<>"",VLOOKUP($A12,'Agency percentages'!$A$5:$X$69,(3+MATCH(DI$4,'Agency percentages'!$D$4:$W$4,0)),FALSE),"") -> 0.17 | DJ12: =IF(DJ$3<>"",VLOOKUP($A12,'Agency percentages'!$A$5:$X$69,(3+MATCH(DJ$4,'Agency percentages'!$D$4:$W$4,0)),FALSE),"") -> 0.02684872913 | DK12: =IF(DK$3<>"",VLOOKUP($A12,'Agency percentages'!$A$5:$X$69,(3+MATCH(DK$4,'Agency percentages'!$D$4:$W$4,0)),FALSE),"") -> 0.1090729621 | DL12: =IF(DL$3<>"",VLOOKUP($A12,'Agency percentages'!$A$5:$X$69,(3+MATCH(DL$4,'Agency percentages'!$D$4:$W$4,0)),FALSE),"") -> 0.02181459242 | DM12: =IF(DM$3<>"",VLOOKUP($A12,'Agency percentages'!$A$5:$X$69,(3+MATCH(DM$4,'Agency percentages'!$D$4:$W$4,0)),FALSE),"") -> 0.08226371638 | DN12: =IF(DN$3<>"",VLOOKUP($A12,'Agency percentages'!$A$5:$X$69,(3+MATCH(DN$4,'Agency percentages'!$D$4:$W$4,0)),FALSE),"") -> 0 | DO12: =IF(DO$3<>"",VLOOKUP($A12,'Agency percentages'!$A$5:$X$69,(3+MATCH(DO$4,'Agency percentages'!$D$4:$W$4,0)),FALSE),"") -> 0 | DP12: =IF(DP$3<>"",VLOOKUP($A12,'Agency percentages'!$A$5:$X$69,(3+MATCH(DP$4,'Agency percentages'!$D$4:$W$4,0)),FALSE),"") -> 0 | DQ12: =IF(DQ$3<>"",VLOOKUP($A12,'Agency percentages'!$A$5:$X$69,(3+MATCH(DQ$4,'Agency percentages'!$D$4:$W$4,0)),FALSE),"") -> 0 | DR12: =IF(DR$3<>"",VLOOKUP($A12,'Agency percentages'!$A$5:$X$69,(3+MATCH(DR$4,'Agency percentages'!$D$4:$W$4,0)),FALSE),"") ->  | DS12: =IF(DS$3<>"",VLOOKUP($A12,'Agency percentages'!$A$5:$X$69,(3+MATCH(DS$4,'Agency percentages'!$D$4:$W$4,0)),FALSE),"") ->  | DT12: =IF(DT$3<>"",VLOOKUP($A12,'Agency percentages'!$A$5:$X$69,(3+MATCH(DT$4,'Agency percentages'!$D$4:$W$4,0)),FALSE),"") ->  | DU12: =IF(DU$3<>"",VLOOKUP($A12,'Agency percentages'!$A$5:$X$69,(3+MATCH(DU$4,'Agency percentages'!$D$4:$W$4,0)),FALSE),"") ->  | DV12: =IF(DV$3<>"",VLOOKUP($A12,'Agency percentages'!$A$5:$X$69,(3+MATCH(DV$4,'Agency percentages'!$D$4:$W$4,0)),FALSE),"") ->  | DW12: =IF(DW$3<>"",VLOOKUP($A12,'Agency percentages'!$A$5:$X$69,(3+MATCH(DW$4,'Agency percentages'!$D$4:$W$4,0)),FALSE),"") ->  | DX12: =IF(DX$3<>"",VLOOKUP($A12,'Agency percentages'!$A$5:$X$69,(3+MATCH(DX$4,'Agency percentages'!$D$4:$W$4,0)),FALSE),"") ->  | DY12: =IF(DY$3<>"",VLOOKUP($A12,'Agency percentages'!$A$5:$X$69,(3+MATCH(DY$4,'Agency percentages'!$D$4:$W$4,0)),FALSE),"") ->  | DZ12: =IF(DZ$3<>"",VLOOKUP($A12,'Agency percentages'!$A$5:$X$69,(3+MATCH(DZ$4,'Agency percentages'!$D$4:$W$4,0)),FALSE),"") ->  | EB12: =IF(AND(EB$3<>"",DG12<>0),HLOOKUP(EB$4,'Agency cashability'!$B$3:$U$5,2,0),0) -> 0.5 | EC12: =IF(AND(EC$3<>"",DH12<>0),HLOOKUP(EC$4,'Agency cashability'!$B$3:$U$5,2,0),0) -> 0.2 | ED12: =IF(AND(ED$3<>"",DI12<>0),HLOOKUP(ED$4,'Agency cashability'!$B$3:$U$5,2,0),0) -> 0.3 | EE12: =IF(AND(EE$3<>"",DJ12<>0),HLOOKUP(EE$4,'Agency cashability'!$B$3:$U$5,2,0),0) -> 0.2 | EF12: =IF(AND(EF$3<>"",DK12<>0),HLOOKUP(EF$4,'Agency cashability'!$B$3:$U$5,2,0),0) -> 0.2 | EG12: =IF(AND(EG$3<>"",DL12<>0),HLOOKUP(EG$4,'Agency cashability'!$B$3:$U$5,2,0),0) -> 0.2 | EH12: =IF(AND(EH$3<>"",DM12<>0),HLOOKUP(EH$4,'Agency cashability'!$B$3:$U$5,2,0),0) -> 0.2 | EI12: =IF(AND(EI$3<>"",DN12<>0),HLOOKUP(EI$4,'Agency cashability'!$B$3:$U$5,2,0),0) -> 0 | EJ12: =IF(AND(EJ$3<>"",DO12<>0),HLOOKUP(EJ$4,'Agency cashability'!$B$3:$U$5,2,0),0) -> 0 | EK12: =IF(AND(EK$3<>"",DP12<>0),HLOOKUP(EK$4,'Agency cashability'!$B$3:$U$5,2,0),0) -> 0 | EL12: =IF(AND(EL$3<>"",DQ12<>0),HLOOKUP(EL$4,'Agency cashability'!$B$3:$U$5,2,0),0) -> 0 | EM12: =IF(AND(EM$3<>"",DR12<>0),HLOOKUP(EM$4,'Agency cashability'!$B$3:$U$5,2,0),0) -> 0 | EN12: =IF(AND(EN$3<>"",DS12<>0),HLOOKUP(EN$4,'Agency cashability'!$B$3:$U$5,2,0),0) -> 0 | EO12: =IF(AND(EO$3<>"",DT12<>0),HLOOKUP(EO$4,'Agency cashability'!$B$3:$U$5,2,0),0) -> 0 | EP12: =IF(AND(EP$3<>"",DU12<>0),HLOOKUP(EP$4,'Agency cashability'!$B$3:$U$5,2,0),0) -> 0 | EQ12: =IF(AND(EQ$3<>"",DV12<>0),HLOOKUP(EQ$4,'Agency cashability'!$B$3:$U$5,2,0),0) -> 0 | ER12: =IF(AND(ER$3<>"",DW12<>0),HLOOKUP(ER$4,'Agency cashability'!$B$3:$U$5,2,0),0) -> 0 | ES12: =IF(AND(ES$3<>"",DX12<>0),HLOOKUP(ES$4,'Agency cashability'!$B$3:$U$5,2,0),0) -> 0 | ET12: =IF(AND(ET$3<>"",DY12<>0),HLOOKUP(ET$4,'Agency cashability'!$B$3:$U$5,2,0),0) -> 0 | EU12: =IF(AND(EU$3<>"",DZ12<>0),HLOOKUP(EU$4,'Agency cashability'!$B$3:$U$5,2,0),0) -> 0 | EW12: =IF(AND(EW$3<>"",DG12<>0),HLOOKUP(EW$4,'Agency cashability'!$B$3:$U$5,3,0),0) -> 0.9 | EX12: =IF(AND(EX$3<>"",DH12<>0),HLOOKUP(EX$4,'Agency cashability'!$B$3:$U$5,3,0),0) -> 0.5 | EY12: =IF(AND(EY$3<>"",DI12<>0),HLOOKUP(EY$4,'Agency cashability'!$B$3:$U$5,3,0),0) -> 0.6 | EZ12: =IF(AND(EZ$3<>"",DJ12<>0),HLOOKUP(EZ$4,'Agency cashability'!$B$3:$U$5,3,0),0) -> 0.5 | FA12: =IF(AND(FA$3<>"",DK12<>0),HLOOKUP(FA$4,'Agency cashability'!$B$3:$U$5,3,0),0) -> 0.5 | FB12: =IF(AND(FB$3<>"",DL12<>0),HLOOKUP(FB$4,'Agency cashability'!$B$3:$U$5,3,0),0) -> 0.5 | FC12: =IF(AND(FC$3<>"",DM12<>0),HLOOKUP(FC$4,'Agency cashability'!$B$3:$U$5,3,0),0) -> 0.5 | FD12: =IF(AND(FD$3<>"",DN12<>0),HLOOKUP(FD$4,'Agency cashability'!$B$3:$U$5,3,0),0) -> 0 | FE12: =IF(AND(FE$3<>"",DO12<>0),HLOOKUP(FE$4,'Agency cashability'!$B$3:$U$5,3,0),0) -> 0 | FF12: =IF(AND(FF$3<>"",DP12<>0),HLOOKUP(FF$4,'Agency cashability'!$B$3:$U$5,3,0),0) -> 0 | FG12: =IF(AND(FG$3<>"",DQ12<>0),HLOOKUP(FG$4,'Agency cashability'!$B$3:$U$5,3,0),0) -> 0 | FH12: =IF(AND(FH$3<>"",DR12<>0),HLOOKUP(FH$4,'Agency cashability'!$B$3:$U$5,3,0),0) -> 0 | FI12: =IF(AND(FI$3<>"",DS12<>0),HLOOKUP(FI$4,'Agency cashability'!$B$3:$U$5,3,0),0) -> 0 | FJ12: =IF(AND(FJ$3<>"",DT12<>0),HLOOKUP(FJ$4,'Agency cashability'!$B$3:$U$5,3,0),0) -> 0 | FK12: =IF(AND(FK$3<>"",DU12<>0),HLOOKUP(FK$4,'Agency cashability'!$B$3:$U$5,3,0),0) -> 0 | FL12: =IF(AND(FL$3<>"",DV12<>0),HLOOKUP(FL$4,'Agency cashability'!$B$3:$U$5,3,0),0) -> 0 | FM12: =IF(AND(FM$3<>"",DW12<>0),HLOOKUP(FM$4,'Agency cashability'!$B$3:$U$5,3,0),0) -> 0 | FN12: =IF(AND(FN$3<>"",DX12<>0),HLOOKUP(FN$4,'Agency cashability'!$B$3:$U$5,3,0),0) -> 0 | FO12: =IF(AND(FO$3<>"",DY12<>0),HLOOKUP(FO$4,'Agency cashability'!$B$3:$U$5,3,0),0) -> 0 | FP12: =IF(AND(FP$3<>"",DZ12<>0),HLOOKUP(FP$4,'Agency cashability'!$B$3:$U$5,3,0),0) -> 0 | FR12: 0 | FS12: 0 | FT12: 0 | FU12: 0 | FV12: 0 | FW12: 0 | FX12: 0 | FY12: 0 | FZ12: 0 | GA12: 0 | GB12: 0 | GM12: =IF((GM$3<>""),EB12*FR12,"") -> 0 | GN12: 0 | GO12: 0 | GP12: 0 | GQ12: 0 | GR12: 0 | GS12: 0 | GT12: 0 | GU12: 0 | GV12: 0 | GW12: 0 | HJ12: =IF((HJ$3<>""),EW12*FR12,"") -> 0 | HK12: 0 | HL12: 0 | HM12: 0 | HN12: 0 | HO12: 0 | HP12: 0 | HQ12: 0 | HR12: 0 | HS12: 0 | HT12: 0
A13: B8a | B13: Reduced ASB | C13: Yes | D13: Reduced incident requiring no further action | E13: Police, Neighbourhood teams | R13: 35 | S13: 35 | U13: 118 | V13: 153 | W13: 2016-17 | X13: =VLOOKUP(W13,'GDP Deflators'!$B$8:$C$72,2,0)*100/VLOOKUP('Model constants'!$B$3,'GDP Deflators'!$B$8:$C$72,2,0) -> 100 | Y13: LSE Report into cost of ASB 2003 | AA13: 0 | AB13: 0 | BE13: 0 | BF13: 0 | BG13: 0 | BH13: 0 | BI13: 0 | BJ13: 0 | BK13: 0 | BL13: 0 | BM13: 0 | BN13: 0 | BO13: 0 | BP13: 0 | BQ13: 0 | BR13: 0 | BS13: 0 | BT13: 0 | BU13: 0 | BV13: 0 | BW13: 0 | BX13: 0 | BY13: 0 | BZ13: 0 | CA13: 0 | CB13: 0 | CC13: 0 | CD13: 0 | CF13: 0 | CG13: 0 | CH13: 0 | CI13: 0 | CJ13: 0 | CK13: 0 | CL13: 0 | CM13: 0 | CN13: 0 | CO13: 0 | CP13: 0 | CQ13: 0 | CR13: 0 | CS13: 0 | CT13: 0 | CU13: 0 | CV13: 0 | CW13: 0 | CX13: 0 | CY13: 0 | CZ13: 0 | DA13: 0 | DB13: 0 | DC13: 0 | DD13: 0 | DE13: 0 | DG13: =IF(DG$3<>"",VLOOKUP($A13,'Agency percentages'!$A$5:$X$69,(3+MATCH(DG$4,'Agency percentages'!$D$4:$W$4,0)),FALSE),"") -> 0.3 | DH13: =IF(DH$3<>"",VLOOKUP($A13,'Agency percentages'!$A$5:$X$69,(3+MATCH(DH$4,'Agency percentages'!$D$4:$W$4,0)),FALSE),"") -> 0 | DI13: =IF(DI$3<>"",VLOOKUP($A13,'Agency percentages'!$A$5:$X$69,(3+MATCH(DI$4,'Agency percentages'!$D$4:$W$4,0)),FALSE),"") -> 0.4 | DJ13: =IF(DJ$3<>"",VLOOKUP($A13,'Agency percentages'!$A$5:$X$69,(3+MATCH(DJ$4,'Agency percentages'!$D$4:$W$4,0)),FALSE),"") -> 0 | DK13: =IF(DK$3<>"",VLOOKUP($A13,'Agency percentages'!$A$5:$X$69,(3+MATCH(DK$4,'Agency percentages'!$D$4:$W$4,0)),FALSE),"") -> 0 | DL13: =IF(DL$3<>"",VLOOKUP($A13,'Agency percentages'!$A$5:$X$69,(3+MATCH(DL$4,'Agency percentages'!$D$4:$W$4,0)),FALSE),"") -> 0 | DM13: =IF(DM$3<>"",VLOOKUP($A13,'Agency percentages'!$A$5:$X$69,(3+MATCH(DM$4,'Agency percentages'!$D$4:$W$4,0)),FALSE),"") -> 0 | DN13: =IF(DN$3<>"",VLOOKUP($A13,'Agency percentages'!$A$5:$X$69,(3+MATCH(DN$4,'Agency percentages'!$D$4:$W$4,0)),FALSE),"") -> 0 | DO13: =IF(DO$3<>"",VLOOKUP($A13,'Agency percentages'!$A$5:$X$69,(3+MATCH(DO$4,'Agency percentages'!$D$4:$W$4,0)),FALSE),"") -> 0 | DP13: =IF(DP$3<>"",VLOOKUP($A13,'Agency percentages'!$A$5:$X$69,(3+MATCH(DP$4,'Agency percentages'!$D$4:$W$4,0)),FALSE),"") -> 0 | DQ13: =IF(DQ$3<>"",VLOOKUP($A13,'Agency percentages'!$A$5:$X$69,(3+MATCH(DQ$4,'Agency percentages'!$D$4:$W$4,0)),FALSE),"") -> 0.3 | DR13: =IF(DR$3<>"",VLOOKUP($A13,'Agency percentages'!$A$5:$X$69,(3+MATCH(DR$4,'Agency percentages'!$D$4:$W$4,0)),FALSE),"") ->  | DS13: =IF(DS$3<>"",VLOOKUP($A13,'Agency percentages'!$A$5:$X$69,(3+MATCH(DS$4,'Agency percentages'!$D$4:$W$4,0)),FALSE),"") ->  | DT13: =IF(DT$3<>"",VLOOKUP($A13,'Agency percentages'!$A$5:$X$69,(3+MATCH(DT$4,'Agency percentages'!$D$4:$W$4,0)),FALSE),"") ->  | DU13: =IF(DU$3<>"",VLOOKUP($A13,'Agency percentages'!$A$5:$X$69,(3+MATCH(DU$4,'Agency percentages'!$D$4:$W$4,0)),FALSE),"") ->  | DV13: =IF(DV$3<>"",VLOOKUP($A13,'Agency percentages'!$A$5:$X$69,(3+MATCH(DV$4,'Agency percentages'!$D$4:$W$4,0)),FALSE),"") ->  | DW13: =IF(DW$3<>"",VLOOKUP($A13,'Agency percentages'!$A$5:$X$69,(3+MATCH(DW$4,'Agency percentages'!$D$4:$W$4,0)),FALSE),"") ->  | DX13: =IF(DX$3<>"",VLOOKUP($A13,'Agency percentages'!$A$5:$X$69,(3+MATCH(DX$4,'Agency percentages'!$D$4:$W$4,0)),FALSE),"") ->  | DY13: =IF(DY$3<>"",VLOOKUP($A13,'Agency percentages'!$A$5:$X$69,(3+MATCH(DY$4,'Agency percentages'!$D$4:$W$4,0)),FALSE),"") ->  | DZ13: =IF(DZ$3<>"",VLOOKUP($A13,'Agency percentages'!$A$5:$X$69,(3+MATCH(DZ$4,'Agency percentages'!$D$4:$W$4,0)),FALSE),"") ->  | EB13: =IF(AND(EB$3<>"",DG13<>0),HLOOKUP(EB$4,'Agency cashability'!$B$3:$U$5,2,0),0) -> 0.5 | EC13: =IF(AND(EC$3<>"",DH13<>0),HLOOKUP(EC$4,'Agency cashability'!$B$3:$U$5,2,0),0) -> 0 | ED13: =IF(AND(ED$3<>"",DI13<>0),HLOOKUP(ED$4,'Agency cashability'!$B$3:$U$5,2,0),0) -> 0.3 | EE13: =IF(AND(EE$3<>"",DJ13<>0),HLOOKUP(EE$4,'Agency cashability'!$B$3:$U$5,2,0),0) -> 0 | EF13: =IF(AND(EF$3<>"",DK13<>0),HLOOKUP(EF$4,'Agency cashability'!$B$3:$U$5,2,0),0) -> 0 | EG13: =IF(AND(EG$3<>"",DL13<>0),HLOOKUP(EG$4,'Agency cashability'!$B$3:$U$5,2,0),0) -> 0 | EH13: =IF(AND(EH$3<>"",DM13<>0),HLOOKUP(EH$4,'Agency cashability'!$B$3:$U$5,2,0),0) -> 0 | EI13: =IF(AND(EI$3<>"",DN13<>0),HLOOKUP(EI$4,'Agency cashability'!$B$3:$U$5,2,0),0) -> 0 | EJ13: =IF(AND(EJ$3<>"",DO13<>0),HLOOKUP(EJ$4,'Agency cashability'!$B$3:$U$5,2,0),0) -> 0 | EK13: =IF(AND(EK$3<>"",DP13<>0),HLOOKUP(EK$4,'Agency cashability'!$B$3:$U$5,2,0),0) -> 0 | EL13: =IF(AND(EL$3<>"",DQ13<>0),HLOOKUP(EL$4,'Agency cashability'!$B$3:$U$5,2,0),0) -> 0.8 | EM13: =IF(AND(EM$3<>"",DR13<>0),HLOOKUP(EM$4,'Agency cashability'!$B$3:$U$5,2,0),0) -> 0 | EN13: =IF(AND(EN$3<>"",DS13<>0),HLOOKUP(EN$4,'Agency cashability'!$B$3:$U$5,2,0),0) -> 0 | EO13: =IF(AND(EO$3<>"",DT13<>0),HLOOKUP(EO$4,'Agency cashability'!$B$3:$U$5,2,0),0) -> 0 | EP13: =IF(AND(EP$3<>"",DU13<>0),HLOOKUP(EP$4,'Agency cashability'!$B$3:$U$5,2,0),0) -> 0 | EQ13: =IF(AND(EQ$3<>"",DV13<>0),HLOOKUP(EQ$4,'Agency cashability'!$B$3:$U$5,2,0),0) -> 0 | ER13: =IF(AND(ER$3<>"",DW13<>0),HLOOKUP(ER$4,'Agency cashability'!$B$3:$U$5,2,0),0) -> 0 | ES13: =IF(AND(ES$3<>"",DX13<>0),HLOOKUP(ES$4,'Agency cashability'!$B$3:$U$5,2,0),0) -> 0 | ET13: =IF(AND(ET$3<>"",DY13<>0),HLOOKUP(ET$4,'Agency cashability'!$B$3:$U$5,2,0),0) -> 0 | EU13: =IF(AND(EU$3<>"",DZ13<>0),HLOOKUP(EU$4,'Agency cashability'!$B$3:$U$5,2,0),0) -> 0 | EW13: =IF(AND(EW$3<>"",DG13<>0),HLOOKUP(EW$4,'Agency cashability'!$B$3:$U$5,3,0),0) -> 0.9 | EX13: =IF(AND(EX$3<>"",DH13<>0),HLOOKUP(EX$4,'Agency cashability'!$B$3:$U$5,3,0),0) -> 0 | EY13: =IF(AND(EY$3<>"",DI13<>0),HLOOKUP(EY$4,'Agency cashability'!$B$3:$U$5,3,0),0) -> 0.6 | EZ13: =IF(AND(EZ$3<>"",DJ13<>0),HLOOKUP(EZ$4,'Agency cashability'!$B$3:$U$5,3,0),0) -> 0 | FA13: =IF(AND(FA$3<>"",DK13<>0),HLOOKUP(FA$4,'Agency cashability'!$B$3:$U$5,3,0),0) -> 0 | FB13: =IF(AND(FB$3<>"",DL13<>0),HLOOKUP(FB$4,'Agency cashability'!$B$3:$U$5,3,0),0) -> 0 | FC13: =IF(AND(FC$3<>"",DM13<>0),HLOOKUP(FC$4,'Agency cashability'!$B$3:$U$5,3,0),0) -> 0 | FD13: =IF(AND(FD$3<>"",DN13<>0),HLOOKUP(FD$4,'Agency cashability'!$B$3:$U$5,3,0),0) -> 0 | FE13: =IF(AND(FE$3<>"",DO13<>0),HLOOKUP(FE$4,'Agency cashability'!$B$3:$U$5,3,0),0) -> 0 | FF13: =IF(AND(FF$3<>"",DP13<>0),HLOOKUP(FF$4,'Agency cashability'!$B$3:$U$5,3,0),0) -> 0 | FG13: =IF(AND(FG$3<>"",DQ13<>0),HLOOKUP(FG$4,'Agency cashability'!$B$3:$U$5,3,0),0) -> 0.9 | FH13: =IF(AND(FH$3<>"",DR13<>0),HLOOKUP(FH$4,'Agency cashability'!$B$3:$U$5,3,0),0) -> 0 | FI13: =IF(AND(FI$3<>"",DS13<>0),HLOOKUP(FI$4,'Agency cashability'!$B$3:$U$5,3,0),0) -> 0 | FJ13: =IF(AND(FJ$3<>"",DT13<>0),HLOOKUP(FJ$4,'Agency cashability'!$B$3:$U$5,3,0),0) -> 0 | FK13: =IF(AND(FK$3<>"",DU13<>0),HLOOKUP(FK$4,'Agency cashability'!$B$3:$U$5,3,0),0) -> 0 | FL13: =IF(AND(FL$3<>"",DV13<>0),HLOOKUP(FL$4,'Agency cashability'!$B$3:$U$5,3,0),0) -> 0 | FM13: =IF(AND(FM$3<>"",DW13<>0),HLOOKUP(FM$4,'Agency cashability'!$B$3:$U$5,3,0),0) -> 0 | FN13: =IF(AND(FN$3<>"",DX13<>0),HLOOKUP(FN$4,'Agency cashability'!$B$3:$U$5,3,0),0) -> 0 | FO13: =IF(AND(FO$3<>"",DY13<>0),HLOOKUP(FO$4,'Agency cashability'!$B$3:$U$5,3,0),0) -> 0 | FP13: =IF(AND(FP$3<>"",DZ13<>0),HLOOKUP(FP$4,'Agency cashability'!$B$3:$U$5,3,0),0) -> 0 | FR13: 0 | FS13: 0 | FT13: 0 | FU13: 0 | FV13: 0 | FW13: 0 | FX13: 0 | FY13: 0 | FZ13: 0 | GA13: 0 | GB13: 0 | GM13: =IF((GM$3<>""),EB13*FR13,"") -> 0 | GN13: 0 | GO13: 0 | GP13: 0 | GQ13: 0 | GR13: 0 | GS13: 0 | GT13: 0 | GU13: 0 | GV13: 0 | GW13: =IF((GW$3<>""),EL13*GB13,"") -> 0 | HJ13: =IF((HJ$3<>""),EW13*FR13,"") -> 0 | HK13: 0 | HL13: 0 | HM13: 0 | HN13: 0 | HO13: 0 | HP13: 0 | HQ13: 0 | HR13: 0 | HS13: 0 | HT13: =IF((HT$3<>""),FG13*GB13,"") -> 0
A14: B8b | C14: Yes | D14: Reduced incidents requiring further action | E14: Police, Neighbourhood teams | R14: 500 | S14: 500 | U14: 118 | V14: 618 | W14: 2016-17 | X14: =VLOOKUP(W14,'GDP Deflators'!$B$8:$C$72,2,0)*100/VLOOKUP('Model constants'!$B$3,'GDP Deflators'!$B$8:$C$72,2,0) -> 100 | Y14: LSE Report into cost of ASB 2003 | AA14: 0 | AB14: 0 | BE14: 0 | BF14: 0 | BG14: 0 | BH14: 0 | BI14: 0 | BJ14: 0 | BK14: 0 | BL14: 0 | BM14: 0 | BN14: 0 | BO14: 0 | BP14: 0 | BQ14: 0 | BR14: 0 | BS14: 0 | BT14: 0 | BU14: 0 | BV14: 0 | BW14: 0 | BX14: 0 | BY14: 0 | BZ14: 0 | CA14: 0 | CB14: 0 | CC14: 0 | CD14: 0 | CF14: 0 | CG14: 0 | CH14: 0 | CI14: 0 | CJ14: 0 | CK14: 0 | CL14: 0 | CM14: 0 | CN14: 0 | CO14: 0 | CP14: 0 | CQ14: 0 | CR14: 0 | CS14: 0 | CT14: 0 | CU14: 0 | CV14: 0 | CW14: 0 | CX14: 0 | CY14: 0 | CZ14: 0 | DA14: 0 | DB14: 0 | DC14: 0 | DD14: 0 | DE14: 0 | DG14: =IF(DG$3<>"",VLOOKUP($A14,'Agency percentages'!$A$5:$X$69,(3+MATCH(DG$4,'Agency percentages'!$D$4:$W$4,0)),FALSE),"") -> 0.3 | DH14: =IF(DH$3<>"",VLOOKUP($A14,'Agency percentages'!$A$5:$X$69,(3+MATCH(DH$4,'Agency percentages'!$D$4:$W$4,0)),FALSE),"") -> 0 | DI14: =IF(DI$3<>"",VLOOKUP($A14,'Agency percentages'!$A$5:$X$69,(3+MATCH(DI$4,'Agency percentages'!$D$4:$W$4,0)),FALSE),"") -> 0.4 | DJ14: =IF(DJ$3<>"",VLOOKUP($A14,'Agency percentages'!$A$5:$X$69,(3+MATCH(DJ$4,'Agency percentages'!$D$4:$W$4,0)),FALSE),"") -> 0 | DK14: =IF(DK$3<>"",VLOOKUP($A14,'Agency percentages'!$A$5:$X$69,(3+MATCH(DK$4,'Agency percentages'!$D$4:$W$4,0)),FALSE),"") -> 0 | DL14: =IF(DL$3<>"",VLOOKUP($A14,'Agency percentages'!$A$5:$X$69,(3+MATCH(DL$4,'Agency percentages'!$D$4:$W$4,0)),FALSE),"") -> 0 | DM14: =IF(DM$3<>"",VLOOKUP($A14,'Agency percentages'!$A$5:$X$69,(3+MATCH(DM$4,'Agency percentages'!$D$4:$W$4,0)),FALSE),"") -> 0 | DN14: =IF(DN$3<>"",VLOOKUP($A14,'Agency percentages'!$A$5:$X$69,(3+MATCH(DN$4,'Agency percentages'!$D$4:$W$4,0)),FALSE),"") -> 0 | DO14: =IF(DO$3<>"",VLOOKUP($A14,'Agency percentages'!$A$5:$X$69,(3+MATCH(DO$4,'Agency percentages'!$D$4:$W$4,0)),FALSE),"") -> 0 | DP14: =IF(DP$3<>"",VLOOKUP($A14,'Agency percentages'!$A$5:$X$69,(3+MATCH(DP$4,'Agency percentages'!$D$4:$W$4,0)),FALSE),"") -> 0 | DQ14: =IF(DQ$3<>"",VLOOKUP($A14,'Agency percentages'!$A$5:$X$69,(3+MATCH(DQ$4,'Agency percentages'!$D$4:$W$4,0)),FALSE),"") -> 0.3 | DR14: =IF(DR$3<>"",VLOOKUP($A14,'Agency percentages'!$A$5:$X$69,(3+MATCH(DR$4,'Agency percentages'!$D$4:$W$4,0)),FALSE),"") ->  | DS14: =IF(DS$3<>"",VLOOKUP($A14,'Agency percentages'!$A$5:$X$69,(3+MATCH(DS$4,'Agency percentages'!$D$4:$W$4,0)),FALSE),"") ->  | DT14: =IF(DT$3<>"",VLOOKUP($A14,'Agency percentages'!$A$5:$X$69,(3+MATCH(DT$4,'Agency percentages'!$D$4:$W$4,0)),FALSE),"") ->  | DU14: =IF(DU$3<>"",VLOOKUP($A14,'Agency percentages'!$A$5:$X$69,(3+MATCH(DU$4,'Agency percentages'!$D$4:$W$4,0)),FALSE),"") ->  | DV14: =IF(DV$3<>"",VLOOKUP($A14,'Agency percentages'!$A$5:$X$69,(3+MATCH(DV$4,'Agency percentages'!$D$4:$W$4,0)),FALSE),"") ->  | DW14: =IF(DW$3<>"",VLOOKUP($A14,'Agency percentages'!$A$5:$X$69,(3+MATCH(DW$4,'Agency percentages'!$D$4:$W$4,0)),FALSE),"") ->  | DX14: =IF(DX$3<>"",VLOOKUP($A14,'Agency percentages'!$A$5:$X$69,(3+MATCH(DX$4,'Agency percentages'!$D$4:$W$4,0)),FALSE),"") ->  | DY14: =IF(DY$3<>"",VLOOKUP($A14,'Agency percentages'!$A$5:$X$69,(3+MATCH(DY$4,'Agency percentages'!$D$4:$W$4,0)),FALSE),"") ->  | DZ14: =IF(DZ$3<>"",VLOOKUP($A14,'Agency percentages'!$A$5:$X$69,(3+MATCH(DZ$4,'Agency percentages'!$D$4:$W$4,0)),FALSE),"") ->  | EB14: =IF(AND(EB$3<>"",DG14<>0),HLOOKUP(EB$4,'Agency cashability'!$B$3:$U$5,2,0),0) -> 0.5 | EC14: =IF(AND(EC$3<>"",DH14<>0),HLOOKUP(EC$4,'Agency cashability'!$B$3:$U$5,2,0),0) -> 0 | ED14: =IF(AND(ED$3<>"",DI14<>0),HLOOKUP(ED$4,'Agency cashability'!$B$3:$U$5,2,0),0) -> 0.3 | EE14: =IF(AND(EE$3<>"",DJ14<>0),HLOOKUP(EE$4,'Agency cashability'!$B$3:$U$5,2,0),0) -> 0 | EF14: =IF(AND(EF$3<>"",DK14<>0),HLOOKUP(EF$4,'Agency cashability'!$B$3:$U$5,2,0),0) -> 0 | EG14: =IF(AND(EG$3<>"",DL14<>0),HLOOKUP(EG$4,'Agency cashability'!$B$3:$U$5,2,0),0) -> 0 | EH14: =IF(AND(EH$3<>"",DM14<>0),HLOOKUP(EH$4,'Agency cashability'!$B$3:$U$5,2,0),0) -> 0 | EI14: =IF(AND(EI$3<>"",DN14<>0),HLOOKUP(EI$4,'Agency cashability'!$B$3:$U$5,2,0),0) -> 0 | EJ14: =IF(AND(EJ$3<>"",DO14<>0),HLOOKUP(EJ$4,'Agency cashability'!$B$3:$U$5,2,0),0) -> 0 | EK14: =IF(AND(EK$3<>"",DP14<>0),HLOOKUP(EK$4,'Agency cashability'!$B$3:$U$5,2,0),0) -> 0 | EL14: =IF(AND(EL$3<>"",DQ14<>0),HLOOKUP(EL$4,'Agency cashability'!$B$3:$U$5,2,0),0) -> 0.8 | EM14: =IF(AND(EM$3<>"",DR14<>0),HLOOKUP(EM$4,'Agency cashability'!$B$3:$U$5,2,0),0) -> 0 | EN14: =IF(AND(EN$3<>"",DS14<>0),HLOOKUP(EN$4,'Agency cashability'!$B$3:$U$5,2,0),0) -> 0 | EO14: =IF(AND(EO$3<>"",DT14<>0),HLOOKUP(EO$4,'Agency cashability'!$B$3:$U$5,2,0),0) -> 0 | EP14: =IF(AND(EP$3<>"",DU14<>0),HLOOKUP(EP$4,'Agency cashability'!$B$3:$U$5,2,0),0) -> 0 | EQ14: =IF(AND(EQ$3<>"",DV14<>0),HLOOKUP(EQ$4,'Agency cashability'!$B$3:$U$5,2,0),0) -> 0 | ER14: =IF(AND(ER$3<>"",DW14<>0),HLOOKUP(ER$4,'Agency cashability'!$B$3:$U$5,2,0),0) -> 0 | ES14: =IF(AND(ES$3<>"",DX14<>0),HLOOKUP(ES$4,'Agency cashability'!$B$3:$U$5,2,0),0) -> 0 | ET14: =IF(AND(ET$3<>"",DY14<>0),HLOOKUP(ET$4,'Agency cashability'!$B$3:$U$5,2,0),0) -> 0 | EU14: =IF(AND(EU$3<>"",DZ14<>0),HLOOKUP(EU$4,'Agency cashability'!$B$3:$U$5,2,0),0) -> 0 | EW14: =IF(AND(EW$3<>"",DG14<>0),HLOOKUP(EW$4,'Agency cashability'!$B$3:$U$5,3,0),0) -> 0.9 | EX14: =IF(AND(EX$3<>"",DH14<>0),HLOOKUP(EX$4,'Agency cashability'!$B$3:$U$5,3,0),0) -> 0 | EY14: =IF(AND(EY$3<>"",DI14<>0),HLOOKUP(EY$4,'Agency cashability'!$B$3:$U$5,3,0),0) -> 0.6 | EZ14: =IF(AND(EZ$3<>"",DJ14<>0),HLOOKUP(EZ$4,'Agency cashability'!$B$3:$U$5,3,0),0) -> 0 | FA14: =IF(AND(FA$3<>"",DK14<>0),HLOOKUP(FA$4,'Agency cashability'!$B$3:$U$5,3,0),0) -> 0 | FB14: =IF(AND(FB$3<>"",DL14<>0),HLOOKUP(FB$4,'Agency cashability'!$B$3:$U$5,3,0),0) -> 0 | FC14: =IF(AND(FC$3<>"",DM14<>0),HLOOKUP(FC$4,'Agency cashability'!$B$3:$U$5,3,0),0) -> 0 | FD14: =IF(AND(FD$3<>"",DN14<>0),HLOOKUP(FD$4,'Agency cashability'!$B$3:$U$5,3,0),0) -> 0 | FE14: =IF(AND(FE$3<>"",DO14<>0),HLOOKUP(FE$4,'Agency cashability'!$B$3:$U$5,3,0),0) -> 0 | FF14: =IF(AND(FF$3<>"",DP14<>0),HLOOKUP(FF$4,'Agency cashability'!$B$3:$U$5,3,0),0) -> 0 | FG14: =IF(AND(FG$3<>"",DQ14<>0),HLOOKUP(FG$4,'Agency cashability'!$B$3:$U$5,3,0),0) -> 0.9 | FH14: =IF(AND(FH$3<>"",DR14<>0),HLOOKUP(FH$4,'Agency cashability'!$B$3:$U$5,3,0),0) -> 0 | FI14: =IF(AND(FI$3<>"",DS14<>0),HLOOKUP(FI$4,'Agency cashability'!$B$3:$U$5,3,0),0) -> 0 | FJ14: =IF(AND(FJ$3<>"",DT14<>0),HLOOKUP(FJ$4,'Agency cashability'!$B$3:$U$5,3,0),0) -> 0 | FK14: =IF(AND(FK$3<>"",DU14<>0),HLOOKUP(FK$4,'Agency cashability'!$B$3:$U$5,3,0),0) -> 0 | FL14: =IF(AND(FL$3<>"",DV14<>0),HLOOKUP(FL$4,'Agency cashability'!$B$3:$U$5,3,0),0) -> 0 | FM14: =IF(AND(FM$3<>"",DW14<>0),HLOOKUP(FM$4,'Agency cashability'!$B$3:$U$5,3,0),0) -> 0 | FN14: =IF(AND(FN$3<>"",DX14<>0),HLOOKUP(FN$4,'Agency cashability'!$B$3:$U$5,3,0),0) -> 0 | FO14: =IF(AND(FO$3<>"",DY14<>0),HLOOKUP(FO$4,'Agency cashability'!$B$3:$U$5,3,0),0) -> 0 | FP14: =IF(AND(FP$3<>"",DZ14<>0),HLOOKUP(FP$4,'Agency cashability'!$B$3:$U$5,3,0),0) -> 0 | FR14: 0 | FS14: 0 | FT14: 0 | FU14: 0 | FV14: 0 | FW14: 0 | FX14: 0 | FY14: 0 | FZ14: 0 | GA14: 0 | GB14: 0 | GM14: 0 | GN14: 0 | GO14: 0 | GP14: 0 | GQ14: 0 | GR14: 0 | GS14: 0 | GT14: 0 | GU14: 0 | GV14: 0 | GW14: 0 | HJ14: 0 | HK14: 0 | HL14: 0 | HM14: 0 | HN14: 0 | HO14: 0 | HP14: 0 | HQ14: 0 | HR14: 0 | HS14: 0 | HT14: 0
A15: B9 | B15: Reduced incidents of crime (all crimes) | C15: Yes | D15: Reduced police, other criminal justice costs, health costs per actual crime (N.B. Use multipliers to convert from recorded crime or convictions) | E15: Police, CJS, NHS | R15: 609.1276692 | S15: =R15 -> 609.1276692 | T15: 676.033127 | U15: 1647.645583 | V15: 2932.806379 | W15: 2016-17 | X15: =VLOOKUP(W15,'GDP Deflators'!$B$8:$C$72,2,0)*100/VLOOKUP('Model constants'!$B$3,'GDP Deflators'!$B$8:$C$72,2,0) -> 100 | Y15: 'Figures derived from 'Revisions made to the multipliers and unit costs of crime used in the Integrated Offender Management Value for Money Toolkit, 2011 | AA15: 0 | AB15: 0 | BE15: 0 | BF15: 0 | BG15: 0 | BH15: 0 | BI15: 0 | BJ15: 0 | BK15: 0 | BL15: 0 | BM15: 0 | BN15: 0 | BO15: 0 | BP15: 0 | BQ15: 0 | BR15: 0 | BS15: 0 | BT15: 0 | BU15: 0 | BV15: 0 | BW15: 0 | BX15: 0 | BY15: 0 | BZ15: 0 | CA15: 0 | CB15: 0 | CC15: 0 | CD15: 0 | CF15: 0 | CG15: 0 | CH15: 0 | CI15: 0 | CJ15: 0 | CK15: 0 | CL15: 0 | CM15: 0 | CN15: 0 | CO15: 0 | CP15: 0 | CQ15: 0 | CR15: 0 | CS15: 0 | CT15: 0 | CU15: 0 | CV15: 0 | CW15: 0 | CX15: 0 | CY15: 0 | CZ15: 0 | DA15: 0 | DB15: 0 | DC15: 0 | DD15: 0 | DE15: 0 | DG15: =IF(DG$3<>"",VLOOKUP($A15,'Agency percentages'!$A$5:$X$69,(3+MATCH(DG$4,'Agency percentages'!$D$4:$W$4,0)),FALSE),"") -> 0 | DH15: =IF(DH$3<>"",VLOOKUP($A15,'Agency percentages'!$A$5:$X$69,(3+MATCH(DH$4,'Agency percentages'!$D$4:$W$4,0)),FALSE),"") -> 0.1846045067 | DI15: =IF(DI$3<>"",VLOOKUP($A15,'Agency percentages'!$A$5:$X$69,(3+MATCH(DI$4,'Agency percentages'!$D$4:$W$4,0)),FALSE),"") -> 0.374260694 | DJ15: =IF(DJ$3<>"",VLOOKUP($A15,'Agency percentages'!$A$5:$X$69,(3+MATCH(DJ$4,'Agency percentages'!$D$4:$W$4,0)),FALSE),"") -> 0.03481044182 | DK15: =IF(DK$3<>"",VLOOKUP($A15,'Agency percentages'!$A$5:$X$69,(3+MATCH(DK$4,'Agency percentages'!$D$4:$W$4,0)),FALSE),"") -> 0.1332060048 | DL15: =IF(DL$3<>"",VLOOKUP($A15,'Agency percentages'!$A$5:$X$69,(3+MATCH(DL$4,'Agency percentages'!$D$4:$W$4,0)),FALSE),"") -> 0.1773810448 | DM15: =IF(DM$3<>"",VLOOKUP($A15,'Agency percentages'!$A$5:$X$69,(3+MATCH(DM$4,'Agency percentages'!$D$4:$W$4,0)),FALSE),"") -> 0.09573730789 | DN15: =IF(DN$3<>"",VLOOKUP($A15,'Agency percentages'!$A$5:$X$69,(3+MATCH(DN$4,'Agency percentages'!$D$4:$W$4,0)),FALSE),"") -> 0 | DO15: =IF(DO$3<>"",VLOOKUP($A15,'Agency percentages'!$A$5:$X$69,(3+MATCH(DO$4,'Agency percentages'!$D$4:$W$4,0)),FALSE),"") -> 0 | DP15: =IF(DP$3<>"",VLOOKUP($A15,'Agency percentages'!$A$5:$X$69,(3+MATCH(DP$4,'Agency percentages'!$D$4:$W$4,0)),FALSE),"") -> 0 | DQ15: =IF(DQ$3<>"",VLOOKUP($A15,'Agency percentages'!$A$5:$X$69,(3+MATCH(DQ$4,'Agency percentages'!$D$4:$W$4,0)),FALSE),"") -> 0 | DR15: =IF(DR$3<>"",VLOOKUP($A15,'Agency percentages'!$A$5:$X$69,(3+MATCH(DR$4,'Agency percentages'!$D$4:$W$4,0)),FALSE),"") ->  | DS15: =IF(DS$3<>"",VLOOKUP($A15,'Agency percentages'!$A$5:$X$69,(3+MATCH(DS$4,'Agency percentages'!$D$4:$W$4,0)),FALSE),"") ->  | DT15: =IF(DT$3<>"",VLOOKUP($A15,'Agency percentages'!$A$5:$X$69,(3+MATCH(DT$4,'Agency percentages'!$D$4:$W$4,0)),FALSE),"") ->  | DU15: =IF(DU$3<>"",VLOOKUP($A15,'Agency percentages'!$A$5:$X$69,(3+MATCH(DU$4,'Agency percentages'!$D$4:$W$4,0)),FALSE),"") ->  | DV15: =IF(DV$3<>"",VLOOKUP($A15,'Agency percentages'!$A$5:$X$69,(3+MATCH(DV$4,'Agency percentages'!$D$4:$W$4,0)),FALSE),"") ->  | DW15: =IF(DW$3<>"",VLOOKUP($A15,'Agency percentages'!$A$5:$X$69,(3+MATCH(DW$4,'Agency percentages'!$D$4:$W$4,0)),FALSE),"") ->  | DX15: =IF(DX$3<>"",VLOOKUP($A15,'Agency percentages'!$A$5:$X$69,(3+MATCH(DX$4,'Agency percentages'!$D$4:$W$4,0)),FALSE),"") ->  | DY15: =IF(DY$3<>"",VLOOKUP($A15,'Agency percentages'!$A$5:$X$69,(3+MATCH(DY$4,'Agency percentages'!$D$4:$W$4,0)),FALSE),"") ->  | DZ15: =IF(DZ$3<>"",VLOOKUP($A15,'Agency percentages'!$A$5:$X$69,(3+MATCH(DZ$4,'Agency percentages'!$D$4:$W$4,0)),FALSE),"") ->  | EB15: =IF(AND(EB$3<>"",DG15<>0),HLOOKUP(EB$4,'Agency cashability'!$B$3:$U$5,2,0),0) -> 0 | EC15: =IF(AND(EC$3<>"",DH15<>0),HLOOKUP(EC$4,'Agency cashability'!$B$3:$U$5,2,0),0) -> 0.2 | ED15: =IF(AND(ED$3<>"",DI15<>0),HLOOKUP(ED$4,'Agency cashability'!$B$3:$U$5,2,0),0) -> 0.3 | EE15: =IF(AND(EE$3<>"",DJ15<>0),HLOOKUP(EE$4,'Agency cashability'!$B$3:$U$5,2,0),0) -> 0.2 | EF15: =IF(AND(EF$3<>"",DK15<>0),HLOOKUP(EF$4,'Agency cashability'!$B$3:$U$5,2,0),0) -> 0.2 | EG15: =IF(AND(EG$3<>"",DL15<>0),HLOOKUP(EG$4,'Agency cashability'!$B$3:$U$5,2,0),0) -> 0.2 | EH15: =IF(AND(EH$3<>"",DM15<>0),HLOOKUP(EH$4,'Agency cashability'!$B$3:$U$5,2,0),0) -> 0.2 | EI15: =IF(AND(EI$3<>"",DN15<>0),HLOOKUP(EI$4,'Agency cashability'!$B$3:$U$5,2,0),0) -> 0 | EJ15: =IF(AND(EJ$3<>"",DO15<>0),HLOOKUP(EJ$4,'Agency cashability'!$B$3:$U$5,2,0),0) -> 0 | EK15: =IF(AND(EK$3<>"",DP15<>0),HLOOKUP(EK$4,'Agency cashability'!$B$3:$U$5,2,0),0) -> 0 | EL15: =IF(AND(EL$3<>"",DQ15<>0),HLOOKUP(EL$4,'Agency cashability'!$B$3:$U$5,2,0),0) -> 0 | EM15: =IF(AND(EM$3<>"",DR15<>0),HLOOKUP(EM$4,'Agency cashability'!$B$3:$U$5,2,0),0) -> 0 | EN15: =IF(AND(EN$3<>"",DS15<>0),HLOOKUP(EN$4,'Agency cashability'!$B$3:$U$5,2,0),0) -> 0 | EO15: =IF(AND(EO$3<>"",DT15<>0),HLOOKUP(EO$4,'Agency cashability'!$B$3:$U$5,2,0),0) -> 0 | EP15: =IF(AND(EP$3<>"",DU15<>0),HLOOKUP(EP$4,'Agency cashability'!$B$3:$U$5,2,0),0) -> 0 | EQ15: =IF(AND(EQ$3<>"",DV15<>0),HLOOKUP(EQ$4,'Agency cashability'!$B$3:$U$5,2,0),0) -> 0 | ER15: =IF(AND(ER$3<>"",DW15<>0),HLOOKUP(ER$4,'Agency cashability'!$B$3:$U$5,2,0),0) -> 0 | ES15: =IF(AND(ES$3<>"",DX15<>0),HLOOKUP(ES$4,'Agency cashability'!$B$3:$U$5,2,0),0) -> 0 | ET15: =IF(AND(ET$3<>"",DY15<>0),HLOOKUP(ET$4,'Agency cashability'!$B$3:$U$5,2,0),0) -> 0 | EU15: =IF(AND(EU$3<>"",DZ15<>0),HLOOKUP(EU$4,'Agency cashability'!$B$3:$U$5,2,0),0) -> 0 | EW15: =IF(AND(EW$3<>"",DG15<>0),HLOOKUP(EW$4,'Agency cashability'!$B$3:$U$5,3,0),0) -> 0 | EX15: =IF(AND(EX$3<>"",DH15<>0),HLOOKUP(EX$4,'Agency cashability'!$B$3:$U$5,3,0),0) -> 0.5 | EY15: =IF(AND(EY$3<>"",DI15<>0),HLOOKUP(EY$4,'Agency cashability'!$B$3:$U$5,3,0),0) -> 0.6 | EZ15: =IF(AND(EZ$3<>"",DJ15<>0),HLOOKUP(EZ$4,'Agency cashability'!$B$3:$U$5,3,0),0) -> 0.5 | FA15: =IF(AND(FA$3<>"",DK15<>0),HLOOKUP(FA$4,'Agency cashability'!$B$3:$U$5,3,0),0) -> 0.5 | FB15: =IF(AND(FB$3<>"",DL15<>0),HLOOKUP(FB$4,'Agency cashability'!$B$3:$U$5,3,0),0) -> 0.5 | FC15: =IF(AND(FC$3<>"",DM15<>0),HLOOKUP(FC$4,'Agency cashability'!$B$3:$U$5,3,0),0) -> 0.5 | FD15: =IF(AND(FD$3<>"",DN15<>0),HLOOKUP(FD$4,'Agency cashability'!$B$3:$U$5,3,0),0) -> 0 | FE15: =IF(AND(FE$3<>"",DO15<>0),HLOOKUP(FE$4,'Agency cashability'!$B$3:$U$5,3,0),0) -> 0 | FF15: =IF(AND(FF$3<>"",DP15<>0),HLOOKUP(FF$4,'Agency cashability'!$B$3:$U$5,3,0),0) -> 0 | FG15: =IF(AND(FG$3<>"",DQ15<>0),HLOOKUP(FG$4,'Agency cashability'!$B$3:$U$5,3,0),0) -> 0 | FH15: =IF(AND(FH$3<>"",DR15<>0),HLOOKUP(FH$4,'Agency cashability'!$B$3:$U$5,3,0),0) -> 0 | FI15: =IF(AND(FI$3<>"",DS15<>0),HLOOKUP(FI$4,'Agency cashability'!$B$3:$U$5,3,0),0) -> 0 | FJ15: =IF(AND(FJ$3<>"",DT15<>0),HLOOKUP(FJ$4,'Agency cashability'!$B$3:$U$5,3,0),0) -> 0 | FK15: =IF(AND(FK$3<>"",DU15<>0),HLOOKUP(FK$4,'Agency cashability'!$B$3:$U$5,3,0),0) -> 0 | FL15: =IF(AND(FL$3<>"",DV15<>0),HLOOKUP(FL$4,'Agency cashability'!$B$3:$U$5,3,0),0) -> 0 | FM15: =IF(AND(FM$3<>"",DW15<>0),HLOOKUP(FM$4,'Agency cashability'!$B$3:$U$5,3,0),0) -> 0 | FN15: =IF(AND(FN$3<>"",DX15<>0),HLOOKUP(FN$4,'Agency cashability'!$B$3:$U$5,3,0),0) -> 0 | FO15: =IF(AND(FO$3<>"",DY15<>0),HLOOKUP(FO$4,'Agency cashability'!$B$3:$U$5,3,0),0) -> 0 | FP15: =IF(AND(FP$3<>"",DZ15<>0),HLOOKUP(FP$4,'Agency cashability'!$B$3:$U$5,3,0),0) -> 0 | FR15: 0 | FS15: 0 | FT15: 0 | FU15: 0 | FV15: 0 | FW15: 0 | FX15: 0 | FY15: 0 | FZ15: 0 | GA15: 0 | GB15: 0 | GM15: =IF((GM$3<>""),EB15*FR15,"") -> 0 | GN15: 0 | GO15: 0 | GP15: 0 | GQ15: 0 | GR15: 0 | GS15: 0 | GT15: 0 | GU15: 0 | GV15: 0 | GW15: 0 | HJ15: =IF((HJ$3<>""),EW15*FR15,"") -> 0 | HK15: 0 | HL15: 0 | HM15: 0 | HN15: 0 | HO15: 0 | HP15: 0 | HQ15: 0 | HR15: 0 | HS15: 0 | HT15: 0
A16: B9a | B16: Reduced incidents of crime - homicide | C16: No | D16: Reduced police, other criminal justice costs, health costs per actual crime (N.B. Use multipliers to convert from recorded crime or convictions) | E16: Police, CJS, NHS | R16: ='Cost of crime analysis'!S10 -> 174362.7385 | S16: 174362.7385 | T16: ='Cost of crime analysis'!T10 -> 535119.6486 | U16: ='Cost of crime analysis'!U10 -> 1069480.867 | V16: 1778963.254 | W16: 2010-11 | X16: =VLOOKUP(W16,'GDP Deflators'!$B$8:$C$72,2,0)*100/VLOOKUP('Model constants'!$B$3,'GDP Deflators'!$B$8:$C$72,2,0) -> 90.71467399 | Y16: 'Figures derived from 'Revisions made to the multipliers and unit costs of crime used in the Integrated Offender Management Value for Money Toolkit, 2011 | AA16: =IF($C16="Yes",($H16*$J16*$L16*($N16-$P16)*R16*100*(1+$Z16)/$X16),0) -> 0 | AB16: 0 | BE16: 0 | BF16: 0 | BG16: 0 | BH16: 0 | BI16: 0 | BJ16: 0 | BK16: 0 | BL16: 0 | BM16: 0 | BN16: 0 | BO16: 0 | BP16: 0 | BQ16: 0 | BR16: 0 | BS16: 0 | BT16: 0 | BU16: 0 | BV16: 0 | BW16: 0 | BX16: 0 | BY16: 0 | BZ16: 0 | CA16: 0 | CB16: 0 | CC16: 0 | CD16: 0 | CF16: 0 | CG16: 0 | CH16: 0 | CI16: 0 | CJ16: 0 | CK16: 0 | CL16: 0 | CM16: 0 | CN16: 0 | CO16: 0 | CP16: 0 | CQ16: 0 | CR16: 0 | CS16: 0 | CT16: 0 | CU16: 0 | CV16: 0 | CW16: 0 | CX16: 0 | CY16: 0 | CZ16: 0 | DA16: 0 | DB16: 0 | DC16: 0 | DD16: 0 | DE16: 0 | DG16: =IF(DG$3<>"",VLOOKUP($A16,'Agency percentages'!$A$5:$X$69,(3+MATCH(DG$4,'Agency percentages'!$D$4:$W$4,0)),FALSE),"") -> 0 | DH16: =IF(DH$3<>"",VLOOKUP($A16,'Agency percentages'!$A$5:$X$69,(3+MATCH(DH$4,'Agency percentages'!$D$4:$W$4,0)),FALSE),"") -> 0.005234142926 | DI16: =IF(DI$3<>"",VLOOKUP($A16,'Agency percentages'!$A$5:$X$69,(3+MATCH(DI$4,'Agency percentages'!$D$4:$W$4,0)),FALSE),"") -> 0.1013534457 | DJ16: =IF(DJ$3<>"",VLOOKUP($A16,'Agency percentages'!$A$5:$X$69,(3+MATCH(DJ$4,'Agency percentages'!$D$4:$W$4,0)),FALSE),"") -> 0.00948956473 | DK16: =IF(DK$3<>"",VLOOKUP($A16,'Agency percentages'!$A$5:$X$69,(3+MATCH(DK$4,'Agency percentages'!$D$4:$W$4,0)),FALSE),"") -> 0.05503403729 | DL16: =IF(DL$3<>"",VLOOKUP($A16,'Agency percentages'!$A$5:$X$69,(3+MATCH(DL$4,'Agency percentages'!$D$4:$W$4,0)),FALSE),"") -> 0.7780423426 | DM16: =IF(DM$3<>"",VLOOKUP($A16,'Agency percentages'!$A$5:$X$69,(3+MATCH(DM$4,'Agency percentages'!$D$4:$W$4,0)),FALSE),"") -> 0.05084646676 | DN16: =IF(DN$3<>"",VLOOKUP($A16,'Agency percentages'!$A$5:$X$69,(3+MATCH(DN$4,'Agency percentages'!$D$4:$W$4,0)),FALSE),"") -> 0 | DO16: =IF(DO$3<>"",VLOOKUP($A16,'Agency percentages'!$A$5:$X$69,(3+MATCH(DO$4,'Agency percentages'!$D$4:$W$4,0)),FALSE),"") -> 0 | DP16: =IF(DP$3<>"",VLOOKUP($A16,'Agency percentages'!$A$5:$X$69,(3+MATCH(DP$4,'Agency percentages'!$D$4:$W$4,0)),FALSE),"") -> 0 | DQ16: =IF(DQ$3<>"",VLOOKUP($A16,'Agency percentages'!$A$5:$X$69,(3+MATCH(DQ$4,'Agency percentages'!$D$4:$W$4,0)),FALSE),"") -> 0 | DR16: =IF(DR$3<>"",VLOOKUP($A16,'Agency percentages'!$A$5:$X$69,(3+MATCH(DR$4,'Agency percentages'!$D$4:$W$4,0)),FALSE),"") ->  | DS16: =IF(DS$3<>"",VLOOKUP($A16,'Agency percentages'!$A$5:$X$69,(3+MATCH(DS$4,'Agency percentages'!$D$4:$W$4,0)),FALSE),"") ->  | DT16: =IF(DT$3<>"",VLOOKUP($A16,'Agency percentages'!$A$5:$X$69,(3+MATCH(DT$4,'Agency percentages'!$D$4:$W$4,0)),FALSE),"") ->  | DU16: =IF(DU$3<>"",VLOOKUP($A16,'Agency percentages'!$A$5:$X$69,(3+MATCH(DU$4,'Agency percentages'!$D$4:$W$4,0)),FALSE),"") ->  | DV16: =IF(DV$3<>"",VLOOKUP($A16,'Agency percentages'!$A$5:$X$69,(3+MATCH(DV$4,'Agency percentages'!$D$4:$W$4,0)),FALSE),"") ->  | DW16: =IF(DW$3<>"",VLOOKUP($A16,'Agency percentages'!$A$5:$X$69,(3+MATCH(DW$4,'Agency percentages'!$D$4:$W$4,0)),FALSE),"") ->  | DX16: =IF(DX$3<>"",VLOOKUP($A16,'Agency percentages'!$A$5:$X$69,(3+MATCH(DX$4,'Agency percentages'!$D$4:$W$4,0)),FALSE),"") ->  | DY16: =IF(DY$3<>"",VLOOKUP($A16,'Agency percentages'!$A$5:$X$69,(3+MATCH(DY$4,'Agency percentages'!$D$4:$W$4,0)),FALSE),"") ->  | DZ16: =IF(DZ$3<>"",VLOOKUP($A16,'Agency percentages'!$A$5:$X$69,(3+MATCH(DZ$4,'Agency percentages'!$D$4:$W$4,0)),FALSE),"") ->  | EB16: =IF(AND(EB$3<>"",DG16<>0),HLOOKUP(EB$4,'Agency cashability'!$B$3:$U$5,2,0),0) -> 0 | EC16: =IF(AND(EC$3<>"",DH16<>0),HLOOKUP(EC$4,'Agency cashability'!$B$3:$U$5,2,0),0) -> 0.2 | ED16: =IF(AND(ED$3<>"",DI16<>0),HLOOKUP(ED$4,'Agency cashability'!$B$3:$U$5,2,0),0) -> 0.3 | EE16: =IF(AND(EE$3<>"",DJ16<>0),HLOOKUP(EE$4,'Agency cashability'!$B$3:$U$5,2,0),0) -> 0.2 | EF16: =IF(AND(EF$3<>"",DK16<>0),HLOOKUP(EF$4,'Agency cashability'!$B$3:$U$5,2,0),0) -> 0.2 | EG16: =IF(AND(EG$3<>"",DL16<>0),HLOOKUP(EG$4,'Agency cashability'!$B$3:$U$5,2,0),0) -> 0.2 | EH16: =IF(AND(EH$3<>"",DM16<>0),HLOOKUP(EH$4,'Agency cashability'!$B$3:$U$5,2,0),0) -> 0.2 | EI16: =IF(AND(EI$3<>"",DN16<>0),HLOOKUP(EI$4,'Agency cashability'!$B$3:$U$5,2,0),0) -> 0 | EJ16: =IF(AND(EJ$3<>"",DO16<>0),HLOOKUP(EJ$4,'Agency cashability'!$B$3:$U$5,2,0),0) -> 0 | EK16: =IF(AND(EK$3<>"",DP16<>0),HLOOKUP(EK$4,'Agency cashability'!$B$3:$U$5,2,0),0) -> 0 | EL16: =IF(AND(EL$3<>"",DQ16<>0),HLOOKUP(EL$4,'Agency cashability'!$B$3:$U$5,2,0),0) -> 0 | EM16: =IF(AND(EM$3<>"",DR16<>0),HLOOKUP(EM$4,'Agency cashability'!$B$3:$U$5,2,0),0) -> 0 | EN16: =IF(AND(EN$3<>"",DS16<>0),HLOOKUP(EN$4,'Agency cashability'!$B$3:$U$5,2,0),0) -> 0 | EO16: =IF(AND(EO$3<>"",DT16<>0),HLOOKUP(EO$4,'Agency cashability'!$B$3:$U$5,2,0),0) -> 0 | EP16: =IF(AND(EP$3<>"",DU16<>0),HLOOKUP(EP$4,'Agency cashability'!$B$3:$U$5,2,0),0) -> 0 | EQ16: =IF(AND(EQ$3<>"",DV16<>0),HLOOKUP(EQ$4,'Agency cashability'!$B$3:$U$5,2,0),0) -> 0 | ER16: =IF(AND(ER$3<>"",DW16<>0),HLOOKUP(ER$4,'Agency cashability'!$B$3:$U$5,2,0),0) -> 0 | ES16: =IF(AND(ES$3<>"",DX16<>0),HLOOKUP(ES$4,'Agency cashability'!$B$3:$U$5,2,0),0) -> 0 | ET16: =IF(AND(ET$3<>"",DY16<>0),HLOOKUP(ET$4,'Agency cashability'!$B$3:$U$5,2,0),0) -> 0 | EU16: =IF(AND(EU$3<>"",DZ16<>0),HLOOKUP(EU$4,'Agency cashability'!$B$3:$U$5,2,0),0) -> 0 | EW16: =IF(AND(EW$3<>"",DG16<>0),HLOOKUP(EW$4,'Agency cashability'!$B$3:$U$5,3,0),0) -> 0 | EX16: =IF(AND(EX$3<>"",DH16<>0),HLOOKUP(EX$4,'Agency cashability'!$B$3:$U$5,3,0),0) -> 0.5 | EY16: =IF(AND(EY$3<>"",DI16<>0),HLOOKUP(EY$4,'Agency cashability'!$B$3:$U$5,3,0),0) -> 0.6 | EZ16: =IF(AND(EZ$3<>"",DJ16<>0),HLOOKUP(EZ$4,'Agency cashability'!$B$3:$U$5,3,0),0) -> 0.5 | FA16: =IF(AND(FA$3<>"",DK16<>0),HLOOKUP(FA$4,'Agency cashability'!$B$3:$U$5,3,0),0) -> 0.5 | FB16: =IF(AND(FB$3<>"",DL16<>0),HLOOKUP(FB$4,'Agency cashability'!$B$3:$U$5,3,0),0) -> 0.5 | FC16: =IF(AND(FC$3<>"",DM16<>0),HLOOKUP(FC$4,'Agency cashability'!$B$3:$U$5,3,0),0) -> 0.5 | FD16: =IF(AND(FD$3<>"",DN16<>0),HLOOKUP(FD$4,'Agency cashability'!$B$3:$U$5,3,0),0) -> 0 | FE16: =IF(AND(FE$3<>"",DO16<>0),HLOOKUP(FE$4,'Agency cashability'!$B$3:$U$5,3,0),0) -> 0 | FF16: =IF(AND(FF$3<>"",DP16<>0),HLOOKUP(FF$4,'Agency cashability'!$B$3:$U$5,3,0),0) -> 0 | FG16: =IF(AND(FG$3<>"",DQ16<>0),HLOOKUP(FG$4,'Agency cashability'!$B$3:$U$5,3,0),0) -> 0 | FH16: =IF(AND(FH$3<>"",DR16<>0),HLOOKUP(FH$4,'Agency cashability'!$B$3:$U$5,3,0),0) -> 0 | FI16: =IF(AND(FI$3<>"",DS16<>0),HLOOKUP(FI$4,'Agency cashability'!$B$3:$U$5,3,0),0) -> 0 | FJ16: =IF(AND(FJ$3<>"",DT16<>0),HLOOKUP(FJ$4,'Agency cashability'!$B$3:$U$5,3,0),0) -> 0 | FK16: =IF(AND(FK$3<>"",DU16<>0),HLOOKUP(FK$4,'Agency cashability'!$B$3:$U$5,3,0),0) -> 0 | FL16: =IF(AND(FL$3<>"",DV16<>0),HLOOKUP(FL$4,'Agency cashability'!$B$3:$U$5,3,0),0) -> 0 | FM16: =IF(AND(FM$3<>"",DW16<>0),HLOOKUP(FM$4,'Agency cashability'!$B$3:$U$5,3,0),0) -> 0 | FN16: =IF(AND(FN$3<>"",DX16<>0),HLOOKUP(FN$4,'Agency cashability'!$B$3:$U$5,3,0),0) -> 0 | FO16: =IF(AND(FO$3<>"",DY16<>0),HLOOKUP(FO$4,'Agency cashability'!$B$3:$U$5,3,0),0) -> 0 | FP16: =IF(AND(FP$3<>"",DZ16<>0),HLOOKUP(FP$4,'Agency cashability'!$B$3:$U$5,3,0),0) -> 0 | FR16: 0 | FS16: 0 | FT16: 0 | FU16: 0 | FV16: 0 | FW16: 0 | FX16: 0 | FY16: 0 | FZ16: 0 | GA16: 0 | GB16: 0 | GM16: =IF((GM$3<>""),EB16*FR16,"") -> 0 | GN16: 0 | GO16: 0 | GP16: 0 | GQ16: 0 | GR16: 0 | GS16: 0 | GT16: 0 | GU16: 0 | GV16: 0 | GW16: 0 | HJ16: =IF((HJ$3<>""),EW16*FR16,"") -> 0 | HK16: 0 | HL16: 0 | HM16: 0 | HN16: 0 | HO16: 0 | HP16: 0 | HQ16: 0 | HR16: 0 | HS16: 0 | HT16: 0
A17: B9b | B17: Reduced incidents of crime - serious wounding | C17: No | D17: Reduced police, other criminal justice costs, health costs per actual crime (N.B. Use multipliers to convert from recorded crime or convictions) | E17: Police, CJS, NHS | R17: ='Cost of crime analysis'!S11 -> 18608.36371 | S17: 18608.36371 | T17: ='Cost of crime analysis'!T11 -> 1384.367441 | U17: ='Cost of crime analysis'!U11 -> 5660.772993 | V17: 25653.50415 | W17: 2010-11 | X17: =VLOOKUP(W17,'GDP Deflators'!$B$8:$C$72,2,0)*100/VLOOKUP('Model constants'!$B$3,'GDP Deflators'!$B$8:$C$72,2,0) -> 90.71467399 | Y17: 'Figures derived from 'Revisions made to the multipliers and unit costs of crime used in the Integrated Offender Management Value for Money Toolkit, 2011 | AA17: 0 | AB17: 0 | BE17: 0 | BF17: 0 | BG17: 0 | BH17: 0 | BI17: 0 | BJ17: 0 | BK17: 0 | BL17: 0 | BM17: 0 | BN17: 0 | BO17: 0 | BP17: 0 | BQ17: 0 | BR17: 0 | BS17: 0 | BT17: 0 | BU17: 0 | BV17: 0 | BW17: 0 | BX17: 0 | BY17: 0 | BZ17: 0 | CA17: 0 | CB17: 0 | CC17: 0 | CD17: 0 | CF17: 0 | CG17: 0 | CH17: 0 | CI17: 0 | CJ17: 0 | CK17: 0 | CL17: 0 | CM17: 0 | CN17: 0 | CO17: 0 | CP17: 0 | CQ17: 0 | CR17: 0 | CS17: 0 | CT17: 0 | CU17: 0 | CV17: 0 | CW17: 0 | CX17: 0 | CY17: 0 | CZ17: 0 | DA17: 0 | DB17: 0 | DC17: 0 | DD17: 0 | DE17: 0 | DG17: =IF(DG$3<>"",VLOOKUP($A17,'Agency percentages'!$A$5:$X$69,(3+MATCH(DG$4,'Agency percentages'!$D$4:$W$4,0)),FALSE),"") -> 0 | DH17: =IF(DH$3<>"",VLOOKUP($A17,'Agency percentages'!$A$5:$X$69,(3+MATCH(DH$4,'Agency percentages'!$D$4:$W$4,0)),FALSE),"") -> 0.08585987261 | DI17: =IF(DI$3<>"",VLOOKUP($A17,'Agency percentages'!$A$5:$X$69,(3+MATCH(DI$4,'Agency percentages'!$D$4:$W$4,0)),FALSE),"") -> 0.3768789809 | DJ17: =IF(DJ$3<>"",VLOOKUP($A17,'Agency percentages'!$A$5:$X$69,(3+MATCH(DJ$4,'Agency percentages'!$D$4:$W$4,0)),FALSE),"") -> 0.02222929936 | DK17: =IF(DK$3<>"",VLOOKUP($A17,'Agency percentages'!$A$5:$X$69,(3+MATCH(DK$4,'Agency percentages'!$D$4:$W$4,0)),FALSE),"") -> 0.2046496815 | DL17: =IF(DL$3<>"",VLOOKUP($A17,'Agency percentages'!$A$5:$X$69,(3+MATCH(DL$4,'Agency percentages'!$D$4:$W$4,0)),FALSE),"") -> 0.1739490446 | DM17: =IF(DM$3<>"",VLOOKUP($A17,'Agency percentages'!$A$5:$X$69,(3+MATCH(DM$4,'Agency percentages'!$D$4:$W$4,0)),FALSE),"") -> 0.136433121 | DN17: =IF(DN$3<>"",VLOOKUP($A17,'Agency percentages'!$A$5:$X$69,(3+MATCH(DN$4,'Agency percentages'!$D$4:$W$4,0)),FALSE),"") -> 0 | DO17: =IF(DO$3<>"",VLOOKUP($A17,'Agency percentages'!$A$5:$X$69,(3+MATCH(DO$4,'Agency percentages'!$D$4:$W$4,0)),FALSE),"") -> 0 | DP17: =IF(DP$3<>"",VLOOKUP($A17,'Agency percentages'!$A$5:$X$69,(3+MATCH(DP$4,'Agency percentages'!$D$4:$W$4,0)),FALSE),"") -> 0 | DQ17: =IF(DQ$3<>"",VLOOKUP($A17,'Agency percentages'!$A$5:$X$69,(3+MATCH(DQ$4,'Agency percentages'!$D$4:$W$4,0)),FALSE),"") -> 0 | DR17: =IF(DR$3<>"",VLOOKUP($A17,'Agency percentages'!$A$5:$X$69,(3+MATCH(DR$4,'Agency percentages'!$D$4:$W$4,0)),FALSE),"") ->  | DS17: =IF(DS$3<>"",VLOOKUP($A17,'Agency percentages'!$A$5:$X$69,(3+MATCH(DS$4,'Agency percentages'!$D$4:$W$4,0)),FALSE),"") ->  | DT17: =IF(DT$3<>"",VLOOKUP($A17,'Agency percentages'!$A$5:$X$69,(3+MATCH(DT$4,'Agency percentages'!$D$4:$W$4,0)),FALSE),"") ->  | DU17: =IF(DU$3<>"",VLOOKUP($A17,'Agency percentages'!$A$5:$X$69,(3+MATCH(DU$4,'Agency percentages'!$D$4:$W$4,0)),FALSE),"") ->  | DV17: =IF(DV$3<>"",VLOOKUP($A17,'Agency percentages'!$A$5:$X$69,(3+MATCH(DV$4,'Agency percentages'!$D$4:$W$4,0)),FALSE),"") ->  | DW17: =IF(DW$3<>"",VLOOKUP($A17,'Agency percentages'!$A$5:$X$69,(3+MATCH(DW$4,'Agency percentages'!$D$4:$W$4,0)),FALSE),"") ->  | DX17: =IF(DX$3<>"",VLOOKUP($A17,'Agency percentages'!$A$5:$X$69,(3+MATCH(DX$4,'Agency percentages'!$D$4:$W$4,0)),FALSE),"") ->  | DY17: =IF(DY$3<>"",VLOOKUP($A17,'Agency percentages'!$A$5:$X$69,(3+MATCH(DY$4,'Agency percentages'!$D$4:$W$4,0)),FALSE),"") ->  | DZ17: =IF(DZ$3<>"",VLOOKUP($A17,'Agency percentages'!$A$5:$X$69,(3+MATCH(DZ$4,'Agency percentages'!$D$4:$W$4,0)),FALSE),"") ->  | EB17: =IF(AND(EB$3<>"",DG17<>0),HLOOKUP(EB$4,'Agency cashability'!$B$3:$U$5,2,0),0) -> 0 | EC17: =IF(AND(EC$3<>"",DH17<>0),HLOOKUP(EC$4,'Agency cashability'!$B$3:$U$5,2,0),0) -> 0.2 | ED17: =IF(AND(ED$3<>"",DI17<>0),HLOOKUP(ED$4,'Agency cashability'!$B$3:$U$5,2,0),0) -> 0.3 | EE17: =IF(AND(EE$3<>"",DJ17<>0),HLOOKUP(EE$4,'Agency cashability'!$B$3:$U$5,2,0),0) -> 0.2 | EF17: =IF(AND(EF$3<>"",DK17<>0),HLOOKUP(EF$4,'Agency cashability'!$B$3:$U$5,2,0),0) -> 0.2 | EG17: =IF(AND(EG$3<>"",DL17<>0),HLOOKUP(EG$4,'Agency cashability'!$B$3:$U$5,2,0),0) -> 0.2 | EH17: =IF(AND(EH$3<>"",DM17<>0),HLOOKUP(EH$4,'Agency cashability'!$B$3:$U$5,2,0),0) -> 0.2 | EI17: =IF(AND(EI$3<>"",DN17<>0),HLOOKUP(EI$4,'Agency cashability'!$B$3:$U$5,2,0),0) -> 0 | EJ17: =IF(AND(EJ$3<>"",DO17<>0),HLOOKUP(EJ$4,'Agency cashability'!$B$3:$U$5,2,0),0) -> 0 | EK17: =IF(AND(EK$3<>"",DP17<>0),HLOOKUP(EK$4,'Agency cashability'!$B$3:$U$5,2,0),0) -> 0 | EL17: =IF(AND(EL$3<>"",DQ17<>0),HLOOKUP(EL$4,'Agency cashability'!$B$3:$U$5,2,0),0) -> 0 | EM17: =IF(AND(EM$3<>"",DR17<>0),HLOOKUP(EM$4,'Agency cashability'!$B$3:$U$5,2,0),0) -> 0 | EN17: =IF(AND(EN$3<>"",DS17<>0),HLOOKUP(EN$4,'Agency cashability'!$B$3:$U$5,2,0),0) -> 0 | EO17: =IF(AND(EO$3<>"",DT17<>0),HLOOKUP(EO$4,'Agency cashability'!$B$3:$U$5,2,0),0) -> 0 | EP17: =IF(AND(EP$3<>"",DU17<>0),HLOOKUP(EP$4,'Agency cashability'!$B$3:$U$5,2,0),0) -> 0 | EQ17: =IF(AND(EQ$3<>"",DV17<>0),HLOOKUP(EQ$4,'Agency cashability'!$B$3:$U$5,2,0),0) -> 0 | ER17: =IF(AND(ER$3<>"",DW17<>0),HLOOKUP(ER$4,'Agency cashability'!$B$3:$U$5,2,0),0) -> 0 | ES17: =IF(AND(ES$3<>"",DX17<>0),HLOOKUP(ES$4,'Agency cashability'!$B$3:$U$5,2,0),0) -> 0 | ET17: =IF(AND(ET$3<>"",DY17<>0),HLOOKUP(ET$4,'Agency cashability'!$B$3:$U$5,2,0),0) -> 0 | EU17: =IF(AND(EU$3<>"",DZ17<>0),HLOOKUP(EU$4,'Agency cashability'!$B$3:$U$5,2,0),0) -> 0 | EW17: =IF(AND(EW$3<>"",DG17<>0),HLOOKUP(EW$4,'Agency cashability'!$B$3:$U$5,3,0),0) -> 0 | EX17: =IF(AND(EX$3<>"",DH17<>0),HLOOKUP(EX$4,'Agency cashability'!$B$3:$U$5,3,0),0) -> 0.5 | EY17: =IF(AND(EY$3<>"",DI17<>0),HLOOKUP(EY$4,'Agency cashability'!$B$3:$U$5,3,0),0) -> 0.6 | EZ17: =IF(AND(EZ$3<>"",DJ17<>0),HLOOKUP(EZ$4,'Agency cashability'!$B$3:$U$5,3,0),0) -> 0.5 | FA17: =IF(AND(FA$3<>"",DK17<>0),HLOOKUP(FA$4,'Agency cashability'!$B$3:$U$5,3,0),0) -> 0.5 | FB17: =IF(AND(FB$3<>"",DL17<>0),HLOOKUP(FB$4,'Agency cashability'!$B$3:$U$5,3,0),0) -> 0.5 | FC17: =IF(AND(FC$3<>"",DM17<>0),HLOOKUP(FC$4,'Agency cashability'!$B$3:$U$5,3,0),0) -> 0.5 | FD17: =IF(AND(FD$3<>"",DN17<>0),HLOOKUP(FD$4,'Agency cashability'!$B$3:$U$5,3,0),0) -> 0 | FE17: =IF(AND(FE$3<>"",DO17<>0),HLOOKUP(FE$4,'Agency cashability'!$B$3:$U$5,3,0),0) -> 0 | FF17: =IF(AND(FF$3<>"",DP17<>0),HLOOKUP(FF$4,'Agency cashability'!$B$3:$U$5,3,0),0) -> 0 | FG17: =IF(AND(FG$3<>"",DQ17<>0),HLOOKUP(FG$4,'Agency cashability'!$B$3:$U$5,3,0),0) -> 0 | FH17: =IF(AND(FH$3<>"",DR17<>0),HLOOKUP(FH$4,'Agency cashability'!$B$3:$U$5,3,0),0) -> 0 | FI17: =IF(AND(FI$3<>"",DS17<>0),HLOOKUP(FI$4,'Agency cashability'!$B$3:$U$5,3,0),0) -> 0 | FJ17: =IF(AND(FJ$3<>"",DT17<>0),HLOOKUP(FJ$4,'Agency cashability'!$B$3:$U$5,3,0),0) -> 0 | FK17: =IF(AND(FK$3<>"",DU17<>0),HLOOKUP(FK$4,'Agency cashability'!$B$3:$U$5,3,0),0) -> 0 | FL17: =IF(AND(FL$3<>"",DV17<>0),HLOOKUP(FL$4,'Agency cashability'!$B$3:$U$5,3,0),0) -> 0 | FM17: =IF(AND(FM$3<>"",DW17<>0),HLOOKUP(FM$4,'Agency cashability'!$B$3:$U$5,3,0),0) -> 0 | FN17: =IF(AND(FN$3<>"",DX17<>0),HLOOKUP(FN$4,'Agency cashability'!$B$3:$U$5,3,0),0) -> 0 | FO17: =IF(AND(FO$3<>"",DY17<>0),HLOOKUP(FO$4,'Agency cashability'!$B$3:$U$5,3,0),0) -> 0 | FP17: =IF(AND(FP$3<>"",DZ17<>0),HLOOKUP(FP$4,'Agency cashability'!$B$3:$U$5,3,0),0) -> 0 | FR17: 0 | FS17: 0 | FT17: 0 | FU17: 0 | FV17: 0 | FW17: 0 | FX17: 0 | FY17: 0 | FZ17: 0 | GA17: 0 | GB17: 0 | GM17: =IF((GM$3<>""),EB17*FR17,"") -> 0 | GN17: 0 | GO17: 0 | GP17: 0 | GQ17: 0 | GR17: 0 | GS17: 0 | GT17: 0 | GU17: 0 | GV17: 0 | GW17: 0 | HJ17: =IF((HJ$3<>""),EW17*FR17,"") -> 0 | HK17: 0 | HL17: 0 | HM17: 0 | HN17: 0 | HO17: 0 | HP17: 0 | HQ17: 0 | HR17: 0 | HS17: 0 | HT17: 0
A18: B9c | B18: Reduced incidents of crime - other wounding | C18: No | D18: Reduced police, other criminal justice costs, health costs per actual crime (N.B. Use multipliers to convert from recorded crime or convictions) | E18: Police, CJS, NHS | R18: ='Cost of crime analysis'!S12 -> 2765.179143 | S18: 2765.179143 | T18: ='Cost of crime analysis'!T12 -> 1384.367441 | U18: ='Cost of crime analysis'!U12 -> 5660.772993 | V18: 9810.319577 | W18: 2010-11 | X18: =VLOOKUP(W18,'GDP Deflators'!$B$8:$C$72,2,0)*100/VLOOKUP('Model constants'!$B$3,'GDP Deflators'!$B$8:$C$72,2,0) -> 90.71467399 | Y18: 'Figures derived from 'Revisions made to the multipliers and unit costs of crime used in the Integrated Offender Management Value for Money Toolkit, 2011 | AA18: 0 | AB18: 0 | BE18: 0 | BF18: 0 | BG18: 0 | BH18: 0 | BI18: 0 | BJ18: 0 | BK18: 0 | BL18: 0 | BM18: 0 | BN18: 0 | BO18: 0 | BP18: 0 | BQ18: 0 | BR18: 0 | BS18: 0 | BT18: 0 | BU18: 0 | BV18: 0 | BW18: 0 | BX18: 0 | BY18: 0 | BZ18: 0 | CA18: 0 | CB18: 0 | CC18: 0 | CD18: 0 | CF18: 0 | CG18: 0 | CH18: 0 | CI18: 0 | CJ18: 0 | CK18: 0 | CL18: 0 | CM18: 0 | CN18: 0 | CO18: 0 | CP18: 0 | CQ18: 0 | CR18: 0 | CS18: 0 | CT18: 0 | CU18: 0 | CV18: 0 | CW18: 0 | CX18: 0 | CY18: 0 | CZ18: 0 | DA18: 0 | DB18: 0 | DC18: 0 | DD18: 0 | DE18: 0 | DG18: =IF(DG$3<>"",VLOOKUP($A18,'Agency percentages'!$A$5:$X$69,(3+MATCH(DG$4,'Agency percentages'!$D$4:$W$4,0)),FALSE),"") -> 0 | DH18: =IF(DH$3<>"",VLOOKUP($A18,'Agency percentages'!$A$5:$X$69,(3+MATCH(DH$4,'Agency percentages'!$D$4:$W$4,0)),FALSE),"") -> 0.5777968281 | DI18: =IF(DI$3<>"",VLOOKUP($A18,'Agency percentages'!$A$5:$X$69,(3+MATCH(DI$4,'Agency percentages'!$D$4:$W$4,0)),FALSE),"") -> 0.1765966567 | DJ18: =IF(DJ$3<>"",VLOOKUP($A18,'Agency percentages'!$A$5:$X$69,(3+MATCH(DJ$4,'Agency percentages'!$D$4:$W$4,0)),FALSE),"") -> 0.02528932705 | DK18: =IF(DK$3<>"",VLOOKUP($A18,'Agency percentages'!$A$5:$X$69,(3+MATCH(DK$4,'Agency percentages'!$D$4:$W$4,0)),FALSE),"") -> 0.09601371625 | DL18: =IF(DL$3<>"",VLOOKUP($A18,'Agency percentages'!$A$5:$X$69,(3+MATCH(DL$4,'Agency percentages'!$D$4:$W$4,0)),FALSE),"") -> 0.05743677668 | DM18: =IF(DM$3<>"",VLOOKUP($A18,'Agency percentages'!$A$5:$X$69,(3+MATCH(DM$4,'Agency percentages'!$D$4:$W$4,0)),FALSE),"") -> 0.06686669524 | DN18: =IF(DN$3<>"",VLOOKUP($A18,'Agency percentages'!$A$5:$X$69,(3+MATCH(DN$4,'Agency percentages'!$D$4:$W$4,0)),FALSE),"") -> 0 | DO18: =IF(DO$3<>"",VLOOKUP($A18,'Agency percentages'!$A$5:$X$69,(3+MATCH(DO$4,'Agency percentages'!$D$4:$W$4,0)),FALSE),"") -> 0 | DP18: =IF(DP$3<>"",VLOOKUP($A18,'Agency percentages'!$A$5:$X$69,(3+MATCH(DP$4,'Agency percentages'!$D$4:$W$4,0)),FALSE),"") -> 0 | DQ18: =IF(DQ$3<>"",VLOOKUP($A18,'Agency percentages'!$A$5:$X$69,(3+MATCH(DQ$4,'Agency percentages'!$D$4:$W$4,0)),FALSE),"") -> 0 | DR18: =IF(DR$3<>"",VLOOKUP($A18,'Agency percentages'!$A$5:$X$69,(3+MATCH(DR$4,'Agency percentages'!$D$4:$W$4,0)),FALSE),"") ->  | DS18: =IF(DS$3<>"",VLOOKUP($A18,'Agency percentages'!$A$5:$X$69,(3+MATCH(DS$4,'Agency percentages'!$D$4:$W$4,0)),FALSE),"") ->  | DT18: =IF(DT$3<>"",VLOOKUP($A18,'Agency percentages'!$A$5:$X$69,(3+MATCH(DT$4,'Agency percentages'!$D$4:$W$4,0)),FALSE),"") ->  | DU18: =IF(DU$3<>"",VLOOKUP($A18,'Agency percentages'!$A$5:$X$69,(3+MATCH(DU$4,'Agency percentages'!$D$4:$W$4,0)),FALSE),"") ->  | DV18: =IF(DV$3<>"",VLOOKUP($A18,'Agency percentages'!$A$5:$X$69,(3+MATCH(DV$4,'Agency percentages'!$D$4:$W$4,0)),FALSE),"") ->  | DW18: =IF(DW$3<>"",VLOOKUP($A18,'Agency percentages'!$A$5:$X$69,(3+MATCH(DW$4,'Agency percentages'!$D$4:$W$4,0)),FALSE),"") ->  | DX18: =IF(DX$3<>"",VLOOKUP($A18,'Agency percentages'!$A$5:$X$69,(3+MATCH(DX$4,'Agency percentages'!$D$4:$W$4,0)),FALSE),"") ->  | DY18: =IF(DY$3<>"",VLOOKUP($A18,'Agency percentages'!$A$5:$X$69,(3+MATCH(DY$4,'Agency percentages'!$D$4:$W$4,0)),FALSE),"") ->  | DZ18: =IF(DZ$3<>"",VLOOKUP($A18,'Agency percentages'!$A$5:$X$69,(3+MATCH(DZ$4,'Agency percentages'!$D$4:$W$4,0)),FALSE),"") ->  | EB18: =IF(AND(EB$3<>"",DG18<>0),HLOOKUP(EB$4,'Agency cashability'!$B$3:$U$5,2,0),0) -> 0 | EC18: =IF(AND(EC$3<>"",DH18<>0),HLOOKUP(EC$4,'Agency cashability'!$B$3:$U$5,2,0),0) -> 0.2 | ED18: =IF(AND(ED$3<>"",DI18<>0),HLOOKUP(ED$4,'Agency cashability'!$B$3:$U$5,2,0),0) -> 0.3 | EE18: =IF(AND(EE$3<>"",DJ18<>0),HLOOKUP(EE$4,'Agency cashability'!$B$3:$U$5,2,0),0) -> 0.2 | EF18: =IF(AND(EF$3<>"",DK18<>0),HLOOKUP(EF$4,'Agency cashability'!$B$3:$U$5,2,0),0) -> 0.2 | EG18: =IF(AND(EG$3<>"",DL18<>0),HLOOKUP(EG$4,'Agency cashability'!$B$3:$U$5,2,0),0) -> 0.2 | EH18: =IF(AND(EH$3<>"",DM18<>0),HLOOKUP(EH$4,'Agency cashability'!$B$3:$U$5,2,0),0) -> 0.2 | EI18: =IF(AND(EI$3<>"",DN18<>0),HLOOKUP(EI$4,'Agency cashability'!$B$3:$U$5,2,0),0) -> 0 | EJ18: =IF(AND(EJ$3<>"",DO18<>0),HLOOKUP(EJ$4,'Agency cashability'!$B$3:$U$5,2,0),0) -> 0 | EK18: =IF(AND(EK$3<>"",DP18<>0),HLOOKUP(EK$4,'Agency cashability'!$B$3:$U$5,2,0),0) -> 0 | EL18: =IF(AND(EL$3<>"",DQ18<>0),HLOOKUP(EL$4,'Agency cashability'!$B$3:$U$5,2,0),0) -> 0 | EM18: =IF(AND(EM$3<>"",DR18<>0),HLOOKUP(EM$4,'Agency cashability'!$B$3:$U$5,2,0),0) -> 0 | EN18: =IF(AND(EN$3<>"",DS18<>0),HLOOKUP(EN$4,'Agency cashability'!$B$3:$U$5,2,0),0) -> 0 | EO18: =IF(AND(EO$3<>"",DT18<>0),HLOOKUP(EO$4,'Agency cashability'!$B$3:$U$5,2,0),0) -> 0 | EP18: =IF(AND(EP$3<>"",DU18<>0),HLOOKUP(EP$4,'Agency cashability'!$B$3:$U$5,2,0),0) -> 0 | EQ18: =IF(AND(EQ$3<>"",DV18<>0),HLOOKUP(EQ$4,'Agency cashability'!$B$3:$U$5,2,0),0) -> 0 | ER18: =IF(AND(ER$3<>"",DW18<>0),HLOOKUP(ER$4,'Agency cashability'!$B$3:$U$5,2,0),0) -> 0 | ES18: =IF(AND(ES$3<>"",DX18<>0),HLOOKUP(ES$4,'Agency cashability'!$B$3:$U$5,2,0),0) -> 0 | ET18: =IF(AND(ET$3<>"",DY18<>0),HLOOKUP(ET$4,'Agency cashability'!$B$3:$U$5,2,0),0) -> 0 | EU18: =IF(AND(EU$3<>"",DZ18<>0),HLOOKUP(EU$4,'Agency cashability'!$B$3:$U$5,2,0),0) -> 0 | EW18: =IF(AND(EW$3<>"",DG18<>0),HLOOKUP(EW$4,'Agency cashability'!$B$3:$U$5,3,0),0) -> 0 | EX18: =IF(AND(EX$3<>"",DH18<>0),HLOOKUP(EX$4,'Agency cashability'!$B$3:$U$5,3,0),0) -> 0.5 | EY18: =IF(AND(EY$3<>"",DI18<>0),HLOOKUP(EY$4,'Agency cashability'!$B$3:$U$5,3,0),0) -> 0.6 | EZ18: =IF(AND(EZ$3<>"",DJ18<>0),HLOOKUP(EZ$4,'Agency cashability'!$B$3:$U$5,3,0),0) -> 0.5 | FA18: =IF(AND(FA$3<>"",DK18<>0),HLOOKUP(FA$4,'Agency cashability'!$B$3:$U$5,3,0),0) -> 0.5 | FB18: =IF(AND(FB$3<>"",DL18<>0),HLOOKUP(FB$4,'Agency cashability'!$B$3:$U$5,3,0),0) -> 0.5 | FC18: =IF(AND(FC$3<>"",DM18<>0),HLOOKUP(FC$4,'Agency cashability'!$B$3:$U$5,3,0),0) -> 0.5 | FD18: =IF(AND(FD$3<>"",DN18<>0),HLOOKUP(FD$4,'Agency cashability'!$B$3:$U$5,3,0),0) -> 0 | FE18: =IF(AND(FE$3<>"",DO18<>0),HLOOKUP(FE$4,'Agency cashability'!$B$3:$U$5,3,0),0) -> 0 | FF18: =IF(AND(FF$3<>"",DP18<>0),HLOOKUP(FF$4,'Agency cashability'!$B$3:$U$5,3,0),0) -> 0 | FG18: =IF(AND(FG$3<>"",DQ18<>0),HLOOKUP(FG$4,'Agency cashability'!$B$3:$U$5,3,0),0) -> 0 | FH18: =IF(AND(FH$3<>"",DR18<>0),HLOOKUP(FH$4,'Agency cashability'!$B$3:$U$5,3,0),0) -> 0 | FI18: =IF(AND(FI$3<>"",DS18<>0),HLOOKUP(FI$4,'Agency cashability'!$B$3:$U$5,3,0),0) -> 0 | FJ18: =IF(AND(FJ$3<>"",DT18<>0),HLOOKUP(FJ$4,'Agency cashability'!$B$3:$U$5,3,0),0) -> 0 | FK18: =IF(AND(FK$3<>"",DU18<>0),HLOOKUP(FK$4,'Agency cashability'!$B$3:$U$5,3,0),0) -> 0 | FL18: =IF(AND(FL$3<>"",DV18<>0),HLOOKUP(FL$4,'Agency cashability'!$B$3:$U$5,3,0),0) -> 0 | FM18: =IF(AND(FM$3<>"",DW18<>0),HLOOKUP(FM$4,'Agency cashability'!$B$3:$U$5,3,0),0) -> 0 | FN18: =IF(AND(FN$3<>"",DX18<>0),HLOOKUP(FN$4,'Agency cashability'!$B$3:$U$5,3,0),0) -> 0 | FO18: =IF(AND(FO$3<>"",DY18<>0),HLOOKUP(FO$4,'Agency cashability'!$B$3:$U$5,3,0),0) -> 0 | FP18: =IF(AND(FP$3<>"",DZ18<>0),HLOOKUP(FP$4,'Agency cashability'!$B$3:$U$5,3,0),0) -> 0 | FR18: 0 | FS18: 0 | FT18: 0 | FU18: 0 | FV18: 0 | FW18: 0 | FX18: 0 | FY18: 0 | FZ18: 0 | GA18: 0 | GB18: 0 | GM18: =IF((GM$3<>""),EB18*FR18,"") -> 0 | GN18: 0 | GO18: 0 | GP18: 0 | GQ18: 0 | GR18: 0 | GS18: 0 | GT18: 0 | GU18: 0 | GV18: 0 | GW18: 0 | HJ18: =IF((HJ$3<>""),EW18*FR18,"") -> 0 | HK18: 0 | HL18: 0 | HM18: 0 | HN18: 0 | HO18: 0 | HP18: 0 | HQ18: 0 | HR18: 0 | HS18: 0 | HT18: 0
A19: B9d | B19: Reduced incidents of crime - sexual offences | C19: No | D19: Reduced police, other criminal justice costs, health costs per actual crime (N.B. Use multipliers to convert from recorded crime or convictions) | E19: Police, CJS, NHS | R19: ='Cost of crime analysis'!S13 -> 3596.814709 | S19: 3596.814709 | T19: ='Cost of crime analysis'!T13 -> 5255.8307 | U19: ='Cost of crime analysis'!U13 -> 28283.78125 | V19: 37136.42666 | W19: 2010-11 | X19: =VLOOKUP(W19,'GDP Deflators'!$B$8:$C$72,2,0)*100/VLOOKUP('Model constants'!$B$3,'GDP Deflators'!$B$8:$C$72,2,0) -> 90.71467399 | Y19: 'Figures derived from 'Revisions made to the multipliers and unit costs of crime used in the Integrated Offender Management Value for Money Toolkit, 2011 | AA19: 0 | AB19: 0 | BE19: 0 | BF19: 0 | BG19: 0 | BH19: 0 | BI19: 0 | BJ19: 0 | BK19: 0 | BL19: 0 | BM19: 0 | BN19: 0 | BO19: 0 | BP19: 0 | BQ19: 0 | BR19: 0 | BS19: 0 | BT19: 0 | BU19: 0 | BV19: 0 | BW19: 0 | BX19: 0 | BY19: 0 | BZ19: 0 | CA19: 0 | CB19: 0 | CC19: 0 | CD19: 0 | CF19: 0 | CG19: 0 | CH19: 0 | CI19: 0 | CJ19: 0 | CK19: 0 | CL19: 0 | CM19: 0 | CN19: 0 | CO19: 0 | CP19: 0 | CQ19: 0 | CR19: 0 | CS19: 0 | CT19: 0 | CU19: 0 | CV19: 0 | CW19: 0 | CX19: 0 | CY19: 0 | CZ19: 0 | DA19: 0 | DB19: 0 | DC19: 0 | DD19: 0 | DE19: 0 | DG19: =IF(DG$3<>"",VLOOKUP($A19,'Agency percentages'!$A$5:$X$69,(3+MATCH(DG$4,'Agency percentages'!$D$4:$W$4,0)),FALSE),"") -> 0 | DH19: =IF(DH$3<>"",VLOOKUP($A19,'Agency percentages'!$A$5:$X$69,(3+MATCH(DH$4,'Agency percentages'!$D$4:$W$4,0)),FALSE),"") -> 0.3018740394 | DI19: =IF(DI$3<>"",VLOOKUP($A19,'Agency percentages'!$A$5:$X$69,(3+MATCH(DI$4,'Agency percentages'!$D$4:$W$4,0)),FALSE),"") -> 0.31993634 | DJ19: =IF(DJ$3<>"",VLOOKUP($A19,'Agency percentages'!$A$5:$X$69,(3+MATCH(DJ$4,'Agency percentages'!$D$4:$W$4,0)),FALSE),"") -> 0.01091646305 | DK19: =IF(DK$3<>"",VLOOKUP($A19,'Agency percentages'!$A$5:$X$69,(3+MATCH(DK$4,'Agency percentages'!$D$4:$W$4,0)),FALSE),"") -> 0.148631843 | DL19: =IF(DL$3<>"",VLOOKUP($A19,'Agency percentages'!$A$5:$X$69,(3+MATCH(DL$4,'Agency percentages'!$D$4:$W$4,0)),FALSE),"") -> 0.1509410948 | DM19: =IF(DM$3<>"",VLOOKUP($A19,'Agency percentages'!$A$5:$X$69,(3+MATCH(DM$4,'Agency percentages'!$D$4:$W$4,0)),FALSE),"") -> 0.06770021973 | DN19: =IF(DN$3<>"",VLOOKUP($A19,'Agency percentages'!$A$5:$X$69,(3+MATCH(DN$4,'Agency percentages'!$D$4:$W$4,0)),FALSE),"") -> 0 | DO19: =IF(DO$3<>"",VLOOKUP($A19,'Agency percentages'!$A$5:$X$69,(3+MATCH(DO$4,'Agency percentages'!$D$4:$W$4,0)),FALSE),"") -> 0 | DP19: =IF(DP$3<>"",VLOOKUP($A19,'Agency percentages'!$A$5:$X$69,(3+MATCH(DP$4,'Agency percentages'!$D$4:$W$4,0)),FALSE),"") -> 0 | DQ19: =IF(DQ$3<>"",VLOOKUP($A19,'Agency percentages'!$A$5:$X$69,(3+MATCH(DQ$4,'Agency percentages'!$D$4:$W$4,0)),FALSE),"") -> 0 | DR19: =IF(DR$3<>"",VLOOKUP($A19,'Agency percentages'!$A$5:$X$69,(3+MATCH(DR$4,'Agency percentages'!$D$4:$W$4,0)),FALSE),"") ->  | DS19: =IF(DS$3<>"",VLOOKUP($A19,'Agency percentages'!$A$5:$X$69,(3+MATCH(DS$4,'Agency percentages'!$D$4:$W$4,0)),FALSE),"") ->  | DT19: =IF(DT$3<>"",VLOOKUP($A19,'Agency percentages'!$A$5:$X$69,(3+MATCH(DT$4,'Agency percentages'!$D$4:$W$4,0)),FALSE),"") ->  | DU19: =IF(DU$3<>"",VLOOKUP($A19,'Agency percentages'!$A$5:$X$69,(3+MATCH(DU$4,'Agency percentages'!$D$4:$W$4,0)),FALSE),"") ->  | DV19: =IF(DV$3<>"",VLOOKUP($A19,'Agency percentages'!$A$5:$X$69,(3+MATCH(DV$4,'Agency percentages'!$D$4:$W$4,0)),FALSE),"") ->  | DW19: =IF(DW$3<>"",VLOOKUP($A19,'Agency percentages'!$A$5:$X$69,(3+MATCH(DW$4,'Agency percentages'!$D$4:$W$4,0)),FALSE),"") ->  | DX19: =IF(DX$3<>"",VLOOKUP($A19,'Agency percentages'!$A$5:$X$69,(3+MATCH(DX$4,'Agency percentages'!$D$4:$W$4,0)),FALSE),"") ->  | DY19: =IF(DY$3<>"",VLOOKUP($A19,'Agency percentages'!$A$5:$X$69,(3+MATCH(DY$4,'Agency percentages'!$D$4:$W$4,0)),FALSE),"") ->  | DZ19: =IF(DZ$3<>"",VLOOKUP($A19,'Agency percentages'!$A$5:$X$69,(3+MATCH(DZ$4,'Agency percentages'!$D$4:$W$4,0)),FALSE),"") ->  | EB19: =IF(AND(EB$3<>"",DG19<>0),HLOOKUP(EB$4,'Agency cashability'!$B$3:$U$5,2,0),0) -> 0 | EC19: =IF(AND(EC$3<>"",DH19<>0),HLOOKUP(EC$4,'Agency cashability'!$B$3:$U$5,2,0),0) -> 0.2 | ED19: =IF(AND(ED$3<>"",DI19<>0),HLOOKUP(ED$4,'Agency cashability'!$B$3:$U$5,2,0),0) -> 0.3 | EE19: =IF(AND(EE$3<>"",DJ19<>0),HLOOKUP(EE$4,'Agency cashability'!$B$3:$U$5,2,0),0) -> 0.2 | EF19: =IF(AND(EF$3<>"",DK19<>0),HLOOKUP(EF$4,'Agency cashability'!$B$3:$U$5,2,0),0) -> 0.2 | EG19: =IF(AND(EG$3<>"",DL19<>0),HLOOKUP(EG$4,'Agency cashability'!$B$3:$U$5,2,0),0) -> 0.2 | EH19: =IF(AND(EH$3<>"",DM19<>0),HLOOKUP(EH$4,'Agency cashability'!$B$3:$U$5,2,0),0) -> 0.2 | EI19: =IF(AND(EI$3<>"",DN19<>0),HLOOKUP(EI$4,'Agency cashability'!$B$3:$U$5,2,0),0) -> 0 | EJ19: =IF(AND(EJ$3<>"",DO19<>0),HLOOKUP(EJ$4,'Agency cashability'!$B$3:$U$5,2,0),0) -> 0 | EK19: =IF(AND(EK$3<>"",DP19<>0),HLOOKUP(EK$4,'Agency cashability'!$B$3:$U$5,2,0),0) -> 0 | EL19: =IF(AND(EL$3<>"",DQ19<>0),HLOOKUP(EL$4,'Agency cashability'!$B$3:$U$5,2,0),0) -> 0 | EM19: =IF(AND(EM$3<>"",DR19<>0),HLOOKUP(EM$4,'Agency cashability'!$B$3:$U$5,2,0),0) -> 0 | EN19: =IF(AND(EN$3<>"",DS19<>0),HLOOKUP(EN$4,'Agency cashability'!$B$3:$U$5,2,0),0) -> 0 | EO19: =IF(AND(EO$3<>"",DT19<>0),HLOOKUP(EO$4,'Agency cashability'!$B$3:$U$5,2,0),0) -> 0 | EP19: =IF(AND(EP$3<>"",DU19<>0),HLOOKUP(EP$4,'Agency cashability'!$B$3:$U$5,2,0),0) -> 0 | EQ19: =IF(AND(EQ$3<>"",DV19<>0),HLOOKUP(EQ$4,'Agency cashability'!$B$3:$U$5,2,0),0) -> 0 | ER19: =IF(AND(ER$3<>"",DW19<>0),HLOOKUP(ER$4,'Agency cashability'!$B$3:$U$5,2,0),0) -> 0 | ES19: =IF(AND(ES$3<>"",DX19<>0),HLOOKUP(ES$4,'Agency cashability'!$B$3:$U$5,2,0),0) -> 0 | ET19: =IF(AND(ET$3<>"",DY19<>0),HLOOKUP(ET$4,'Agency cashability'!$B$3:$U$5,2,0),0) -> 0 | EU19: =IF(AND(EU$3<>"",DZ19<>0),HLOOKUP(EU$4,'Agency cashability'!$B$3:$U$5,2,0),0) -> 0 | EW19: =IF(AND(EW$3<>"",DG19<>0),HLOOKUP(EW$4,'Agency cashability'!$B$3:$U$5,3,0),0) -> 0 | EX19: =IF(AND(EX$3<>"",DH19<>0),HLOOKUP(EX$4,'Agency cashability'!$B$3:$U$5,3,0),0) -> 0.5 | EY19: =IF(AND(EY$3<>"",DI19<>0),HLOOKUP(EY$4,'Agency cashability'!$B$3:$U$5,3,0),0) -> 0.6 | EZ19: =IF(AND(EZ$3<>"",DJ19<>0),HLOOKUP(EZ$4,'Agency cashability'!$B$3:$U$5,3,0),0) -> 0.5 | FA19: =IF(AND(FA$3<>"",DK19<>0),HLOOKUP(FA$4,'Agency cashability'!$B$3:$U$5,3,0),0) -> 0.5 | FB19: =IF(AND(FB$3<>"",DL19<>0),HLOOKUP(FB$4,'Agency cashability'!$B$3:$U$5,3,0),0) -> 0.5 | FC19: =IF(AND(FC$3<>"",DM19<>0),HLOOKUP(FC$4,'Agency cashability'!$B$3:$U$5,3,0),0) -> 0.5 | FD19: =IF(AND(FD$3<>"",DN19<>0),HLOOKUP(FD$4,'Agency cashability'!$B$3:$U$5,3,0),0) -> 0 | FE19: =IF(AND(FE$3<>"",DO19<>0),HLOOKUP(FE$4,'Agency cashability'!$B$3:$U$5,3,0),0) -> 0 | FF19: =IF(AND(FF$3<>"",DP19<>0),HLOOKUP(FF$4,'Agency cashability'!$B$3:$U$5,3,0),0) -> 0 | FG19: =IF(AND(FG$3<>"",DQ19<>0),HLOOKUP(FG$4,'Agency cashability'!$B$3:$U$5,3,0),0) -> 0 | FH19: =IF(AND(FH$3<>"",DR19<>0),HLOOKUP(FH$4,'Agency cashability'!$B$3:$U$5,3,0),0) -> 0 | FI19: =IF(AND(FI$3<>"",DS19<>0),HLOOKUP(FI$4,'Agency cashability'!$B$3:$U$5,3,0),0) -> 0 | FJ19: =IF(AND(FJ$3<>"",DT19<>0),HLOOKUP(FJ$4,'Agency cashability'!$B$3:$U$5,3,0),0) -> 0 | FK19: =IF(AND(FK$3<>"",DU19<>0),HLOOKUP(FK$4,'Agency cashability'!$B$3:$U$5,3,0),0) -> 0 | FL19: =IF(AND(FL$3<>"",DV19<>0),HLOOKUP(FL$4,'Agency cashability'!$B$3:$U$5,3,0),0) -> 0 | FM19: =IF(AND(FM$3<>"",DW19<>0),HLOOKUP(FM$4,'Agency cashability'!$B$3:$U$5,3,0),0) -> 0 | FN19: =IF(AND(FN$3<>"",DX19<>0),HLOOKUP(FN$4,'Agency cashability'!$B$3:$U$5,3,0),0) -> 0 | FO19: =IF(AND(FO$3<>"",DY19<>0),HLOOKUP(FO$4,'Agency cashability'!$B$3:$U$5,3,0),0) -> 0 | FP19: =IF(AND(FP$3<>"",DZ19<>0),HLOOKUP(FP$4,'Agency cashability'!$B$3:$U$5,3,0),0) -> 0 | FR19: 0 | FS19: 0 | FT19: 0 | FU19: 0 | FV19: 0 | FW19: 0 | FX19: 0 | FY19: 0 | FZ19: 0 | GA19: 0 | GB19: 0 | GM19: =IF((GM$3<>""),EB19*FR19,"") -> 0 | GN19: 0 | GO19: 0 | GP19: 0 | GQ19: 0 | GR19: 0 | GS19: 0 | GT19: 0 | GU19: 0 | GV19: 0 | GW19: 0 | HJ19: =IF((HJ$3<>""),EW19*FR19,"") -> 0 | HK19: 0 | HL19: 0 | HM19: 0 | HN19: 0 | HO19: 0 | HP19: 0 | HQ19: 0 | HR19: 0 | HS19: 0 | HT19: 0
A20: B9e | B20: Reduced incidents of crime - common assault | C20: No | D20: Reduced police, other criminal justice costs, health costs per actual crime (N.B. Use multipliers to convert from recorded crime or convictions) | E20: Police, CJS, NHS | R20: ='Cost of crime analysis'!S14 -> 455.1345011 | S20: 455.1345011 | T20: ='Cost of crime analysis'!T14 -> 318.8312 | U20: ='Cost of crime analysis'!U14 -> 979.510127 | V20: 1753.475828 | W20: 2010-11 | X20: =VLOOKUP(W20,'GDP Deflators'!$B$8:$C$72,2,0)*100/VLOOKUP('Model constants'!$B$3,'GDP Deflators'!$B$8:$C$72,2,0) -> 90.71467399 | Y20: 'Figures derived from 'Revisions made to the multipliers and unit costs of crime used in the Integrated Offender Management Value for Money Toolkit, 2011 | AA20: 0 | AB20: 0 | BE20: 0 | BF20: 0 | BG20: 0 | BH20: 0 | BI20: 0 | BJ20: 0 | BK20: 0 | BL20: 0 | BM20: 0 | BN20: 0 | BO20: 0 | BP20: 0 | BQ20: 0 | BR20: 0 | BS20: 0 | BT20: 0 | BU20: 0 | BV20: 0 | BW20: 0 | BX20: 0 | BY20: 0 | BZ20: 0 | CA20: 0 | CB20: 0 | CC20: 0 | CD20: 0 | CF20: 0 | CG20: 0 | CH20: 0 | CI20: 0 | CJ20: 0 | CK20: 0 | CL20: 0 | CM20: 0 | CN20: 0 | CO20: 0 | CP20: 0 | CQ20: 0 | CR20: 0 | CS20: 0 | CT20: 0 | CU20: 0 | CV20: 0 | CW20: 0 | CX20: 0 | CY20: 0 | CZ20: 0 | DA20: 0 | DB20: 0 | DC20: 0 | DD20: 0 | DE20: 0 | DG20: =IF(DG$3<>"",VLOOKUP($A20,'Agency percentages'!$A$5:$X$69,(3+MATCH(DG$4,'Agency percentages'!$D$4:$W$4,0)),FALSE),"") -> 0 | DH20: =IF(DH$3<>"",VLOOKUP($A20,'Agency percentages'!$A$5:$X$69,(3+MATCH(DH$4,'Agency percentages'!$D$4:$W$4,0)),FALSE),"") -> 0.3203125 | DI20: =IF(DI$3<>"",VLOOKUP($A20,'Agency percentages'!$A$5:$X$69,(3+MATCH(DI$4,'Agency percentages'!$D$4:$W$4,0)),FALSE),"") -> 0.3086853027 | DJ20: =IF(DJ$3<>"",VLOOKUP($A20,'Agency percentages'!$A$5:$X$69,(3+MATCH(DJ$4,'Agency percentages'!$D$4:$W$4,0)),FALSE),"") -> 0.04150390625 | DK20: =IF(DK$3<>"",VLOOKUP($A20,'Agency percentages'!$A$5:$X$69,(3+MATCH(DK$4,'Agency percentages'!$D$4:$W$4,0)),FALSE),"") -> 0.1686096191 | DL20: =IF(DL$3<>"",VLOOKUP($A20,'Agency percentages'!$A$5:$X$69,(3+MATCH(DL$4,'Agency percentages'!$D$4:$W$4,0)),FALSE),"") -> 0.03372192383 | DM20: =IF(DM$3<>"",VLOOKUP($A20,'Agency percentages'!$A$5:$X$69,(3+MATCH(DM$4,'Agency percentages'!$D$4:$W$4,0)),FALSE),"") -> 0.127166748 | DN20: =IF(DN$3<>"",VLOOKUP($A20,'Agency percentages'!$A$5:$X$69,(3+MATCH(DN$4,'Agency percentages'!$D$4:$W$4,0)),FALSE),"") -> 0 | DO20: =IF(DO$3<>"",VLOOKUP($A20,'Agency percentages'!$A$5:$X$69,(3+MATCH(DO$4,'Agency percentages'!$D$4:$W$4,0)),FALSE),"") -> 0 | DP20: =IF(DP$3<>"",VLOOKUP($A20,'Agency percentages'!$A$5:$X$69,(3+MATCH(DP$4,'Agency percentages'!$D$4:$W$4,0)),FALSE),"") -> 0 | DQ20: =IF(DQ$3<>"",VLOOKUP($A20,'Agency percentages'!$A$5:$X$69,(3+MATCH(DQ$4,'Agency percentages'!$D$4:$W$4,0)),FALSE),"") -> 0 | DR20: =IF(DR$3<>"",VLOOKUP($A20,'Agency percentages'!$A$5:$X$69,(3+MATCH(DR$4,'Agency percentages'!$D$4:$W$4,0)),FALSE),"") ->  | DS20: =IF(DS$3<>"",VLOOKUP($A20,'Agency percentages'!$A$5:$X$69,(3+MATCH(DS$4,'Agency percentages'!$D$4:$W$4,0)),FALSE),"") ->  | DT20: =IF(DT$3<>"",VLOOKUP($A20,'Agency percentages'!$A$5:$X$69,(3+MATCH(DT$4,'Agency percentages'!$D$4:$W$4,0)),FALSE),"") ->  | DU20: =IF(DU$3<>"",VLOOKUP($A20,'Agency percentages'!$A$5:$X$69,(3+MATCH(DU$4,'Agency percentages'!$D$4:$W$4,0)),FALSE),"") ->  | DV20: =IF(DV$3<>"",VLOOKUP($A20,'Agency percentages'!$A$5:$X$69,(3+MATCH(DV$4,'Agency percentages'!$D$4:$W$4,0)),FALSE),"") ->  | DW20: =IF(DW$3<>"",VLOOKUP($A20,'Agency percentages'!$A$5:$X$69,(3+MATCH(DW$4,'Agency percentages'!$D$4:$W$4,0)),FALSE),"") ->  | DX20: =IF(DX$3<>"",VLOOKUP($A20,'Agency percentages'!$A$5:$X$69,(3+MATCH(DX$4,'Agency percentages'!$D$4:$W$4,0)),FALSE),"") ->  | DY20: =IF(DY$3<>"",VLOOKUP($A20,'Agency percentages'!$A$5:$X$69,(3+MATCH(DY$4,'Agency percentages'!$D$4:$W$4,0)),FALSE),"") ->  | DZ20: =IF(DZ$3<>"",VLOOKUP($A20,'Agency percentages'!$A$5:$X$69,(3+MATCH(DZ$4,'Agency percentages'!$D$4:$W$4,0)),FALSE),"") ->  | EB20: =IF(AND(EB$3<>"",DG20<>0),HLOOKUP(EB$4,'Agency cashability'!$B$3:$U$5,2,0),0) -> 0 | EC20: =IF(AND(EC$3<>"",DH20<>0),HLOOKUP(EC$4,'Agency cashability'!$B$3:$U$5,2,0),0) -> 0.2 | ED20: =IF(AND(ED$3<>"",DI20<>0),HLOOKUP(ED$4,'Agency cashability'!$B$3:$U$5,2,0),0) -> 0.3 | EE20: =IF(AND(EE$3<>"",DJ20<>0),HLOOKUP(EE$4,'Agency cashability'!$B$3:$U$5,2,0),0) -> 0.2 | EF20: =IF(AND(EF$3<>"",DK20<>0),HLOOKUP(EF$4,'Agency cashability'!$B$3:$U$5,2,0),0) -> 0.2 | EG20: =IF(AND(EG$3<>"",DL20<>0),HLOOKUP(EG$4,'Agency cashability'!$B$3:$U$5,2,0),0) -> 0.2 | EH20: =IF(AND(EH$3<>"",DM20<>0),HLOOKUP(EH$4,'Agency cashability'!$B$3:$U$5,2,0),0) -> 0.2 | EI20: =IF(AND(EI$3<>"",DN20<>0),HLOOKUP(EI$4,'Agency cashability'!$B$3:$U$5,2,0),0) -> 0 | EJ20: =IF(AND(EJ$3<>"",DO20<>0),HLOOKUP(EJ$4,'Agency cashability'!$B$3:$U$5,2,0),0) -> 0 | EK20: =IF(AND(EK$3<>"",DP20<>0),HLOOKUP(EK$4,'Agency cashability'!$B$3:$U$5,2,0),0) -> 0 | EL20: =IF(AND(EL$3<>"",DQ20<>0),HLOOKUP(EL$4,'Agency cashability'!$B$3:$U$5,2,0),0) -> 0 | EM20: =IF(AND(EM$3<>"",DR20<>0),HLOOKUP(EM$4,'Agency cashability'!$B$3:$U$5,2,0),0) -> 0 | EN20: =IF(AND(EN$3<>"",DS20<>0),HLOOKUP(EN$4,'Agency cashability'!$B$3:$U$5,2,0),0) -> 0 | EO20: =IF(AND(EO$3<>"",DT20<>0),HLOOKUP(EO$4,'Agency cashability'!$B$3:$U$5,2,0),0) -> 0 | EP20: =IF(AND(EP$3<>"",DU20<>0),HLOOKUP(EP$4,'Agency cashability'!$B$3:$U$5,2,0),0) -> 0 | EQ20: =IF(AND(EQ$3<>"",DV20<>0),HLOOKUP(EQ$4,'Agency cashability'!$B$3:$U$5,2,0),0) -> 0 | ER20: =IF(AND(ER$3<>"",DW20<>0),HLOOKUP(ER$4,'Agency cashability'!$B$3:$U$5,2,0),0) -> 0 | ES20: =IF(AND(ES$3<>"",DX20<>0),HLOOKUP(ES$4,'Agency cashability'!$B$3:$U$5,2,0),0) -> 0 | ET20: =IF(AND(ET$3<>"",DY20<>0),HLOOKUP(ET$4,'Agency cashability'!$B$3:$U$5,2,0),0) -> 0 | EU20: =IF(AND(EU$3<>"",DZ20<>0),HLOOKUP(EU$4,'Agency cashability'!$B$3:$U$5,2,0),0) -> 0 | EW20: =IF(AND(EW$3<>"",DG20<>0),HLOOKUP(EW$4,'Agency cashability'!$B$3:$U$5,3,0),0) -> 0 | EX20: =IF(AND(EX$3<>"",DH20<>0),HLOOKUP(EX$4,'Agency cashability'!$B$3:$U$5,3,0),0) -> 0.5 | EY20: =IF(AND(EY$3<>"",DI20<>0),HLOOKUP(EY$4,'Agency cashability'!$B$3:$U$5,3,0),0) -> 0.6 | EZ20: =IF(AND(EZ$3<>"",DJ20<>0),HLOOKUP(EZ$4,'Agency cashability'!$B$3:$U$5,3,0),0) -> 0.5 | FA20: =IF(AND(FA$3<>"",DK20<>0),HLOOKUP(FA$4,'Agency cashability'!$B$3:$U$5,3,0),0) -> 0.5 | FB20: =IF(AND(FB$3<>"",DL20<>0),HLOOKUP(FB$4,'Agency cashability'!$B$3:$U$5,3,0),0) -> 0.5 | FC20: =IF(AND(FC$3<>"",DM20<>0),HLOOKUP(FC$4,'Agency cashability'!$B$3:$U$5,3,0),0) -> 0.5 | FD20: =IF(AND(FD$3<>"",DN20<>0),HLOOKUP(FD$4,'Agency cashability'!$B$3:$U$5,3,0),0) -> 0 | FE20: =IF(AND(FE$3<>"",DO20<>0),HLOOKUP(FE$4,'Agency cashability'!$B$3:$U$5,3,0),0) -> 0 | FF20: =IF(AND(FF$3<>"",DP20<>0),HLOOKUP(FF$4,'Agency cashability'!$B$3:$U$5,3,0),0) -> 0 | FG20: =IF(AND(FG$3<>"",DQ20<>0),HLOOKUP(FG$4,'Agency cashability'!$B$3:$U$5,3,0),0) -> 0 | FH20: =IF(AND(FH$3<>"",DR20<>0),HLOOKUP(FH$4,'Agency cashability'!$B$3:$U$5,3,0),0) -> 0 | FI20: =IF(AND(FI$3<>"",DS20<>0),HLOOKUP(FI$4,'Agency cashability'!$B$3:$U$5,3,0),0) -> 0 | FJ20: =IF(AND(FJ$3<>"",DT20<>0),HLOOKUP(FJ$4,'Agency cashability'!$B$3:$U$5,3,0),0) -> 0 | FK20: =IF(AND(FK$3<>"",DU20<>0),HLOOKUP(FK$4,'Agency cashability'!$B$3:$U$5,3,0),0) -> 0 | FL20: =IF(AND(FL$3<>"",DV20<>0),HLOOKUP(FL$4,'Agency cashability'!$B$3:$U$5,3,0),0) -> 0 | FM20: =IF(AND(FM$3<>"",DW20<>0),HLOOKUP(FM$4,'Agency cashability'!$B$3:$U$5,3,0),0) -> 0 | FN20: =IF(AND(FN$3<>"",DX20<>0),HLOOKUP(FN$4,'Agency cashability'!$B$3:$U$5,3,0),0) -> 0 | FO20: =IF(AND(FO$3<>"",DY20<>0),HLOOKUP(FO$4,'Agency cashability'!$B$3:$U$5,3,0),0) -> 0 | FP20: =IF(AND(FP$3<>"",DZ20<>0),HLOOKUP(FP$4,'Agency cashability'!$B$3:$U$5,3,0),0) -> 0 | FR20: 0 | FS20: 0 | FT20: 0 | FU20: 0 | FV20: 0 | FW20: 0 | FX20: 0 | FY20: 0 | FZ20: 0 | GA20: 0 | GB20: 0 | GM20: =IF((GM$3<>""),EB20*FR20,"") -> 0 | GN20: 0 | GO20: 0 | GP20: 0 | GQ20: 0 | GR20: 0 | GS20: 0 | GT20: 0 | GU20: 0 | GV20: 0 | GW20: 0 | HJ20: =IF((HJ$3<>""),EW20*FR20,"") -> 0 | HK20: 0 | HL20: 0 | HM20: 0 | HN20: 0 | HO20: 0 | HP20: 0 | HQ20: 0 | HR20: 0 | HS20: 0 | HT20: 0
A21: B9f | B21: Reduced incidents of crime - robbery | C21: No | D21: Reduced police, other criminal justice costs, health costs per actual crime (N.B. Use multipliers to convert from recorded crime or convictions) | E21: Police, CJS, NHS | R21: ='Cost of crime analysis'!S15 -> 3674.262899 | S21: 3674.262899 | T21: ='Cost of crime analysis'!T15 -> 1344.009811 | U21: ='Cost of crime analysis'!U15 -> 3788.76506 | V21: 8807.03777 | W21: 2010-11 | X21: =VLOOKUP(W21,'GDP Deflators'!$B$8:$C$72,2,0)*100/VLOOKUP('Model constants'!$B$3,'GDP Deflators'!$B$8:$C$72,2,0) -> 90.71467399 | Y21: 'Figures derived from 'Revisions made to the multipliers and unit costs of crime used in the Integrated Offender Management Value for Money Toolkit, 2011 | AA21: 0 | AB21: 0 | BE21: 0 | BF21: 0 | BG21: 0 | BH21: 0 | BI21: 0 | BJ21: 0 | BK21: 0 | BL21: 0 | BM21: 0 | BN21: 0 | BO21: 0 | BP21: 0 | BQ21: 0 | BR21: 0 | BS21: 0 | BT21: 0 | BU21: 0 | BV21: 0 | BW21: 0 | BX21: 0 | BY21: 0 | BZ21: 0 | CA21: 0 | CB21: 0 | CC21: 0 | CD21: 0 | CF21: 0 | CG21: 0 | CH21: 0 | CI21: 0 | CJ21: 0 | CK21: 0 | CL21: 0 | CM21: 0 | CN21: 0 | CO21: 0 | CP21: 0 | CQ21: 0 | CR21: 0 | CS21: 0 | CT21: 0 | CU21: 0 | CV21: 0 | CW21: 0 | CX21: 0 | CY21: 0 | CZ21: 0 | DA21: 0 | DB21: 0 | DC21: 0 | DD21: 0 | DE21: 0 | DG21: =IF(DG$3<>"",VLOOKUP($A21,'Agency percentages'!$A$5:$X$69,(3+MATCH(DG$4,'Agency percentages'!$D$4:$W$4,0)),FALSE),"") -> 0 | DH21: =IF(DH$3<>"",VLOOKUP($A21,'Agency percentages'!$A$5:$X$69,(3+MATCH(DH$4,'Agency percentages'!$D$4:$W$4,0)),FALSE),"") -> 0.1558064516 | DI21: =IF(DI$3<>"",VLOOKUP($A21,'Agency percentages'!$A$5:$X$69,(3+MATCH(DI$4,'Agency percentages'!$D$4:$W$4,0)),FALSE),"") -> 0.2834437563 | DJ21: =IF(DJ$3<>"",VLOOKUP($A21,'Agency percentages'!$A$5:$X$69,(3+MATCH(DJ$4,'Agency percentages'!$D$4:$W$4,0)),FALSE),"") -> 0.02582631037 | DK21: =IF(DK$3<>"",VLOOKUP($A21,'Agency percentages'!$A$5:$X$69,(3+MATCH(DK$4,'Agency percentages'!$D$4:$W$4,0)),FALSE),"") -> 0.15269806 | DL21: =IF(DL$3<>"",VLOOKUP($A21,'Agency percentages'!$A$5:$X$69,(3+MATCH(DL$4,'Agency percentages'!$D$4:$W$4,0)),FALSE),"") -> 0.2747273765 | DM21: =IF(DM$3<>"",VLOOKUP($A21,'Agency percentages'!$A$5:$X$69,(3+MATCH(DM$4,'Agency percentages'!$D$4:$W$4,0)),FALSE),"") -> 0.1074980452 | DN21: =IF(DN$3<>"",VLOOKUP($A21,'Agency percentages'!$A$5:$X$69,(3+MATCH(DN$4,'Agency percentages'!$D$4:$W$4,0)),FALSE),"") -> 0 | DO21: =IF(DO$3<>"",VLOOKUP($A21,'Agency percentages'!$A$5:$X$69,(3+MATCH(DO$4,'Agency percentages'!$D$4:$W$4,0)),FALSE),"") -> 0 | DP21: =IF(DP$3<>"",VLOOKUP($A21,'Agency percentages'!$A$5:$X$69,(3+MATCH(DP$4,'Agency percentages'!$D$4:$W$4,0)),FALSE),"") -> 0 | DQ21: =IF(DQ$3<>"",VLOOKUP($A21,'Agency percentages'!$A$5:$X$69,(3+MATCH(DQ$4,'Agency percentages'!$D$4:$W$4,0)),FALSE),"") -> 0 | DR21: =IF(DR$3<>"",VLOOKUP($A21,'Agency percentages'!$A$5:$X$69,(3+MATCH(DR$4,'Agency percentages'!$D$4:$W$4,0)),FALSE),"") ->  | DS21: =IF(DS$3<>"",VLOOKUP($A21,'Agency percentages'!$A$5:$X$69,(3+MATCH(DS$4,'Agency percentages'!$D$4:$W$4,0)),FALSE),"") ->  | DT21: =IF(DT$3<>"",VLOOKUP($A21,'Agency percentages'!$A$5:$X$69,(3+MATCH(DT$4,'Agency percentages'!$D$4:$W$4,0)),FALSE),"") ->  | DU21: =IF(DU$3<>"",VLOOKUP($A21,'Agency percentages'!$A$5:$X$69,(3+MATCH(DU$4,'Agency percentages'!$D$4:$W$4,0)),FALSE),"") ->  | DV21: =IF(DV$3<>"",VLOOKUP($A21,'Agency percentages'!$A$5:$X$69,(3+MATCH(DV$4,'Agency percentages'!$D$4:$W$4,0)),FALSE),"") ->  | DW21: =IF(DW$3<>"",VLOOKUP($A21,'Agency percentages'!$A$5:$X$69,(3+MATCH(DW$4,'Agency percentages'!$D$4:$W$4,0)),FALSE),"") ->  | DX21: =IF(DX$3<>"",VLOOKUP($A21,'Agency percentages'!$A$5:$X$69,(3+MATCH(DX$4,'Agency percentages'!$D$4:$W$4,0)),FALSE),"") ->  | DY21: =IF(DY$3<>"",VLOOKUP($A21,'Agency percentages'!$A$5:$X$69,(3+MATCH(DY$4,'Agency percentages'!$D$4:$W$4,0)),FALSE),"") ->  | DZ21: =IF(DZ$3<>"",VLOOKUP($A21,'Agency percentages'!$A$5:$X$69,(3+MATCH(DZ$4,'Agency percentages'!$D$4:$W$4,0)),FALSE),"") ->  | EB21: =IF(AND(EB$3<>"",DG21<>0),HLOOKUP(EB$4,'Agency cashability'!$B$3:$U$5,2,0),0) -> 0 | EC21: =IF(AND(EC$3<>"",DH21<>0),HLOOKUP(EC$4,'Agency cashability'!$B$3:$U$5,2,0),0) -> 0.2 | ED21: =IF(AND(ED$3<>"",DI21<>0),HLOOKUP(ED$4,'Agency cashability'!$B$3:$U$5,2,0),0) -> 0.3 | EE21: =IF(AND(EE$3<>"",DJ21<>0),HLOOKUP(EE$4,'Agency cashability'!$B$3:$U$5,2,0),0) -> 0.2 | EF21: =IF(AND(EF$3<>"",DK21<>0),HLOOKUP(EF$4,'Agency cashability'!$B$3:$U$5,2,0),0) -> 0.2 | EG21: =IF(AND(EG$3<>"",DL21<>0),HLOOKUP(EG$4,'Agency cashability'!$B$3:$U$5,2,0),0) -> 0.2 | EH21: =IF(AND(EH$3<>"",DM21<>0),HLOOKUP(EH$4,'Agency cashability'!$B$3:$U$5,2,0),0) -> 0.2 | EI21: =IF(AND(EI$3<>"",DN21<>0),HLOOKUP(EI$4,'Agency cashability'!$B$3:$U$5,2,0),0) -> 0 | EJ21: =IF(AND(EJ$3<>"",DO21<>0),HLOOKUP(EJ$4,'Agency cashability'!$B$3:$U$5,2,0),0) -> 0 | EK21: =IF(AND(EK$3<>"",DP21<>0),HLOOKUP(EK$4,'Agency cashability'!$B$3:$U$5,2,0),0) -> 0 | EL21: =IF(AND(EL$3<>"",DQ21<>0),HLOOKUP(EL$4,'Agency cashability'!$B$3:$U$5,2,0),0) -> 0 | EM21: =IF(AND(EM$3<>"",DR21<>0),HLOOKUP(EM$4,'Agency cashability'!$B$3:$U$5,2,0),0) -> 0 | EN21: =IF(AND(EN$3<>"",DS21<>0),HLOOKUP(EN$4,'Agency cashability'!$B$3:$U$5,2,0),0) -> 0 | EO21: =IF(AND(EO$3<>"",DT21<>0),HLOOKUP(EO$4,'Agency cashability'!$B$3:$U$5,2,0),0) -> 0 | EP21: =IF(AND(EP$3<>"",DU21<>0),HLOOKUP(EP$4,'Agency cashability'!$B$3:$U$5,2,0),0) -> 0 | EQ21: =IF(AND(EQ$3<>"",DV21<>0),HLOOKUP(EQ$4,'Agency cashability'!$B$3:$U$5,2,0),0) -> 0 | ER21: =IF(AND(ER$3<>"",DW21<>0),HLOOKUP(ER$4,'Agency cashability'!$B$3:$U$5,2,0),0) -> 0 | ES21: =IF(AND(ES$3<>"",DX21<>0),HLOOKUP(ES$4,'Agency cashability'!$B$3:$U$5,2,0),0) -> 0 | ET21: =IF(AND(ET$3<>"",DY21<>0),HLOOKUP(ET$4,'Agency cashability'!$B$3:$U$5,2,0),0) -> 0 | EU21: =IF(AND(EU$3<>"",DZ21<>0),HLOOKUP(EU$4,'Agency cashability'!$B$3:$U$5,2,0),0) -> 0 | EW21: =IF(AND(EW$3<>"",DG21<>0),HLOOKUP(EW$4,'Agency cashability'!$B$3:$U$5,3,0),0) -> 0 | EX21: =IF(AND(EX$3<>"",DH21<>0),HLOOKUP(EX$4,'Agency cashability'!$B$3:$U$5,3,0),0) -> 0.5 | EY21: =IF(AND(EY$3<>"",DI21<>0),HLOOKUP(EY$4,'Agency cashability'!$B$3:$U$5,3,0),0) -> 0.6 | EZ21: =IF(AND(EZ$3<>"",DJ21<>0),HLOOKUP(EZ$4,'Agency cashability'!$B$3:$U$5,3,0),0) -> 0.5 | FA21: =IF(AND(FA$3<>"",DK21<>0),HLOOKUP(FA$4,'Agency cashability'!$B$3:$U$5,3,0),0) -> 0.5 | FB21: =IF(AND(FB$3<>"",DL21<>0),HLOOKUP(FB$4,'Agency cashability'!$B$3:$U$5,3,0),0) -> 0.5 | FC21: =IF(AND(FC$3<>"",DM21<>0),HLOOKUP(FC$4,'Agency cashability'!$B$3:$U$5,3,0),0) -> 0.5 | FD21: =IF(AND(FD$3<>"",DN21<>0),HLOOKUP(FD$4,'Agency cashability'!$B$3:$U$5,3,0),0) -> 0 | FE21: =IF(AND(FE$3<>"",DO21<>0),HLOOKUP(FE$4,'Agency cashability'!$B$3:$U$5,3,0),0) -> 0 | FF21: =IF(AND(FF$3<>"",DP21<>0),HLOOKUP(FF$4,'Agency cashability'!$B$3:$U$5,3,0),0) -> 0 | FG21: =IF(AND(FG$3<>"",DQ21<>0),HLOOKUP(FG$4,'Agency cashability'!$B$3:$U$5,3,0),0) -> 0 | FH21: =IF(AND(FH$3<>"",DR21<>0),HLOOKUP(FH$4,'Agency cashability'!$B$3:$U$5,3,0),0) -> 0 | FI21: =IF(AND(FI$3<>"",DS21<>0),HLOOKUP(FI$4,'Agency cashability'!$B$3:$U$5,3,0),0) -> 0 | FJ21: =IF(AND(FJ$3<>"",DT21<>0),HLOOKUP(FJ$4,'Agency cashability'!$B$3:$U$5,3,0),0) -> 0 | FK21: =IF(AND(FK$3<>"",DU21<>0),HLOOKUP(FK$4,'Agency cashability'!$B$3:$U$5,3,0),0) -> 0 | FL21: =IF(AND(FL$3<>"",DV21<>0),HLOOKUP(FL$4,'Agency cashability'!$B$3:$U$5,3,0),0) -> 0 | FM21: =IF(AND(FM$3<>"",DW21<>0),HLOOKUP(FM$4,'Agency cashability'!$B$3:$U$5,3,0),0) -> 0 | FN21: =IF(AND(FN$3<>"",DX21<>0),HLOOKUP(FN$4,'Agency cashability'!$B$3:$U$5,3,0),0) -> 0 | FO21: =IF(AND(FO$3<>"",DY21<>0),HLOOKUP(FO$4,'Agency cashability'!$B$3:$U$5,3,0),0) -> 0 | FP21: =IF(AND(FP$3<>"",DZ21<>0),HLOOKUP(FP$4,'Agency cashability'!$B$3:$U$5,3,0),0) -> 0 | FR21: 0 | FS21: 0 | FT21: 0 | FU21: 0 | FV21: 0 | FW21: 0 | FX21: 0 | FY21: 0 | FZ21: 0 | GA21: 0 | GB21: 0 | GM21: =IF((GM$3<>""),EB21*FR21,"") -> 0 | GN21: 0 | GO21: 0 | GP21: 0 | GQ21: 0 | GR21: 0 | GS21: 0 | GT21: 0 | GU21: 0 | GV21: 0 | GW21: 0 | HJ21: =IF((HJ$3<>""),EW21*FR21,"") -> 0 | HK21: 0 | HL21: 0 | HM21: 0 | HN21: 0 | HO21: 0 | HP21: 0 | HQ21: 0 | HR21: 0 | HS21: 0 | HT21: 0
A22: B9g | B22: Reduced incidents of crime - burglary in a dwelling | C22: No | D22: Reduced police, other criminal justice costs, health costs per actual crime (N.B. Use multipliers to convert from recorded crime or convictions) | E22: Police, CJS, NHS | R22: ='Cost of crime analysis'!S16 -> 1360.662519 | S22: 1360.662519 | T22: ='Cost of crime analysis'!T16 -> 1746.258631 | U22: ='Cost of crime analysis'!U16 -> 802.9994188 | V22: 3909.920569 | W22: 2010-11 | X22: =VLOOKUP(W22,'GDP Deflators'!$B$8:$C$72,2,0)*100/VLOOKUP('Model constants'!$B$3,'GDP Deflators'!$B$8:$C$72,2,0) -> 90.71467399 | Y22: 'Figures derived from 'Revisions made to the multipliers and unit costs of crime used in the Integrated Offender Management Value for Money Toolkit, 2011 | AA22: 0 | AB22: 0 | BE22: 0 | BF22: 0 | BG22: 0 | BH22: 0 | BI22: 0 | BJ22: 0 | BK22: 0 | BL22: 0 | BM22: 0 | BN22: 0 | BO22: 0 | BP22: 0 | BQ22: 0 | BR22: 0 | BS22: 0 | BT22: 0 | BU22: 0 | BV22: 0 | BW22: 0 | BX22: 0 | BY22: 0 | BZ22: 0 | CA22: 0 | CB22: 0 | CC22: 0 | CD22: 0 | CF22: 0 | CG22: 0 | CH22: 0 | CI22: 0 | CJ22: 0 | CK22: 0 | CL22: 0 | CM22: 0 | CN22: 0 | CO22: 0 | CP22: 0 | CQ22: 0 | CR22: 0 | CS22: 0 | CT22: 0 | CU22: 0 | CV22: 0 | CW22: 0 | CX22: 0 | CY22: 0 | CZ22: 0 | DA22: 0 | DB22: 0 | DC22: 0 | DD22: 0 | DE22: 0 | DG22: =IF(DG$3<>"",VLOOKUP($A22,'Agency percentages'!$A$5:$X$69,(3+MATCH(DG$4,'Agency percentages'!$D$4:$W$4,0)),FALSE),"") -> 0 | DH22: =IF(DH$3<>"",VLOOKUP($A22,'Agency percentages'!$A$5:$X$69,(3+MATCH(DH$4,'Agency percentages'!$D$4:$W$4,0)),FALSE),"") -> 0 | DI22: =IF(DI$3<>"",VLOOKUP($A22,'Agency percentages'!$A$5:$X$69,(3+MATCH(DI$4,'Agency percentages'!$D$4:$W$4,0)),FALSE),"") -> 0.5017421603 | DJ22: =IF(DJ$3<>"",VLOOKUP($A22,'Agency percentages'!$A$5:$X$69,(3+MATCH(DJ$4,'Agency percentages'!$D$4:$W$4,0)),FALSE),"") -> 0.05923344948 | DK22: =IF(DK$3<>"",VLOOKUP($A22,'Agency percentages'!$A$5:$X$69,(3+MATCH(DK$4,'Agency percentages'!$D$4:$W$4,0)),FALSE),"") -> 0.09494773519 | DL22: =IF(DL$3<>"",VLOOKUP($A22,'Agency percentages'!$A$5:$X$69,(3+MATCH(DL$4,'Agency percentages'!$D$4:$W$4,0)),FALSE),"") -> 0.2691637631 | DM22: =IF(DM$3<>"",VLOOKUP($A22,'Agency percentages'!$A$5:$X$69,(3+MATCH(DM$4,'Agency percentages'!$D$4:$W$4,0)),FALSE),"") -> 0.07491289199 | DN22: =IF(DN$3<>"",VLOOKUP($A22,'Agency percentages'!$A$5:$X$69,(3+MATCH(DN$4,'Agency percentages'!$D$4:$W$4,0)),FALSE),"") -> 0 | DO22: =IF(DO$3<>"",VLOOKUP($A22,'Agency percentages'!$A$5:$X$69,(3+MATCH(DO$4,'Agency percentages'!$D$4:$W$4,0)),FALSE),"") -> 0 | DP22: =IF(DP$3<>"",VLOOKUP($A22,'Agency percentages'!$A$5:$X$69,(3+MATCH(DP$4,'Agency percentages'!$D$4:$W$4,0)),FALSE),"") -> 0 | DQ22: =IF(DQ$3<>"",VLOOKUP($A22,'Agency percentages'!$A$5:$X$69,(3+MATCH(DQ$4,'Agency percentages'!$D$4:$W$4,0)),FALSE),"") -> 0 | DR22: =IF(DR$3<>"",VLOOKUP($A22,'Agency percentages'!$A$5:$X$69,(3+MATCH(DR$4,'Agency percentages'!$D$4:$W$4,0)),FALSE),"") ->  | DS22: =IF(DS$3<>"",VLOOKUP($A22,'Agency percentages'!$A$5:$X$69,(3+MATCH(DS$4,'Agency percentages'!$D$4:$W$4,0)),FALSE),"") ->  | DT22: =IF(DT$3<>"",VLOOKUP($A22,'Agency percentages'!$A$5:$X$69,(3+MATCH(DT$4,'Agency percentages'!$D$4:$W$4,0)),FALSE),"") ->  | DU22: =IF(DU$3<>"",VLOOKUP($A22,'Agency percentages'!$A$5:$X$69,(3+MATCH(DU$4,'Agency percentages'!$D$4:$W$4,0)),FALSE),"") ->  | DV22: =IF(DV$3<>"",VLOOKUP($A22,'Agency percentages'!$A$5:$X$69,(3+MATCH(DV$4,'Agency percentages'!$D$4:$W$4,0)),FALSE),"") ->  | DW22: =IF(DW$3<>"",VLOOKUP($A22,'Agency percentages'!$A$5:$X$69,(3+MATCH(DW$4,'Agency percentages'!$D$4:$W$4,0)),FALSE),"") ->  | DX22: =IF(DX$3<>"",VLOOKUP($A22,'Agency percentages'!$A$5:$X$69,(3+MATCH(DX$4,'Agency percentages'!$D$4:$W$4,0)),FALSE),"") ->  | DY22: =IF(DY$3<>"",VLOOKUP($A22,'Agency percentages'!$A$5:$X$69,(3+MATCH(DY$4,'Agency percentages'!$D$4:$W$4,0)),FALSE),"") ->  | DZ22: =IF(DZ$3<>"",VLOOKUP($A22,'Agency percentages'!$A$5:$X$69,(3+MATCH(DZ$4,'Agency percentages'!$D$4:$W$4,0)),FALSE),"") ->  | EB22: =IF(AND(EB$3<>"",DG22<>0),HLOOKUP(EB$4,'Agency cashability'!$B$3:$U$5,2,0),0) -> 0 | EC22: =IF(AND(EC$3<>"",DH22<>0),HLOOKUP(EC$4,'Agency cashability'!$B$3:$U$5,2,0),0) -> 0 | ED22: =IF(AND(ED$3<>"",DI22<>0),HLOOKUP(ED$4,'Agency cashability'!$B$3:$U$5,2,0),0) -> 0.3 | EE22: =IF(AND(EE$3<>"",DJ22<>0),HLOOKUP(EE$4,'Agency cashability'!$B$3:$U$5,2,0),0) -> 0.2 | EF22: =IF(AND(EF$3<>"",DK22<>0),HLOOKUP(EF$4,'Agency cashability'!$B$3:$U$5,2,0),0) -> 0.2 | EG22: =IF(AND(EG$3<>"",DL22<>0),HLOOKUP(EG$4,'Agency cashability'!$B$3:$U$5,2,0),0) -> 0.2 | EH22: =IF(AND(EH$3<>"",DM22<>0),HLOOKUP(EH$4,'Agency cashability'!$B$3:$U$5,2,0),0) -> 0.2 | EI22: =IF(AND(EI$3<>"",DN22<>0),HLOOKUP(EI$4,'Agency cashability'!$B$3:$U$5,2,0),0) -> 0 | EJ22: =IF(AND(EJ$3<>"",DO22<>0),HLOOKUP(EJ$4,'Agency cashability'!$B$3:$U$5,2,0),0) -> 0 | EK22: =IF(AND(EK$3<>"",DP22<>0),HLOOKUP(EK$4,'Agency cashability'!$B$3:$U$5,2,0),0) -> 0 | EL22: =IF(AND(EL$3<>"",DQ22<>0),HLOOKUP(EL$4,'Agency cashability'!$B$3:$U$5,2,0),0) -> 0 | EM22: =IF(AND(EM$3<>"",DR22<>0),HLOOKUP(EM$4,'Agency cashability'!$B$3:$U$5,2,0),0) -> 0 | EN22: =IF(AND(EN$3<>"",DS22<>0),HLOOKUP(EN$4,'Agency cashability'!$B$3:$U$5,2,0),0) -> 0 | EO22: =IF(AND(EO$3<>"",DT22<>0),HLOOKUP(EO$4,'Agency cashability'!$B$3:$U$5,2,0),0) -> 0 | EP22: =IF(AND(EP$3<>"",DU22<>0),HLOOKUP(EP$4,'Agency cashability'!$B$3:$U$5,2,0),0) -> 0 | EQ22: =IF(AND(EQ$3<>"",DV22<>0),HLOOKUP(EQ$4,'Agency cashability'!$B$3:$U$5,2,0),0) -> 0 | ER22: =IF(AND(ER$3<>"",DW22<>0),HLOOKUP(ER$4,'Agency cashability'!$B$3:$U$5,2,0),0) -> 0 | ES22: =IF(AND(ES$3<>"",DX22<>0),HLOOKUP(ES$4,'Agency cashability'!$B$3:$U$5,2,0),0) -> 0 | ET22: =IF(AND(ET$3<>"",DY22<>0),HLOOKUP(ET$4,'Agency cashability'!$B$3:$U$5,2,0),0) -> 0 | EU22: =IF(AND(EU$3<>"",DZ22<>0),HLOOKUP(EU$4,'Agency cashability'!$B$3:$U$5,2,0),0) -> 0 | EW22: =IF(AND(EW$3<>"",DG22<>0),HLOOKUP(EW$4,'Agency cashability'!$B$3:$U$5,3,0),0) -> 0 | EX22: =IF(AND(EX$3<>"",DH22<>0),HLOOKUP(EX$4,'Agency cashability'!$B$3:$U$5,3,0),0) -> 0 | EY22: =IF(AND(EY$3<>"",DI22<>0),HLOOKUP(EY$4,'Agency cashability'!$B$3:$U$5,3,0),0) -> 0.6 | EZ22: =IF(AND(EZ$3<>"",DJ22<>0),HLOOKUP(EZ$4,'Agency cashability'!$B$3:$U$5,3,0),0) -> 0.5 | FA22: =IF(AND(FA$3<>"",DK22<>0),HLOOKUP(FA$4,'Agency cashability'!$B$3:$U$5,3,0),0) -> 0.5 | FB22: =IF(AND(FB$3<>"",DL22<>0),HLOOKUP(FB$4,'Agency cashability'!$B$3:$U$5,3,0),0) -> 0.5 | FC22: =IF(AND(FC$3<>"",DM22<>0),HLOOKUP(FC$4,'Agency cashability'!$B$3:$U$5,3,0),0) -> 0.5 | FD22: =IF(AND(FD$3<>"",DN22<>0),HLOOKUP(FD$4,'Agency cashability'!$B$3:$U$5,3,0),0) -> 0 | FE22: =IF(AND(FE$3<>"",DO22<>0),HLOOKUP(FE$4,'Agency cashability'!$B$3:$U$5,3,0),0) -> 0 | FF22: =IF(AND(FF$3<>"",DP22<>0),HLOOKUP(FF$4,'Agency cashability'!$B$3:$U$5,3,0),0) -> 0 | FG22: =IF(AND(FG$3<>"",DQ22<>0),HLOOKUP(FG$4,'Agency cashability'!$B$3:$U$5,3,0),0) -> 0 | FH22: =IF(AND(FH$3<>"",DR22<>0),HLOOKUP(FH$4,'Agency cashability'!$B$3:$U$5,3,0),0) -> 0 | FI22: =IF(AND(FI$3<>"",DS22<>0),HLOOKUP(FI$4,'Agency cashability'!$B$3:$U$5,3,0),0) -> 0 | FJ22: =IF(AND(FJ$3<>"",DT22<>0),HLOOKUP(FJ$4,'Agency cashability'!$B$3:$U$5,3,0),0) -> 0 | FK22: =IF(AND(FK$3<>"",DU22<>0),HLOOKUP(FK$4,'Agency cashability'!$B$3:$U$5,3,0),0) -> 0 | FL22: =IF(AND(FL$3<>"",DV22<>0),HLOOKUP(FL$4,'Agency cashability'!$B$3:$U$5,3,0),0) -> 0 | FM22: =IF(AND(FM$3<>"",DW22<>0),HLOOKUP(FM$4,'Agency cashability'!$B$3:$U$5,3,0),0) -> 0 | FN22: =IF(AND(FN$3<>"",DX22<>0),HLOOKUP(FN$4,'Agency cashability'!$B$3:$U$5,3,0),0) -> 0 | FO22: =IF(AND(FO$3<>"",DY22<>0),HLOOKUP(FO$4,'Agency cashability'!$B$3:$U$5,3,0),0) -> 0 | FP22: =IF(AND(FP$3<>"",DZ22<>0),HLOOKUP(FP$4,'Agency cashability'!$B$3:$U$5,3,0),0) -> 0 | FR22: 0 | FS22: 0 | FT22: 0 | FU22: 0 | FV22: 0 | FW22: 0 | FX22: 0 | FY22: 0 | FZ22: 0 | GA22: 0 | GB22: 0 | GM22: =IF((GM$3<>""),EB22*FR22,"") -> 0 | GN22: 0 | GO22: 0 | GP22: 0 | GQ22: 0 | GR22: 0 | GS22: 0 | GT22: 0 | GU22: 0 | GV22: 0 | GW22: 0 | HJ22: =IF((HJ$3<>""),EW22*FR22,"") -> 0 | HK22: 0 | HL22: 0 | HM22: 0 | HN22: 0 | HO22: 0 | HP22: 0 | HQ22: 0 | HR22: 0 | HS22: 0 | HT22: 0
A23: B9h | B23: Reduced incidents of crime - theft (not vehicle) | C23: No | D23: Reduced police, other criminal justice costs, health costs per actual crime (N.B. Use multipliers to convert from recorded crime or convictions) | E23: Police, CJS, NHS | R23: ='Cost of crime analysis'!S17 -> 357.9443211 | S23: 357.9443211 | T23: ='Cost of crime analysis'!T17 -> 254.8871731 | U23: ='Cost of crime analysis'!U17 -> 146.6779124 | V23: 759.5094066 | W23: 2010-11 | X23: =VLOOKUP(W23,'GDP Deflators'!$B$8:$C$72,2,0)*100/VLOOKUP('Model constants'!$B$3,'GDP Deflators'!$B$8:$C$72,2,0) -> 90.71467399 | Y23: 'Figures derived from 'Revisions made to the multipliers and unit costs of crime used in the Integrated Offender Management Value for Money Toolkit, 2011 | AA23: 0 | AB23: 0 | BE23: 0 | BF23: 0 | BG23: 0 | BH23: 0 | BI23: 0 | BJ23: 0 | BK23: 0 | BL23: 0 | BM23: 0 | BN23: 0 | BO23: 0 | BP23: 0 | BQ23: 0 | BR23: 0 | BS23: 0 | BT23: 0 | BU23: 0 | BV23: 0 | BW23: 0 | BX23: 0 | BY23: 0 | BZ23: 0 | CA23: 0 | CB23: 0 | CC23: 0 | CD23: 0 | CF23: 0 | CG23: 0 | CH23: 0 | CI23: 0 | CJ23: 0 | CK23: 0 | CL23: 0 | CM23: 0 | CN23: 0 | CO23: 0 | CP23: 0 | CQ23: 0 | CR23: 0 | CS23: 0 | CT23: 0 | CU23: 0 | CV23: 0 | CW23: 0 | CX23: 0 | CY23: 0 | CZ23: 0 | DA23: 0 | DB23: 0 | DC23: 0 | DD23: 0 | DE23: 0 | DG23: =IF(DG$3<>"",VLOOKUP($A23,'Agency percentages'!$A$5:$X$69,(3+MATCH(DG$4,'Agency percentages'!$D$4:$W$4,0)),FALSE),"") -> 0 | DH23: =IF(DH$3<>"",VLOOKUP($A23,'Agency percentages'!$A$5:$X$69,(3+MATCH(DH$4,'Agency percentages'!$D$4:$W$4,0)),FALSE),"") -> 0 | DI23: =IF(DI$3<>"",VLOOKUP($A23,'Agency percentages'!$A$5:$X$69,(3+MATCH(DI$4,'Agency percentages'!$D$4:$W$4,0)),FALSE),"") -> 0.6345584989 | DJ23: =IF(DJ$3<>"",VLOOKUP($A23,'Agency percentages'!$A$5:$X$69,(3+MATCH(DJ$4,'Agency percentages'!$D$4:$W$4,0)),FALSE),"") -> 0.09302428256 | DK23: =IF(DK$3<>"",VLOOKUP($A23,'Agency percentages'!$A$5:$X$69,(3+MATCH(DK$4,'Agency percentages'!$D$4:$W$4,0)),FALSE),"") -> 0.1461810155 | DL23: =IF(DL$3<>"",VLOOKUP($A23,'Agency percentages'!$A$5:$X$69,(3+MATCH(DL$4,'Agency percentages'!$D$4:$W$4,0)),FALSE),"") -> 0.06644591611 | DM23: =IF(DM$3<>"",VLOOKUP($A23,'Agency percentages'!$A$5:$X$69,(3+MATCH(DM$4,'Agency percentages'!$D$4:$W$4,0)),FALSE),"") -> 0.05979028698 | DN23: =IF(DN$3<>"",VLOOKUP($A23,'Agency percentages'!$A$5:$X$69,(3+MATCH(DN$4,'Agency percentages'!$D$4:$W$4,0)),FALSE),"") -> 0 | DO23: =IF(DO$3<>"",VLOOKUP($A23,'Agency percentages'!$A$5:$X$69,(3+MATCH(DO$4,'Agency percentages'!$D$4:$W$4,0)),FALSE),"") -> 0 | DP23: =IF(DP$3<>"",VLOOKUP($A23,'Agency percentages'!$A$5:$X$69,(3+MATCH(DP$4,'Agency percentages'!$D$4:$W$4,0)),FALSE),"") -> 0 | DQ23: =IF(DQ$3<>"",VLOOKUP($A23,'Agency percentages'!$A$5:$X$69,(3+MATCH(DQ$4,'Agency percentages'!$D$4:$W$4,0)),FALSE),"") -> 0 | DR23: =IF(DR$3<>"",VLOOKUP($A23,'Agency percentages'!$A$5:$X$69,(3+MATCH(DR$4,'Agency percentages'!$D$4:$W$4,0)),FALSE),"") ->  | DS23: =IF(DS$3<>"",VLOOKUP($A23,'Agency percentages'!$A$5:$X$69,(3+MATCH(DS$4,'Agency percentages'!$D$4:$W$4,0)),FALSE),"") ->  | DT23: =IF(DT$3<>"",VLOOKUP($A23,'Agency percentages'!$A$5:$X$69,(3+MATCH(DT$4,'Agency percentages'!$D$4:$W$4,0)),FALSE),"") ->  | DU23: =IF(DU$3<>"",VLOOKUP($A23,'Agency percentages'!$A$5:$X$69,(3+MATCH(DU$4,'Agency percentages'!$D$4:$W$4,0)),FALSE),"") ->  | DV23: =IF(DV$3<>"",VLOOKUP($A23,'Agency percentages'!$A$5:$X$69,(3+MATCH(DV$4,'Agency percentages'!$D$4:$W$4,0)),FALSE),"") ->  | DW23: =IF(DW$3<>"",VLOOKUP($A23,'Agency percentages'!$A$5:$X$69,(3+MATCH(DW$4,'Agency percentages'!$D$4:$W$4,0)),FALSE),"") ->  | DX23: =IF(DX$3<>"",VLOOKUP($A23,'Agency percentages'!$A$5:$X$69,(3+MATCH(DX$4,'Agency percentages'!$D$4:$W$4,0)),FALSE),"") ->  | DY23: =IF(DY$3<>"",VLOOKUP($A23,'Agency percentages'!$A$5:$X$69,(3+MATCH(DY$4,'Agency percentages'!$D$4:$W$4,0)),FALSE),"") ->  | DZ23: =IF(DZ$3<>"",VLOOKUP($A23,'Agency percentages'!$A$5:$X$69,(3+MATCH(DZ$4,'Agency percentages'!$D$4:$W$4,0)),FALSE),"") ->  | EB23: =IF(AND(EB$3<>"",DG23<>0),HLOOKUP(EB$4,'Agency cashability'!$B$3:$U$5,2,0),0) -> 0 | EC23: =IF(AND(EC$3<>"",DH23<>0),HLOOKUP(EC$4,'Agency cashability'!$B$3:$U$5,2,0),0) -> 0 | ED23: =IF(AND(ED$3<>"",DI23<>0),HLOOKUP(ED$4,'Agency cashability'!$B$3:$U$5,2,0),0) -> 0.3 | EE23: =IF(AND(EE$3<>"",DJ23<>0),HLOOKUP(EE$4,'Agency cashability'!$B$3:$U$5,2,0),0) -> 0.2 | EF23: =IF(AND(EF$3<>"",DK23<>0),HLOOKUP(EF$4,'Agency cashability'!$B$3:$U$5,2,0),0) -> 0.2 | EG23: =IF(AND(EG$3<>"",DL23<>0),HLOOKUP(EG$4,'Agency cashability'!$B$3:$U$5,2,0),0) -> 0.2 | EH23: =IF(AND(EH$3<>"",DM23<>0),HLOOKUP(EH$4,'Agency cashability'!$B$3:$U$5,2,0),0) -> 0.2 | EI23: =IF(AND(EI$3<>"",DN23<>0),HLOOKUP(EI$4,'Agency cashability'!$B$3:$U$5,2,0),0) -> 0 | EJ23: =IF(AND(EJ$3<>"",DO23<>0),HLOOKUP(EJ$4,'Agency cashability'!$B$3:$U$5,2,0),0) -> 0 | EK23: =IF(AND(EK$3<>"",DP23<>0),HLOOKUP(EK$4,'Agency cashability'!$B$3:$U$5,2,0),0) -> 0 | EL23: =IF(AND(EL$3<>"",DQ23<>0),HLOOKUP(EL$4,'Agency cashability'!$B$3:$U$5,2,0),0) -> 0 | EM23: =IF(AND(EM$3<>"",DR23<>0),HLOOKUP(EM$4,'Agency cashability'!$B$3:$U$5,2,0),0) -> 0 | EN23: =IF(AND(EN$3<>"",DS23<>0),HLOOKUP(EN$4,'Agency cashability'!$B$3:$U$5,2,0),0) -> 0 | EO23: =IF(AND(EO$3<>"",DT23<>0),HLOOKUP(EO$4,'Agency cashability'!$B$3:$U$5,2,0),0) -> 0 | EP23: =IF(AND(EP$3<>"",DU23<>0),HLOOKUP(EP$4,'Agency cashability'!$B$3:$U$5,2,0),0) -> 0 | EQ23: =IF(AND(EQ$3<>"",DV23<>0),HLOOKUP(EQ$4,'Agency cashability'!$B$3:$U$5,2,0),0) -> 0 | ER23: =IF(AND(ER$3<>"",DW23<>0),HLOOKUP(ER$4,'Agency cashability'!$B$3:$U$5,2,0),0) -> 0 | ES23: =IF(AND(ES$3<>"",DX23<>0),HLOOKUP(ES$4,'Agency cashability'!$B$3:$U$5,2,0),0) -> 0 | ET23: =IF(AND(ET$3<>"",DY23<>0),HLOOKUP(ET$4,'Agency cashability'!$B$3:$U$5,2,0),0) -> 0 | EU23: =IF(AND(EU$3<>"",DZ23<>0),HLOOKUP(EU$4,'Agency cashability'!$B$3:$U$5,2,0),0) -> 0 | EW23: =IF(AND(EW$3<>"",DG23<>0),HLOOKUP(EW$4,'Agency cashability'!$B$3:$U$5,3,0),0) -> 0 | EX23: =IF(AND(EX$3<>"",DH23<>0),HLOOKUP(EX$4,'Agency cashability'!$B$3:$U$5,3,0),0) -> 0 | EY23: =IF(AND(EY$3<>"",DI23<>0),HLOOKUP(EY$4,'Agency cashability'!$B$3:$U$5,3,0),0) -> 0.6 | EZ23: =IF(AND(EZ$3<>"",DJ23<>0),HLOOKUP(EZ$4,'Agency cashability'!$B$3:$U$5,3,0),0) -> 0.5 | FA23: =IF(AND(FA$3<>"",DK23<>0),HLOOKUP(FA$4,'Agency cashability'!$B$3:$U$5,3,0),0) -> 0.5 | FB23: =IF(AND(FB$3<>"",DL23<>0),HLOOKUP(FB$4,'Agency cashability'!$B$3:$U$5,3,0),0) -> 0.5 | FC23: =IF(AND(FC$3<>"",DM23<>0),HLOOKUP(FC$4,'Agency cashability'!$B$3:$U$5,3,0),0) -> 0.5 | FD23: =IF(AND(FD$3<>"",DN23<>0),HLOOKUP(FD$4,'Agency cashability'!$B$3:$U$5,3,0),0) -> 0 | FE23: =IF(AND(FE$3<>"",DO23<>0),HLOOKUP(FE$4,'Agency cashability'!$B$3:$U$5,3,0),0) -> 0 | FF23: =IF(AND(FF$3<>"",DP23<>0),HLOOKUP(FF$4,'Agency cashability'!$B$3:$U$5,3,0),0) -> 0 | FG23: =IF(AND(FG$3<>"",DQ23<>0),HLOOKUP(FG$4,'Agency cashability'!$B$3:$U$5,3,0),0) -> 0 | FH23: =IF(AND(FH$3<>"",DR23<>0),HLOOKUP(FH$4,'Agency cashability'!$B$3:$U$5,3,0),0) -> 0 | FI23: =IF(AND(FI$3<>"",DS23<>0),HLOOKUP(FI$4,'Agency cashability'!$B$3:$U$5,3,0),0) -> 0 | FJ23: =IF(AND(FJ$3<>"",DT23<>0),HLOOKUP(FJ$4,'Agency cashability'!$B$3:$U$5,3,0),0) -> 0 | FK23: =IF(AND(FK$3<>"",DU23<>0),HLOOKUP(FK$4,'Agency cashability'!$B$3:$U$5,3,0),0) -> 0 | FL23: =IF(AND(FL$3<>"",DV23<>0),HLOOKUP(FL$4,'Agency cashability'!$B$3:$U$5,3,0),0) -> 0 | FM23: =IF(AND(FM$3<>"",DW23<>0),HLOOKUP(FM$4,'Agency cashability'!$B$3:$U$5,3,0),0) -> 0 | FN23: =IF(AND(FN$3<>"",DX23<>0),HLOOKUP(FN$4,'Agency cashability'!$B$3:$U$5,3,0),0) -> 0 | FO23: =IF(AND(FO$3<>"",DY23<>0),HLOOKUP(FO$4,'Agency cashability'!$B$3:$U$5,3,0),0) -> 0 | FP23: =IF(AND(FP$3<>"",DZ23<>0),HLOOKUP(FP$4,'Agency cashability'!$B$3:$U$5,3,0),0) -> 0 | FR23: 0 | FS23: 0 | FT23: 0 | FU23: 0 | FV23: 0 | FW23: 0 | FX23: 0 | FY23: 0 | FZ23: 0 | GA23: 0 | GB23: 0 | GM23: =IF((GM$3<>""),EB23*FR23,"") -> 0 | GN23: 0 | GO23: 0 | GP23: 0 | GQ23: 0 | GR23: 0 | GS23: 0 | GT23: 0 | GU23: 0 | GV23: 0 | GW23: 0 | HJ23: =IF((HJ$3<>""),EW23*FR23,"") -> 0 | HK23: 0 | HL23: 0 | HM23: 0 | HN23: 0 | HO23: 0 | HP23: 0 | HQ23: 0 | HR23: 0 | HS23: 0 | HT23: 0
A24: B9i | B24: Reduced incidents of crime - vehicle theft | C24: No | D24: Reduced police, other criminal justice costs, health costs per actual crime (N.B. Use multipliers to convert from recorded crime or convictions) | E24: Police, CJS, NHS | R24: ='Cost of crime analysis'!S18 -> 237.0492193 | S24: 237.0492193 | T24: ='Cost of crime analysis'!T18 -> 3718.868451 | U24: ='Cost of crime analysis'!U18 -> 994.4265249 | V24: 4950.344195 | W24: 2010-11 | X24: =VLOOKUP(W24,'GDP Deflators'!$B$8:$C$72,2,0)*100/VLOOKUP('Model constants'!$B$3,'GDP Deflators'!$B$8:$C$72,2,0) -> 90.71467399 | Y24: 'Figures derived from 'Revisions made to the multipliers and unit costs of crime used in the Integrated Offender Management Value for Money Toolkit, 2011 | AA24: 0 | AB24: 0 | BE24: 0 | BF24: 0 | BG24: 0 | BH24: 0 | BI24: 0 | BJ24: 0 | BK24: 0 | BL24: 0 | BM24: 0 | BN24: 0 | BO24: 0 | BP24: 0 | BQ24: 0 | BR24: 0 | BS24: 0 | BT24: 0 | BU24: 0 | BV24: 0 | BW24: 0 | BX24: 0 | BY24: 0 | BZ24: 0 | CA24: 0 | CB24: 0 | CC24: 0 | CD24: 0 | CF24: 0 | CG24: 0 | CH24: 0 | CI24: 0 | CJ24: 0 | CK24: 0 | CL24: 0 | CM24: 0 | CN24: 0 | CO24: 0 | CP24: 0 | CQ24: 0 | CR24: 0 | CS24: 0 | CT24: 0 | CU24: 0 | CV24: 0 | CW24: 0 | CX24: 0 | CY24: 0 | CZ24: 0 | DA24: 0 | DB24: 0 | DC24: 0 | DD24: 0 | DE24: 0 | DG24: =IF(DG$3<>"",VLOOKUP($A24,'Agency percentages'!$A$5:$X$69,(3+MATCH(DG$4,'Agency percentages'!$D$4:$W$4,0)),FALSE),"") -> 0 | DH24: =IF(DH$3<>"",VLOOKUP($A24,'Agency percentages'!$A$5:$X$69,(3+MATCH(DH$4,'Agency percentages'!$D$4:$W$4,0)),FALSE),"") -> 0 | DI24: =IF(DI$3<>"",VLOOKUP($A24,'Agency percentages'!$A$5:$X$69,(3+MATCH(DI$4,'Agency percentages'!$D$4:$W$4,0)),FALSE),"") -> 0.405 | DJ24: =IF(DJ$3<>"",VLOOKUP($A24,'Agency percentages'!$A$5:$X$69,(3+MATCH(DJ$4,'Agency percentages'!$D$4:$W$4,0)),FALSE),"") -> 0.145 | DK24: =IF(DK$3<>"",VLOOKUP($A24,'Agency percentages'!$A$5:$X$69,(3+MATCH(DK$4,'Agency percentages'!$D$4:$W$4,0)),FALSE),"") -> 0.095 | DL24: =IF(DL$3<>"",VLOOKUP($A24,'Agency percentages'!$A$5:$X$69,(3+MATCH(DL$4,'Agency percentages'!$D$4:$W$4,0)),FALSE),"") -> 0.315 | DM24: =IF(DM$3<>"",VLOOKUP($A24,'Agency percentages'!$A$5:$X$69,(3+MATCH(DM$4,'Agency percentages'!$D$4:$W$4,0)),FALSE),"") -> 0.04 | DN24: =IF(DN$3<>"",VLOOKUP($A24,'Agency percentages'!$A$5:$X$69,(3+MATCH(DN$4,'Agency percentages'!$D$4:$W$4,0)),FALSE),"") -> 0 | DO24: =IF(DO$3<>"",VLOOKUP($A24,'Agency percentages'!$A$5:$X$69,(3+MATCH(DO$4,'Agency percentages'!$D$4:$W$4,0)),FALSE),"") -> 0 | DP24: =IF(DP$3<>"",VLOOKUP($A24,'Agency percentages'!$A$5:$X$69,(3+MATCH(DP$4,'Agency percentages'!$D$4:$W$4,0)),FALSE),"") -> 0 | DQ24: =IF(DQ$3<>"",VLOOKUP($A24,'Agency percentages'!$A$5:$X$69,(3+MATCH(DQ$4,'Agency percentages'!$D$4:$W$4,0)),FALSE),"") -> 0 | DR24: =IF(DR$3<>"",VLOOKUP($A24,'Agency percentages'!$A$5:$X$69,(3+MATCH(DR$4,'Agency percentages'!$D$4:$W$4,0)),FALSE),"") ->  | DS24: =IF(DS$3<>"",VLOOKUP($A24,'Agency percentages'!$A$5:$X$69,(3+MATCH(DS$4,'Agency percentages'!$D$4:$W$4,0)),FALSE),"") ->  | DT24: =IF(DT$3<>"",VLOOKUP($A24,'Agency percentages'!$A$5:$X$69,(3+MATCH(DT$4,'Agency percentages'!$D$4:$W$4,0)),FALSE),"") ->  | DU24: =IF(DU$3<>"",VLOOKUP($A24,'Agency percentages'!$A$5:$X$69,(3+MATCH(DU$4,'Agency percentages'!$D$4:$W$4,0)),FALSE),"") ->  | DV24: =IF(DV$3<>"",VLOOKUP($A24,'Agency percentages'!$A$5:$X$69,(3+MATCH(DV$4,'Agency percentages'!$D$4:$W$4,0)),FALSE),"") ->  | DW24: =IF(DW$3<>"",VLOOKUP($A24,'Agency percentages'!$A$5:$X$69,(3+MATCH(DW$4,'Agency percentages'!$D$4:$W$4,0)),FALSE),"") ->  | DX24: =IF(DX$3<>"",VLOOKUP($A24,'Agency percentages'!$A$5:$X$69,(3+MATCH(DX$4,'Agency percentages'!$D$4:$W$4,0)),FALSE),"") ->  | DY24: =IF(DY$3<>"",VLOOKUP($A24,'Agency percentages'!$A$5:$X$69,(3+MATCH(DY$4,'Agency percentages'!$D$4:$W$4,0)),FALSE),"") ->  | DZ24: =IF(DZ$3<>"",VLOOKUP($A24,'Agency percentages'!$A$5:$X$69,(3+MATCH(DZ$4,'Agency percentages'!$D$4:$W$4,0)),FALSE),"") ->  | EB24: =IF(AND(EB$3<>"",DG24<>0),HLOOKUP(EB$4,'Agency cashability'!$B$3:$U$5,2,0),0) -> 0 | EC24: =IF(AND(EC$3<>"",DH24<>0),HLOOKUP(EC$4,'Agency cashability'!$B$3:$U$5,2,0),0) -> 0 | ED24: =IF(AND(ED$3<>"",DI24<>0),HLOOKUP(ED$4,'Agency cashability'!$B$3:$U$5,2,0),0) -> 0.3 | EE24: =IF(AND(EE$3<>"",DJ24<>0),HLOOKUP(EE$4,'Agency cashability'!$B$3:$U$5,2,0),0) -> 0.2 | EF24: =IF(AND(EF$3<>"",DK24<>0),HLOOKUP(EF$4,'Agency cashability'!$B$3:$U$5,2,0),0) -> 0.2 | EG24: =IF(AND(EG$3<>"",DL24<>0),HLOOKUP(EG$4,'Agency cashability'!$B$3:$U$5,2,0),0) -> 0.2 | EH24: =IF(AND(EH$3<>"",DM24<>0),HLOOKUP(EH$4,'Agency cashability'!$B$3:$U$5,2,0),0) -> 0.2 | EI24: =IF(AND(EI$3<>"",DN24<>0),HLOOKUP(EI$4,'Agency cashability'!$B$3:$U$5,2,0),0) -> 0 | EJ24: =IF(AND(EJ$3<>"",DO24<>0),HLOOKUP(EJ$4,'Agency cashability'!$B$3:$U$5,2,0),0) -> 0 | EK24: =IF(AND(EK$3<>"",DP24<>0),HLOOKUP(EK$4,'Agency cashability'!$B$3:$U$5,2,0),0) -> 0 | EL24: =IF(AND(EL$3<>"",DQ24<>0),HLOOKUP(EL$4,'Agency cashability'!$B$3:$U$5,2,0),0) -> 0 | EM24: =IF(AND(EM$3<>"",DR24<>0),HLOOKUP(EM$4,'Agency cashability'!$B$3:$U$5,2,0),0) -> 0 | EN24: =IF(AND(EN$3<>"",DS24<>0),HLOOKUP(EN$4,'Agency cashability'!$B$3:$U$5,2,0),0) -> 0 | EO24: =IF(AND(EO$3<>"",DT24<>0),HLOOKUP(EO$4,'Agency cashability'!$B$3:$U$5,2,0),0) -> 0 | EP24: =IF(AND(EP$3<>"",DU24<>0),HLOOKUP(EP$4,'Agency cashability'!$B$3:$U$5,2,0),0) -> 0 | EQ24: =IF(AND(EQ$3<>"",DV24<>0),HLOOKUP(EQ$4,'Agency cashability'!$B$3:$U$5,2,0),0) -> 0 | ER24: =IF(AND(ER$3<>"",DW24<>0),HLOOKUP(ER$4,'Agency cashability'!$B$3:$U$5,2,0),0) -> 0 | ES24: =IF(AND(ES$3<>"",DX24<>0),HLOOKUP(ES$4,'Agency cashability'!$B$3:$U$5,2,0),0) -> 0 | ET24: =IF(AND(ET$3<>"",DY24<>0),HLOOKUP(ET$4,'Agency cashability'!$B$3:$U$5,2,0),0) -> 0 | EU24: =IF(AND(EU$3<>"",DZ24<>0),HLOOKUP(EU$4,'Agency cashability'!$B$3:$U$5,2,0),0) -> 0 | EW24: =IF(AND(EW$3<>"",DG24<>0),HLOOKUP(EW$4,'Agency cashability'!$B$3:$U$5,3,0),0) -> 0 | EX24: =IF(AND(EX$3<>"",DH24<>0),HLOOKUP(EX$4,'Agency cashability'!$B$3:$U$5,3,0),0) -> 0 | EY24: =IF(AND(EY$3<>"",DI24<>0),HLOOKUP(EY$4,'Agency cashability'!$B$3:$U$5,3,0),0) -> 0.6 | EZ24: =IF(AND(EZ$3<>"",DJ24<>0),HLOOKUP(EZ$4,'Agency cashability'!$B$3:$U$5,3,0),0) -> 0.5 | FA24: =IF(AND(FA$3<>"",DK24<>0),HLOOKUP(FA$4,'Agency cashability'!$B$3:$U$5,3,0),0) -> 0.5 | FB24: =IF(AND(FB$3<>"",DL24<>0),HLOOKUP(FB$4,'Agency cashability'!$B$3:$U$5,3,0),0) -> 0.5 | FC24: =IF(AND(FC$3<>"",DM24<>0),HLOOKUP(FC$4,'Agency cashability'!$B$3:$U$5,3,0),0) -> 0.5 | FD24: =IF(AND(FD$3<>"",DN24<>0),HLOOKUP(FD$4,'Agency cashability'!$B$3:$U$5,3,0),0) -> 0 | FE24: =IF(AND(FE$3<>"",DO24<>0),HLOOKUP(FE$4,'Agency cashability'!$B$3:$U$5,3,0),0) -> 0 | FF24: =IF(AND(FF$3<>"",DP24<>0),HLOOKUP(FF$4,'Agency cashability'!$B$3:$U$5,3,0),0) -> 0 | FG24: =IF(AND(FG$3<>"",DQ24<>0),HLOOKUP(FG$4,'Agency cashability'!$B$3:$U$5,3,0),0) -> 0 | FH24: =IF(AND(FH$3<>"",DR24<>0),HLOOKUP(FH$4,'Agency cashability'!$B$3:$U$5,3,0),0) -> 0 | FI24: =IF(AND(FI$3<>"",DS24<>0),HLOOKUP(FI$4,'Agency cashability'!$B$3:$U$5,3,0),0) -> 0 | FJ24: =IF(AND(FJ$3<>"",DT24<>0),HLOOKUP(FJ$4,'Agency cashability'!$B$3:$U$5,3,0),0) -> 0 | FK24: =IF(AND(FK$3<>"",DU24<>0),HLOOKUP(FK$4,'Agency cashability'!$B$3:$U$5,3,0),0) -> 0 | FL24: =IF(AND(FL$3<>"",DV24<>0),HLOOKUP(FL$4,'Agency cashability'!$B$3:$U$5,3,0),0) -> 0 | FM24: =IF(AND(FM$3<>"",DW24<>0),HLOOKUP(FM$4,'Agency cashability'!$B$3:$U$5,3,0),0) -> 0 | FN24: =IF(AND(FN$3<>"",DX24<>0),HLOOKUP(FN$4,'Agency cashability'!$B$3:$U$5,3,0),0) -> 0 | FO24: =IF(AND(FO$3<>"",DY24<>0),HLOOKUP(FO$4,'Agency cashability'!$B$3:$U$5,3,0),0) -> 0 | FP24: =IF(AND(FP$3<>"",DZ24<>0),HLOOKUP(FP$4,'Agency cashability'!$B$3:$U$5,3,0),0) -> 0 | FR24: 0 | FS24: 0 | FT24: 0 | FU24: 0 | FV24: 0 | FW24: 0 | FX24: 0 | FY24: 0 | FZ24: 0 | GA24: 0 | GB24: 0 | GM24: =IF((GM$3<>""),EB24*FR24,"") -> 0 | GN24: 0 | GO24: 0 | GP24: 0 | GQ24: 0 | GR24: 0 | GS24: 0 | GT24: 0 | GU24: 0 | GV24: 0 | GW24: 0 | HJ24: =IF((HJ$3<>""),EW24*FR24,"") -> 0 | HK24: 0 | HL24: 0 | HM24: 0 | HN24: 0 | HO24: 0 | HP24: 0 | HQ24: 0 | HR24: 0 | HS24: 0 | HT24: 0
A25: B9j | B25: Reduced incidents of crime - theft from vehicle | C25: No | D25: Reduced police, other criminal justice costs, health costs per actual crime (N.B. Use multipliers to convert from recorded crime or convictions) | E25: Police, CJS, NHS | R25: ='Cost of crime analysis'!S19 -> 60.44755092 | S25: 60.44755092 | T25: ='Cost of crime analysis'!T19 -> 641.2181382 | U25: ='Cost of crime analysis'!U19 -> 330.6468195 | V25: 1032.312509 | W25: 2010-11 | X25: =VLOOKUP(W25,'GDP Deflators'!$B$8:$C$72,2,0)*100/VLOOKUP('Model constants'!$B$3,'GDP Deflators'!$B$8:$C$72,2,0) -> 90.71467399 | Y25: 'Figures derived from 'Revisions made to the multipliers and unit costs of crime used in the Integrated Offender Management Value for Money Toolkit, 2011 | AA25: 0 | AB25: 0 | BE25: 0 | BF25: 0 | BG25: 0 | BH25: 0 | BI25: 0 | BJ25: 0 | BK25: 0 | BL25: 0 | BM25: 0 | BN25: 0 | BO25: 0 | BP25: 0 | BQ25: 0 | BR25: 0 | BS25: 0 | BT25: 0 | BU25: 0 | BV25: 0 | BW25: 0 | BX25: 0 | BY25: 0 | BZ25: 0 | CA25: 0 | CB25: 0 | CC25: 0 | CD25: 0 | CF25: 0 | CG25: 0 | CH25: 0 | CI25: 0 | CJ25: 0 | CK25: 0 | CL25: 0 | CM25: 0 | CN25: 0 | CO25: 0 | CP25: 0 | CQ25: 0 | CR25: 0 | CS25: 0 | CT25: 0 | CU25: 0 | CV25: 0 | CW25: 0 | CX25: 0 | CY25: 0 | CZ25: 0 | DA25: 0 | DB25: 0 | DC25: 0 | DD25: 0 | DE25: 0 | DG25: =IF(DG$3<>"",VLOOKUP($A25,'Agency percentages'!$A$5:$X$69,(3+MATCH(DG$4,'Agency percentages'!$D$4:$W$4,0)),FALSE),"") -> 0 | DH25: =IF(DH$3<>"",VLOOKUP($A25,'Agency percentages'!$A$5:$X$69,(3+MATCH(DH$4,'Agency percentages'!$D$4:$W$4,0)),FALSE),"") -> 0 | DI25: =IF(DI$3<>"",VLOOKUP($A25,'Agency percentages'!$A$5:$X$69,(3+MATCH(DI$4,'Agency percentages'!$D$4:$W$4,0)),FALSE),"") -> 0.6078431373 | DJ25: =IF(DJ$3<>"",VLOOKUP($A25,'Agency percentages'!$A$5:$X$69,(3+MATCH(DJ$4,'Agency percentages'!$D$4:$W$4,0)),FALSE),"") -> 0.1176470588 | DK25: =IF(DK$3<>"",VLOOKUP($A25,'Agency percentages'!$A$5:$X$69,(3+MATCH(DK$4,'Agency percentages'!$D$4:$W$4,0)),FALSE),"") -> 0.137254902 | DL25: =IF(DL$3<>"",VLOOKUP($A25,'Agency percentages'!$A$5:$X$69,(3+MATCH(DL$4,'Agency percentages'!$D$4:$W$4,0)),FALSE),"") -> 0.07843137255 | DM25: =IF(DM$3<>"",VLOOKUP($A25,'Agency percentages'!$A$5:$X$69,(3+MATCH(DM$4,'Agency percentages'!$D$4:$W$4,0)),FALSE),"") -> 0.05882352941 | DN25: =IF(DN$3<>"",VLOOKUP($A25,'Agency percentages'!$A$5:$X$69,(3+MATCH(DN$4,'Agency percentages'!$D$4:$W$4,0)),FALSE),"") -> 0 | DO25: =IF(DO$3<>"",VLOOKUP($A25,'Agency percentages'!$A$5:$X$69,(3+MATCH(DO$4,'Agency percentages'!$D$4:$W$4,0)),FALSE),"") -> 0 | DP25: =IF(DP$3<>"",VLOOKUP($A25,'Agency percentages'!$A$5:$X$69,(3+MATCH(DP$4,'Agency percentages'!$D$4:$W$4,0)),FALSE),"") -> 0 | DQ25: =IF(DQ$3<>"",VLOOKUP($A25,'Agency percentages'!$A$5:$X$69,(3+MATCH(DQ$4,'Agency percentages'!$D$4:$W$4,0)),FALSE),"") -> 0 | DR25: =IF(DR$3<>"",VLOOKUP($A25,'Agency percentages'!$A$5:$X$69,(3+MATCH(DR$4,'Agency percentages'!$D$4:$W$4,0)),FALSE),"") ->  | DS25: =IF(DS$3<>"",VLOOKUP($A25,'Agency percentages'!$A$5:$X$69,(3+MATCH(DS$4,'Agency percentages'!$D$4:$W$4,0)),FALSE),"") ->  | DT25: =IF(DT$3<>"",VLOOKUP($A25,'Agency percentages'!$A$5:$X$69,(3+MATCH(DT$4,'Agency percentages'!$D$4:$W$4,0)),FALSE),"") ->  | DU25: =IF(DU$3<>"",VLOOKUP($A25,'Agency percentages'!$A$5:$X$69,(3+MATCH(DU$4,'Agency percentages'!$D$4:$W$4,0)),FALSE),"") ->  | DV25: =IF(DV$3<>"",VLOOKUP($A25,'Agency percentages'!$A$5:$X$69,(3+MATCH(DV$4,'Agency percentages'!$D$4:$W$4,0)),FALSE),"") ->  | DW25: =IF(DW$3<>"",VLOOKUP($A25,'Agency percentages'!$A$5:$X$69,(3+MATCH(DW$4,'Agency percentages'!$D$4:$W$4,0)),FALSE),"") ->  | DX25: =IF(DX$3<>"",VLOOKUP($A25,'Agency percentages'!$A$5:$X$69,(3+MATCH(DX$4,'Agency percentages'!$D$4:$W$4,0)),FALSE),"") ->  | DY25: =IF(DY$3<>"",VLOOKUP($A25,'Agency percentages'!$A$5:$X$69,(3+MATCH(DY$4,'Agency percentages'!$D$4:$W$4,0)),FALSE),"") ->  | DZ25: =IF(DZ$3<>"",VLOOKUP($A25,'Agency percentages'!$A$5:$X$69,(3+MATCH(DZ$4,'Agency percentages'!$D$4:$W$4,0)),FALSE),"") ->  | EB25: =IF(AND(EB$3<>"",DG25<>0),HLOOKUP(EB$4,'Agency cashability'!$B$3:$U$5,2,0),0) -> 0 | EC25: =IF(AND(EC$3<>"",DH25<>0),HLOOKUP(EC$4,'Agency cashability'!$B$3:$U$5,2,0),0) -> 0 | ED25: =IF(AND(ED$3<>"",DI25<>0),HLOOKUP(ED$4,'Agency cashability'!$B$3:$U$5,2,0),0) -> 0.3 | EE25: =IF(AND(EE$3<>"",DJ25<>0),HLOOKUP(EE$4,'Agency cashability'!$B$3:$U$5,2,0),0) -> 0.2 | EF25: =IF(AND(EF$3<>"",DK25<>0),HLOOKUP(EF$4,'Agency cashability'!$B$3:$U$5,2,0),0) -> 0.2 | EG25: =IF(AND(EG$3<>"",DL25<>0),HLOOKUP(EG$4,'Agency cashability'!$B$3:$U$5,2,0),0) -> 0.2 | EH25: =IF(AND(EH$3<>"",DM25<>0),HLOOKUP(EH$4,'Agency cashability'!$B$3:$U$5,2,0),0) -> 0.2 | EI25: =IF(AND(EI$3<>"",DN25<>0),HLOOKUP(EI$4,'Agency cashability'!$B$3:$U$5,2,0),0) -> 0 | EJ25: =IF(AND(EJ$3<>"",DO25<>0),HLOOKUP(EJ$4,'Agency cashability'!$B$3:$U$5,2,0),0) -> 0 | EK25: =IF(AND(EK$3<>"",DP25<>0),HLOOKUP(EK$4,'Agency cashability'!$B$3:$U$5,2,0),0) -> 0 | EL25: =IF(AND(EL$3<>"",DQ25<>0),HLOOKUP(EL$4,'Agency cashability'!$B$3:$U$5,2,0),0) -> 0 | EM25: =IF(AND(EM$3<>"",DR25<>0),HLOOKUP(EM$4,'Agency cashability'!$B$3:$U$5,2,0),0) -> 0 | EN25: =IF(AND(EN$3<>"",DS25<>0),HLOOKUP(EN$4,'Agency cashability'!$B$3:$U$5,2,0),0) -> 0 | EO25: =IF(AND(EO$3<>"",DT25<>0),HLOOKUP(EO$4,'Agency cashability'!$B$3:$U$5,2,0),0) -> 0 | EP25: =IF(AND(EP$3<>"",DU25<>0),HLOOKUP(EP$4,'Agency cashability'!$B$3:$U$5,2,0),0) -> 0 | EQ25: =IF(AND(EQ$3<>"",DV25<>0),HLOOKUP(EQ$4,'Agency cashability'!$B$3:$U$5,2,0),0) -> 0 | ER25: =IF(AND(ER$3<>"",DW25<>0),HLOOKUP(ER$4,'Agency cashability'!$B$3:$U$5,2,0),0) -> 0 | ES25: =IF(AND(ES$3<>"",DX25<>0),HLOOKUP(ES$4,'Agency cashability'!$B$3:$U$5,2,0),0) -> 0 | ET25: =IF(AND(ET$3<>"",DY25<>0),HLOOKUP(ET$4,'Agency cashability'!$B$3:$U$5,2,0),0) -> 0 | EU25: =IF(AND(EU$3<>"",DZ25<>0),HLOOKUP(EU$4,'Agency cashability'!$B$3:$U$5,2,0),0) -> 0 | EW25: =IF(AND(EW$3<>"",DG25<>0),HLOOKUP(EW$4,'Agency cashability'!$B$3:$U$5,3,0),0) -> 0 | EX25: =IF(AND(EX$3<>"",DH25<>0),HLOOKUP(EX$4,'Agency cashability'!$B$3:$U$5,3,0),0) -> 0 | EY25: =IF(AND(EY$3<>"",DI25<>0),HLOOKUP(EY$4,'Agency cashability'!$B$3:$U$5,3,0),0) -> 0.6 | EZ25: =IF(AND(EZ$3<>"",DJ25<>0),HLOOKUP(EZ$4,'Agency cashability'!$B$3:$U$5,3,0),0) -> 0.5 | FA25: =IF(AND(FA$3<>"",DK25<>0),HLOOKUP(FA$4,'Agency cashability'!$B$3:$U$5,3,0),0) -> 0.5 | FB25: =IF(AND(FB$3<>"",DL25<>0),HLOOKUP(FB$4,'Agency cashability'!$B$3:$U$5,3,0),0) -> 0.5 | FC25: =IF(AND(FC$3<>"",DM25<>0),HLOOKUP(FC$4,'Agency cashability'!$B$3:$U$5,3,0),0) -> 0.5 | FD25: =IF(AND(FD$3<>"",DN25<>0),HLOOKUP(FD$4,'Agency cashability'!$B$3:$U$5,3,0),0) -> 0 | FE25: =IF(AND(FE$3<>"",DO25<>0),HLOOKUP(FE$4,'Agency cashability'!$B$3:$U$5,3,0),0) -> 0 | FF25: =IF(AND(FF$3<>"",DP25<>0),HLOOKUP(FF$4,'Agency cashability'!$B$3:$U$5,3,0),0) -> 0 | FG25: =IF(AND(FG$3<>"",DQ25<>0),HLOOKUP(FG$4,'Agency cashability'!$B$3:$U$5,3,0),0) -> 0 | FH25: =IF(AND(FH$3<>"",DR25<>0),HLOOKUP(FH$4,'Agency cashability'!$B$3:$U$5,3,0),0) -> 0 | FI25: =IF(AND(FI$3<>"",DS25<>0),HLOOKUP(FI$4,'Agency cashability'!$B$3:$U$5,3,0),0) -> 0 | FJ25: =IF(AND(FJ$3<>"",DT25<>0),HLOOKUP(FJ$4,'Agency cashability'!$B$3:$U$5,3,0),0) -> 0 | FK25: =IF(AND(FK$3<>"",DU25<>0),HLOOKUP(FK$4,'Agency cashability'!$B$3:$U$5,3,0),0) -> 0 | FL25: =IF(AND(FL$3<>"",DV25<>0),HLOOKUP(FL$4,'Agency cashability'!$B$3:$U$5,3,0),0) -> 0 | FM25: =IF(AND(FM$3<>"",DW25<>0),HLOOKUP(FM$4,'Agency cashability'!$B$3:$U$5,3,0),0) -> 0 | FN25: =IF(AND(FN$3<>"",DX25<>0),HLOOKUP(FN$4,'Agency cashability'!$B$3:$U$5,3,0),0) -> 0 | FO25: =IF(AND(FO$3<>"",DY25<>0),HLOOKUP(FO$4,'Agency cashability'!$B$3:$U$5,3,0),0) -> 0 | FP25: =IF(AND(FP$3<>"",DZ25<>0),HLOOKUP(FP$4,'Agency cashability'!$B$3:$U$5,3,0),0) -> 0 | FR25: 0 | FS25: 0 | FT25: 0 | FU25: 0 | FV25: 0 | FW25: 0 | FX25: 0 | FY25: 0 | FZ25: 0 | GA25: 0 | GB25: 0 | GM25: =IF((GM$3<>""),EB25*FR25,"") -> 0 | GN25: 0 | GO25: 0 | GP25: 0 | GQ25: 0 | GR25: 0 | GS25: 0 | GT25: 0 | GU25: 0 | GV25: 0 | GW25: 0 | HJ25: =IF((HJ$3<>""),EW25*FR25,"") -> 0 | HK25: 0 | HL25: 0 | HM25: 0 | HN25: 0 | HO25: 0 | HP25: 0 | HQ25: 0 | HR25: 0 | HS25: 0 | HT25: 0
A26: B9k | B26: Reduced incidents of crime - attempted vehicle theft | C26: No | D26: Reduced police, other criminal justice costs, health costs per actual crime (N.B. Use multipliers to convert from recorded crime or convictions) | E26: Police, CJS, NHS | R26: ='Cost of crime analysis'!S20 -> 78.22624237 | S26: 78.22624237 | T26: ='Cost of crime analysis'!T20 -> 297.4967702 | U26: ='Cost of crime analysis'!U20 -> 241.1484323 | V26: 616.8714449 | W26: 2010-11 | X26: =VLOOKUP(W26,'GDP Deflators'!$B$8:$C$72,2,0)*100/VLOOKUP('Model constants'!$B$3,'GDP Deflators'!$B$8:$C$72,2,0) -> 90.71467399 | Y26: 'Figures derived from 'Revisions made to the multipliers and unit costs of crime used in the Integrated Offender Management Value for Money Toolkit, 2011 | AA26: 0 | AB26: 0 | BE26: 0 | BF26: 0 | BG26: 0 | BH26: 0 | BI26: 0 | BJ26: 0 | BK26: 0 | BL26: 0 | BM26: 0 | BN26: 0 | BO26: 0 | BP26: 0 | BQ26: 0 | BR26: 0 | BS26: 0 | BT26: 0 | BU26: 0 | BV26: 0 | BW26: 0 | BX26: 0 | BY26: 0 | BZ26: 0 | CA26: 0 | CB26: 0 | CC26: 0 | CD26: 0 | CF26: 0 | CG26: 0 | CH26: 0 | CI26: 0 | CJ26: 0 | CK26: 0 | CL26: 0 | CM26: 0 | CN26: 0 | CO26: 0 | CP26: 0 | CQ26: 0 | CR26: 0 | CS26: 0 | CT26: 0 | CU26: 0 | CV26: 0 | CW26: 0 | CX26: 0 | CY26: 0 | CZ26: 0 | DA26: 0 | DB26: 0 | DC26: 0 | DD26: 0 | DE26: 0 | DG26: =IF(DG$3<>"",VLOOKUP($A26,'Agency percentages'!$A$5:$X$69,(3+MATCH(DG$4,'Agency percentages'!$D$4:$W$4,0)),FALSE),"") -> 0 | DH26: =IF(DH$3<>"",VLOOKUP($A26,'Agency percentages'!$A$5:$X$69,(3+MATCH(DH$4,'Agency percentages'!$D$4:$W$4,0)),FALSE),"") -> 0 | DI26: =IF(DI$3<>"",VLOOKUP($A26,'Agency percentages'!$A$5:$X$69,(3+MATCH(DI$4,'Agency percentages'!$D$4:$W$4,0)),FALSE),"") -> 0.2657527658 | DJ26: =IF(DJ$3<>"",VLOOKUP($A26,'Agency percentages'!$A$5:$X$69,(3+MATCH(DJ$4,'Agency percentages'!$D$4:$W$4,0)),FALSE),"") -> 0.1875901876 | DK26: =IF(DK$3<>"",VLOOKUP($A26,'Agency percentages'!$A$5:$X$69,(3+MATCH(DK$4,'Agency percentages'!$D$4:$W$4,0)),FALSE),"") -> 0.06253006253 | DL26: =IF(DL$3<>"",VLOOKUP($A26,'Agency percentages'!$A$5:$X$69,(3+MATCH(DL$4,'Agency percentages'!$D$4:$W$4,0)),FALSE),"") -> 0.4533429533 | DM26: =IF(DM$3<>"",VLOOKUP($A26,'Agency percentages'!$A$5:$X$69,(3+MATCH(DM$4,'Agency percentages'!$D$4:$W$4,0)),FALSE),"") -> 0.03078403078 | DN26: =IF(DN$3<>"",VLOOKUP($A26,'Agency percentages'!$A$5:$X$69,(3+MATCH(DN$4,'Agency percentages'!$D$4:$W$4,0)),FALSE),"") -> 0 | DO26: =IF(DO$3<>"",VLOOKUP($A26,'Agency percentages'!$A$5:$X$69,(3+MATCH(DO$4,'Agency percentages'!$D$4:$W$4,0)),FALSE),"") -> 0 | DP26: =IF(DP$3<>"",VLOOKUP($A26,'Agency percentages'!$A$5:$X$69,(3+MATCH(DP$4,'Agency percentages'!$D$4:$W$4,0)),FALSE),"") -> 0 | DQ26: =IF(DQ$3<>"",VLOOKUP($A26,'Agency percentages'!$A$5:$X$69,(3+MATCH(DQ$4,'Agency percentages'!$D$4:$W$4,0)),FALSE),"") -> 0 | DR26: =IF(DR$3<>"",VLOOKUP($A26,'Agency percentages'!$A$5:$X$69,(3+MATCH(DR$4,'Agency percentages'!$D$4:$W$4,0)),FALSE),"") ->  | DS26: =IF(DS$3<>"",VLOOKUP($A26,'Agency percentages'!$A$5:$X$69,(3+MATCH(DS$4,'Agency percentages'!$D$4:$W$4,0)),FALSE),"") ->  | DT26: =IF(DT$3<>"",VLOOKUP($A26,'Agency percentages'!$A$5:$X$69,(3+MATCH(DT$4,'Agency percentages'!$D$4:$W$4,0)),FALSE),"") ->  | DU26: =IF(DU$3<>"",VLOOKUP($A26,'Agency percentages'!$A$5:$X$69,(3+MATCH(DU$4,'Agency percentages'!$D$4:$W$4,0)),FALSE),"") ->  | DV26: =IF(DV$3<>"",VLOOKUP($A26,'Agency percentages'!$A$5:$X$69,(3+MATCH(DV$4,'Agency percentages'!$D$4:$W$4,0)),FALSE),"") ->  | DW26: =IF(DW$3<>"",VLOOKUP($A26,'Agency percentages'!$A$5:$X$69,(3+MATCH(DW$4,'Agency percentages'!$D$4:$W$4,0)),FALSE),"") ->  | DX26: =IF(DX$3<>"",VLOOKUP($A26,'Agency percentages'!$A$5:$X$69,(3+MATCH(DX$4,'Agency percentages'!$D$4:$W$4,0)),FALSE),"") ->  | DY26: =IF(DY$3<>"",VLOOKUP($A26,'Agency percentages'!$A$5:$X$69,(3+MATCH(DY$4,'Agency percentages'!$D$4:$W$4,0)),FALSE),"") ->  | DZ26: =IF(DZ$3<>"",VLOOKUP($A26,'Agency percentages'!$A$5:$X$69,(3+MATCH(DZ$4,'Agency percentages'!$D$4:$W$4,0)),FALSE),"") ->  | EB26: =IF(AND(EB$3<>"",DG26<>0),HLOOKUP(EB$4,'Agency cashability'!$B$3:$U$5,2,0),0) -> 0 | EC26: =IF(AND(EC$3<>"",DH26<>0),HLOOKUP(EC$4,'Agency cashability'!$B$3:$U$5,2,0),0) -> 0 | ED26: =IF(AND(ED$3<>"",DI26<>0),HLOOKUP(ED$4,'Agency cashability'!$B$3:$U$5,2,0),0) -> 0.3 | EE26: =IF(AND(EE$3<>"",DJ26<>0),HLOOKUP(EE$4,'Agency cashability'!$B$3:$U$5,2,0),0) -> 0.2 | EF26: =IF(AND(EF$3<>"",DK26<>0),HLOOKUP(EF$4,'Agency cashability'!$B$3:$U$5,2,0),0) -> 0.2 | EG26: =IF(AND(EG$3<>"",DL26<>0),HLOOKUP(EG$4,'Agency cashability'!$B$3:$U$5,2,0),0) -> 0.2 | EH26: =IF(AND(EH$3<>"",DM26<>0),HLOOKUP(EH$4,'Agency cashability'!$B$3:$U$5,2,0),0) -> 0.2 | EI26: =IF(AND(EI$3<>"",DN26<>0),HLOOKUP(EI$4,'Agency cashability'!$B$3:$U$5,2,0),0) -> 0 | EJ26: =IF(AND(EJ$3<>"",DO26<>0),HLOOKUP(EJ$4,'Agency cashability'!$B$3:$U$5,2,0),0) -> 0 | EK26: =IF(AND(EK$3<>"",DP26<>0),HLOOKUP(EK$4,'Agency cashability'!$B$3:$U$5,2,0),0) -> 0 | EL26: =IF(AND(EL$3<>"",DQ26<>0),HLOOKUP(EL$4,'Agency cashability'!$B$3:$U$5,2,0),0) -> 0 | EM26: =IF(AND(EM$3<>"",DR26<>0),HLOOKUP(EM$4,'Agency cashability'!$B$3:$U$5,2,0),0) -> 0 | EN26: =IF(AND(EN$3<>"",DS26<>0),HLOOKUP(EN$4,'Agency cashability'!$B$3:$U$5,2,0),0) -> 0 | EO26: =IF(AND(EO$3<>"",DT26<>0),HLOOKUP(EO$4,'Agency cashability'!$B$3:$U$5,2,0),0) -> 0 | EP26: =IF(AND(EP$3<>"",DU26<>0),HLOOKUP(EP$4,'Agency cashability'!$B$3:$U$5,2,0),0) -> 0 | EQ26: =IF(AND(EQ$3<>"",DV26<>0),HLOOKUP(EQ$4,'Agency cashability'!$B$3:$U$5,2,0),0) -> 0 | ER26: =IF(AND(ER$3<>"",DW26<>0),HLOOKUP(ER$4,'Agency cashability'!$B$3:$U$5,2,0),0) -> 0 | ES26: =IF(AND(ES$3<>"",DX26<>0),HLOOKUP(ES$4,'Agency cashability'!$B$3:$U$5,2,0),0) -> 0 | ET26: =IF(AND(ET$3<>"",DY26<>0),HLOOKUP(ET$4,'Agency cashability'!$B$3:$U$5,2,0),0) -> 0 | EU26: =IF(AND(EU$3<>"",DZ26<>0),HLOOKUP(EU$4,'Agency cashability'!$B$3:$U$5,2,0),0) -> 0 | EW26: =IF(AND(EW$3<>"",DG26<>0),HLOOKUP(EW$4,'Agency cashability'!$B$3:$U$5,3,0),0) -> 0 | EX26: =IF(AND(EX$3<>"",DH26<>0),HLOOKUP(EX$4,'Agency cashability'!$B$3:$U$5,3,0),0) -> 0 | EY26: =IF(AND(EY$3<>"",DI26<>0),HLOOKUP(EY$4,'Agency cashability'!$B$3:$U$5,3,0),0) -> 0.6 | EZ26: =IF(AND(EZ$3<>"",DJ26<>0),HLOOKUP(EZ$4,'Agency cashability'!$B$3:$U$5,3,0),0) -> 0.5 | FA26: =IF(AND(FA$3<>"",DK26<>0),HLOOKUP(FA$4,'Agency cashability'!$B$3:$U$5,3,0),0) -> 0.5 | FB26: =IF(AND(FB$3<>"",DL26<>0),HLOOKUP(FB$4,'Agency cashability'!$B$3:$U$5,3,0),0) -> 0.5 | FC26: =IF(AND(FC$3<>"",DM26<>0),HLOOKUP(FC$4,'Agency cashability'!$B$3:$U$5,3,0),0) -> 0.5 | FD26: =IF(AND(FD$3<>"",DN26<>0),HLOOKUP(FD$4,'Agency cashability'!$B$3:$U$5,3,0),0) -> 0 | FE26: =IF(AND(FE$3<>"",DO26<>0),HLOOKUP(FE$4,'Agency cashability'!$B$3:$U$5,3,0),0) -> 0 | FF26: =IF(AND(FF$3<>"",DP26<>0),HLOOKUP(FF$4,'Agency cashability'!$B$3:$U$5,3,0),0) -> 0 | FG26: =IF(AND(FG$3<>"",DQ26<>0),HLOOKUP(FG$4,'Agency cashability'!$B$3:$U$5,3,0),0) -> 0 | FH26: =IF(AND(FH$3<>"",DR26<>0),HLOOKUP(FH$4,'Agency cashability'!$B$3:$U$5,3,0),0) -> 0 | FI26: =IF(AND(FI$3<>"",DS26<>0),HLOOKUP(FI$4,'Agency cashability'!$B$3:$U$5,3,0),0) -> 0 | FJ26: =IF(AND(FJ$3<>"",DT26<>0),HLOOKUP(FJ$4,'Agency cashability'!$B$3:$U$5,3,0),0) -> 0 | FK26: =IF(AND(FK$3<>"",DU26<>0),HLOOKUP(FK$4,'Agency cashability'!$B$3:$U$5,3,0),0) -> 0 | FL26: =IF(AND(FL$3<>"",DV26<>0),HLOOKUP(FL$4,'Agency cashability'!$B$3:$U$5,3,0),0) -> 0 | FM26: =IF(AND(FM$3<>"",DW26<>0),HLOOKUP(FM$4,'Agency cashability'!$B$3:$U$5,3,0),0) -> 0 | FN26: =IF(AND(FN$3<>"",DX26<>0),HLOOKUP(FN$4,'Agency cashability'!$B$3:$U$5,3,0),0) -> 0 | FO26: =IF(AND(FO$3<>"",DY26<>0),HLOOKUP(FO$4,'Agency cashability'!$B$3:$U$5,3,0),0) -> 0 | FP26: =IF(AND(FP$3<>"",DZ26<>0),HLOOKUP(FP$4,'Agency cashability'!$B$3:$U$5,3,0),0) -> 0 | FR26: 0 | FS26: 0 | FT26: 0 | FU26: 0 | FV26: 0 | FW26: 0 | FX26: 0 | FY26: 0 | FZ26: 0 | GA26: 0 | GB26: 0 | GM26: =IF((GM$3<>""),EB26*FR26,"") -> 0 | GN26: 0 | GO26: 0 | GP26: 0 | GQ26: 0 | GR26: 0 | GS26: 0 | GT26: 0 | GU26: 0 | GV26: 0 | GW26: 0 | HJ26: =IF((HJ$3<>""),EW26*FR26,"") -> 0 | HK26: 0 | HL26: 0 | HM26: 0 | HN26: 0 | HO26: 0 | HP26: 0 | HQ26: 0 | HR26: 0 | HS26: 0 | HT26: 0
A27: B9l | B27: Reduced incidents of crime - personal - criminal damage | C27: No | D27: Reduced police, other criminal justice costs, health costs per actual crime (N.B. Use multipliers to convert from recorded crime or convictions) | E27: Police, CJS, NHS | R27: ='Cost of crime analysis'!S21 -> 151.7115004 | S27: 151.7115004 | T27: ='Cost of crime analysis'!T21 -> 316.4607078 | U27: ='Cost of crime analysis'!U21 -> 586.7116497 | V27: 1054.883858 | W27: 2010-11 | X27: =VLOOKUP(W27,'GDP Deflators'!$B$8:$C$72,2,0)*100/VLOOKUP('Model constants'!$B$3,'GDP Deflators'!$B$8:$C$72,2,0) -> 90.71467399 | Y27: 'Figures derived from 'Revisions made to the multipliers and unit costs of crime used in the Integrated Offender Management Value for Money Toolkit, 2011 | AA27: 0 | AB27: 0 | BE27: 0 | BF27: 0 | BG27: 0 | BH27: 0 | BI27: 0 | BJ27: 0 | BK27: 0 | BL27: 0 | BM27: 0 | BN27: 0 | BO27: 0 | BP27: 0 | BQ27: 0 | BR27: 0 | BS27: 0 | BT27: 0 | BU27: 0 | BV27: 0 | BW27: 0 | BX27: 0 | BY27: 0 | BZ27: 0 | CA27: 0 | CB27: 0 | CC27: 0 | CD27: 0 | CF27: 0 | CG27: 0 | CH27: 0 | CI27: 0 | CJ27: 0 | CK27: 0 | CL27: 0 | CM27: 0 | CN27: 0 | CO27: 0 | CP27: 0 | CQ27: 0 | CR27: 0 | CS27: 0 | CT27: 0 | CU27: 0 | CV27: 0 | CW27: 0 | CX27: 0 | CY27: 0 | CZ27: 0 | DA27: 0 | DB27: 0 | DC27: 0 | DD27: 0 | DE27: 0 | DG27: =IF(DG$3<>"",VLOOKUP($A27,'Agency percentages'!$A$5:$X$69,(3+MATCH(DG$4,'Agency percentages'!$D$4:$W$4,0)),FALSE),"") -> 0 | DH27: =IF(DH$3<>"",VLOOKUP($A27,'Agency percentages'!$A$5:$X$69,(3+MATCH(DH$4,'Agency percentages'!$D$4:$W$4,0)),FALSE),"") -> 0 | DI27: =IF(DI$3<>"",VLOOKUP($A27,'Agency percentages'!$A$5:$X$69,(3+MATCH(DI$4,'Agency percentages'!$D$4:$W$4,0)),FALSE),"") -> 0.5985 | DJ27: =IF(DJ$3<>"",VLOOKUP($A27,'Agency percentages'!$A$5:$X$69,(3+MATCH(DJ$4,'Agency percentages'!$D$4:$W$4,0)),FALSE),"") -> 0.023625 | DK27: =IF(DK$3<>"",VLOOKUP($A27,'Agency percentages'!$A$5:$X$69,(3+MATCH(DK$4,'Agency percentages'!$D$4:$W$4,0)),FALSE),"") -> 0.118125 | DL27: =IF(DL$3<>"",VLOOKUP($A27,'Agency percentages'!$A$5:$X$69,(3+MATCH(DL$4,'Agency percentages'!$D$4:$W$4,0)),FALSE),"") -> 0.04725 | DM27: =IF(DM$3<>"",VLOOKUP($A27,'Agency percentages'!$A$5:$X$69,(3+MATCH(DM$4,'Agency percentages'!$D$4:$W$4,0)),FALSE),"") -> 0.2125 | DN27: =IF(DN$3<>"",VLOOKUP($A27,'Agency percentages'!$A$5:$X$69,(3+MATCH(DN$4,'Agency percentages'!$D$4:$W$4,0)),FALSE),"") -> 0 | DO27: =IF(DO$3<>"",VLOOKUP($A27,'Agency percentages'!$A$5:$X$69,(3+MATCH(DO$4,'Agency percentages'!$D$4:$W$4,0)),FALSE),"") -> 0 | DP27: =IF(DP$3<>"",VLOOKUP($A27,'Agency percentages'!$A$5:$X$69,(3+MATCH(DP$4,'Agency percentages'!$D$4:$W$4,0)),FALSE),"") -> 0 | DQ27: =IF(DQ$3<>"",VLOOKUP($A27,'Agency percentages'!$A$5:$X$69,(3+MATCH(DQ$4,'Agency percentages'!$D$4:$W$4,0)),FALSE),"") -> 0 | DR27: =IF(DR$3<>"",VLOOKUP($A27,'Agency percentages'!$A$5:$X$69,(3+MATCH(DR$4,'Agency percentages'!$D$4:$W$4,0)),FALSE),"") ->  | DS27: =IF(DS$3<>"",VLOOKUP($A27,'Agency percentages'!$A$5:$X$69,(3+MATCH(DS$4,'Agency percentages'!$D$4:$W$4,0)),FALSE),"") ->  | DT27: =IF(DT$3<>"",VLOOKUP($A27,'Agency percentages'!$A$5:$X$69,(3+MATCH(DT$4,'Agency percentages'!$D$4:$W$4,0)),FALSE),"") ->  | DU27: =IF(DU$3<>"",VLOOKUP($A27,'Agency percentages'!$A$5:$X$69,(3+MATCH(DU$4,'Agency percentages'!$D$4:$W$4,0)),FALSE),"") ->  | DV27: =IF(DV$3<>"",VLOOKUP($A27,'Agency percentages'!$A$5:$X$69,(3+MATCH(DV$4,'Agency percentages'!$D$4:$W$4,0)),FALSE),"") ->  | DW27: =IF(DW$3<>"",VLOOKUP($A27,'Agency percentages'!$A$5:$X$69,(3+MATCH(DW$4,'Agency percentages'!$D$4:$W$4,0)),FALSE),"") ->  | DX27: =IF(DX$3<>"",VLOOKUP($A27,'Agency percentages'!$A$5:$X$69,(3+MATCH(DX$4,'Agency percentages'!$D$4:$W$4,0)),FALSE),"") ->  | DY27: =IF(DY$3<>"",VLOOKUP($A27,'Agency percentages'!$A$5:$X$69,(3+MATCH(DY$4,'Agency percentages'!$D$4:$W$4,0)),FALSE),"") ->  | DZ27: =IF(DZ$3<>"",VLOOKUP($A27,'Agency percentages'!$A$5:$X$69,(3+MATCH(DZ$4,'Agency percentages'!$D$4:$W$4,0)),FALSE),"") ->  | EB27: =IF(AND(EB$3<>"",DG27<>0),HLOOKUP(EB$4,'Agency cashability'!$B$3:$U$5,2,0),0) -> 0 | EC27: =IF(AND(EC$3<>"",DH27<>0),HLOOKUP(EC$4,'Agency cashability'!$B$3:$U$5,2,0),0) -> 0 | ED27: =IF(AND(ED$3<>"",DI27<>0),HLOOKUP(ED$4,'Agency cashability'!$B$3:$U$5,2,0),0) -> 0.3 | EE27: =IF(AND(EE$3<>"",DJ27<>0),HLOOKUP(EE$4,'Agency cashability'!$B$3:$U$5,2,0),0) -> 0.2 | EF27: =IF(AND(EF$3<>"",DK27<>0),HLOOKUP(EF$4,'Agency cashability'!$B$3:$U$5,2,0),0) -> 0.2 | EG27: =IF(AND(EG$3<>"",DL27<>0),HLOOKUP(EG$4,'Agency cashability'!$B$3:$U$5,2,0),0) -> 0.2 | EH27: =IF(AND(EH$3<>"",DM27<>0),HLOOKUP(EH$4,'Agency cashability'!$B$3:$U$5,2,0),0) -> 0.2 | EI27: =IF(AND(EI$3<>"",DN27<>0),HLOOKUP(EI$4,'Agency cashability'!$B$3:$U$5,2,0),0) -> 0 | EJ27: =IF(AND(EJ$3<>"",DO27<>0),HLOOKUP(EJ$4,'Agency cashability'!$B$3:$U$5,2,0),0) -> 0 | EK27: =IF(AND(EK$3<>"",DP27<>0),HLOOKUP(EK$4,'Agency cashability'!$B$3:$U$5,2,0),0) -> 0 | EL27: =IF(AND(EL$3<>"",DQ27<>0),HLOOKUP(EL$4,'Agency cashability'!$B$3:$U$5,2,0),0) -> 0 | EM27: =IF(AND(EM$3<>"",DR27<>0),HLOOKUP(EM$4,'Agency cashability'!$B$3:$U$5,2,0),0) -> 0 | EN27: =IF(AND(EN$3<>"",DS27<>0),HLOOKUP(EN$4,'Agency cashability'!$B$3:$U$5,2,0),0) -> 0 | EO27: =IF(AND(EO$3<>"",DT27<>0),HLOOKUP(EO$4,'Agency cashability'!$B$3:$U$5,2,0),0) -> 0 | EP27: =IF(AND(EP$3<>"",DU27<>0),HLOOKUP(EP$4,'Agency cashability'!$B$3:$U$5,2,0),0) -> 0 | EQ27: =IF(AND(EQ$3<>"",DV27<>0),HLOOKUP(EQ$4,'Agency cashability'!$B$3:$U$5,2,0),0) -> 0 | ER27: =IF(AND(ER$3<>"",DW27<>0),HLOOKUP(ER$4,'Agency cashability'!$B$3:$U$5,2,0),0) -> 0 | ES27: =IF(AND(ES$3<>"",DX27<>0),HLOOKUP(ES$4,'Agency cashability'!$B$3:$U$5,2,0),0) -> 0 | ET27: =IF(AND(ET$3<>"",DY27<>0),HLOOKUP(ET$4,'Agency cashability'!$B$3:$U$5,2,0),0) -> 0 | EU27: =IF(AND(EU$3<>"",DZ27<>0),HLOOKUP(EU$4,'Agency cashability'!$B$3:$U$5,2,0),0) -> 0 | EW27: =IF(AND(EW$3<>"",DG27<>0),HLOOKUP(EW$4,'Agency cashability'!$B$3:$U$5,3,0),0) -> 0 | EX27: =IF(AND(EX$3<>"",DH27<>0),HLOOKUP(EX$4,'Agency cashability'!$B$3:$U$5,3,0),0) -> 0 | EY27: =IF(AND(EY$3<>"",DI27<>0),HLOOKUP(EY$4,'Agency cashability'!$B$3:$U$5,3,0),0) -> 0.6 | EZ27: =IF(AND(EZ$3<>"",DJ27<>0),HLOOKUP(EZ$4,'Agency cashability'!$B$3:$U$5,3,0),0) -> 0.5 | FA27: =IF(AND(FA$3<>"",DK27<>0),HLOOKUP(FA$4,'Agency cashability'!$B$3:$U$5,3,0),0) -> 0.5 | FB27: =IF(AND(FB$3<>"",DL27<>0),HLOOKUP(FB$4,'Agency cashability'!$B$3:$U$5,3,0),0) -> 0.5 | FC27: =IF(AND(FC$3<>"",DM27<>0),HLOOKUP(FC$4,'Agency cashability'!$B$3:$U$5,3,0),0) -> 0.5 | FD27: =IF(AND(FD$3<>"",DN27<>0),HLOOKUP(FD$4,'Agency cashability'!$B$3:$U$5,3,0),0) -> 0 | FE27: =IF(AND(FE$3<>"",DO27<>0),HLOOKUP(FE$4,'Agency cashability'!$B$3:$U$5,3,0),0) -> 0 | FF27: =IF(AND(FF$3<>"",DP27<>0),HLOOKUP(FF$4,'Agency cashability'!$B$3:$U$5,3,0),0) -> 0 | FG27: =IF(AND(FG$3<>"",DQ27<>0),HLOOKUP(FG$4,'Agency cashability'!$B$3:$U$5,3,0),0) -> 0 | FH27: =IF(AND(FH$3<>"",DR27<>0),HLOOKUP(FH$4,'Agency cashability'!$B$3:$U$5,3,0),0) -> 0 | FI27: =IF(AND(FI$3<>"",DS27<>0),HLOOKUP(FI$4,'Agency cashability'!$B$3:$U$5,3,0),0) -> 0 | FJ27: =IF(AND(FJ$3<>"",DT27<>0),HLOOKUP(FJ$4,'Agency cashability'!$B$3:$U$5,3,0),0) -> 0 | FK27: =IF(AND(FK$3<>"",DU27<>0),HLOOKUP(FK$4,'Agency cashability'!$B$3:$U$5,3,0),0) -> 0 | FL27: =IF(AND(FL$3<>"",DV27<>0),HLOOKUP(FL$4,'Agency cashability'!$B$3:$U$5,3,0),0) -> 0 | FM27: =IF(AND(FM$3<>"",DW27<>0),HLOOKUP(FM$4,'Agency cashability'!$B$3:$U$5,3,0),0) -> 0 | FN27: =IF(AND(FN$3<>"",DX27<>0),HLOOKUP(FN$4,'Agency cashability'!$B$3:$U$5,3,0),0) -> 0 | FO27: =IF(AND(FO$3<>"",DY27<>0),HLOOKUP(FO$4,'Agency cashability'!$B$3:$U$5,3,0),0) -> 0 | FP27: =IF(AND(FP$3<>"",DZ27<>0),HLOOKUP(FP$4,'Agency cashability'!$B$3:$U$5,3,0),0) -> 0 | FR27: 0 | FS27: 0 | FT27: 0 | FU27: 0 | FV27: 0 | FW27: 0 | FX27: 0 | FY27: 0 | FZ27: 0 | GA27: 0 | GB27: 0 | GM27: =IF((GM$3<>""),EB27*FR27,"") -> 0 | GN27: 0 | GO27: 0 | GP27: 0 | GQ27: 0 | GR27: 0 | GS27: 0 | GT27: 0 | GU27: 0 | GV27: 0 | GW27: 0 | HJ27: =IF((HJ$3<>""),EW27*FR27,"") -> 0 | HK27: 0 | HL27: 0 | HM27: 0 | HN27: 0 | HO27: 0 | HP27: 0 | HQ27: 0 | HR27: 0 | HS27: 0 | HT27: 0
A28: B9m | B28: Reduced incidents of crime - burglary - not in a dwelling | C28: No | D28: Reduced police, other criminal justice costs, health costs per actual crime (N.B. Use multipliers to convert from recorded crime or convictions) | E28: Police, CJS, NHS | R28: ='Cost of crime analysis'!S24 -> 1597.299479 | S28: 1597.299479 | T28: ='Cost of crime analysis'!T24 -> 2049.955785 | U28: ='Cost of crime analysis'!U24 -> 942.6514917 | V28: 4589.906755 | W28: 2010-11 | X28: =VLOOKUP(W28,'GDP Deflators'!$B$8:$C$72,2,0)*100/VLOOKUP('Model constants'!$B$3,'GDP Deflators'!$B$8:$C$72,2,0) -> 90.71467399 | Y28: 'Figures derived from 'Revisions made to the multipliers and unit costs of crime used in the Integrated Offender Management Value for Money Toolkit, 2011 | AA28: 0 | AB28: 0 | BE28: 0 | BF28: 0 | BG28: 0 | BH28: 0 | BI28: 0 | BJ28: 0 | BK28: 0 | BL28: 0 | BM28: 0 | BN28: 0 | BO28: 0 | BP28: 0 | BQ28: 0 | BR28: 0 | BS28: 0 | BT28: 0 | BU28: 0 | BV28: 0 | BW28: 0 | BX28: 0 | BY28: 0 | BZ28: 0 | CA28: 0 | CB28: 0 | CC28: 0 | CD28: 0 | CF28: 0 | CG28: 0 | CH28: 0 | CI28: 0 | CJ28: 0 | CK28: 0 | CL28: 0 | CM28: 0 | CN28: 0 | CO28: 0 | CP28: 0 | CQ28: 0 | CR28: 0 | CS28: 0 | CT28: 0 | CU28: 0 | CV28: 0 | CW28: 0 | CX28: 0 | CY28: 0 | CZ28: 0 | DA28: 0 | DB28: 0 | DC28: 0 | DD28: 0 | DE28: 0 | DG28: =IF(DG$3<>"",VLOOKUP($A28,'Agency percentages'!$A$5:$X$69,(3+MATCH(DG$4,'Agency percentages'!$D$4:$W$4,0)),FALSE),"") -> 0 | DH28: =IF(DH$3<>"",VLOOKUP($A28,'Agency percentages'!$A$5:$X$69,(3+MATCH(DH$4,'Agency percentages'!$D$4:$W$4,0)),FALSE),"") -> 0 | DI28: =IF(DI$3<>"",VLOOKUP($A28,'Agency percentages'!$A$5:$X$69,(3+MATCH(DI$4,'Agency percentages'!$D$4:$W$4,0)),FALSE),"") -> 0.4931542499 | DJ28: =IF(DJ$3<>"",VLOOKUP($A28,'Agency percentages'!$A$5:$X$69,(3+MATCH(DJ$4,'Agency percentages'!$D$4:$W$4,0)),FALSE),"") -> 0.04109618749 | DK28: =IF(DK$3<>"",VLOOKUP($A28,'Agency percentages'!$A$5:$X$69,(3+MATCH(DK$4,'Agency percentages'!$D$4:$W$4,0)),FALSE),"") -> 0.1068500875 | DL28: =IF(DL$3<>"",VLOOKUP($A28,'Agency percentages'!$A$5:$X$69,(3+MATCH(DL$4,'Agency percentages'!$D$4:$W$4,0)),FALSE),"") -> 0.3287694999 | DM28: =IF(DM$3<>"",VLOOKUP($A28,'Agency percentages'!$A$5:$X$69,(3+MATCH(DM$4,'Agency percentages'!$D$4:$W$4,0)),FALSE),"") -> 0.03012997528 | DN28: =IF(DN$3<>"",VLOOKUP($A28,'Agency percentages'!$A$5:$X$69,(3+MATCH(DN$4,'Agency percentages'!$D$4:$W$4,0)),FALSE),"") -> 0 | DO28: =IF(DO$3<>"",VLOOKUP($A28,'Agency percentages'!$A$5:$X$69,(3+MATCH(DO$4,'Agency percentages'!$D$4:$W$4,0)),FALSE),"") -> 0 | DP28: =IF(DP$3<>"",VLOOKUP($A28,'Agency percentages'!$A$5:$X$69,(3+MATCH(DP$4,'Agency percentages'!$D$4:$W$4,0)),FALSE),"") -> 0 | DQ28: =IF(DQ$3<>"",VLOOKUP($A28,'Agency percentages'!$A$5:$X$69,(3+MATCH(DQ$4,'Agency percentages'!$D$4:$W$4,0)),FALSE),"") -> 0 | DR28: =IF(DR$3<>"",VLOOKUP($A28,'Agency percentages'!$A$5:$X$69,(3+MATCH(DR$4,'Agency percentages'!$D$4:$W$4,0)),FALSE),"") ->  | DS28: =IF(DS$3<>"",VLOOKUP($A28,'Agency percentages'!$A$5:$X$69,(3+MATCH(DS$4,'Agency percentages'!$D$4:$W$4,0)),FALSE),"") ->  | DT28: =IF(DT$3<>"",VLOOKUP($A28,'Agency percentages'!$A$5:$X$69,(3+MATCH(DT$4,'Agency percentages'!$D$4:$W$4,0)),FALSE),"") ->  | DU28: =IF(DU$3<>"",VLOOKUP($A28,'Agency percentages'!$A$5:$X$69,(3+MATCH(DU$4,'Agency percentages'!$D$4:$W$4,0)),FALSE),"") ->  | DV28: =IF(DV$3<>"",VLOOKUP($A28,'Agency percentages'!$A$5:$X$69,(3+MATCH(DV$4,'Agency percentages'!$D$4:$W$4,0)),FALSE),"") ->  | DW28: =IF(DW$3<>"",VLOOKUP($A28,'Agency percentages'!$A$5:$X$69,(3+MATCH(DW$4,'Agency percentages'!$D$4:$W$4,0)),FALSE),"") ->  | DX28: =IF(DX$3<>"",VLOOKUP($A28,'Agency percentages'!$A$5:$X$69,(3+MATCH(DX$4,'Agency percentages'!$D$4:$W$4,0)),FALSE),"") ->  | DY28: =IF(DY$3<>"",VLOOKUP($A28,'Agency percentages'!$A$5:$X$69,(3+MATCH(DY$4,'Agency percentages'!$D$4:$W$4,0)),FALSE),"") ->  | DZ28: =IF(DZ$3<>"",VLOOKUP($A28,'Agency percentages'!$A$5:$X$69,(3+MATCH(DZ$4,'Agency percentages'!$D$4:$W$4,0)),FALSE),"") ->  | EB28: =IF(AND(EB$3<>"",DG28<>0),HLOOKUP(EB$4,'Agency cashability'!$B$3:$U$5,2,0),0) -> 0 | EC28: =IF(AND(EC$3<>"",DH28<>0),HLOOKUP(EC$4,'Agency cashability'!$B$3:$U$5,2,0),0) -> 0 | ED28: =IF(AND(ED$3<>"",DI28<>0),HLOOKUP(ED$4,'Agency cashability'!$B$3:$U$5,2,0),0) -> 0.3 | EE28: =IF(AND(EE$3<>"",DJ28<>0),HLOOKUP(EE$4,'Agency cashability'!$B$3:$U$5,2,0),0) -> 0.2 | EF28: =IF(AND(EF$3<>"",DK28<>0),HLOOKUP(EF$4,'Agency cashability'!$B$3:$U$5,2,0),0) -> 0.2 | EG28: =IF(AND(EG$3<>"",DL28<>0),HLOOKUP(EG$4,'Agency cashability'!$B$3:$U$5,2,0),0) -> 0.2 | EH28: =IF(AND(EH$3<>"",DM28<>0),HLOOKUP(EH$4,'Agency cashability'!$B$3:$U$5,2,0),0) -> 0.2 | EI28: =IF(AND(EI$3<>"",DN28<>0),HLOOKUP(EI$4,'Agency cashability'!$B$3:$U$5,2,0),0) -> 0 | EJ28: =IF(AND(EJ$3<>"",DO28<>0),HLOOKUP(EJ$4,'Agency cashability'!$B$3:$U$5,2,0),0) -> 0 | EK28: =IF(AND(EK$3<>"",DP28<>0),HLOOKUP(EK$4,'Agency cashability'!$B$3:$U$5,2,0),0) -> 0 | EL28: =IF(AND(EL$3<>"",DQ28<>0),HLOOKUP(EL$4,'Agency cashability'!$B$3:$U$5,2,0),0) -> 0 | EM28: =IF(AND(EM$3<>"",DR28<>0),HLOOKUP(EM$4,'Agency cashability'!$B$3:$U$5,2,0),0) -> 0 | EN28: =IF(AND(EN$3<>"",DS28<>0),HLOOKUP(EN$4,'Agency cashability'!$B$3:$U$5,2,0),0) -> 0 | EO28: =IF(AND(EO$3<>"",DT28<>0),HLOOKUP(EO$4,'Agency cashability'!$B$3:$U$5,2,0),0) -> 0 | EP28: =IF(AND(EP$3<>"",DU28<>0),HLOOKUP(EP$4,'Agency cashability'!$B$3:$U$5,2,0),0) -> 0 | EQ28: =IF(AND(EQ$3<>"",DV28<>0),HLOOKUP(EQ$4,'Agency cashability'!$B$3:$U$5,2,0),0) -> 0 | ER28: =IF(AND(ER$3<>"",DW28<>0),HLOOKUP(ER$4,'Agency cashability'!$B$3:$U$5,2,0),0) -> 0 | ES28: =IF(AND(ES$3<>"",DX28<>0),HLOOKUP(ES$4,'Agency cashability'!$B$3:$U$5,2,0),0) -> 0 | ET28: =IF(AND(ET$3<>"",DY28<>0),HLOOKUP(ET$4,'Agency cashability'!$B$3:$U$5,2,0),0) -> 0 | EU28: =IF(AND(EU$3<>"",DZ28<>0),HLOOKUP(EU$4,'Agency cashability'!$B$3:$U$5,2,0),0) -> 0 | EW28: =IF(AND(EW$3<>"",DG28<>0),HLOOKUP(EW$4,'Agency cashability'!$B$3:$U$5,3,0),0) -> 0 | EX28: =IF(AND(EX$3<>"",DH28<>0),HLOOKUP(EX$4,'Agency cashability'!$B$3:$U$5,3,0),0) -> 0 | EY28: =IF(AND(EY$3<>"",DI28<>0),HLOOKUP(EY$4,'Agency cashability'!$B$3:$U$5,3,0),0) -> 0.6 | EZ28: =IF(AND(EZ$3<>"",DJ28<>0),HLOOKUP(EZ$4,'Agency cashability'!$B$3:$U$5,3,0),0) -> 0.5 | FA28: =IF(AND(FA$3<>"",DK28<>0),HLOOKUP(FA$4,'Agency cashability'!$B$3:$U$5,3,0),0) -> 0.5 | FB28: =IF(AND(FB$3<>"",DL28<>0),HLOOKUP(FB$4,'Agency cashability'!$B$3:$U$5,3,0),0) -> 0.5 | FC28: =IF(AND(FC$3<>"",DM28<>0),HLOOKUP(FC$4,'Agency cashability'!$B$3:$U$5,3,0),0) -> 0.5 | FD28: =IF(AND(FD$3<>"",DN28<>0),HLOOKUP(FD$4,'Agency cashability'!$B$3:$U$5,3,0),0) -> 0 | FE28: =IF(AND(FE$3<>"",DO28<>0),HLOOKUP(FE$4,'Agency cashability'!$B$3:$U$5,3,0),0) -> 0 | FF28: =IF(AND(FF$3<>"",DP28<>0),HLOOKUP(FF$4,'Agency cashability'!$B$3:$U$5,3,0),0) -> 0 | FG28: =IF(AND(FG$3<>"",DQ28<>0),HLOOKUP(FG$4,'Agency cashability'!$B$3:$U$5,3,0),0) -> 0 | FH28: =IF(AND(FH$3<>"",DR28<>0),HLOOKUP(FH$4,'Agency cashability'!$B$3:$U$5,3,0),0) -> 0 | FI28: =IF(AND(FI$3<>"",DS28<>0),HLOOKUP(FI$4,'Agency cashability'!$B$3:$U$5,3,0),0) -> 0 | FJ28: =IF(AND(FJ$3<>"",DT28<>0),HLOOKUP(FJ$4,'Agency cashability'!$B$3:$U$5,3,0),0) -> 0 | FK28: =IF(AND(FK$3<>"",DU28<>0),HLOOKUP(FK$4,'Agency cashability'!$B$3:$U$5,3,0),0) -> 0 | FL28: =IF(AND(FL$3<>"",DV28<>0),HLOOKUP(FL$4,'Agency cashability'!$B$3:$U$5,3,0),0) -> 0 | FM28: =IF(AND(FM$3<>"",DW28<>0),HLOOKUP(FM$4,'Agency cashability'!$B$3:$U$5,3,0),0) -> 0 | FN28: =IF(AND(FN$3<>"",DX28<>0),HLOOKUP(FN$4,'Agency cashability'!$B$3:$U$5,3,0),0) -> 0 | FO28: =IF(AND(FO$3<>"",DY28<>0),HLOOKUP(FO$4,'Agency cashability'!$B$3:$U$5,3,0),0) -> 0 | FP28: =IF(AND(FP$3<>"",DZ28<>0),HLOOKUP(FP$4,'Agency cashability'!$B$3:$U$5,3,0),0) -> 0 | FR28: 0 | FS28: 0 | FT28: 0 | FU28: 0 | FV28: 0 | FW28: 0 | FX28: 0 | FY28: 0 | FZ28: 0 | GA28: 0 | GB28: 0 | GM28: =IF((GM$3<>""),EB28*FR28,"") -> 0 | GN28: 0 | GO28: 0 | GP28: 0 | GQ28: 0 | GR28: 0 | GS28: 0 | GT28: 0 | GU28: 0 | GV28: 0 | GW28: 0 | HJ28: =IF((HJ$3<>""),EW28*FR28,"") -> 0 | HK28: 0 | HL28: 0 | HM28: 0 | HN28: 0 | HO28: 0 | HP28: 0 | HQ28: 0 | HR28: 0 | HS28: 0 | HT28: 0
A29: B9n | B29: Reduced incidents of crime - commercial - robbery | C29: No | D29: Reduced police, other criminal justice costs, health costs per actual crime (N.B. Use multipliers to convert from recorded crime or convictions) | E29: Police, CJS, NHS | R29: ='Cost of crime analysis'!S25 -> 3908.790318 | S29: 3908.790318 | T29: ='Cost of crime analysis'!T25 -> 1429.797671 | U29: ='Cost of crime analysis'!U25 -> 4030.601127 | V29: 9369.189117 | W29: 2010-11 | X29: =VLOOKUP(W29,'GDP Deflators'!$B$8:$C$72,2,0)*100/VLOOKUP('Model constants'!$B$3,'GDP Deflators'!$B$8:$C$72,2,0) -> 90.71467399 | Y29: 'Figures derived from 'Revisions made to the multipliers and unit costs of crime used in the Integrated Offender Management Value for Money Toolkit, 2011 | AA29: 0 | AB29: 0 | BE29: 0 | BF29: 0 | BG29: 0 | BH29: 0 | BI29: 0 | BJ29: 0 | BK29: 0 | BL29: 0 | BM29: 0 | BN29: 0 | BO29: 0 | BP29: 0 | BQ29: 0 | BR29: 0 | BS29: 0 | BT29: 0 | BU29: 0 | BV29: 0 | BW29: 0 | BX29: 0 | BY29: 0 | BZ29: 0 | CA29: 0 | CB29: 0 | CC29: 0 | CD29: 0 | CF29: 0 | CG29: 0 | CH29: 0 | CI29: 0 | CJ29: 0 | CK29: 0 | CL29: 0 | CM29: 0 | CN29: 0 | CO29: 0 | CP29: 0 | CQ29: 0 | CR29: 0 | CS29: 0 | CT29: 0 | CU29: 0 | CV29: 0 | CW29: 0 | CX29: 0 | CY29: 0 | CZ29: 0 | DA29: 0 | DB29: 0 | DC29: 0 | DD29: 0 | DE29: 0 | DG29: =IF(DG$3<>"",VLOOKUP($A29,'Agency percentages'!$A$5:$X$69,(3+MATCH(DG$4,'Agency percentages'!$D$4:$W$4,0)),FALSE),"") -> 0 | DH29: =IF(DH$3<>"",VLOOKUP($A29,'Agency percentages'!$A$5:$X$69,(3+MATCH(DH$4,'Agency percentages'!$D$4:$W$4,0)),FALSE),"") -> 0.1558064516 | DI29: =IF(DI$3<>"",VLOOKUP($A29,'Agency percentages'!$A$5:$X$69,(3+MATCH(DI$4,'Agency percentages'!$D$4:$W$4,0)),FALSE),"") -> 0.4161502082 | DJ29: =IF(DJ$3<>"",VLOOKUP($A29,'Agency percentages'!$A$5:$X$69,(3+MATCH(DJ$4,'Agency percentages'!$D$4:$W$4,0)),FALSE),"") -> 0.01223971201 | DK29: =IF(DK$3<>"",VLOOKUP($A29,'Agency percentages'!$A$5:$X$69,(3+MATCH(DK$4,'Agency percentages'!$D$4:$W$4,0)),FALSE),"") -> 0.09240982565 | DL29: =IF(DL$3<>"",VLOOKUP($A29,'Agency percentages'!$A$5:$X$69,(3+MATCH(DL$4,'Agency percentages'!$D$4:$W$4,0)),FALSE),"") -> 0.2753935202 | DM29: =IF(DM$3<>"",VLOOKUP($A29,'Agency percentages'!$A$5:$X$69,(3+MATCH(DM$4,'Agency percentages'!$D$4:$W$4,0)),FALSE),"") -> 0.04800028235 | DN29: =IF(DN$3<>"",VLOOKUP($A29,'Agency percentages'!$A$5:$X$69,(3+MATCH(DN$4,'Agency percentages'!$D$4:$W$4,0)),FALSE),"") -> 0 | DO29: =IF(DO$3<>"",VLOOKUP($A29,'Agency percentages'!$A$5:$X$69,(3+MATCH(DO$4,'Agency percentages'!$D$4:$W$4,0)),FALSE),"") -> 0 | DP29: =IF(DP$3<>"",VLOOKUP($A29,'Agency percentages'!$A$5:$X$69,(3+MATCH(DP$4,'Agency percentages'!$D$4:$W$4,0)),FALSE),"") -> 0 | DQ29: =IF(DQ$3<>"",VLOOKUP($A29,'Agency percentages'!$A$5:$X$69,(3+MATCH(DQ$4,'Agency percentages'!$D$4:$W$4,0)),FALSE),"") -> 0 | DR29: =IF(DR$3<>"",VLOOKUP($A29,'Agency percentages'!$A$5:$X$69,(3+MATCH(DR$4,'Agency percentages'!$D$4:$W$4,0)),FALSE),"") ->  | DS29: =IF(DS$3<>"",VLOOKUP($A29,'Agency percentages'!$A$5:$X$69,(3+MATCH(DS$4,'Agency percentages'!$D$4:$W$4,0)),FALSE),"") ->  | DT29: =IF(DT$3<>"",VLOOKUP($A29,'Agency percentages'!$A$5:$X$69,(3+MATCH(DT$4,'Agency percentages'!$D$4:$W$4,0)),FALSE),"") ->  | DU29: =IF(DU$3<>"",VLOOKUP($A29,'Agency percentages'!$A$5:$X$69,(3+MATCH(DU$4,'Agency percentages'!$D$4:$W$4,0)),FALSE),"") ->  | DV29: =IF(DV$3<>"",VLOOKUP($A29,'Agency percentages'!$A$5:$X$69,(3+MATCH(DV$4,'Agency percentages'!$D$4:$W$4,0)),FALSE),"") ->  | DW29: =IF(DW$3<>"",VLOOKUP($A29,'Agency percentages'!$A$5:$X$69,(3+MATCH(DW$4,'Agency percentages'!$D$4:$W$4,0)),FALSE),"") ->  | DX29: =IF(DX$3<>"",VLOOKUP($A29,'Agency percentages'!$A$5:$X$69,(3+MATCH(DX$4,'Agency percentages'!$D$4:$W$4,0)),FALSE),"") ->  | DY29: =IF(DY$3<>"",VLOOKUP($A29,'Agency percentages'!$A$5:$X$69,(3+MATCH(DY$4,'Agency percentages'!$D$4:$W$4,0)),FALSE),"") ->  | DZ29: =IF(DZ$3<>"",VLOOKUP($A29,'Agency percentages'!$A$5:$X$69,(3+MATCH(DZ$4,'Agency percentages'!$D$4:$W$4,0)),FALSE),"") ->  | EB29: =IF(AND(EB$3<>"",DG29<>0),HLOOKUP(EB$4,'Agency cashability'!$B$3:$U$5,2,0),0) -> 0 | EC29: =IF(AND(EC$3<>"",DH29<>0),HLOOKUP(EC$4,'Agency cashability'!$B$3:$U$5,2,0),0) -> 0.2 | ED29: =IF(AND(ED$3<>"",DI29<>0),HLOOKUP(ED$4,'Agency cashability'!$B$3:$U$5,2,0),0) -> 0.3 | EE29: =IF(AND(EE$3<>"",DJ29<>0),HLOOKUP(EE$4,'Agency cashability'!$B$3:$U$5,2,0),0) -> 0.2 | EF29: =IF(AND(EF$3<>"",DK29<>0),HLOOKUP(EF$4,'Agency cashability'!$B$3:$U$5,2,0),0) -> 0.2 | EG29: =IF(AND(EG$3<>"",DL29<>0),HLOOKUP(EG$4,'Agency cashability'!$B$3:$U$5,2,0),0) -> 0.2 | EH29: =IF(AND(EH$3<>"",DM29<>0),HLOOKUP(EH$4,'Agency cashability'!$B$3:$U$5,2,0),0) -> 0.2 | EI29: =IF(AND(EI$3<>"",DN29<>0),HLOOKUP(EI$4,'Agency cashability'!$B$3:$U$5,2,0),0) -> 0 | EJ29: =IF(AND(EJ$3<>"",DO29<>0),HLOOKUP(EJ$4,'Agency cashability'!$B$3:$U$5,2,0),0) -> 0 | EK29: =IF(AND(EK$3<>"",DP29<>0),HLOOKUP(EK$4,'Agency cashability'!$B$3:$U$5,2,0),0) -> 0 | EL29: =IF(AND(EL$3<>"",DQ29<>0),HLOOKUP(EL$4,'Agency cashability'!$B$3:$U$5,2,0),0) -> 0 | EM29: =IF(AND(EM$3<>"",DR29<>0),HLOOKUP(EM$4,'Agency cashability'!$B$3:$U$5,2,0),0) -> 0 | EN29: =IF(AND(EN$3<>"",DS29<>0),HLOOKUP(EN$4,'Agency cashability'!$B$3:$U$5,2,0),0) -> 0 | EO29: =IF(AND(EO$3<>"",DT29<>0),HLOOKUP(EO$4,'Agency cashability'!$B$3:$U$5,2,0),0) -> 0 | EP29: =IF(AND(EP$3<>"",DU29<>0),HLOOKUP(EP$4,'Agency cashability'!$B$3:$U$5,2,0),0) -> 0 | EQ29: =IF(AND(EQ$3<>"",DV29<>0),HLOOKUP(EQ$4,'Agency cashability'!$B$3:$U$5,2,0),0) -> 0 | ER29: =IF(AND(ER$3<>"",DW29<>0),HLOOKUP(ER$4,'Agency cashability'!$B$3:$U$5,2,0),0) -> 0 | ES29: =IF(AND(ES$3<>"",DX29<>0),HLOOKUP(ES$4,'Agency cashability'!$B$3:$U$5,2,0),0) -> 0 | ET29: =IF(AND(ET$3<>"",DY29<>0),HLOOKUP(ET$4,'Agency cashability'!$B$3:$U$5,2,0),0) -> 0 | EU29: =IF(AND(EU$3<>"",DZ29<>0),HLOOKUP(EU$4,'Agency cashability'!$B$3:$U$5,2,0),0) -> 0 | EW29: =IF(AND(EW$3<>"",DG29<>0),HLOOKUP(EW$4,'Agency cashability'!$B$3:$U$5,3,0),0) -> 0 | EX29: =IF(AND(EX$3<>"",DH29<>0),HLOOKUP(EX$4,'Agency cashability'!$B$3:$U$5,3,0),0) -> 0.5 | EY29: =IF(AND(EY$3<>"",DI29<>0),HLOOKUP(EY$4,'Agency cashability'!$B$3:$U$5,3,0),0) -> 0.6 | EZ29: =IF(AND(EZ$3<>"",DJ29<>0),HLOOKUP(EZ$4,'Agency cashability'!$B$3:$U$5,3,0),0) -> 0.5 | FA29: =IF(AND(FA$3<>"",DK29<>0),HLOOKUP(FA$4,'Agency cashability'!$B$3:$U$5,3,0),0) -> 0.5 | FB29: =IF(AND(FB$3<>"",DL29<>0),HLOOKUP(FB$4,'Agency cashability'!$B$3:$U$5,3,0),0) -> 0.5 | FC29: =IF(AND(FC$3<>"",DM29<>0),HLOOKUP(FC$4,'Agency cashability'!$B$3:$U$5,3,0),0) -> 0.5 | FD29: =IF(AND(FD$3<>"",DN29<>0),HLOOKUP(FD$4,'Agency cashability'!$B$3:$U$5,3,0),0) -> 0 | FE29: =IF(AND(FE$3<>"",DO29<>0),HLOOKUP(FE$4,'Agency cashability'!$B$3:$U$5,3,0),0) -> 0 | FF29: =IF(AND(FF$3<>"",DP29<>0),HLOOKUP(FF$4,'Agency cashability'!$B$3:$U$5,3,0),0) -> 0 | FG29: =IF(AND(FG$3<>"",DQ29<>0),HLOOKUP(FG$4,'Agency cashability'!$B$3:$U$5,3,0),0) -> 0 | FH29: =IF(AND(FH$3<>"",DR29<>0),HLOOKUP(FH$4,'Agency cashability'!$B$3:$U$5,3,0),0) -> 0 | FI29: =IF(AND(FI$3<>"",DS29<>0),HLOOKUP(FI$4,'Agency cashability'!$B$3:$U$5,3,0),0) -> 0 | FJ29: =IF(AND(FJ$3<>"",DT29<>0),HLOOKUP(FJ$4,'Agency cashability'!$B$3:$U$5,3,0),0) -> 0 | FK29: =IF(AND(FK$3<>"",DU29<>0),HLOOKUP(FK$4,'Agency cashability'!$B$3:$U$5,3,0),0) -> 0 | FL29: =IF(AND(FL$3<>"",DV29<>0),HLOOKUP(FL$4,'Agency cashability'!$B$3:$U$5,3,0),0) -> 0 | FM29: =IF(AND(FM$3<>"",DW29<>0),HLOOKUP(FM$4,'Agency cashability'!$B$3:$U$5,3,0),0) -> 0 | FN29: =IF(AND(FN$3<>"",DX29<>0),HLOOKUP(FN$4,'Agency cashability'!$B$3:$U$5,3,0),0) -> 0 | FO29: =IF(AND(FO$3<>"",DY29<>0),HLOOKUP(FO$4,'Agency cashability'!$B$3:$U$5,3,0),0) -> 0 | FP29: =IF(AND(FP$3<>"",DZ29<>0),HLOOKUP(FP$4,'Agency cashability'!$B$3:$U$5,3,0),0) -> 0 | FR29: 0 | FS29: 0 | FT29: 0 | FU29: 0 | FV29: 0 | FW29: 0 | FX29: 0 | FY29: 0 | FZ29: 0 | GA29: 0 | GB29: 0 | GM29: =IF((GM$3<>""),EB29*FR29,"") -> 0 | GN29: 0 | GO29: 0 | GP29: 0 | GQ29: 0 | GR29: 0 | GS29: 0 | GT29: 0 | GU29: 0 | GV29: 0 | GW29: 0 | HJ29: =IF((HJ$3<>""),EW29*FR29,"") -> 0 | HK29: 0 | HL29: 0 | HM29: 0 | HN29: 0 | HO29: 0 | HP29: 0 | HQ29: 0 | HR29: 0 | HS29: 0 | HT29: 0
A30: B9o | B30: Reduced incidents of crime - commercial - theft of vehicle | C30: No | D30: Reduced police, other criminal justice costs, health costs per actual crime (N.B. Use multipliers to convert from recorded crime or convictions) | E30: Police, CJS, NHS | R30: ='Cost of crime analysis'!S26 -> 479.036964 | S30: 479.036964 | T30: ='Cost of crime analysis'!T26 -> 7515.213327 | U30: ='Cost of crime analysis'!U26 -> 2009.570269 | V30: 10003.82056 | W30: 2010-11 | X30: =VLOOKUP(W30,'GDP Deflators'!$B$8:$C$72,2,0)*100/VLOOKUP('Model constants'!$B$3,'GDP Deflators'!$B$8:$C$72,2,0) -> 90.71467399 | Y30: 'Figures derived from 'Revisions made to the multipliers and unit costs of crime used in the Integrated Offender Management Value for Money Toolkit, 2011 | AA30: 0 | AB30: 0 | BE30: 0 | BF30: 0 | BG30: 0 | BH30: 0 | BI30: 0 | BJ30: 0 | BK30: 0 | BL30: 0 | BM30: 0 | BN30: 0 | BO30: 0 | BP30: 0 | BQ30: 0 | BR30: 0 | BS30: 0 | BT30: 0 | BU30: 0 | BV30: 0 | BW30: 0 | BX30: 0 | BY30: 0 | BZ30: 0 | CA30: 0 | CB30: 0 | CC30: 0 | CD30: 0 | CF30: 0 | CG30: 0 | CH30: 0 | CI30: 0 | CJ30: 0 | CK30: 0 | CL30: 0 | CM30: 0 | CN30: 0 | CO30: 0 | CP30: 0 | CQ30: 0 | CR30: 0 | CS30: 0 | CT30: 0 | CU30: 0 | CV30: 0 | CW30: 0 | CX30: 0 | CY30: 0 | CZ30: 0 | DA30: 0 | DB30: 0 | DC30: 0 | DD30: 0 | DE30: 0 | DG30: =IF(DG$3<>"",VLOOKUP($A30,'Agency percentages'!$A$5:$X$69,(3+MATCH(DG$4,'Agency percentages'!$D$4:$W$4,0)),FALSE),"") -> 0 | DH30: =IF(DH$3<>"",VLOOKUP($A30,'Agency percentages'!$A$5:$X$69,(3+MATCH(DH$4,'Agency percentages'!$D$4:$W$4,0)),FALSE),"") -> 0 | DI30: =IF(DI$3<>"",VLOOKUP($A30,'Agency percentages'!$A$5:$X$69,(3+MATCH(DI$4,'Agency percentages'!$D$4:$W$4,0)),FALSE),"") -> 0.5168831169 | DJ30: =IF(DJ$3<>"",VLOOKUP($A30,'Agency percentages'!$A$5:$X$69,(3+MATCH(DJ$4,'Agency percentages'!$D$4:$W$4,0)),FALSE),"") -> 0.07753246753 | DK30: =IF(DK$3<>"",VLOOKUP($A30,'Agency percentages'!$A$5:$X$69,(3+MATCH(DK$4,'Agency percentages'!$D$4:$W$4,0)),FALSE),"") -> 0.1292207792 | DL30: =IF(DL$3<>"",VLOOKUP($A30,'Agency percentages'!$A$5:$X$69,(3+MATCH(DL$4,'Agency percentages'!$D$4:$W$4,0)),FALSE),"") -> 0.2584415584 | DM30: =IF(DM$3<>"",VLOOKUP($A30,'Agency percentages'!$A$5:$X$69,(3+MATCH(DM$4,'Agency percentages'!$D$4:$W$4,0)),FALSE),"") -> 0.01792207792 | DN30: =IF(DN$3<>"",VLOOKUP($A30,'Agency percentages'!$A$5:$X$69,(3+MATCH(DN$4,'Agency percentages'!$D$4:$W$4,0)),FALSE),"") -> 0 | DO30: =IF(DO$3<>"",VLOOKUP($A30,'Agency percentages'!$A$5:$X$69,(3+MATCH(DO$4,'Agency percentages'!$D$4:$W$4,0)),FALSE),"") -> 0 | DP30: =IF(DP$3<>"",VLOOKUP($A30,'Agency percentages'!$A$5:$X$69,(3+MATCH(DP$4,'Agency percentages'!$D$4:$W$4,0)),FALSE),"") -> 0 | DQ30: =IF(DQ$3<>"",VLOOKUP($A30,'Agency percentages'!$A$5:$X$69,(3+MATCH(DQ$4,'Agency percentages'!$D$4:$W$4,0)),FALSE),"") -> 0 | DR30: =IF(DR$3<>"",VLOOKUP($A30,'Agency percentages'!$A$5:$X$69,(3+MATCH(DR$4,'Agency percentages'!$D$4:$W$4,0)),FALSE),"") ->  | DS30: =IF(DS$3<>"",VLOOKUP($A30,'Agency percentages'!$A$5:$X$69,(3+MATCH(DS$4,'Agency percentages'!$D$4:$W$4,0)),FALSE),"") ->  | DT30: =IF(DT$3<>"",VLOOKUP($A30,'Agency percentages'!$A$5:$X$69,(3+MATCH(DT$4,'Agency percentages'!$D$4:$W$4,0)),FALSE),"") ->  | DU30: =IF(DU$3<>"",VLOOKUP($A30,'Agency percentages'!$A$5:$X$69,(3+MATCH(DU$4,'Agency percentages'!$D$4:$W$4,0)),FALSE),"") ->  | DV30: =IF(DV$3<>"",VLOOKUP($A30,'Agency percentages'!$A$5:$X$69,(3+MATCH(DV$4,'Agency percentages'!$D$4:$W$4,0)),FALSE),"") ->  | DW30: =IF(DW$3<>"",VLOOKUP($A30,'Agency percentages'!$A$5:$X$69,(3+MATCH(DW$4,'Agency percentages'!$D$4:$W$4,0)),FALSE),"") ->  | DX30: =IF(DX$3<>"",VLOOKUP($A30,'Agency percentages'!$A$5:$X$69,(3+MATCH(DX$4,'Agency percentages'!$D$4:$W$4,0)),FALSE),"") ->  | DY30: =IF(DY$3<>"",VLOOKUP($A30,'Agency percentages'!$A$5:$X$69,(3+MATCH(DY$4,'Agency percentages'!$D$4:$W$4,0)),FALSE),"") ->  | DZ30: =IF(DZ$3<>"",VLOOKUP($A30,'Agency percentages'!$A$5:$X$69,(3+MATCH(DZ$4,'Agency percentages'!$D$4:$W$4,0)),FALSE),"") ->  | EB30: =IF(AND(EB$3<>"",DG30<>0),HLOOKUP(EB$4,'Agency cashability'!$B$3:$U$5,2,0),0) -> 0 | EC30: =IF(AND(EC$3<>"",DH30<>0),HLOOKUP(EC$4,'Agency cashability'!$B$3:$U$5,2,0),0) -> 0 | ED30: =IF(AND(ED$3<>"",DI30<>0),HLOOKUP(ED$4,'Agency cashability'!$B$3:$U$5,2,0),0) -> 0.3 | EE30: =IF(AND(EE$3<>"",DJ30<>0),HLOOKUP(EE$4,'Agency cashability'!$B$3:$U$5,2,0),0) -> 0.2 | EF30: =IF(AND(EF$3<>"",DK30<>0),HLOOKUP(EF$4,'Agency cashability'!$B$3:$U$5,2,0),0) -> 0.2 | EG30: =IF(AND(EG$3<>"",DL30<>0),HLOOKUP(EG$4,'Agency cashability'!$B$3:$U$5,2,0),0) -> 0.2 | EH30: =IF(AND(EH$3<>"",DM30<>0),HLOOKUP(EH$4,'Agency cashability'!$B$3:$U$5,2,0),0) -> 0.2 | EI30: =IF(AND(EI$3<>"",DN30<>0),HLOOKUP(EI$4,'Agency cashability'!$B$3:$U$5,2,0),0) -> 0 | EJ30: =IF(AND(EJ$3<>"",DO30<>0),HLOOKUP(EJ$4,'Agency cashability'!$B$3:$U$5,2,0),0) -> 0 | EK30: =IF(AND(EK$3<>"",DP30<>0),HLOOKUP(EK$4,'Agency cashability'!$B$3:$U$5,2,0),0) -> 0 | EL30: =IF(AND(EL$3<>"",DQ30<>0),HLOOKUP(EL$4,'Agency cashability'!$B$3:$U$5,2,0),0) -> 0 | EM30: =IF(AND(EM$3<>"",DR30<>0),HLOOKUP(EM$4,'Agency cashability'!$B$3:$U$5,2,0),0) -> 0 | EN30: =IF(AND(EN$3<>"",DS30<>0),HLOOKUP(EN$4,'Agency cashability'!$B$3:$U$5,2,0),0) -> 0 | EO30: =IF(AND(EO$3<>"",DT30<>0),HLOOKUP(EO$4,'Agency cashability'!$B$3:$U$5,2,0),0) -> 0 | EP30: =IF(AND(EP$3<>"",DU30<>0),HLOOKUP(EP$4,'Agency cashability'!$B$3:$U$5,2,0),0) -> 0 | EQ30: =IF(AND(EQ$3<>"",DV30<>0),HLOOKUP(EQ$4,'Agency cashability'!$B$3:$U$5,2,0),0) -> 0 | ER30: =IF(AND(ER$3<>"",DW30<>0),HLOOKUP(ER$4,'Agency cashability'!$B$3:$U$5,2,0),0) -> 0 | ES30: =IF(AND(ES$3<>"",DX30<>0),HLOOKUP(ES$4,'Agency cashability'!$B$3:$U$5,2,0),0) -> 0 | ET30: =IF(AND(ET$3<>"",DY30<>0),HLOOKUP(ET$4,'Agency cashability'!$B$3:$U$5,2,0),0) -> 0 | EU30: =IF(AND(EU$3<>"",DZ30<>0),HLOOKUP(EU$4,'Agency cashability'!$B$3:$U$5,2,0),0) -> 0 | EW30: =IF(AND(EW$3<>"",DG30<>0),HLOOKUP(EW$4,'Agency cashability'!$B$3:$U$5,3,0),0) -> 0 | EX30: =IF(AND(EX$3<>"",DH30<>0),HLOOKUP(EX$4,'Agency cashability'!$B$3:$U$5,3,0),0) -> 0 | EY30: =IF(AND(EY$3<>"",DI30<>0),HLOOKUP(EY$4,'Agency cashability'!$B$3:$U$5,3,0),0) -> 0.6 | EZ30: =IF(AND(EZ$3<>"",DJ30<>0),HLOOKUP(EZ$4,'Agency cashability'!$B$3:$U$5,3,0),0) -> 0.5 | FA30: =IF(AND(FA$3<>"",DK30<>0),HLOOKUP(FA$4,'Agency cashability'!$B$3:$U$5,3,0),0) -> 0.5 | FB30: =IF(AND(FB$3<>"",DL30<>0),HLOOKUP(FB$4,'Agency cashability'!$B$3:$U$5,3,0),0) -> 0.5 | FC30: =IF(AND(FC$3<>"",DM30<>0),HLOOKUP(FC$4,'Agency cashability'!$B$3:$U$5,3,0),0) -> 0.5 | FD30: =IF(AND(FD$3<>"",DN30<>0),HLOOKUP(FD$4,'Agency cashability'!$B$3:$U$5,3,0),0) -> 0 | FE30: =IF(AND(FE$3<>"",DO30<>0),HLOOKUP(FE$4,'Agency cashability'!$B$3:$U$5,3,0),0) -> 0 | FF30: =IF(AND(FF$3<>"",DP30<>0),HLOOKUP(FF$4,'Agency cashability'!$B$3:$U$5,3,0),0) -> 0 | FG30: =IF(AND(FG$3<>"",DQ30<>0),HLOOKUP(FG$4,'Agency cashability'!$B$3:$U$5,3,0),0) -> 0 | FH30: =IF(AND(FH$3<>"",DR30<>0),HLOOKUP(FH$4,'Agency cashability'!$B$3:$U$5,3,0),0) -> 0 | FI30: =IF(AND(FI$3<>"",DS30<>0),HLOOKUP(FI$4,'Agency cashability'!$B$3:$U$5,3,0),0) -> 0 | FJ30: =IF(AND(FJ$3<>"",DT30<>0),HLOOKUP(FJ$4,'Agency cashability'!$B$3:$U$5,3,0),0) -> 0 | FK30: =IF(AND(FK$3<>"",DU30<>0),HLOOKUP(FK$4,'Agency cashability'!$B$3:$U$5,3,0),0) -> 0 | FL30: =IF(AND(FL$3<>"",DV30<>0),HLOOKUP(FL$4,'Agency cashability'!$B$3:$U$5,3,0),0) -> 0 | FM30: =IF(AND(FM$3<>"",DW30<>0),HLOOKUP(FM$4,'Agency cashability'!$B$3:$U$5,3,0),0) -> 0 | FN30: =IF(AND(FN$3<>"",DX30<>0),HLOOKUP(FN$4,'Agency cashability'!$B$3:$U$5,3,0),0) -> 0 | FO30: =IF(AND(FO$3<>"",DY30<>0),HLOOKUP(FO$4,'Agency cashability'!$B$3:$U$5,3,0),0) -> 0 | FP30: =IF(AND(FP$3<>"",DZ30<>0),HLOOKUP(FP$4,'Agency cashability'!$B$3:$U$5,3,0),0) -> 0 | FR30: 0 | FS30: 0 | FT30: 0 | FU30: 0 | FV30: 0 | FW30: 0 | FX30: 0 | FY30: 0 | FZ30: 0 | GA30: 0 | GB30: 0 | GM30: =IF((GM$3<>""),EB30*FR30,"") -> 0 | GN30: 0 | GO30: 0 | GP30: 0 | GQ30: 0 | GR30: 0 | GS30: 0 | GT30: 0 | GU30: 0 | GV30: 0 | GW30: 0 | HJ30: =IF((HJ$3<>""),EW30*FR30,"") -> 0 | HK30: 0 | HL30: 0 | HM30: 0 | HN30: 0 | HO30: 0 | HP30: 0 | HQ30: 0 | HR30: 0 | HS30: 0 | HT30: 0
A31: B9p | B31: Reduced incidents of crime - commercial - theft from vehicle | C31: No | D31: Reduced police, other criminal justice costs, health costs per actual crime (N.B. Use multipliers to convert from recorded crime or convictions) | E31: Police, CJS, NHS | R31: ='Cost of crime analysis'!S27 -> 72.95394077 | S31: 72.95394077 | T31: ='Cost of crime analysis'!T27 -> 773.8839599 | U31: ='Cost of crime analysis'!U27 -> 399.0565063 | V31: 1245.894407 | W31: 2010-11 | X31: =VLOOKUP(W31,'GDP Deflators'!$B$8:$C$72,2,0)*100/VLOOKUP('Model constants'!$B$3,'GDP Deflators'!$B$8:$C$72,2,0) -> 90.71467399 | Y31: 'Figures derived from 'Revisions made to the multipliers and unit costs of crime used in the Integrated Offender Management Value for Money Toolkit, 2011 | AA31: 0 | AB31: 0 | BE31: 0 | BF31: 0 | BG31: 0 | BH31: 0 | BI31: 0 | BJ31: 0 | BK31: 0 | BL31: 0 | BM31: 0 | BN31: 0 | BO31: 0 | BP31: 0 | BQ31: 0 | BR31: 0 | BS31: 0 | BT31: 0 | BU31: 0 | BV31: 0 | BW31: 0 | BX31: 0 | BY31: 0 | BZ31: 0 | CA31: 0 | CB31: 0 | CC31: 0 | CD31: 0 | CF31: 0 | CG31: 0 | CH31: 0 | CI31: 0 | CJ31: 0 | CK31: 0 | CL31: 0 | CM31: 0 | CN31: 0 | CO31: 0 | CP31: 0 | CQ31: 0 | CR31: 0 | CS31: 0 | CT31: 0 | CU31: 0 | CV31: 0 | CW31: 0 | CX31: 0 | CY31: 0 | CZ31: 0 | DA31: 0 | DB31: 0 | DC31: 0 | DD31: 0 | DE31: 0 | DG31: =IF(DG$3<>"",VLOOKUP($A31,'Agency percentages'!$A$5:$X$69,(3+MATCH(DG$4,'Agency percentages'!$D$4:$W$4,0)),FALSE),"") -> 0 | DH31: =IF(DH$3<>"",VLOOKUP($A31,'Agency percentages'!$A$5:$X$69,(3+MATCH(DH$4,'Agency percentages'!$D$4:$W$4,0)),FALSE),"") -> 0 | DI31: =IF(DI$3<>"",VLOOKUP($A31,'Agency percentages'!$A$5:$X$69,(3+MATCH(DI$4,'Agency percentages'!$D$4:$W$4,0)),FALSE),"") -> 0.4262574595 | DJ31: =IF(DJ$3<>"",VLOOKUP($A31,'Agency percentages'!$A$5:$X$69,(3+MATCH(DJ$4,'Agency percentages'!$D$4:$W$4,0)),FALSE),"") -> 0.0852514919 | DK31: =IF(DK$3<>"",VLOOKUP($A31,'Agency percentages'!$A$5:$X$69,(3+MATCH(DK$4,'Agency percentages'!$D$4:$W$4,0)),FALSE),"") -> 0.2131287298 | DL31: =IF(DL$3<>"",VLOOKUP($A31,'Agency percentages'!$A$5:$X$69,(3+MATCH(DL$4,'Agency percentages'!$D$4:$W$4,0)),FALSE),"") -> 0.2557544757 | DM31: =IF(DM$3<>"",VLOOKUP($A31,'Agency percentages'!$A$5:$X$69,(3+MATCH(DM$4,'Agency percentages'!$D$4:$W$4,0)),FALSE),"") -> 0.01960784314 | DN31: =IF(DN$3<>"",VLOOKUP($A31,'Agency percentages'!$A$5:$X$69,(3+MATCH(DN$4,'Agency percentages'!$D$4:$W$4,0)),FALSE),"") -> 0 | DO31: =IF(DO$3<>"",VLOOKUP($A31,'Agency percentages'!$A$5:$X$69,(3+MATCH(DO$4,'Agency percentages'!$D$4:$W$4,0)),FALSE),"") -> 0 | DP31: =IF(DP$3<>"",VLOOKUP($A31,'Agency percentages'!$A$5:$X$69,(3+MATCH(DP$4,'Agency percentages'!$D$4:$W$4,0)),FALSE),"") -> 0 | DQ31: =IF(DQ$3<>"",VLOOKUP($A31,'Agency percentages'!$A$5:$X$69,(3+MATCH(DQ$4,'Agency percentages'!$D$4:$W$4,0)),FALSE),"") -> 0 | DR31: =IF(DR$3<>"",VLOOKUP($A31,'Agency percentages'!$A$5:$X$69,(3+MATCH(DR$4,'Agency percentages'!$D$4:$W$4,0)),FALSE),"") ->  | DS31: =IF(DS$3<>"",VLOOKUP($A31,'Agency percentages'!$A$5:$X$69,(3+MATCH(DS$4,'Agency percentages'!$D$4:$W$4,0)),FALSE),"") ->  | DT31: =IF(DT$3<>"",VLOOKUP($A31,'Agency percentages'!$A$5:$X$69,(3+MATCH(DT$4,'Agency percentages'!$D$4:$W$4,0)),FALSE),"") ->  | DU31: =IF(DU$3<>"",VLOOKUP($A31,'Agency percentages'!$A$5:$X$69,(3+MATCH(DU$4,'Agency percentages'!$D$4:$W$4,0)),FALSE),"") ->  | DV31: =IF(DV$3<>"",VLOOKUP($A31,'Agency percentages'!$A$5:$X$69,(3+MATCH(DV$4,'Agency percentages'!$D$4:$W$4,0)),FALSE),"") ->  | DW31: =IF(DW$3<>"",VLOOKUP($A31,'Agency percentages'!$A$5:$X$69,(3+MATCH(DW$4,'Agency percentages'!$D$4:$W$4,0)),FALSE),"") ->  | DX31: =IF(DX$3<>"",VLOOKUP($A31,'Agency percentages'!$A$5:$X$69,(3+MATCH(DX$4,'Agency percentages'!$D$4:$W$4,0)),FALSE),"") ->  | DY31: =IF(DY$3<>"",VLOOKUP($A31,'Agency percentages'!$A$5:$X$69,(3+MATCH(DY$4,'Agency percentages'!$D$4:$W$4,0)),FALSE),"") ->  | DZ31: =IF(DZ$3<>"",VLOOKUP($A31,'Agency percentages'!$A$5:$X$69,(3+MATCH(DZ$4,'Agency percentages'!$D$4:$W$4,0)),FALSE),"") ->  | EB31: =IF(AND(EB$3<>"",DG31<>0),HLOOKUP(EB$4,'Agency cashability'!$B$3:$U$5,2,0),0) -> 0 | EC31: =IF(AND(EC$3<>"",DH31<>0),HLOOKUP(EC$4,'Agency cashability'!$B$3:$U$5,2,0),0) -> 0 | ED31: =IF(AND(ED$3<>"",DI31<>0),HLOOKUP(ED$4,'Agency cashability'!$B$3:$U$5,2,0),0) -> 0.3 | EE31: =IF(AND(EE$3<>"",DJ31<>0),HLOOKUP(EE$4,'Agency cashability'!$B$3:$U$5,2,0),0) -> 0.2 | EF31: =IF(AND(EF$3<>"",DK31<>0),HLOOKUP(EF$4,'Agency cashability'!$B$3:$U$5,2,0),0) -> 0.2 | EG31: =IF(AND(EG$3<>"",DL31<>0),HLOOKUP(EG$4,'Agency cashability'!$B$3:$U$5,2,0),0) -> 0.2 | EH31: =IF(AND(EH$3<>"",DM31<>0),HLOOKUP(EH$4,'Agency cashability'!$B$3:$U$5,2,0),0) -> 0.2 | EI31: =IF(AND(EI$3<>"",DN31<>0),HLOOKUP(EI$4,'Agency cashability'!$B$3:$U$5,2,0),0) -> 0 | EJ31: =IF(AND(EJ$3<>"",DO31<>0),HLOOKUP(EJ$4,'Agency cashability'!$B$3:$U$5,2,0),0) -> 0 | EK31: =IF(AND(EK$3<>"",DP31<>0),HLOOKUP(EK$4,'Agency cashability'!$B$3:$U$5,2,0),0) -> 0 | EL31: =IF(AND(EL$3<>"",DQ31<>0),HLOOKUP(EL$4,'Agency cashability'!$B$3:$U$5,2,0),0) -> 0 | EM31: =IF(AND(EM$3<>"",DR31<>0),HLOOKUP(EM$4,'Agency cashability'!$B$3:$U$5,2,0),0) -> 0 | EN31: =IF(AND(EN$3<>"",DS31<>0),HLOOKUP(EN$4,'Agency cashability'!$B$3:$U$5,2,0),0) -> 0 | EO31: =IF(AND(EO$3<>"",DT31<>0),HLOOKUP(EO$4,'Agency cashability'!$B$3:$U$5,2,0),0) -> 0 | EP31: =IF(AND(EP$3<>"",DU31<>0),HLOOKUP(EP$4,'Agency cashability'!$B$3:$U$5,2,0),0) -> 0 | EQ31: =IF(AND(EQ$3<>"",DV31<>0),HLOOKUP(EQ$4,'Agency cashability'!$B$3:$U$5,2,0),0) -> 0 | ER31: =IF(AND(ER$3<>"",DW31<>0),HLOOKUP(ER$4,'Agency cashability'!$B$3:$U$5,2,0),0) -> 0 | ES31: =IF(AND(ES$3<>"",DX31<>0),HLOOKUP(ES$4,'Agency cashability'!$B$3:$U$5,2,0),0) -> 0 | ET31: =IF(AND(ET$3<>"",DY31<>0),HLOOKUP(ET$4,'Agency cashability'!$B$3:$U$5,2,0),0) -> 0 | EU31: =IF(AND(EU$3<>"",DZ31<>0),HLOOKUP(EU$4,'Agency cashability'!$B$3:$U$5,2,0),0) -> 0 | EW31: =IF(AND(EW$3<>"",DG31<>0),HLOOKUP(EW$4,'Agency cashability'!$B$3:$U$5,3,0),0) -> 0 | EX31: =IF(AND(EX$3<>"",DH31<>0),HLOOKUP(EX$4,'Agency cashability'!$B$3:$U$5,3,0),0) -> 0 | EY31: =IF(AND(EY$3<>"",DI31<>0),HLOOKUP(EY$4,'Agency cashability'!$B$3:$U$5,3,0),0) -> 0.6 | EZ31: =IF(AND(EZ$3<>"",DJ31<>0),HLOOKUP(EZ$4,'Agency cashability'!$B$3:$U$5,3,0),0) -> 0.5 | FA31: =IF(AND(FA$3<>"",DK31<>0),HLOOKUP(FA$4,'Agency cashability'!$B$3:$U$5,3,0),0) -> 0.5 | FB31: =IF(AND(FB$3<>"",DL31<>0),HLOOKUP(FB$4,'Agency cashability'!$B$3:$U$5,3,0),0) -> 0.5 | FC31: =IF(AND(FC$3<>"",DM31<>0),HLOOKUP(FC$4,'Agency cashability'!$B$3:$U$5,3,0),0) -> 0.5 | FD31: =IF(AND(FD$3<>"",DN31<>0),HLOOKUP(FD$4,'Agency cashability'!$B$3:$U$5,3,0),0) -> 0 | FE31: =IF(AND(FE$3<>"",DO31<>0),HLOOKUP(FE$4,'Agency cashability'!$B$3:$U$5,3,0),0) -> 0 | FF31: =IF(AND(FF$3<>"",DP31<>0),HLOOKUP(FF$4,'Agency cashability'!$B$3:$U$5,3,0),0) -> 0 | FG31: =IF(AND(FG$3<>"",DQ31<>0),HLOOKUP(FG$4,'Agency cashability'!$B$3:$U$5,3,0),0) -> 0 | FH31: =IF(AND(FH$3<>"",DR31<>0),HLOOKUP(FH$4,'Agency cashability'!$B$3:$U$5,3,0),0) -> 0 | FI31: =IF(AND(FI$3<>"",DS31<>0),HLOOKUP(FI$4,'Agency cashability'!$B$3:$U$5,3,0),0) -> 0 | FJ31: =IF(AND(FJ$3<>"",DT31<>0),HLOOKUP(FJ$4,'Agency cashability'!$B$3:$U$5,3,0),0) -> 0 | FK31: =IF(AND(FK$3<>"",DU31<>0),HLOOKUP(FK$4,'Agency cashability'!$B$3:$U$5,3,0),0) -> 0 | FL31: =IF(AND(FL$3<>"",DV31<>0),HLOOKUP(FL$4,'Agency cashability'!$B$3:$U$5,3,0),0) -> 0 | FM31: =IF(AND(FM$3<>"",DW31<>0),HLOOKUP(FM$4,'Agency cashability'!$B$3:$U$5,3,0),0) -> 0 | FN31: =IF(AND(FN$3<>"",DX31<>0),HLOOKUP(FN$4,'Agency cashability'!$B$3:$U$5,3,0),0) -> 0 | FO31: =IF(AND(FO$3<>"",DY31<>0),HLOOKUP(FO$4,'Agency cashability'!$B$3:$U$5,3,0),0) -> 0 | FP31: =IF(AND(FP$3<>"",DZ31<>0),HLOOKUP(FP$4,'Agency cashability'!$B$3:$U$5,3,0),0) -> 0 | FR31: 0 | FS31: 0 | FT31: 0 | FU31: 0 | FV31: 0 | FW31: 0 | FX31: 0 | FY31: 0 | FZ31: 0 | GA31: 0 | GB31: 0 | GM31: =IF((GM$3<>""),EB31*FR31,"") -> 0 | GN31: 0 | GO31: 0 | GP31: 0 | GQ31: 0 | GR31: 0 | GS31: 0 | GT31: 0 | GU31: 0 | GV31: 0 | GW31: 0 | HJ31: =IF((HJ$3<>""),EW31*FR31,"") -> 0 | HK31: 0 | HL31: 0 | HM31: 0 | HN31: 0 | HO31: 0 | HP31: 0 | HQ31: 0 | HR31: 0 | HS31: 0 | HT31: 0
A32: B9q | B32: Reduced incidents of crime - commercial -attempted vehicle theft | C32: No | D32: Reduced police, other criminal justice costs, health costs per actual crime (N.B. Use multipliers to convert from recorded crime or convictions) | E32: Police, CJS, NHS | R32: ='Cost of crime analysis'!S28 -> 78.22624237 | S32: 78.22624237 | T32: ='Cost of crime analysis'!T28 -> 297.4967702 | U32: ='Cost of crime analysis'!U28 -> 241.1484323 | V32: 616.8714449 | W32: 2010-11 | X32: =VLOOKUP(W32,'GDP Deflators'!$B$8:$C$72,2,0)*100/VLOOKUP('Model constants'!$B$3,'GDP Deflators'!$B$8:$C$72,2,0) -> 90.71467399 | Y32: 'Figures derived from 'Revisions made to the multipliers and unit costs of crime used in the Integrated Offender Management Value for Money Toolkit, 2011 | AA32: 0 | AB32: 0 | BE32: 0 | BF32: 0 | BG32: 0 | BH32: 0 | BI32: 0 | BJ32: 0 | BK32: 0 | BL32: 0 | BM32: 0 | BN32: 0 | BO32: 0 | BP32: 0 | BQ32: 0 | BR32: 0 | BS32: 0 | BT32: 0 | BU32: 0 | BV32: 0 | BW32: 0 | BX32: 0 | BY32: 0 | BZ32: 0 | CA32: 0 | CB32: 0 | CC32: 0 | CD32: 0 | CF32: 0 | CG32: 0 | CH32: 0 | CI32: 0 | CJ32: 0 | CK32: 0 | CL32: 0 | CM32: 0 | CN32: 0 | CO32: 0 | CP32: 0 | CQ32: 0 | CR32: 0 | CS32: 0 | CT32: 0 | CU32: 0 | CV32: 0 | CW32: 0 | CX32: 0 | CY32: 0 | CZ32: 0 | DA32: 0 | DB32: 0 | DC32: 0 | DD32: 0 | DE32: 0 | DG32: =IF(DG$3<>"",VLOOKUP($A32,'Agency percentages'!$A$5:$X$69,(3+MATCH(DG$4,'Agency percentages'!$D$4:$W$4,0)),FALSE),"") -> 0 | DH32: =IF(DH$3<>"",VLOOKUP($A32,'Agency percentages'!$A$5:$X$69,(3+MATCH(DH$4,'Agency percentages'!$D$4:$W$4,0)),FALSE),"") -> 0 | DI32: =IF(DI$3<>"",VLOOKUP($A32,'Agency percentages'!$A$5:$X$69,(3+MATCH(DI$4,'Agency percentages'!$D$4:$W$4,0)),FALSE),"") -> 0.5744949495 | DJ32: =IF(DJ$3<>"",VLOOKUP($A32,'Agency percentages'!$A$5:$X$69,(3+MATCH(DJ$4,'Agency percentages'!$D$4:$W$4,0)),FALSE),"") -> 0.08207070707 | DK32: =IF(DK$3<>"",VLOOKUP($A32,'Agency percentages'!$A$5:$X$69,(3+MATCH(DK$4,'Agency percentages'!$D$4:$W$4,0)),FALSE),"") -> 0.08207070707 | DL32: =IF(DL$3<>"",VLOOKUP($A32,'Agency percentages'!$A$5:$X$69,(3+MATCH(DL$4,'Agency percentages'!$D$4:$W$4,0)),FALSE),"") -> 0.2462121212 | DM32: =IF(DM$3<>"",VLOOKUP($A32,'Agency percentages'!$A$5:$X$69,(3+MATCH(DM$4,'Agency percentages'!$D$4:$W$4,0)),FALSE),"") -> 0.01515151515 | DN32: =IF(DN$3<>"",VLOOKUP($A32,'Agency percentages'!$A$5:$X$69,(3+MATCH(DN$4,'Agency percentages'!$D$4:$W$4,0)),FALSE),"") -> 0 | DO32: =IF(DO$3<>"",VLOOKUP($A32,'Agency percentages'!$A$5:$X$69,(3+MATCH(DO$4,'Agency percentages'!$D$4:$W$4,0)),FALSE),"") -> 0 | DP32: =IF(DP$3<>"",VLOOKUP($A32,'Agency percentages'!$A$5:$X$69,(3+MATCH(DP$4,'Agency percentages'!$D$4:$W$4,0)),FALSE),"") -> 0 | DQ32: =IF(DQ$3<>"",VLOOKUP($A32,'Agency percentages'!$A$5:$X$69,(3+MATCH(DQ$4,'Agency percentages'!$D$4:$W$4,0)),FALSE),"") -> 0 | DR32: =IF(DR$3<>"",VLOOKUP($A32,'Agency percentages'!$A$5:$X$69,(3+MATCH(DR$4,'Agency percentages'!$D$4:$W$4,0)),FALSE),"") ->  | DS32: =IF(DS$3<>"",VLOOKUP($A32,'Agency percentages'!$A$5:$X$69,(3+MATCH(DS$4,'Agency percentages'!$D$4:$W$4,0)),FALSE),"") ->  | DT32: =IF(DT$3<>"",VLOOKUP($A32,'Agency percentages'!$A$5:$X$69,(3+MATCH(DT$4,'Agency percentages'!$D$4:$W$4,0)),FALSE),"") ->  | DU32: =IF(DU$3<>"",VLOOKUP($A32,'Agency percentages'!$A$5:$X$69,(3+MATCH(DU$4,'Agency percentages'!$D$4:$W$4,0)),FALSE),"") ->  | DV32: =IF(DV$3<>"",VLOOKUP($A32,'Agency percentages'!$A$5:$X$69,(3+MATCH(DV$4,'Agency percentages'!$D$4:$W$4,0)),FALSE),"") ->  | DW32: =IF(DW$3<>"",VLOOKUP($A32,'Agency percentages'!$A$5:$X$69,(3+MATCH(DW$4,'Agency percentages'!$D$4:$W$4,0)),FALSE),"") ->  | DX32: =IF(DX$3<>"",VLOOKUP($A32,'Agency percentages'!$A$5:$X$69,(3+MATCH(DX$4,'Agency percentages'!$D$4:$W$4,0)),FALSE),"") ->  | DY32: =IF(DY$3<>"",VLOOKUP($A32,'Agency percentages'!$A$5:$X$69,(3+MATCH(DY$4,'Agency percentages'!$D$4:$W$4,0)),FALSE),"") ->  | DZ32: =IF(DZ$3<>"",VLOOKUP($A32,'Agency percentages'!$A$5:$X$69,(3+MATCH(DZ$4,'Agency percentages'!$D$4:$W$4,0)),FALSE),"") ->  | EB32: =IF(AND(EB$3<>"",DG32<>0),HLOOKUP(EB$4,'Agency cashability'!$B$3:$U$5,2,0),0) -> 0 | EC32: =IF(AND(EC$3<>"",DH32<>0),HLOOKUP(EC$4,'Agency cashability'!$B$3:$U$5,2,0),0) -> 0 | ED32: =IF(AND(ED$3<>"",DI32<>0),HLOOKUP(ED$4,'Agency cashability'!$B$3:$U$5,2,0),0) -> 0.3 | EE32: =IF(AND(EE$3<>"",DJ32<>0),HLOOKUP(EE$4,'Agency cashability'!$B$3:$U$5,2,0),0) -> 0.2 | EF32: =IF(AND(EF$3<>"",DK32<>0),HLOOKUP(EF$4,'Agency cashability'!$B$3:$U$5,2,0),0) -> 0.2 | EG32: =IF(AND(EG$3<>"",DL32<>0),HLOOKUP(EG$4,'Agency cashability'!$B$3:$U$5,2,0),0) -> 0.2 | EH32: =IF(AND(EH$3<>"",DM32<>0),HLOOKUP(EH$4,'Agency cashability'!$B$3:$U$5,2,0),0) -> 0.2 | EI32: =IF(AND(EI$3<>"",DN32<>0),HLOOKUP(EI$4,'Agency cashability'!$B$3:$U$5,2,0),0) -> 0 | EJ32: =IF(AND(EJ$3<>"",DO32<>0),HLOOKUP(EJ$4,'Agency cashability'!$B$3:$U$5,2,0),0) -> 0 | EK32: =IF(AND(EK$3<>"",DP32<>0),HLOOKUP(EK$4,'Agency cashability'!$B$3:$U$5,2,0),0) -> 0 | EL32: =IF(AND(EL$3<>"",DQ32<>0),HLOOKUP(EL$4,'Agency cashability'!$B$3:$U$5,2,0),0) -> 0 | EM32: =IF(AND(EM$3<>"",DR32<>0),HLOOKUP(EM$4,'Agency cashability'!$B$3:$U$5,2,0),0) -> 0 | EN32: =IF(AND(EN$3<>"",DS32<>0),HLOOKUP(EN$4,'Agency cashability'!$B$3:$U$5,2,0),0) -> 0 | EO32: =IF(AND(EO$3<>"",DT32<>0),HLOOKUP(EO$4,'Agency cashability'!$B$3:$U$5,2,0),0) -> 0 | EP32: =IF(AND(EP$3<>"",DU32<>0),HLOOKUP(EP$4,'Agency cashability'!$B$3:$U$5,2,0),0) -> 0 | EQ32: =IF(AND(EQ$3<>"",DV32<>0),HLOOKUP(EQ$4,'Agency cashability'!$B$3:$U$5,2,0),0) -> 0 | ER32: =IF(AND(ER$3<>"",DW32<>0),HLOOKUP(ER$4,'Agency cashability'!$B$3:$U$5,2,0),0) -> 0 | ES32: =IF(AND(ES$3<>"",DX32<>0),HLOOKUP(ES$4,'Agency cashability'!$B$3:$U$5,2,0),0) -> 0 | ET32: =IF(AND(ET$3<>"",DY32<>0),HLOOKUP(ET$4,'Agency cashability'!$B$3:$U$5,2,0),0) -> 0 | EU32: =IF(AND(EU$3<>"",DZ32<>0),HLOOKUP(EU$4,'Agency cashability'!$B$3:$U$5,2,0),0) -> 0 | EW32: =IF(AND(EW$3<>"",DG32<>0),HLOOKUP(EW$4,'Agency cashability'!$B$3:$U$5,3,0),0) -> 0 | EX32: =IF(AND(EX$3<>"",DH32<>0),HLOOKUP(EX$4,'Agency cashability'!$B$3:$U$5,3,0),0) -> 0 | EY32: =IF(AND(EY$3<>"",DI32<>0),HLOOKUP(EY$4,'Agency cashability'!$B$3:$U$5,3,0),0) -> 0.6 | EZ32: =IF(AND(EZ$3<>"",DJ32<>0),HLOOKUP(EZ$4,'Agency cashability'!$B$3:$U$5,3,0),0) -> 0.5 | FA32: =IF(AND(FA$3<>"",DK32<>0),HLOOKUP(FA$4,'Agency cashability'!$B$3:$U$5,3,0),0) -> 0.5 | FB32: =IF(AND(FB$3<>"",DL32<>0),HLOOKUP(FB$4,'Agency cashability'!$B$3:$U$5,3,0),0) -> 0.5 | FC32: =IF(AND(FC$3<>"",DM32<>0),HLOOKUP(FC$4,'Agency cashability'!$B$3:$U$5,3,0),0) -> 0.5 | FD32: =IF(AND(FD$3<>"",DN32<>0),HLOOKUP(FD$4,'Agency cashability'!$B$3:$U$5,3,0),0) -> 0 | FE32: =IF(AND(FE$3<>"",DO32<>0),HLOOKUP(FE$4,'Agency cashability'!$B$3:$U$5,3,0),0) -> 0 | FF32: =IF(AND(FF$3<>"",DP32<>0),HLOOKUP(FF$4,'Agency cashability'!$B$3:$U$5,3,0),0) -> 0 | FG32: =IF(AND(FG$3<>"",DQ32<>0),HLOOKUP(FG$4,'Agency cashability'!$B$3:$U$5,3,0),0) -> 0 | FH32: =IF(AND(FH$3<>"",DR32<>0),HLOOKUP(FH$4,'Agency cashability'!$B$3:$U$5,3,0),0) -> 0 | FI32: =IF(AND(FI$3<>"",DS32<>0),HLOOKUP(FI$4,'Agency cashability'!$B$3:$U$5,3,0),0) -> 0 | FJ32: =IF(AND(FJ$3<>"",DT32<>0),HLOOKUP(FJ$4,'Agency cashability'!$B$3:$U$5,3,0),0) -> 0 | FK32: =IF(AND(FK$3<>"",DU32<>0),HLOOKUP(FK$4,'Agency cashability'!$B$3:$U$5,3,0),0) -> 0 | FL32: =IF(AND(FL$3<>"",DV32<>0),HLOOKUP(FL$4,'Agency cashability'!$B$3:$U$5,3,0),0) -> 0 | FM32: =IF(AND(FM$3<>"",DW32<>0),HLOOKUP(FM$4,'Agency cashability'!$B$3:$U$5,3,0),0) -> 0 | FN32: =IF(AND(FN$3<>"",DX32<>0),HLOOKUP(FN$4,'Agency cashability'!$B$3:$U$5,3,0),0) -> 0 | FO32: =IF(AND(FO$3<>"",DY32<>0),HLOOKUP(FO$4,'Agency cashability'!$B$3:$U$5,3,0),0) -> 0 | FP32: =IF(AND(FP$3<>"",DZ32<>0),HLOOKUP(FP$4,'Agency cashability'!$B$3:$U$5,3,0),0) -> 0 | FR32: 0 | FS32: 0 | FT32: 0 | FU32: 0 | FV32: 0 | FW32: 0 | FX32: 0 | FY32: 0 | FZ32: 0 | GA32: 0 | GB32: 0 | GM32: =IF((GM$3<>""),EB32*FR32,"") -> 0 | GN32: 0 | GO32: 0 | GP32: 0 | GQ32: 0 | GR32: 0 | GS32: 0 | GT32: 0 | GU32: 0 | GV32: 0 | GW32: 0 | HH32: =SUM(GM32:HF32)/SUM(FR32:GK32) ->  | HJ32: =IF((HJ$3<>""),EW32*FR32,"") -> 0 | HK32: 0 | HL32: 0 | HM32: 0 | HN32: 0 | HO32: 0 | HP32: 0 | HQ32: 0 | HR32: 0 | HS32: 0 | HT32: 0 | IE32: =SUM(HJ32:IC32)/SUM(FR32:GK32) -> 
A33: B9r | B33: Reduced incidents of crime - shoplifting | C33: No | D33: Reduced police, other criminal justice costs, health costs per actual crime (N.B. Use multipliers to convert from recorded crime or convictions) | E33: Police, CJS, NHS | R33: ='Cost of crime analysis'!S29 -> 26.21637 | S33: 26.21637 | T33: ='Cost of crime analysis'!T29 -> 97.37955873 | U33: ='Cost of crime analysis'!U29 -> 0 | V33: 123.5959287 | W33: 2010-11 | X33: =VLOOKUP(W33,'GDP Deflators'!$B$8:$C$72,2,0)*100/VLOOKUP('Model constants'!$B$3,'GDP Deflators'!$B$8:$C$72,2,0) -> 90.71467399 | Y33: 'Figures derived from 'Revisions made to the multipliers and unit costs of crime used in the Integrated Offender Management Value for Money Toolkit, 2011 | AA33: 0 | AB33: 0 | BE33: 0 | BF33: 0 | BG33: 0 | BH33: 0 | BI33: 0 | BJ33: 0 | BK33: 0 | BL33: 0 | BM33: 0 | BN33: 0 | BO33: 0 | BP33: 0 | BQ33: 0 | BR33: 0 | BS33: 0 | BT33: 0 | BU33: 0 | BV33: 0 | BW33: 0 | BX33: 0 | BY33: 0 | BZ33: 0 | CA33: 0 | CB33: 0 | CC33: 0 | CD33: 0 | CF33: 0 | CG33: 0 | CH33: 0 | CI33: 0 | CJ33: 0 | CK33: 0 | CL33: 0 | CM33: 0 | CN33: 0 | CO33: 0 | CP33: 0 | CQ33: 0 | CR33: 0 | CS33: 0 | CT33: 0 | CU33: 0 | CV33: 0 | CW33: 0 | CX33: 0 | CY33: 0 | CZ33: 0 | DA33: 0 | DB33: 0 | DC33: 0 | DD33: 0 | DE33: 0 | DG33: =IF(DG$3<>"",VLOOKUP($A33,'Agency percentages'!$A$5:$X$69,(3+MATCH(DG$4,'Agency percentages'!$D$4:$W$4,0)),FALSE),"") -> 0 | DH33: =IF(DH$3<>"",VLOOKUP($A33,'Agency percentages'!$A$5:$X$69,(3+MATCH(DH$4,'Agency percentages'!$D$4:$W$4,0)),FALSE),"") -> 0 | DI33: =IF(DI$3<>"",VLOOKUP($A33,'Agency percentages'!$A$5:$X$69,(3+MATCH(DI$4,'Agency percentages'!$D$4:$W$4,0)),FALSE),"") -> 0.4666666667 | DJ33: =IF(DJ$3<>"",VLOOKUP($A33,'Agency percentages'!$A$5:$X$69,(3+MATCH(DJ$4,'Agency percentages'!$D$4:$W$4,0)),FALSE),"") -> 0.1333333333 | DK33: =IF(DK$3<>"",VLOOKUP($A33,'Agency percentages'!$A$5:$X$69,(3+MATCH(DK$4,'Agency percentages'!$D$4:$W$4,0)),FALSE),"") -> 0.1333333333 | DL33: =IF(DL$3<>"",VLOOKUP($A33,'Agency percentages'!$A$5:$X$69,(3+MATCH(DL$4,'Agency percentages'!$D$4:$W$4,0)),FALSE),"") -> 0.2666666667 | DM33: =IF(DM$3<>"",VLOOKUP($A33,'Agency percentages'!$A$5:$X$69,(3+MATCH(DM$4,'Agency percentages'!$D$4:$W$4,0)),FALSE),"") -> 0 | DN33: =IF(DN$3<>"",VLOOKUP($A33,'Agency percentages'!$A$5:$X$69,(3+MATCH(DN$4,'Agency percentages'!$D$4:$W$4,0)),FALSE),"") -> 0 | DO33: =IF(DO$3<>"",VLOOKUP($A33,'Agency percentages'!$A$5:$X$69,(3+MATCH(DO$4,'Agency percentages'!$D$4:$W$4,0)),FALSE),"") -> 0 | DP33: =IF(DP$3<>"",VLOOKUP($A33,'Agency percentages'!$A$5:$X$69,(3+MATCH(DP$4,'Agency percentages'!$D$4:$W$4,0)),FALSE),"") -> 0 | DQ33: =IF(DQ$3<>"",VLOOKUP($A33,'Agency percentages'!$A$5:$X$69,(3+MATCH(DQ$4,'Agency percentages'!$D$4:$W$4,0)),FALSE),"") -> 0 | DR33: =IF(DR$3<>"",VLOOKUP($A33,'Agency percentages'!$A$5:$X$69,(3+MATCH(DR$4,'Agency percentages'!$D$4:$W$4,0)),FALSE),"") ->  | DS33: =IF(DS$3<>"",VLOOKUP($A33,'Agency percentages'!$A$5:$X$69,(3+MATCH(DS$4,'Agency percentages'!$D$4:$W$4,0)),FALSE),"") ->  | DT33: =IF(DT$3<>"",VLOOKUP($A33,'Agency percentages'!$A$5:$X$69,(3+MATCH(DT$4,'Agency percentages'!$D$4:$W$4,0)),FALSE),"") ->  | DU33: =IF(DU$3<>"",VLOOKUP($A33,'Agency percentages'!$A$5:$X$69,(3+MATCH(DU$4,'Agency percentages'!$D$4:$W$4,0)),FALSE),"") ->  | DV33: =IF(DV$3<>"",VLOOKUP($A33,'Agency percentages'!$A$5:$X$69,(3+MATCH(DV$4,'Agency percentages'!$D$4:$W$4,0)),FALSE),"") ->  | DW33: =IF(DW$3<>"",VLOOKUP($A33,'Agency percentages'!$A$5:$X$69,(3+MATCH(DW$4,'Agency percentages'!$D$4:$W$4,0)),FALSE),"") ->  | DX33: =IF(DX$3<>"",VLOOKUP($A33,'Agency percentages'!$A$5:$X$69,(3+MATCH(DX$4,'Agency percentages'!$D$4:$W$4,0)),FALSE),"") ->  | DY33: =IF(DY$3<>"",VLOOKUP($A33,'Agency percentages'!$A$5:$X$69,(3+MATCH(DY$4,'Agency percentages'!$D$4:$W$4,0)),FALSE),"") ->  | DZ33: =IF(DZ$3<>"",VLOOKUP($A33,'Agency percentages'!$A$5:$X$69,(3+MATCH(DZ$4,'Agency percentages'!$D$4:$W$4,0)),FALSE),"") ->  | EB33: =IF(AND(EB$3<>"",DG33<>0),HLOOKUP(EB$4,'Agency cashability'!$B$3:$U$5,2,0),0) -> 0 | EC33: =IF(AND(EC$3<>"",DH33<>0),HLOOKUP(EC$4,'Agency cashability'!$B$3:$U$5,2,0),0) -> 0 | ED33: =IF(AND(ED$3<>"",DI33<>0),HLOOKUP(ED$4,'Agency cashability'!$B$3:$U$5,2,0),0) -> 0.3 | EE33: =IF(AND(EE$3<>"",DJ33<>0),HLOOKUP(EE$4,'Agency cashability'!$B$3:$U$5,2,0),0) -> 0.2 | EF33: =IF(AND(EF$3<>"",DK33<>0),HLOOKUP(EF$4,'Agency cashability'!$B$3:$U$5,2,0),0) -> 0.2 | EG33: =IF(AND(EG$3<>"",DL33<>0),HLOOKUP(EG$4,'Agency cashability'!$B$3:$U$5,2,0),0) -> 0.2 | EH33: =IF(AND(EH$3<>"",DM33<>0),HLOOKUP(EH$4,'Agency cashability'!$B$3:$U$5,2,0),0) -> 0 | EI33: =IF(AND(EI$3<>"",DN33<>0),HLOOKUP(EI$4,'Agency cashability'!$B$3:$U$5,2,0),0) -> 0 | EJ33: =IF(AND(EJ$3<>"",DO33<>0),HLOOKUP(EJ$4,'Agency cashability'!$B$3:$U$5,2,0),0) -> 0 | EK33: =IF(AND(EK$3<>"",DP33<>0),HLOOKUP(EK$4,'Agency cashability'!$B$3:$U$5,2,0),0) -> 0 | EL33: =IF(AND(EL$3<>"",DQ33<>0),HLOOKUP(EL$4,'Agency cashability'!$B$3:$U$5,2,0),0) -> 0 | EM33: =IF(AND(EM$3<>"",DR33<>0),HLOOKUP(EM$4,'Agency cashability'!$B$3:$U$5,2,0),0) -> 0 | EN33: =IF(AND(EN$3<>"",DS33<>0),HLOOKUP(EN$4,'Agency cashability'!$B$3:$U$5,2,0),0) -> 0 | EO33: =IF(AND(EO$3<>"",DT33<>0),HLOOKUP(EO$4,'Agency cashability'!$B$3:$U$5,2,0),0) -> 0 | EP33: =IF(AND(EP$3<>"",DU33<>0),HLOOKUP(EP$4,'Agency cashability'!$B$3:$U$5,2,0),0) -> 0 | EQ33: =IF(AND(EQ$3<>"",DV33<>0),HLOOKUP(EQ$4,'Agency cashability'!$B$3:$U$5,2,0),0) -> 0 | ER33: =IF(AND(ER$3<>"",DW33<>0),HLOOKUP(ER$4,'Agency cashability'!$B$3:$U$5,2,0),0) -> 0 | ES33: =IF(AND(ES$3<>"",DX33<>0),HLOOKUP(ES$4,'Agency cashability'!$B$3:$U$5,2,0),0) -> 0 | ET33: =IF(AND(ET$3<>"",DY33<>0),HLOOKUP(ET$4,'Agency cashability'!$B$3:$U$5,2,0),0) -> 0 | EU33: =IF(AND(EU$3<>"",DZ33<>0),HLOOKUP(EU$4,'Agency cashability'!$B$3:$U$5,2,0),0) -> 0 | EW33: =IF(AND(EW$3<>"",DG33<>0),HLOOKUP(EW$4,'Agency cashability'!$B$3:$U$5,3,0),0) -> 0 | EX33: =IF(AND(EX$3<>"",DH33<>0),HLOOKUP(EX$4,'Agency cashability'!$B$3:$U$5,3,0),0) -> 0 | EY33: =IF(AND(EY$3<>"",DI33<>0),HLOOKUP(EY$4,'Agency cashability'!$B$3:$U$5,3,0),0) -> 0.6 | EZ33: =IF(AND(EZ$3<>"",DJ33<>0),HLOOKUP(EZ$4,'Agency cashability'!$B$3:$U$5,3,0),0) -> 0.5 | FA33: =IF(AND(FA$3<>"",DK33<>0),HLOOKUP(FA$4,'Agency cashability'!$B$3:$U$5,3,0),0) -> 0.5 | FB33: =IF(AND(FB$3<>"",DL33<>0),HLOOKUP(FB$4,'Agency cashability'!$B$3:$U$5,3,0),0) -> 0.5 | FC33: =IF(AND(FC$3<>"",DM33<>0),HLOOKUP(FC$4,'Agency cashability'!$B$3:$U$5,3,0),0) -> 0 | FD33: =IF(AND(FD$3<>"",DN33<>0),HLOOKUP(FD$4,'Agency cashability'!$B$3:$U$5,3,0),0) -> 0 | FE33: =IF(AND(FE$3<>"",DO33<>0),HLOOKUP(FE$4,'Agency cashability'!$B$3:$U$5,3,0),0) -> 0 | FF33: =IF(AND(FF$3<>"",DP33<>0),HLOOKUP(FF$4,'Agency cashability'!$B$3:$U$5,3,0),0) -> 0 | FG33: =IF(AND(FG$3<>"",DQ33<>0),HLOOKUP(FG$4,'Agency cashability'!$B$3:$U$5,3,0),0) -> 0 | FH33: =IF(AND(FH$3<>"",DR33<>0),HLOOKUP(FH$4,'Agency cashability'!$B$3:$U$5,3,0),0) -> 0 | FI33: =IF(AND(FI$3<>"",DS33<>0),HLOOKUP(FI$4,'Agency cashability'!$B$3:$U$5,3,0),0) -> 0 | FJ33: =IF(AND(FJ$3<>"",DT33<>0),HLOOKUP(FJ$4,'Agency cashability'!$B$3:$U$5,3,0),0) -> 0 | FK33: =IF(AND(FK$3<>"",DU33<>0),HLOOKUP(FK$4,'Agency cashability'!$B$3:$U$5,3,0),0) -> 0 | FL33: =IF(AND(FL$3<>"",DV33<>0),HLOOKUP(FL$4,'Agency cashability'!$B$3:$U$5,3,0),0) -> 0 | FM33: =IF(AND(FM$3<>"",DW33<>0),HLOOKUP(FM$4,'Agency cashability'!$B$3:$U$5,3,0),0) -> 0 | FN33: =IF(AND(FN$3<>"",DX33<>0),HLOOKUP(FN$4,'Agency cashability'!$B$3:$U$5,3,0),0) -> 0 | FO33: =IF(AND(FO$3<>"",DY33<>0),HLOOKUP(FO$4,'Agency cashability'!$B$3:$U$5,3,0),0) -> 0 | FP33: =IF(AND(FP$3<>"",DZ33<>0),HLOOKUP(FP$4,'Agency cashability'!$B$3:$U$5,3,0),0) -> 0 | FR33: 0 | FS33: 0 | FT33: 0 | FU33: 0 | FV33: 0 | FW33: 0 | FX33: 0 | FY33: 0 | FZ33: 0 | GA33: 0 | GB33: 0 | GM33: =IF((GM$3<>""),EB33*FR33,"") -> 0 | GN33: 0 | GO33: 0 | GP33: 0 | GQ33: 0 | GR33: 0 | GS33: 0 | GT33: 0 | GU33: 0 | GV33: 0 | GW33: 0 | HJ33: =IF((HJ$3<>""),EW33*FR33,"") -> 0 | HK33: 0 | HL33: 0 | HM33: 0 | HN33: 0 | HO33: 0 | HP33: 0 | HQ33: 0 | HR33: 0 | HS33: 0 | HT33: 0
A34: B9s | B34: Reduced incidents of crime - commercial - criminal damage | C34: No | D34: Reduced police, other criminal justice costs, health costs per actual crime (N.B. Use multipliers to convert from recorded crime or convictions) | E34: Police, CJS, NHS | R34: ='Cost of crime analysis'!S30 -> 264.7514418 | S34: 264.7514418 | T34: ='Cost of crime analysis'!T30 -> 552.2549606 | U34: ='Cost of crime analysis'!U30 -> 1023.869349 | V34: 1840.875752 | W34: 2010-11 | X34: =VLOOKUP(W34,'GDP Deflators'!$B$8:$C$72,2,0)*100/VLOOKUP('Model constants'!$B$3,'GDP Deflators'!$B$8:$C$72,2,0) -> 90.71467399 | Y34: 'Figures derived from 'Revisions made to the multipliers and unit costs of crime used in the Integrated Offender Management Value for Money Toolkit, 2011 | AA34: 0 | AB34: 0 | BE34: 0 | BF34: 0 | BG34: 0 | BH34: 0 | BI34: 0 | BJ34: 0 | BK34: 0 | BL34: 0 | BM34: 0 | BN34: 0 | BO34: 0 | BP34: 0 | BQ34: 0 | BR34: 0 | BS34: 0 | BT34: 0 | BU34: 0 | BV34: 0 | BW34: 0 | BX34: 0 | BY34: 0 | BZ34: 0 | CA34: 0 | CB34: 0 | CC34: 0 | CD34: 0 | CF34: 0 | CG34: 0 | CH34: 0 | CI34: 0 | CJ34: 0 | CK34: 0 | CL34: 0 | CM34: 0 | CN34: 0 | CO34: 0 | CP34: 0 | CQ34: 0 | CR34: 0 | CS34: 0 | CT34: 0 | CU34: 0 | CV34: 0 | CW34: 0 | CX34: 0 | CY34: 0 | CZ34: 0 | DA34: 0 | DB34: 0 | DC34: 0 | DD34: 0 | DE34: 0 | DG34: =IF(DG$3<>"",VLOOKUP($A34,'Agency percentages'!$A$5:$X$69,(3+MATCH(DG$4,'Agency percentages'!$D$4:$W$4,0)),FALSE),"") -> 0 | DH34: =IF(DH$3<>"",VLOOKUP($A34,'Agency percentages'!$A$5:$X$69,(3+MATCH(DH$4,'Agency percentages'!$D$4:$W$4,0)),FALSE),"") -> 0 | DI34: =IF(DI$3<>"",VLOOKUP($A34,'Agency percentages'!$A$5:$X$69,(3+MATCH(DI$4,'Agency percentages'!$D$4:$W$4,0)),FALSE),"") -> 0.4407649254 | DJ34: =IF(DJ$3<>"",VLOOKUP($A34,'Agency percentages'!$A$5:$X$69,(3+MATCH(DJ$4,'Agency percentages'!$D$4:$W$4,0)),FALSE),"") -> 0.02938432836 | DK34: =IF(DK$3<>"",VLOOKUP($A34,'Agency percentages'!$A$5:$X$69,(3+MATCH(DK$4,'Agency percentages'!$D$4:$W$4,0)),FALSE),"") -> 0.08815298507 | DL34: =IF(DL$3<>"",VLOOKUP($A34,'Agency percentages'!$A$5:$X$69,(3+MATCH(DL$4,'Agency percentages'!$D$4:$W$4,0)),FALSE),"") -> 0.1322294776 | DM34: =IF(DM$3<>"",VLOOKUP($A34,'Agency percentages'!$A$5:$X$69,(3+MATCH(DM$4,'Agency percentages'!$D$4:$W$4,0)),FALSE),"") -> 0.3094682836 | DN34: =IF(DN$3<>"",VLOOKUP($A34,'Agency percentages'!$A$5:$X$69,(3+MATCH(DN$4,'Agency percentages'!$D$4:$W$4,0)),FALSE),"") -> 0 | DO34: =IF(DO$3<>"",VLOOKUP($A34,'Agency percentages'!$A$5:$X$69,(3+MATCH(DO$4,'Agency percentages'!$D$4:$W$4,0)),FALSE),"") -> 0 | DP34: =IF(DP$3<>"",VLOOKUP($A34,'Agency percentages'!$A$5:$X$69,(3+MATCH(DP$4,'Agency percentages'!$D$4:$W$4,0)),FALSE),"") -> 0 | DQ34: =IF(DQ$3<>"",VLOOKUP($A34,'Agency percentages'!$A$5:$X$69,(3+MATCH(DQ$4,'Agency percentages'!$D$4:$W$4,0)),FALSE),"") -> 0 | DR34: =IF(DR$3<>"",VLOOKUP($A34,'Agency percentages'!$A$5:$X$69,(3+MATCH(DR$4,'Agency percentages'!$D$4:$W$4,0)),FALSE),"") ->  | DS34: =IF(DS$3<>"",VLOOKUP($A34,'Agency percentages'!$A$5:$X$69,(3+MATCH(DS$4,'Agency percentages'!$D$4:$W$4,0)),FALSE),"") ->  | DT34: =IF(DT$3<>"",VLOOKUP($A34,'Agency percentages'!$A$5:$X$69,(3+MATCH(DT$4,'Agency percentages'!$D$4:$W$4,0)),FALSE),"") ->  | DU34: =IF(DU$3<>"",VLOOKUP($A34,'Agency percentages'!$A$5:$X$69,(3+MATCH(DU$4,'Agency percentages'!$D$4:$W$4,0)),FALSE),"") ->  | DV34: =IF(DV$3<>"",VLOOKUP($A34,'Agency percentages'!$A$5:$X$69,(3+MATCH(DV$4,'Agency percentages'!$D$4:$W$4,0)),FALSE),"") ->  | DW34: =IF(DW$3<>"",VLOOKUP($A34,'Agency percentages'!$A$5:$X$69,(3+MATCH(DW$4,'Agency percentages'!$D$4:$W$4,0)),FALSE),"") ->  | DX34: =IF(DX$3<>"",VLOOKUP($A34,'Agency percentages'!$A$5:$X$69,(3+MATCH(DX$4,'Agency percentages'!$D$4:$W$4,0)),FALSE),"") ->  | DY34: =IF(DY$3<>"",VLOOKUP($A34,'Agency percentages'!$A$5:$X$69,(3+MATCH(DY$4,'Agency percentages'!$D$4:$W$4,0)),FALSE),"") ->  | DZ34: =IF(DZ$3<>"",VLOOKUP($A34,'Agency percentages'!$A$5:$X$69,(3+MATCH(DZ$4,'Agency percentages'!$D$4:$W$4,0)),FALSE),"") ->  | EB34: =IF(AND(EB$3<>"",DG34<>0),HLOOKUP(EB$4,'Agency cashability'!$B$3:$U$5,2,0),0) -> 0 | EC34: =IF(AND(EC$3<>"",DH34<>0),HLOOKUP(EC$4,'Agency cashability'!$B$3:$U$5,2,0),0) -> 0 | ED34: =IF(AND(ED$3<>"",DI34<>0),HLOOKUP(ED$4,'Agency cashability'!$B$3:$U$5,2,0),0) -> 0.3 | EE34: =IF(AND(EE$3<>"",DJ34<>0),HLOOKUP(EE$4,'Agency cashability'!$B$3:$U$5,2,0),0) -> 0.2 | EF34: =IF(AND(EF$3<>"",DK34<>0),HLOOKUP(EF$4,'Agency cashability'!$B$3:$U$5,2,0),0) -> 0.2 | EG34: =IF(AND(EG$3<>"",DL34<>0),HLOOKUP(EG$4,'Agency cashability'!$B$3:$U$5,2,0),0) -> 0.2 | EH34: =IF(AND(EH$3<>"",DM34<>0),HLOOKUP(EH$4,'Agency cashability'!$B$3:$U$5,2,0),0) -> 0.2 | EI34: =IF(AND(EI$3<>"",DN34<>0),HLOOKUP(EI$4,'Agency cashability'!$B$3:$U$5,2,0),0) -> 0 | EJ34: =IF(AND(EJ$3<>"",DO34<>0),HLOOKUP(EJ$4,'Agency cashability'!$B$3:$U$5,2,0),0) -> 0 | EK34: =IF(AND(EK$3<>"",DP34<>0),HLOOKUP(EK$4,'Agency cashability'!$B$3:$U$5,2,0),0) -> 0 | EL34: =IF(AND(EL$3<>"",DQ34<>0),HLOOKUP(EL$4,'Agency cashability'!$B$3:$U$5,2,0),0) -> 0 | EM34: =IF(AND(EM$3<>"",DR34<>0),HLOOKUP(EM$4,'Agency cashability'!$B$3:$U$5,2,0),0) -> 0 | EN34: =IF(AND(EN$3<>"",DS34<>0),HLOOKUP(EN$4,'Agency cashability'!$B$3:$U$5,2,0),0) -> 0 | EO34: =IF(AND(EO$3<>"",DT34<>0),HLOOKUP(EO$4,'Agency cashability'!$B$3:$U$5,2,0),0) -> 0 | EP34: =IF(AND(EP$3<>"",DU34<>0),HLOOKUP(EP$4,'Agency cashability'!$B$3:$U$5,2,0),0) -> 0 | EQ34: =IF(AND(EQ$3<>"",DV34<>0),HLOOKUP(EQ$4,'Agency cashability'!$B$3:$U$5,2,0),0) -> 0 | ER34: =IF(AND(ER$3<>"",DW34<>0),HLOOKUP(ER$4,'Agency cashability'!$B$3:$U$5,2,0),0) -> 0 | ES34: =IF(AND(ES$3<>"",DX34<>0),HLOOKUP(ES$4,'Agency cashability'!$B$3:$U$5,2,0),0) -> 0 | ET34: =IF(AND(ET$3<>"",DY34<>0),HLOOKUP(ET$4,'Agency cashability'!$B$3:$U$5,2,0),0) -> 0 | EU34: =IF(AND(EU$3<>"",DZ34<>0),HLOOKUP(EU$4,'Agency cashability'!$B$3:$U$5,2,0),0) -> 0 | EW34: =IF(AND(EW$3<>"",DG34<>0),HLOOKUP(EW$4,'Agency cashability'!$B$3:$U$5,3,0),0) -> 0 | EX34: =IF(AND(EX$3<>"",DH34<>0),HLOOKUP(EX$4,'Agency cashability'!$B$3:$U$5,3,0),0) -> 0 | EY34: =IF(AND(EY$3<>"",DI34<>0),HLOOKUP(EY$4,'Agency cashability'!$B$3:$U$5,3,0),0) -> 0.6 | EZ34: =IF(AND(EZ$3<>"",DJ34<>0),HLOOKUP(EZ$4,'Agency cashability'!$B$3:$U$5,3,0),0) -> 0.5 | FA34: =IF(AND(FA$3<>"",DK34<>0),HLOOKUP(FA$4,'Agency cashability'!$B$3:$U$5,3,0),0) -> 0.5 | FB34: =IF(AND(FB$3<>"",DL34<>0),HLOOKUP(FB$4,'Agency cashability'!$B$3:$U$5,3,0),0) -> 0.5 | FC34: =IF(AND(FC$3<>"",DM34<>0),HLOOKUP(FC$4,'Agency cashability'!$B$3:$U$5,3,0),0) -> 0.5 | FD34: =IF(AND(FD$3<>"",DN34<>0),HLOOKUP(FD$4,'Agency cashability'!$B$3:$U$5,3,0),0) -> 0 | FE34: =IF(AND(FE$3<>"",DO34<>0),HLOOKUP(FE$4,'Agency cashability'!$B$3:$U$5,3,0),0) -> 0 | FF34: =IF(AND(FF$3<>"",DP34<>0),HLOOKUP(FF$4,'Agency cashability'!$B$3:$U$5,3,0),0) -> 0 | FG34: =IF(AND(FG$3<>"",DQ34<>0),HLOOKUP(FG$4,'Agency cashability'!$B$3:$U$5,3,0),0) -> 0 | FH34: =IF(AND(FH$3<>"",DR34<>0),HLOOKUP(FH$4,'Agency cashability'!$B$3:$U$5,3,0),0) -> 0 | FI34: =IF(AND(FI$3<>"",DS34<>0),HLOOKUP(FI$4,'Agency cashability'!$B$3:$U$5,3,0),0) -> 0 | FJ34: =IF(AND(FJ$3<>"",DT34<>0),HLOOKUP(FJ$4,'Agency cashability'!$B$3:$U$5,3,0),0) -> 0 | FK34: =IF(AND(FK$3<>"",DU34<>0),HLOOKUP(FK$4,'Agency cashability'!$B$3:$U$5,3,0),0) -> 0 | FL34: =IF(AND(FL$3<>"",DV34<>0),HLOOKUP(FL$4,'Agency cashability'!$B$3:$U$5,3,0),0) -> 0 | FM34: =IF(AND(FM$3<>"",DW34<>0),HLOOKUP(FM$4,'Agency cashability'!$B$3:$U$5,3,0),0) -> 0 | FN34: =IF(AND(FN$3<>"",DX34<>0),HLOOKUP(FN$4,'Agency cashability'!$B$3:$U$5,3,0),0) -> 0 | FO34: =IF(AND(FO$3<>"",DY34<>0),HLOOKUP(FO$4,'Agency cashability'!$B$3:$U$5,3,0),0) -> 0 | FP34: =IF(AND(FP$3<>"",DZ34<>0),HLOOKUP(FP$4,'Agency cashability'!$B$3:$U$5,3,0),0) -> 0 | FR34: 0 | FS34: 0 | FT34: 0 | FU34: 0 | FV34: 0 | FW34: 0 | FX34: 0 | FY34: 0 | FZ34: 0 | GA34: 0 | GB34: 0 | GM34: =IF((GM$3<>""),EB34*FR34,"") -> 0 | GN34: 0 | GO34: 0 | GP34: 0 | GQ34: 0 | GR34: 0 | GS34: 0 | GT34: 0 | GU34: 0 | GV34: 0 | GW34: 0 | HJ34: =IF((HJ$3<>""),EW34*FR34,"") -> 0 | HK34: 0 | HL34: 0 | HM34: 0 | HN34: 0 | HO34: 0 | HP34: 0 | HQ34: 0 | HR34: 0 | HS34: 0 | HT34: 0
A35: B10 | B35: Housing evictions | C35: Yes | D35: Reduced costs of legal proceedings and repair of property | E35: RSL | R35: 6680 | S35: 6680 | V35: 6680 | W35: 2016-17 | X35: =VLOOKUP(W35,'GDP Deflators'!$B$8:$C$72,2,0)*100/VLOOKUP('Model constants'!$B$3,'GDP Deflators'!$B$8:$C$72,2,0) -> 100 | Y35: Research Briefing: Immediate costs to government of loss of home (Shelter 2012) | AA35: 0 | AB35: 0 | BE35: 0 | BF35: 0 | BG35: 0 | BH35: 0 | BI35: 0 | BJ35: 0 | BK35: 0 | BL35: 0 | BM35: 0 | BN35: 0 | BO35: 0 | BP35: 0 | BQ35: 0 | BR35: 0 | BS35: 0 | BT35: 0 | BU35: 0 | BV35: 0 | BW35: 0 | BX35: 0 | BY35: 0 | BZ35: 0 | CA35: 0 | CB35: 0 | CC35: 0 | CD35: 0 | CF35: 0 | CG35: 0 | CH35: 0 | CI35: 0 | CJ35: 0 | CK35: 0 | CL35: 0 | CM35: 0 | CN35: 0 | CO35: 0 | CP35: 0 | CQ35: 0 | CR35: 0 | CS35: 0 | CT35: 0 | CU35: 0 | CV35: 0 | CW35: 0 | CX35: 0 | CY35: 0 | CZ35: 0 | DA35: 0 | DB35: 0 | DC35: 0 | DD35: 0 | DE35: 0 | DG35: =IF(DG$3<>"",VLOOKUP($A35,'Agency percentages'!$A$5:$X$69,(3+MATCH(DG$4,'Agency percentages'!$D$4:$W$4,0)),FALSE),"") -> 0.1 | DH35: =IF(DH$3<>"",VLOOKUP($A35,'Agency percentages'!$A$5:$X$69,(3+MATCH(DH$4,'Agency percentages'!$D$4:$W$4,0)),FALSE),"") -> 0 | DI35: =IF(DI$3<>"",VLOOKUP($A35,'Agency percentages'!$A$5:$X$69,(3+MATCH(DI$4,'Agency percentages'!$D$4:$W$4,0)),FALSE),"") -> 0 | DJ35: =IF(DJ$3<>"",VLOOKUP($A35,'Agency percentages'!$A$5:$X$69,(3+MATCH(DJ$4,'Agency percentages'!$D$4:$W$4,0)),FALSE),"") -> 0 | DK35: =IF(DK$3<>"",VLOOKUP($A35,'Agency percentages'!$A$5:$X$69,(3+MATCH(DK$4,'Agency percentages'!$D$4:$W$4,0)),FALSE),"") -> 0 | DL35: =IF(DL$3<>"",VLOOKUP($A35,'Agency percentages'!$A$5:$X$69,(3+MATCH(DL$4,'Agency percentages'!$D$4:$W$4,0)),FALSE),"") -> 0 | DM35: =IF(DM$3<>"",VLOOKUP($A35,'Agency percentages'!$A$5:$X$69,(3+MATCH(DM$4,'Agency percentages'!$D$4:$W$4,0)),FALSE),"") -> 0.03 | DN35: =IF(DN$3<>"",VLOOKUP($A35,'Agency percentages'!$A$5:$X$69,(3+MATCH(DN$4,'Agency percentages'!$D$4:$W$4,0)),FALSE),"") -> 0 | DO35: =IF(DO$3<>"",VLOOKUP($A35,'Agency percentages'!$A$5:$X$69,(3+MATCH(DO$4,'Agency percentages'!$D$4:$W$4,0)),FALSE),"") -> 0 | DP35: =IF(DP$3<>"",VLOOKUP($A35,'Agency percentages'!$A$5:$X$69,(3+MATCH(DP$4,'Agency percentages'!$D$4:$W$4,0)),FALSE),"") -> 0 | DQ35: =IF(DQ$3<>"",VLOOKUP($A35,'Agency percentages'!$A$5:$X$69,(3+MATCH(DQ$4,'Agency percentages'!$D$4:$W$4,0)),FALSE),"") -> 0.87 | DR35: =IF(DR$3<>"",VLOOKUP($A35,'Agency percentages'!$A$5:$X$69,(3+MATCH(DR$4,'Agency percentages'!$D$4:$W$4,0)),FALSE),"") ->  | DS35: =IF(DS$3<>"",VLOOKUP($A35,'Agency percentages'!$A$5:$X$69,(3+MATCH(DS$4,'Agency percentages'!$D$4:$W$4,0)),FALSE),"") ->  | DT35: =IF(DT$3<>"",VLOOKUP($A35,'Agency percentages'!$A$5:$X$69,(3+MATCH(DT$4,'Agency percentages'!$D$4:$W$4,0)),FALSE),"") ->  | DU35: =IF(DU$3<>"",VLOOKUP($A35,'Agency percentages'!$A$5:$X$69,(3+MATCH(DU$4,'Agency percentages'!$D$4:$W$4,0)),FALSE),"") ->  | DV35: =IF(DV$3<>"",VLOOKUP($A35,'Agency percentages'!$A$5:$X$69,(3+MATCH(DV$4,'Agency percentages'!$D$4:$W$4,0)),FALSE),"") ->  | DW35: =IF(DW$3<>"",VLOOKUP($A35,'Agency percentages'!$A$5:$X$69,(3+MATCH(DW$4,'Agency percentages'!$D$4:$W$4,0)),FALSE),"") ->  | DX35: =IF(DX$3<>"",VLOOKUP($A35,'Agency percentages'!$A$5:$X$69,(3+MATCH(DX$4,'Agency percentages'!$D$4:$W$4,0)),FALSE),"") ->  | DY35: =IF(DY$3<>"",VLOOKUP($A35,'Agency percentages'!$A$5:$X$69,(3+MATCH(DY$4,'Agency percentages'!$D$4:$W$4,0)),FALSE),"") ->  | DZ35: =IF(DZ$3<>"",VLOOKUP($A35,'Agency percentages'!$A$5:$X$69,(3+MATCH(DZ$4,'Agency percentages'!$D$4:$W$4,0)),FALSE),"") ->  | EB35: =IF(AND(EB$3<>"",DG35<>0),HLOOKUP(EB$4,'Agency cashability'!$B$3:$U$5,2,0),0) -> 0.5 | EC35: =IF(AND(EC$3<>"",DH35<>0),HLOOKUP(EC$4,'Agency cashability'!$B$3:$U$5,2,0),0) -> 0 | ED35: =IF(AND(ED$3<>"",DI35<>0),HLOOKUP(ED$4,'Agency cashability'!$B$3:$U$5,2,0),0) -> 0 | EE35: =IF(AND(EE$3<>"",DJ35<>0),HLOOKUP(EE$4,'Agency cashability'!$B$3:$U$5,2,0),0) -> 0 | EF35: =IF(AND(EF$3<>"",DK35<>0),HLOOKUP(EF$4,'Agency cashability'!$B$3:$U$5,2,0),0) -> 0 | EG35: =IF(AND(EG$3<>"",DL35<>0),HLOOKUP(EG$4,'Agency cashability'!$B$3:$U$5,2,0),0) -> 0 | EH35: =IF(AND(EH$3<>"",DM35<>0),HLOOKUP(EH$4,'Agency cashability'!$B$3:$U$5,2,0),0) -> 0.2 | EI35: =IF(AND(EI$3<>"",DN35<>0),HLOOKUP(EI$4,'Agency cashability'!$B$3:$U$5,2,0),0) -> 0 | EJ35: =IF(AND(EJ$3<>"",DO35<>0),HLOOKUP(EJ$4,'Agency cashability'!$B$3:$U$5,2,0),0) -> 0 | EK35: =IF(AND(EK$3<>"",DP35<>0),HLOOKUP(EK$4,'Agency cashability'!$B$3:$U$5,2,0),0) -> 0 | EL35: =IF(AND(EL$3<>"",DQ35<>0),HLOOKUP(EL$4,'Agency cashability'!$B$3:$U$5,2,0),0) -> 0.8 | EM35: =IF(AND(EM$3<>"",DR35<>0),HLOOKUP(EM$4,'Agency cashability'!$B$3:$U$5,2,0),0) -> 0 | EN35: =IF(AND(EN$3<>"",DS35<>0),HLOOKUP(EN$4,'Agency cashability'!$B$3:$U$5,2,0),0) -> 0 | EO35: =IF(AND(EO$3<>"",DT35<>0),HLOOKUP(EO$4,'Agency cashability'!$B$3:$U$5,2,0),0) -> 0 | EP35: =IF(AND(EP$3<>"",DU35<>0),HLOOKUP(EP$4,'Agency cashability'!$B$3:$U$5,2,0),0) -> 0 | EQ35: =IF(AND(EQ$3<>"",DV35<>0),HLOOKUP(EQ$4,'Agency cashability'!$B$3:$U$5,2,0),0) -> 0 | ER35: =IF(AND(ER$3<>"",DW35<>0),HLOOKUP(ER$4,'Agency cashability'!$B$3:$U$5,2,0),0) -> 0 | ES35: =IF(AND(ES$3<>"",DX35<>0),HLOOKUP(ES$4,'Agency cashability'!$B$3:$U$5,2,0),0) -> 0 | ET35: =IF(AND(ET$3<>"",DY35<>0),HLOOKUP(ET$4,'Agency cashability'!$B$3:$U$5,2,0),0) -> 0 | EU35: =IF(AND(EU$3<>"",DZ35<>0),HLOOKUP(EU$4,'Agency cashability'!$B$3:$U$5,2,0),0) -> 0 | EW35: =IF(AND(EW$3<>"",DG35<>0),HLOOKUP(EW$4,'Agency cashability'!$B$3:$U$5,3,0),0) -> 0.9 | EX35: =IF(AND(EX$3<>"",DH35<>0),HLOOKUP(EX$4,'Agency cashability'!$B$3:$U$5,3,0),0) -> 0 | EY35: =IF(AND(EY$3<>"",DI35<>0),HLOOKUP(EY$4,'Agency cashability'!$B$3:$U$5,3,0),0) -> 0 | EZ35: =IF(AND(EZ$3<>"",DJ35<>0),HLOOKUP(EZ$4,'Agency cashability'!$B$3:$U$5,3,0),0) -> 0 | FA35: =IF(AND(FA$3<>"",DK35<>0),HLOOKUP(FA$4,'Agency cashability'!$B$3:$U$5,3,0),0) -> 0 | FB35: =IF(AND(FB$3<>"",DL35<>0),HLOOKUP(FB$4,'Agency cashability'!$B$3:$U$5,3,0),0) -> 0 | FC35: =IF(AND(FC$3<>"",DM35<>0),HLOOKUP(FC$4,'Agency cashability'!$B$3:$U$5,3,0),0) -> 0.5 | FD35: =IF(AND(FD$3<>"",DN35<>0),HLOOKUP(FD$4,'Agency cashability'!$B$3:$U$5,3,0),0) -> 0 | FE35: =IF(AND(FE$3<>"",DO35<>0),HLOOKUP(FE$4,'Agency cashability'!$B$3:$U$5,3,0),0) -> 0 | FF35: =IF(AND(FF$3<>"",DP35<>0),HLOOKUP(FF$4,'Agency cashability'!$B$3:$U$5,3,0),0) -> 0 | FG35: =IF(AND(FG$3<>"",DQ35<>0),HLOOKUP(FG$4,'Agency cashability'!$B$3:$U$5,3,0),0) -> 0.9 | FH35: =IF(AND(FH$3<>"",DR35<>0),HLOOKUP(FH$4,'Agency cashability'!$B$3:$U$5,3,0),0) -> 0 | FI35: =IF(AND(FI$3<>"",DS35<>0),HLOOKUP(FI$4,'Agency cashability'!$B$3:$U$5,3,0),0) -> 0 | FJ35: =IF(AND(FJ$3<>"",DT35<>0),HLOOKUP(FJ$4,'Agency cashability'!$B$3:$U$5,3,0),0) -> 0 | FK35: =IF(AND(FK$3<>"",DU35<>0),HLOOKUP(FK$4,'Agency cashability'!$B$3:$U$5,3,0),0) -> 0 | FL35: =IF(AND(FL$3<>"",DV35<>0),HLOOKUP(FL$4,'Agency cashability'!$B$3:$U$5,3,0),0) -> 0 | FM35: =IF(AND(FM$3<>"",DW35<>0),HLOOKUP(FM$4,'Agency cashability'!$B$3:$U$5,3,0),0) -> 0 | FN35: =IF(AND(FN$3<>"",DX35<>0),HLOOKUP(FN$4,'Agency cashability'!$B$3:$U$5,3,0),0) -> 0 | FO35: =IF(AND(FO$3<>"",DY35<>0),HLOOKUP(FO$4,'Agency cashability'!$B$3:$U$5,3,0),0) -> 0 | FP35: =IF(AND(FP$3<>"",DZ35<>0),HLOOKUP(FP$4,'Agency cashability'!$B$3:$U$5,3,0),0) -> 0 | FR35: 0 | FS35: 0 | FT35: 0 | FU35: 0 | FV35: 0 | FW35: 0 | FX35: 0 | FY35: 0 | FZ35: 0 | GA35: 0 | GB35: 0 | GM35: =IF((GM$3<>""),EB35*FR35,"") -> 0 | GN35: 0 | GO35: 0 | GP35: 0 | GQ35: 0 | GR35: 0 | GS35: 0 | GT35: 0 | GU35: 0 | GV35: 0 | GW35: 0 | HJ35: =IF((HJ$3<>""),EW35*FR35,"") -> 0 | HK35: 0 | HL35: 0 | HM35: 0 | HN35: 0 | HO35: 0 | HP35: 0 | HQ35: 0 | HR35: 0 | HS35: 0 | HT35: 0
A36: B11 | B36: Reduced statutory homelessness | C36: Yes | D36: Reduced costs of temporary housing etc. | E36: LAs | R36: 2501 | S36: 2501 | V36: 2501 | W36: 2016-17 | X36: =VLOOKUP(W36,'GDP Deflators'!$B$8:$C$72,2,0)*100/VLOOKUP('Model constants'!$B$3,'GDP Deflators'!$B$8:$C$72,2,0) -> 100 | Y36: Research Briefing: Immediate costs to government of loss of home (Shelter 2012) | AA36: =IF($C36="Yes",($H36*$J36*$L36*($N36-$P36)*R36*100*(1+$Z36)/$X36),0) -> 0 | AB36: 0 | BE36: 0 | BF36: 0 | BG36: 0 | BH36: 0 | BI36: 0 | BJ36: 0 | BK36: 0 | BL36: 0 | BM36: 0 | BN36: 0 | BO36: 0 | BP36: 0 | BQ36: 0 | BR36: 0 | BS36: 0 | BT36: 0 | BU36: 0 | BV36: 0 | BW36: 0 | BX36: 0 | BY36: 0 | BZ36: 0 | CA36: 0 | CB36: 0 | CC36: 0 | CD36: 0 | CF36: 0 | CG36: 0 | CH36: 0 | CI36: 0 | CJ36: 0 | CK36: 0 | CL36: 0 | CM36: 0 | CN36: 0 | CO36: 0 | CP36: 0 | CQ36: 0 | CR36: 0 | CS36: 0 | CT36: 0 | CU36: 0 | CV36: 0 | CW36: 0 | CX36: 0 | CY36: 0 | CZ36: 0 | DA36: 0 | DB36: 0 | DC36: 0 | DD36: 0 | DE36: 0 | DG36: =IF(DG$3<>"",VLOOKUP($A36,'Agency percentages'!$A$5:$X$69,(3+MATCH(DG$4,'Agency percentages'!$D$4:$W$4,0)),FALSE),"") -> 0.97 | DH36: =IF(DH$3<>"",VLOOKUP($A36,'Agency percentages'!$A$5:$X$69,(3+MATCH(DH$4,'Agency percentages'!$D$4:$W$4,0)),FALSE),"") -> 0 | DI36: =IF(DI$3<>"",VLOOKUP($A36,'Agency percentages'!$A$5:$X$69,(3+MATCH(DI$4,'Agency percentages'!$D$4:$W$4,0)),FALSE),"") -> 0 | DJ36: =IF(DJ$3<>"",VLOOKUP($A36,'Agency percentages'!$A$5:$X$69,(3+MATCH(DJ$4,'Agency percentages'!$D$4:$W$4,0)),FALSE),"") -> 0 | DK36: =IF(DK$3<>"",VLOOKUP($A36,'Agency percentages'!$A$5:$X$69,(3+MATCH(DK$4,'Agency percentages'!$D$4:$W$4,0)),FALSE),"") -> 0 | DL36: =IF(DL$3<>"",VLOOKUP($A36,'Agency percentages'!$A$5:$X$69,(3+MATCH(DL$4,'Agency percentages'!$D$4:$W$4,0)),FALSE),"") -> 0 | DM36: =IF(DM$3<>"",VLOOKUP($A36,'Agency percentages'!$A$5:$X$69,(3+MATCH(DM$4,'Agency percentages'!$D$4:$W$4,0)),FALSE),"") -> 0.03 | DN36: =IF(DN$3<>"",VLOOKUP($A36,'Agency percentages'!$A$5:$X$69,(3+MATCH(DN$4,'Agency percentages'!$D$4:$W$4,0)),FALSE),"") -> 0 | DO36: =IF(DO$3<>"",VLOOKUP($A36,'Agency percentages'!$A$5:$X$69,(3+MATCH(DO$4,'Agency percentages'!$D$4:$W$4,0)),FALSE),"") -> 0 | DP36: =IF(DP$3<>"",VLOOKUP($A36,'Agency percentages'!$A$5:$X$69,(3+MATCH(DP$4,'Agency percentages'!$D$4:$W$4,0)),FALSE),"") -> 0 | DQ36: =IF(DQ$3<>"",VLOOKUP($A36,'Agency percentages'!$A$5:$X$69,(3+MATCH(DQ$4,'Agency percentages'!$D$4:$W$4,0)),FALSE),"") -> 0 | DR36: =IF(DR$3<>"",VLOOKUP($A36,'Agency percentages'!$A$5:$X$69,(3+MATCH(DR$4,'Agency percentages'!$D$4:$W$4,0)),FALSE),"") ->  | DS36: =IF(DS$3<>"",VLOOKUP($A36,'Agency percentages'!$A$5:$X$69,(3+MATCH(DS$4,'Agency percentages'!$D$4:$W$4,0)),FALSE),"") ->  | DT36: =IF(DT$3<>"",VLOOKUP($A36,'Agency percentages'!$A$5:$X$69,(3+MATCH(DT$4,'Agency percentages'!$D$4:$W$4,0)),FALSE),"") ->  | DU36: =IF(DU$3<>"",VLOOKUP($A36,'Agency percentages'!$A$5:$X$69,(3+MATCH(DU$4,'Agency percentages'!$D$4:$W$4,0)),FALSE),"") ->  | DV36: =IF(DV$3<>"",VLOOKUP($A36,'Agency percentages'!$A$5:$X$69,(3+MATCH(DV$4,'Agency percentages'!$D$4:$W$4,0)),FALSE),"") ->  | DW36: =IF(DW$3<>"",VLOOKUP($A36,'Agency percentages'!$A$5:$X$69,(3+MATCH(DW$4,'Agency percentages'!$D$4:$W$4,0)),FALSE),"") ->  | DX36: =IF(DX$3<>"",VLOOKUP($A36,'Agency percentages'!$A$5:$X$69,(3+MATCH(DX$4,'Agency percentages'!$D$4:$W$4,0)),FALSE),"") ->  | DY36: =IF(DY$3<>"",VLOOKUP($A36,'Agency percentages'!$A$5:$X$69,(3+MATCH(DY$4,'Agency percentages'!$D$4:$W$4,0)),FALSE),"") ->  | DZ36: =IF(DZ$3<>"",VLOOKUP($A36,'Agency percentages'!$A$5:$X$69,(3+MATCH(DZ$4,'Agency percentages'!$D$4:$W$4,0)),FALSE),"") ->  | EB36: =IF(AND(EB$3<>"",DG36<>0),HLOOKUP(EB$4,'Agency cashability'!$B$3:$U$5,2,0),0) -> 0.5 | EC36: =IF(AND(EC$3<>"",DH36<>0),HLOOKUP(EC$4,'Agency cashability'!$B$3:$U$5,2,0),0) -> 0 | ED36: =IF(AND(ED$3<>"",DI36<>0),HLOOKUP(ED$4,'Agency cashability'!$B$3:$U$5,2,0),0) -> 0 | EE36: =IF(AND(EE$3<>"",DJ36<>0),HLOOKUP(EE$4,'Agency cashability'!$B$3:$U$5,2,0),0) -> 0 | EF36: =IF(AND(EF$3<>"",DK36<>0),HLOOKUP(EF$4,'Agency cashability'!$B$3:$U$5,2,0),0) -> 0 | EG36: =IF(AND(EG$3<>"",DL36<>0),HLOOKUP(EG$4,'Agency cashability'!$B$3:$U$5,2,0),0) -> 0 | EH36: =IF(AND(EH$3<>"",DM36<>0),HLOOKUP(EH$4,'Agency cashability'!$B$3:$U$5,2,0),0) -> 0.2 | EI36: =IF(AND(EI$3<>"",DN36<>0),HLOOKUP(EI$4,'Agency cashability'!$B$3:$U$5,2,0),0) -> 0 | EJ36: =IF(AND(EJ$3<>"",DO36<>0),HLOOKUP(EJ$4,'Agency cashability'!$B$3:$U$5,2,0),0) -> 0 | EK36: =IF(AND(EK$3<>"",DP36<>0),HLOOKUP(EK$4,'Agency cashability'!$B$3:$U$5,2,0),0) -> 0 | EL36: =IF(AND(EL$3<>"",DQ36<>0),HLOOKUP(EL$4,'Agency cashability'!$B$3:$U$5,2,0),0) -> 0 | EM36: =IF(AND(EM$3<>"",DR36<>0),HLOOKUP(EM$4,'Agency cashability'!$B$3:$U$5,2,0),0) -> 0 | EN36: =IF(AND(EN$3<>"",DS36<>0),HLOOKUP(EN$4,'Agency cashability'!$B$3:$U$5,2,0),0) -> 0 | EO36: =IF(AND(EO$3<>"",DT36<>0),HLOOKUP(EO$4,'Agency cashability'!$B$3:$U$5,2,0),0) -> 0 | EP36: =IF(AND(EP$3<>"",DU36<>0),HLOOKUP(EP$4,'Agency cashability'!$B$3:$U$5,2,0),0) -> 0 | EQ36: =IF(AND(EQ$3<>"",DV36<>0),HLOOKUP(EQ$4,'Agency cashability'!$B$3:$U$5,2,0),0) -> 0 | ER36: =IF(AND(ER$3<>"",DW36<>0),HLOOKUP(ER$4,'Agency cashability'!$B$3:$U$5,2,0),0) -> 0 | ES36: =IF(AND(ES$3<>"",DX36<>0),HLOOKUP(ES$4,'Agency cashability'!$B$3:$U$5,2,0),0) -> 0 | ET36: =IF(AND(ET$3<>"",DY36<>0),HLOOKUP(ET$4,'Agency cashability'!$B$3:$U$5,2,0),0) -> 0 | EU36: =IF(AND(EU$3<>"",DZ36<>0),HLOOKUP(EU$4,'Agency cashability'!$B$3:$U$5,2,0),0) -> 0 | EW36: =IF(AND(EW$3<>"",DG36<>0),HLOOKUP(EW$4,'Agency cashability'!$B$3:$U$5,3,0),0) -> 0.9 | EX36: =IF(AND(EX$3<>"",DH36<>0),HLOOKUP(EX$4,'Agency cashability'!$B$3:$U$5,3,0),0) -> 0 | EY36: =IF(AND(EY$3<>"",DI36<>0),HLOOKUP(EY$4,'Agency cashability'!$B$3:$U$5,3,0),0) -> 0 | EZ36: =IF(AND(EZ$3<>"",DJ36<>0),HLOOKUP(EZ$4,'Agency cashability'!$B$3:$U$5,3,0),0) -> 0 | FA36: =IF(AND(FA$3<>"",DK36<>0),HLOOKUP(FA$4,'Agency cashability'!$B$3:$U$5,3,0),0) -> 0 | FB36: =IF(AND(FB$3<>"",DL36<>0),HLOOKUP(FB$4,'Agency cashability'!$B$3:$U$5,3,0),0) -> 0 | FC36: =IF(AND(FC$3<>"",DM36<>0),HLOOKUP(FC$4,'Agency cashability'!$B$3:$U$5,3,0),0) -> 0.5 | FD36: =IF(AND(FD$3<>"",DN36<>0),HLOOKUP(FD$4,'Agency cashability'!$B$3:$U$5,3,0),0) -> 0 | FE36: =IF(AND(FE$3<>"",DO36<>0),HLOOKUP(FE$4,'Agency cashability'!$B$3:$U$5,3,0),0) -> 0 | FF36: =IF(AND(FF$3<>"",DP36<>0),HLOOKUP(FF$4,'Agency cashability'!$B$3:$U$5,3,0),0) -> 0 | FG36: =IF(AND(FG$3<>"",DQ36<>0),HLOOKUP(FG$4,'Agency cashability'!$B$3:$U$5,3,0),0) -> 0 | FH36: =IF(AND(FH$3<>"",DR36<>0),HLOOKUP(FH$4,'Agency cashability'!$B$3:$U$5,3,0),0) -> 0 | FI36: =IF(AND(FI$3<>"",DS36<>0),HLOOKUP(FI$4,'Agency cashability'!$B$3:$U$5,3,0),0) -> 0 | FJ36: =IF(AND(FJ$3<>"",DT36<>0),HLOOKUP(FJ$4,'Agency cashability'!$B$3:$U$5,3,0),0) -> 0 | FK36: =IF(AND(FK$3<>"",DU36<>0),HLOOKUP(FK$4,'Agency cashability'!$B$3:$U$5,3,0),0) -> 0 | FL36: =IF(AND(FL$3<>"",DV36<>0),HLOOKUP(FL$4,'Agency cashability'!$B$3:$U$5,3,0),0) -> 0 | FM36: =IF(AND(FM$3<>"",DW36<>0),HLOOKUP(FM$4,'Agency cashability'!$B$3:$U$5,3,0),0) -> 0 | FN36: =IF(AND(FN$3<>"",DX36<>0),HLOOKUP(FN$4,'Agency cashability'!$B$3:$U$5,3,0),0) -> 0 | FO36: =IF(AND(FO$3<>"",DY36<>0),HLOOKUP(FO$4,'Agency cashability'!$B$3:$U$5,3,0),0) -> 0 | FP36: =IF(AND(FP$3<>"",DZ36<>0),HLOOKUP(FP$4,'Agency cashability'!$B$3:$U$5,3,0),0) -> 0 | FR36: 0 | FS36: 0 | FT36: 0 | FU36: 0 | FV36: 0 | FW36: 0 | FX36: 0 | FY36: 0 | FZ36: 0 | GA36: 0 | GB36: 0 | GM36: 0 | GN36: 0 | GO36: 0 | GP36: 0 | GQ36: 0 | GR36: 0 | GS36: 0 | GT36: 0 | GU36: 0 | GV36: 0 | GW36: 0 | HH36: =SUM(GM36:HF36)/SUM(FR36:GK36) ->  | HJ36: 0 | HK36: 0 | HL36: 0 | HM36: 0 | HN36: 0 | HO36: 0 | HP36: 0 | HQ36: 0 | HR36: 0 | HS36: 0 | HT36: 0 | IE36: =SUM(HJ36:IC36)/SUM(FR36:GK36) -> 
A37: B12 | B37: Reduced incidences of taking children into care | C37: Yes | D37: Reduced cost of safeguarding | E37: Children's Services | R37: 51080 | S37: =R37 -> 51080 | V37: 51080 | W37: 2016-17 | X37: =VLOOKUP(W37,'GDP Deflators'!$B$8:$C$72,2,0)*100/VLOOKUP('Model constants'!$B$3,'GDP Deflators'!$B$8:$C$72,2,0) -> 100 | Y37: DfE Section 251 data;DfE 901 return data | AA37: 0 | AB37: 0 | BE37: =IF(BE$2<=time_frame,$AA37*AE37,"") -> 0 | BF37: =IF(BF$2<=time_frame,$AA37*AF37,"") -> 0 | BG37: =IF(BG$2<=time_frame,$AA37*AG37,"") -> 0 | BH37: =IF(BH$2<=time_frame,$AA37*AH37,"") -> 0 | BI37: =IF(BI$2<=time_frame,$AA37*AI37,"") -> 0 | BJ37: =IF(BJ$2<=time_frame,$AA37*AJ37,"") -> 0 | BK37: =IF(BK$2<=time_frame,$AA37*AK37,"") -> 0 | BL37: =IF(BL$2<=time_frame,$AA37*AL37,"") -> 0 | BM37: =IF(BM$2<=time_frame,$AA37*AM37,"") -> 0 | BN37: =IF(BN$2<=time_frame,$AA37*AN37,"") -> 0 | BO37: =IF(BO$2<=time_frame,$AA37*AO37,"") -> 0 | BP37: =IF(BP$2<=time_frame,$AA37*AP37,"") -> 0 | BQ37: =IF(BQ$2<=time_frame,$AA37*AQ37,"") -> 0 | BR37: =IF(BR$2<=time_frame,$AA37*AR37,"") -> 0 | BS37: =IF(BS$2<=time_frame,$AA37*AS37,"") -> 0 | BT37: =IF(BT$2<=time_frame,$AA37*AT37,"") -> 0 | BU37: =IF(BU$2<=time_frame,$AA37*AU37,"") -> 0 | BV37: =IF(BV$2<=time_frame,$AA37*AV37,"") -> 0 | BW37: =IF(BW$2<=time_frame,$AA37*AW37,"") -> 0 | BX37: =IF(BX$2<=time_frame,$AA37*AX37,"") -> 0 | BY37: =IF(BY$2<=time_frame,$AA37*AY37,"") -> 0 | BZ37: =IF(BZ$2<=time_frame,$AA37*AZ37,"") -> 0 | CA37: =IF(CA$2<=time_frame,$AA37*BA37,"") -> 0 | CB37: =IF(CB$2<=time_frame,$AA37*BB37,"") -> 0 | CC37: =IF(CC$2<=time_frame,$AA37*BC37,"") -> 0 | CD37: 0 | CF37: =IF(CF$2<=time_frame,$AB37*AE37,"") -> 0 | CG37: =IF(CG$2<=time_frame,$AB37*AF37,"") -> 0 | CH37: =IF(CH$2<=time_frame,$AB37*AG37,"") -> 0 | CI37: =IF(CI$2<=time_frame,$AB37*AH37,"") -> 0 | CJ37: =IF(CJ$2<=time_frame,$AB37*AI37,"") -> 0 | CK37: =IF(CK$2<=time_frame,$AB37*AJ37,"") -> 0 | CL37: =IF(CL$2<=time_frame,$AB37*AK37,"") -> 0 | CM37: =IF(CM$2<=time_frame,$AB37*AL37,"") -> 0 | CN37: =IF(CN$2<=time_frame,$AB37*AM37,"") -> 0 | CO37: =IF(CO$2<=time_frame,$AB37*AN37,"") -> 0 | CP37: =IF(CP$2<=time_frame,$AB37*AO37,"") -> 0 | CQ37: =IF(CQ$2<=time_frame,$AB37*AP37,"") -> 0 | CR37: =IF(CR$2<=time_frame,$AB37*AQ37,"") -> 0 | CS37: =IF(CS$2<=time_frame,$AB37*AR37,"") -> 0 | CT37: =IF(CT$2<=time_frame,$AB37*AS37,"") -> 0 | CU37: =IF(CU$2<=time_frame,$AB37*AT37,"") -> 0 | CV37: =IF(CV$2<=time_frame,$AB37*AU37,"") -> 0 | CW37: =IF(CW$2<=time_frame,$AB37*AV37,"") -> 0 | CX37: =IF(CX$2<=time_frame,$AB37*AW37,"") -> 0 | CY37: =IF(CY$2<=time_frame,$AB37*AX37,"") -> 0 | CZ37: =IF(CZ$2<=time_frame,$AB37*AY37,"") -> 0 | DA37: =IF(DA$2<=time_frame,$AB37*AZ37,"") -> 0 | DB37: =IF(DB$2<=time_frame,$AB37*BA37,"") -> 0 | DC37: =IF(DC$2<=time_frame,$AB37*BB37,"") -> 0 | DD37: =IF(DD$2<=time_frame,$AB37*BC37,"") -> 0 | DE37: 0 | DG37: =IF(DG$3<>"",VLOOKUP($A37,'Agency percentages'!$A$5:$X$69,(3+MATCH(DG$4,'Agency percentages'!$D$4:$W$4,0)),FALSE),"") -> 1 | DH37: =IF(DH$3<>"",VLOOKUP($A37,'Agency percentages'!$A$5:$X$69,(3+MATCH(DH$4,'Agency percentages'!$D$4:$W$4,0)),FALSE),"") -> 0 | DI37: =IF(DI$3<>"",VLOOKUP($A37,'Agency percentages'!$A$5:$X$69,(3+MATCH(DI$4,'Agency percentages'!$D$4:$W$4,0)),FALSE),"") -> 0 | DJ37: =IF(DJ$3<>"",VLOOKUP($A37,'Agency percentages'!$A$5:$X$69,(3+MATCH(DJ$4,'Agency percentages'!$D$4:$W$4,0)),FALSE),"") -> 0 | DK37: =IF(DK$3<>"",VLOOKUP($A37,'Agency percentages'!$A$5:$X$69,(3+MATCH(DK$4,'Agency percentages'!$D$4:$W$4,0)),FALSE),"") -> 0 | DL37: =IF(DL$3<>"",VLOOKUP($A37,'Agency percentages'!$A$5:$X$69,(3+MATCH(DL$4,'Agency percentages'!$D$4:$W$4,0)),FALSE),"") -> 0 | DM37: =IF(DM$3<>"",VLOOKUP($A37,'Agency percentages'!$A$5:$X$69,(3+MATCH(DM$4,'Agency percentages'!$D$4:$W$4,0)),FALSE),"") -> 0 | DN37: =IF(DN$3<>"",VLOOKUP($A37,'Agency percentages'!$A$5:$X$69,(3+MATCH(DN$4,'Agency percentages'!$D$4:$W$4,0)),FALSE),"") -> 0 | DO37: =IF(DO$3<>"",VLOOKUP($A37,'Agency percentages'!$A$5:$X$69,(3+MATCH(DO$4,'Agency percentages'!$D$4:$W$4,0)),FALSE),"") -> 0 | DP37: =IF(DP$3<>"",VLOOKUP($A37,'Agency percentages'!$A$5:$X$69,(3+MATCH(DP$4,'Agency percentages'!$D$4:$W$4,0)),FALSE),"") -> 0 | DQ37: =IF(DQ$3<>"",VLOOKUP($A37,'Agency percentages'!$A$5:$X$69,(3+MATCH(DQ$4,'Agency percentages'!$D$4:$W$4,0)),FALSE),"") -> 0 | DR37: =IF(DR$3<>"",VLOOKUP($A37,'Agency percentages'!$A$5:$X$69,(3+MATCH(DR$4,'Agency percentages'!$D$4:$W$4,0)),FALSE),"") ->  | DS37: =IF(DS$3<>"",VLOOKUP($A37,'Agency percentages'!$A$5:$X$69,(3+MATCH(DS$4,'Agency percentages'!$D$4:$W$4,0)),FALSE),"") ->  | DT37: =IF(DT$3<>"",VLOOKUP($A37,'Agency percentages'!$A$5:$X$69,(3+MATCH(DT$4,'Agency percentages'!$D$4:$W$4,0)),FALSE),"") ->  | DU37: =IF(DU$3<>"",VLOOKUP($A37,'Agency percentages'!$A$5:$X$69,(3+MATCH(DU$4,'Agency percentages'!$D$4:$W$4,0)),FALSE),"") ->  | DV37: =IF(DV$3<>"",VLOOKUP($A37,'Agency percentages'!$A$5:$X$69,(3+MATCH(DV$4,'Agency percentages'!$D$4:$W$4,0)),FALSE),"") ->  | DW37: =IF(DW$3<>"",VLOOKUP($A37,'Agency percentages'!$A$5:$X$69,(3+MATCH(DW$4,'Agency percentages'!$D$4:$W$4,0)),FALSE),"") ->  | DX37: =IF(DX$3<>"",VLOOKUP($A37,'Agency percentages'!$A$5:$X$69,(3+MATCH(DX$4,'Agency percentages'!$D$4:$W$4,0)),FALSE),"") ->  | DY37: =IF(DY$3<>"",VLOOKUP($A37,'Agency percentages'!$A$5:$X$69,(3+MATCH(DY$4,'Agency percentages'!$D$4:$W$4,0)),FALSE),"") ->  | DZ37: =IF(DZ$3<>"",VLOOKUP($A37,'Agency percentages'!$A$5:$X$69,(3+MATCH(DZ$4,'Agency percentages'!$D$4:$W$4,0)),FALSE),"") ->  | EB37: =IF(AND(EB$3<>"",DG37<>0),HLOOKUP(EB$4,'Agency cashability'!$B$3:$U$5,2,0),0) -> 0.5 | EC37: =IF(AND(EC$3<>"",DH37<>0),HLOOKUP(EC$4,'Agency cashability'!$B$3:$U$5,2,0),0) -> 0 | ED37: =IF(AND(ED$3<>"",DI37<>0),HLOOKUP(ED$4,'Agency cashability'!$B$3:$U$5,2,0),0) -> 0 | EE37: =IF(AND(EE$3<>"",DJ37<>0),HLOOKUP(EE$4,'Agency cashability'!$B$3:$U$5,2,0),0) -> 0 | EF37: =IF(AND(EF$3<>"",DK37<>0),HLOOKUP(EF$4,'Agency cashability'!$B$3:$U$5,2,0),0) -> 0 | EG37: =IF(AND(EG$3<>"",DL37<>0),HLOOKUP(EG$4,'Agency cashability'!$B$3:$U$5,2,0),0) -> 0 | EH37: =IF(AND(EH$3<>"",DM37<>0),HLOOKUP(EH$4,'Agency cashability'!$B$3:$U$5,2,0),0) -> 0 | EI37: =IF(AND(EI$3<>"",DN37<>0),HLOOKUP(EI$4,'Agency cashability'!$B$3:$U$5,2,0),0) -> 0 | EJ37: =IF(AND(EJ$3<>"",DO37<>0),HLOOKUP(EJ$4,'Agency cashability'!$B$3:$U$5,2,0),0) -> 0 | EK37: =IF(AND(EK$3<>"",DP37<>0),HLOOKUP(EK$4,'Agency cashability'!$B$3:$U$5,2,0),0) -> 0 | EL37: =IF(AND(EL$3<>"",DQ37<>0),HLOOKUP(EL$4,'Agency cashability'!$B$3:$U$5,2,0),0) -> 0 | EM37: =IF(AND(EM$3<>"",DR37<>0),HLOOKUP(EM$4,'Agency cashability'!$B$3:$U$5,2,0),0) -> 0 | EN37: =IF(AND(EN$3<>"",DS37<>0),HLOOKUP(EN$4,'Agency cashability'!$B$3:$U$5,2,0),0) -> 0 | EO37: =IF(AND(EO$3<>"",DT37<>0),HLOOKUP(EO$4,'Agency cashability'!$B$3:$U$5,2,0),0) -> 0 | EP37: =IF(AND(EP$3<>"",DU37<>0),HLOOKUP(EP$4,'Agency cashability'!$B$3:$U$5,2,0),0) -> 0 | EQ37: =IF(AND(EQ$3<>"",DV37<>0),HLOOKUP(EQ$4,'Agency cashability'!$B$3:$U$5,2,0),0) -> 0 | ER37: =IF(AND(ER$3<>"",DW37<>0),HLOOKUP(ER$4,'Agency cashability'!$B$3:$U$5,2,0),0) -> 0 | ES37: =IF(AND(ES$3<>"",DX37<>0),HLOOKUP(ES$4,'Agency cashability'!$B$3:$U$5,2,0),0) -> 0 | ET37: =IF(AND(ET$3<>"",DY37<>0),HLOOKUP(ET$4,'Agency cashability'!$B$3:$U$5,2,0),0) -> 0 | EU37: =IF(AND(EU$3<>"",DZ37<>0),HLOOKUP(EU$4,'Agency cashability'!$B$3:$U$5,2,0),0) -> 0 | EW37: =IF(AND(EW$3<>"",DG37<>0),HLOOKUP(EW$4,'Agency cashability'!$B$3:$U$5,3,0),0) -> 0.9 | EX37: =IF(AND(EX$3<>"",DH37<>0),HLOOKUP(EX$4,'Agency cashability'!$B$3:$U$5,3,0),0) -> 0 | EY37: =IF(AND(EY$3<>"",DI37<>0),HLOOKUP(EY$4,'Agency cashability'!$B$3:$U$5,3,0),0) -> 0 | EZ37: =IF(AND(EZ$3<>"",DJ37<>0),HLOOKUP(EZ$4,'Agency cashability'!$B$3:$U$5,3,0),0) -> 0 | FA37: =IF(AND(FA$3<>"",DK37<>0),HLOOKUP(FA$4,'Agency cashability'!$B$3:$U$5,3,0),0) -> 0 | FB37: =IF(AND(FB$3<>"",DL37<>0),HLOOKUP(FB$4,'Agency cashability'!$B$3:$U$5,3,0),0) -> 0 | FC37: =IF(AND(FC$3<>"",DM37<>0),HLOOKUP(FC$4,'Agency cashability'!$B$3:$U$5,3,0),0) -> 0 | FD37: =IF(AND(FD$3<>"",DN37<>0),HLOOKUP(FD$4,'Agency cashability'!$B$3:$U$5,3,0),0) -> 0 | FE37: =IF(AND(FE$3<>"",DO37<>0),HLOOKUP(FE$4,'Agency cashability'!$B$3:$U$5,3,0),0) -> 0 | FF37: =IF(AND(FF$3<>"",DP37<>0),HLOOKUP(FF$4,'Agency cashability'!$B$3:$U$5,3,0),0) -> 0 | FG37: =IF(AND(FG$3<>"",DQ37<>0),HLOOKUP(FG$4,'Agency cashability'!$B$3:$U$5,3,0),0) -> 0 | FH37: =IF(AND(FH$3<>"",DR37<>0),HLOOKUP(FH$4,'Agency cashability'!$B$3:$U$5,3,0),0) -> 0 | FI37: =IF(AND(FI$3<>"",DS37<>0),HLOOKUP(FI$4,'Agency cashability'!$B$3:$U$5,3,0),0) -> 0 | FJ37: =IF(AND(FJ$3<>"",DT37<>0),HLOOKUP(FJ$4,'Agency cashability'!$B$3:$U$5,3,0),0) -> 0 | FK37: =IF(AND(FK$3<>"",DU37<>0),HLOOKUP(FK$4,'Agency cashability'!$B$3:$U$5,3,0),0) -> 0 | FL37: =IF(AND(FL$3<>"",DV37<>0),HLOOKUP(FL$4,'Agency cashability'!$B$3:$U$5,3,0),0) -> 0 | FM37: =IF(AND(FM$3<>"",DW37<>0),HLOOKUP(FM$4,'Agency cashability'!$B$3:$U$5,3,0),0) -> 0 | FN37: =IF(AND(FN$3<>"",DX37<>0),HLOOKUP(FN$4,'Agency cashability'!$B$3:$U$5,3,0),0) -> 0 | FO37: =IF(AND(FO$3<>"",DY37<>0),HLOOKUP(FO$4,'Agency cashability'!$B$3:$U$5,3,0),0) -> 0 | FP37: =IF(AND(FP$3<>"",DZ37<>0),HLOOKUP(FP$4,'Agency cashability'!$B$3:$U$5,3,0),0) -> 0 | FR37: 0 | FS37: 0 | FT37: 0 | FU37: 0 | FV37: 0 | FW37: 0 | FX37: 0 | FY37: 0 | FZ37: 0 | GA37: 0 | GB37: 0 | GM37: =IF((GM$3<>""),EB37*FR37,"") -> 0 | GN37: 0 | GO37: 0 | GP37: 0 | GQ37: 0 | GR37: 0 | GS37: 0 | GT37: 0 | GU37: 0 | GV37: 0 | GW37: 0 | HJ37: =IF((HJ$3<>""),EW37*FR37,"") -> 0 | HK37: 0 | HL37: 0 | HM37: 0 | HN37: 0 | HO37: 0 | HP37: 0 | HQ37: 0 | HR37: 0 | HS37: 0 | HT37: 0
A38: B13 | B38: Reduced drug dependency | C38: Yes | D38: Reduced health and criminal justice costs | E38: NHS, Police, CJS | R38: 3614 | S38: 3614 | T38: 8954 | U38: 3814 | V38: 16382 | W38: 2016-17 | X38: =VLOOKUP(W38,'GDP Deflators'!$B$8:$C$72,2,0)*100/VLOOKUP('Model constants'!$B$3,'GDP Deflators'!$B$8:$C$72,2,0) -> 100 | Y38: Estimating the crime reduction benefits of drug treatment and recovery (National Treatment Agency for Substance Misuse, 2012), p.11; and Drug Treatment Outcomes Research Study (DTORS) (Home Office, 2009), p.13 | AA38: 0 | AB38: 0 | BE38: 0 | BF38: 0 | BG38: 0 | BH38: 0 | BI38: 0 | BJ38: 0 | BK38: 0 | BL38: 0 | BM38: 0 | BN38: 0 | BO38: 0 | BP38: 0 | BQ38: 0 | BR38: 0 | BS38: 0 | BT38: 0 | BU38: 0 | BV38: 0 | BW38: 0 | BX38: 0 | BY38: 0 | BZ38: 0 | CA38: 0 | CB38: 0 | CC38: 0 | CD38: 0 | CF38: 0 | CG38: 0 | CH38: 0 | CI38: 0 | CJ38: 0 | CK38: 0 | CL38: 0 | CM38: 0 | CN38: 0 | CO38: 0 | CP38: 0 | CQ38: 0 | CR38: 0 | CS38: 0 | CT38: 0 | CU38: 0 | CV38: 0 | CW38: 0 | CX38: 0 | CY38: 0 | CZ38: 0 | DA38: 0 | DB38: 0 | DC38: 0 | DD38: 0 | DE38: 0 | DG38: =IF(DG$3<>"",VLOOKUP($A38,'Agency percentages'!$A$5:$X$69,(3+MATCH(DG$4,'Agency percentages'!$D$4:$W$4,0)),FALSE),"") -> 0 | DH38: =IF(DH$3<>"",VLOOKUP($A38,'Agency percentages'!$A$5:$X$69,(3+MATCH(DH$4,'Agency percentages'!$D$4:$W$4,0)),FALSE),"") -> 0.59 | DI38: =IF(DI$3<>"",VLOOKUP($A38,'Agency percentages'!$A$5:$X$69,(3+MATCH(DI$4,'Agency percentages'!$D$4:$W$4,0)),FALSE),"") -> 0.1881870648 | DJ38: =IF(DJ$3<>"",VLOOKUP($A38,'Agency percentages'!$A$5:$X$69,(3+MATCH(DJ$4,'Agency percentages'!$D$4:$W$4,0)),FALSE),"") -> 0.01750350752 | DK38: =IF(DK$3<>"",VLOOKUP($A38,'Agency percentages'!$A$5:$X$69,(3+MATCH(DK$4,'Agency percentages'!$D$4:$W$4,0)),FALSE),"") -> 0.06697910695 | DL38: =IF(DL$3<>"",VLOOKUP($A38,'Agency percentages'!$A$5:$X$69,(3+MATCH(DL$4,'Agency percentages'!$D$4:$W$4,0)),FALSE),"") -> 0.08919135435 | DM38: =IF(DM$3<>"",VLOOKUP($A38,'Agency percentages'!$A$5:$X$69,(3+MATCH(DM$4,'Agency percentages'!$D$4:$W$4,0)),FALSE),"") -> 0.04813896637 | DN38: =IF(DN$3<>"",VLOOKUP($A38,'Agency percentages'!$A$5:$X$69,(3+MATCH(DN$4,'Agency percentages'!$D$4:$W$4,0)),FALSE),"") -> 0 | DO38: =IF(DO$3<>"",VLOOKUP($A38,'Agency percentages'!$A$5:$X$69,(3+MATCH(DO$4,'Agency percentages'!$D$4:$W$4,0)),FALSE),"") -> 0 | DP38: =IF(DP$3<>"",VLOOKUP($A38,'Agency percentages'!$A$5:$X$69,(3+MATCH(DP$4,'Agency percentages'!$D$4:$W$4,0)),FALSE),"") -> 0 | DQ38: =IF(DQ$3<>"",VLOOKUP($A38,'Agency percentages'!$A$5:$X$69,(3+MATCH(DQ$4,'Agency percentages'!$D$4:$W$4,0)),FALSE),"") -> 0 | DR38: =IF(DR$3<>"",VLOOKUP($A38,'Agency percentages'!$A$5:$X$69,(3+MATCH(DR$4,'Agency percentages'!$D$4:$W$4,0)),FALSE),"") ->  | DS38: =IF(DS$3<>"",VLOOKUP($A38,'Agency percentages'!$A$5:$X$69,(3+MATCH(DS$4,'Agency percentages'!$D$4:$W$4,0)),FALSE),"") ->  | DT38: =IF(DT$3<>"",VLOOKUP($A38,'Agency percentages'!$A$5:$X$69,(3+MATCH(DT$4,'Agency percentages'!$D$4:$W$4,0)),FALSE),"") ->  | DU38: =IF(DU$3<>"",VLOOKUP($A38,'Agency percentages'!$A$5:$X$69,(3+MATCH(DU$4,'Agency percentages'!$D$4:$W$4,0)),FALSE),"") ->  | DV38: =IF(DV$3<>"",VLOOKUP($A38,'Agency percentages'!$A$5:$X$69,(3+MATCH(DV$4,'Agency percentages'!$D$4:$W$4,0)),FALSE),"") ->  | DW38: =IF(DW$3<>"",VLOOKUP($A38,'Agency percentages'!$A$5:$X$69,(3+MATCH(DW$4,'Agency percentages'!$D$4:$W$4,0)),FALSE),"") ->  | DX38: =IF(DX$3<>"",VLOOKUP($A38,'Agency percentages'!$A$5:$X$69,(3+MATCH(DX$4,'Agency percentages'!$D$4:$W$4,0)),FALSE),"") ->  | DY38: =IF(DY$3<>"",VLOOKUP($A38,'Agency percentages'!$A$5:$X$69,(3+MATCH(DY$4,'Agency percentages'!$D$4:$W$4,0)),FALSE),"") ->  | DZ38: =IF(DZ$3<>"",VLOOKUP($A38,'Agency percentages'!$A$5:$X$69,(3+MATCH(DZ$4,'Agency percentages'!$D$4:$W$4,0)),FALSE),"") ->  | EB38: =IF(AND(EB$3<>"",DG38<>0),HLOOKUP(EB$4,'Agency cashability'!$B$3:$U$5,2,0),0) -> 0 | EC38: =IF(AND(EC$3<>"",DH38<>0),HLOOKUP(EC$4,'Agency cashability'!$B$3:$U$5,2,0),0) -> 0.2 | ED38: =IF(AND(ED$3<>"",DI38<>0),HLOOKUP(ED$4,'Agency cashability'!$B$3:$U$5,2,0),0) -> 0.3 | EE38: =IF(AND(EE$3<>"",DJ38<>0),HLOOKUP(EE$4,'Agency cashability'!$B$3:$U$5,2,0),0) -> 0.2 | EF38: =IF(AND(EF$3<>"",DK38<>0),HLOOKUP(EF$4,'Agency cashability'!$B$3:$U$5,2,0),0) -> 0.2 | EG38: =IF(AND(EG$3<>"",DL38<>0),HLOOKUP(EG$4,'Agency cashability'!$B$3:$U$5,2,0),0) -> 0.2 | EH38: =IF(AND(EH$3<>"",DM38<>0),HLOOKUP(EH$4,'Agency cashability'!$B$3:$U$5,2,0),0) -> 0.2 | EI38: =IF(AND(EI$3<>"",DN38<>0),HLOOKUP(EI$4,'Agency cashability'!$B$3:$U$5,2,0),0) -> 0 | EJ38: =IF(AND(EJ$3<>"",DO38<>0),HLOOKUP(EJ$4,'Agency cashability'!$B$3:$U$5,2,0),0) -> 0 | EK38: =IF(AND(EK$3<>"",DP38<>0),HLOOKUP(EK$4,'Agency cashability'!$B$3:$U$5,2,0),0) -> 0 | EL38: =IF(AND(EL$3<>"",DQ38<>0),HLOOKUP(EL$4,'Agency cashability'!$B$3:$U$5,2,0),0) -> 0 | EM38: =IF(AND(EM$3<>"",DR38<>0),HLOOKUP(EM$4,'Agency cashability'!$B$3:$U$5,2,0),0) -> 0 | EN38: =IF(AND(EN$3<>"",DS38<>0),HLOOKUP(EN$4,'Agency cashability'!$B$3:$U$5,2,0),0) -> 0 | EO38: =IF(AND(EO$3<>"",DT38<>0),HLOOKUP(EO$4,'Agency cashability'!$B$3:$U$5,2,0),0) -> 0 | EP38: =IF(AND(EP$3<>"",DU38<>0),HLOOKUP(EP$4,'Agency cashability'!$B$3:$U$5,2,0),0) -> 0 | EQ38: =IF(AND(EQ$3<>"",DV38<>0),HLOOKUP(EQ$4,'Agency cashability'!$B$3:$U$5,2,0),0) -> 0 | ER38: =IF(AND(ER$3<>"",DW38<>0),HLOOKUP(ER$4,'Agency cashability'!$B$3:$U$5,2,0),0) -> 0 | ES38: =IF(AND(ES$3<>"",DX38<>0),HLOOKUP(ES$4,'Agency cashability'!$B$3:$U$5,2,0),0) -> 0 | ET38: =IF(AND(ET$3<>"",DY38<>0),HLOOKUP(ET$4,'Agency cashability'!$B$3:$U$5,2,0),0) -> 0 | EU38: =IF(AND(EU$3<>"",DZ38<>0),HLOOKUP(EU$4,'Agency cashability'!$B$3:$U$5,2,0),0) -> 0 | EW38: =IF(AND(EW$3<>"",DG38<>0),HLOOKUP(EW$4,'Agency cashability'!$B$3:$U$5,3,0),0) -> 0 | EX38: =IF(AND(EX$3<>"",DH38<>0),HLOOKUP(EX$4,'Agency cashability'!$B$3:$U$5,3,0),0) -> 0.5 | EY38: =IF(AND(EY$3<>"",DI38<>0),HLOOKUP(EY$4,'Agency cashability'!$B$3:$U$5,3,0),0) -> 0.6 | EZ38: =IF(AND(EZ$3<>"",DJ38<>0),HLOOKUP(EZ$4,'Agency cashability'!$B$3:$U$5,3,0),0) -> 0.5 | FA38: =IF(AND(FA$3<>"",DK38<>0),HLOOKUP(FA$4,'Agency cashability'!$B$3:$U$5,3,0),0) -> 0.5 | FB38: =IF(AND(FB$3<>"",DL38<>0),HLOOKUP(FB$4,'Agency cashability'!$B$3:$U$5,3,0),0) -> 0.5 | FC38: =IF(AND(FC$3<>"",DM38<>0),HLOOKUP(FC$4,'Agency cashability'!$B$3:$U$5,3,0),0) -> 0.5 | FD38: =IF(AND(FD$3<>"",DN38<>0),HLOOKUP(FD$4,'Agency cashability'!$B$3:$U$5,3,0),0) -> 0 | FE38: =IF(AND(FE$3<>"",DO38<>0),HLOOKUP(FE$4,'Agency cashability'!$B$3:$U$5,3,0),0) -> 0 | FF38: =IF(AND(FF$3<>"",DP38<>0),HLOOKUP(FF$4,'Agency cashability'!$B$3:$U$5,3,0),0) -> 0 | FG38: =IF(AND(FG$3<>"",DQ38<>0),HLOOKUP(FG$4,'Agency cashability'!$B$3:$U$5,3,0),0) -> 0 | FH38: =IF(AND(FH$3<>"",DR38<>0),HLOOKUP(FH$4,'Agency cashability'!$B$3:$U$5,3,0),0) -> 0 | FI38: =IF(AND(FI$3<>"",DS38<>0),HLOOKUP(FI$4,'Agency cashability'!$B$3:$U$5,3,0),0) -> 0 | FJ38: =IF(AND(FJ$3<>"",DT38<>0),HLOOKUP(FJ$4,'Agency cashability'!$B$3:$U$5,3,0),0) -> 0 | FK38: =IF(AND(FK$3<>"",DU38<>0),HLOOKUP(FK$4,'Agency cashability'!$B$3:$U$5,3,0),0) -> 0 | FL38: =IF(AND(FL$3<>"",DV38<>0),HLOOKUP(FL$4,'Agency cashability'!$B$3:$U$5,3,0),0) -> 0 | FM38: =IF(AND(FM$3<>"",DW38<>0),HLOOKUP(FM$4,'Agency cashability'!$B$3:$U$5,3,0),0) -> 0 | FN38: =IF(AND(FN$3<>"",DX38<>0),HLOOKUP(FN$4,'Agency cashability'!$B$3:$U$5,3,0),0) -> 0 | FO38: =IF(AND(FO$3<>"",DY38<>0),HLOOKUP(FO$4,'Agency cashability'!$B$3:$U$5,3,0),0) -> 0 | FP38: =IF(AND(FP$3<>"",DZ38<>0),HLOOKUP(FP$4,'Agency cashability'!$B$3:$U$5,3,0),0) -> 0 | FR38: 0 | FS38: 0 | FT38: 0 | FU38: 0 | FV38: 0 | FW38: 0 | FX38: 0 | FY38: 0 | FZ38: 0 | GA38: 0 | GB38: 0 | GM38: =IF((GM$3<>""),EB38*FR38,"") -> 0 | GN38: 0 | GO38: 0 | GP38: 0 | GQ38: 0 | GR38: 0 | GS38: 0 | GT38: 0 | GU38: 0 | GV38: 0 | GW38: 0 | HJ38: =IF((HJ$3<>""),EW38*FR38,"") -> 0 | HK38: 0 | HL38: 0 | HM38: 0 | HN38: 0 | HO38: 0 | HP38: 0 | HQ38: 0 | HR38: 0 | HS38: 0 | HT38: 0
A39: B14 | B39: Reduced alcohol dependency | C39: Yes | D39: Reduced health and criminal justice costs | E39: NHS, Police, CJS | R39: 1800 | S39: 1800 | U39: 1398 | V39: 3198 | W39: 2016-17 | X39: =VLOOKUP(W39,'GDP Deflators'!$B$8:$C$72,2,0)*100/VLOOKUP('Model constants'!$B$3,'GDP Deflators'!$B$8:$C$72,2,0) -> 100 | Y39: NICE Clinical Practice Guidance 115 | AA39: 0 | AB39: 0 | BE39: 0 | BF39: 0 | BG39: 0 | BH39: 0 | BI39: 0 | BJ39: 0 | BK39: 0 | BL39: 0 | BM39: 0 | BN39: 0 | BO39: 0 | BP39: 0 | BQ39: 0 | BR39: 0 | BS39: 0 | BT39: 0 | BU39: 0 | BV39: 0 | BW39: 0 | BX39: 0 | BY39: 0 | BZ39: 0 | CA39: 0 | CB39: 0 | CC39: 0 | CD39: 0 | CF39: 0 | CG39: 0 | CH39: 0 | CI39: 0 | CJ39: 0 | CK39: 0 | CL39: 0 | CM39: 0 | CN39: 0 | CO39: 0 | CP39: 0 | CQ39: 0 | CR39: 0 | CS39: 0 | CT39: 0 | CU39: 0 | CV39: 0 | CW39: 0 | CX39: 0 | CY39: 0 | CZ39: 0 | DA39: 0 | DB39: 0 | DC39: 0 | DD39: 0 | DE39: 0 | DG39: =IF(DG$3<>"",VLOOKUP($A39,'Agency percentages'!$A$5:$X$69,(3+MATCH(DG$4,'Agency percentages'!$D$4:$W$4,0)),FALSE),"") -> 0 | DH39: =IF(DH$3<>"",VLOOKUP($A39,'Agency percentages'!$A$5:$X$69,(3+MATCH(DH$4,'Agency percentages'!$D$4:$W$4,0)),FALSE),"") -> 1 | DI39: =IF(DI$3<>"",VLOOKUP($A39,'Agency percentages'!$A$5:$X$69,(3+MATCH(DI$4,'Agency percentages'!$D$4:$W$4,0)),FALSE),"") -> 0 | DJ39: =IF(DJ$3<>"",VLOOKUP($A39,'Agency percentages'!$A$5:$X$69,(3+MATCH(DJ$4,'Agency percentages'!$D$4:$W$4,0)),FALSE),"") -> 0 | DK39: =IF(DK$3<>"",VLOOKUP($A39,'Agency percentages'!$A$5:$X$69,(3+MATCH(DK$4,'Agency percentages'!$D$4:$W$4,0)),FALSE),"") -> 0 | DL39: =IF(DL$3<>"",VLOOKUP($A39,'Agency percentages'!$A$5:$X$69,(3+MATCH(DL$4,'Agency percentages'!$D$4:$W$4,0)),FALSE),"") -> 0 | DM39: =IF(DM$3<>"",VLOOKUP($A39,'Agency percentages'!$A$5:$X$69,(3+MATCH(DM$4,'Agency percentages'!$D$4:$W$4,0)),FALSE),"") -> 0 | DN39: =IF(DN$3<>"",VLOOKUP($A39,'Agency percentages'!$A$5:$X$69,(3+MATCH(DN$4,'Agency percentages'!$D$4:$W$4,0)),FALSE),"") -> 0 | DO39: =IF(DO$3<>"",VLOOKUP($A39,'Agency percentages'!$A$5:$X$69,(3+MATCH(DO$4,'Agency percentages'!$D$4:$W$4,0)),FALSE),"") -> 0 | DP39: =IF(DP$3<>"",VLOOKUP($A39,'Agency percentages'!$A$5:$X$69,(3+MATCH(DP$4,'Agency percentages'!$D$4:$W$4,0)),FALSE),"") -> 0 | DQ39: =IF(DQ$3<>"",VLOOKUP($A39,'Agency percentages'!$A$5:$X$69,(3+MATCH(DQ$4,'Agency percentages'!$D$4:$W$4,0)),FALSE),"") -> 0 | DR39: =IF(DR$3<>"",VLOOKUP($A39,'Agency percentages'!$A$5:$X$69,(3+MATCH(DR$4,'Agency percentages'!$D$4:$W$4,0)),FALSE),"") ->  | DS39: =IF(DS$3<>"",VLOOKUP($A39,'Agency percentages'!$A$5:$X$69,(3+MATCH(DS$4,'Agency percentages'!$D$4:$W$4,0)),FALSE),"") ->  | DT39: =IF(DT$3<>"",VLOOKUP($A39,'Agency percentages'!$A$5:$X$69,(3+MATCH(DT$4,'Agency percentages'!$D$4:$W$4,0)),FALSE),"") ->  | DU39: =IF(DU$3<>"",VLOOKUP($A39,'Agency percentages'!$A$5:$X$69,(3+MATCH(DU$4,'Agency percentages'!$D$4:$W$4,0)),FALSE),"") ->  | DV39: =IF(DV$3<>"",VLOOKUP($A39,'Agency percentages'!$A$5:$X$69,(3+MATCH(DV$4,'Agency percentages'!$D$4:$W$4,0)),FALSE),"") ->  | DW39: =IF(DW$3<>"",VLOOKUP($A39,'Agency percentages'!$A$5:$X$69,(3+MATCH(DW$4,'Agency percentages'!$D$4:$W$4,0)),FALSE),"") ->  | DX39: =IF(DX$3<>"",VLOOKUP($A39,'Agency percentages'!$A$5:$X$69,(3+MATCH(DX$4,'Agency percentages'!$D$4:$W$4,0)),FALSE),"") ->  | DY39: =IF(DY$3<>"",VLOOKUP($A39,'Agency percentages'!$A$5:$X$69,(3+MATCH(DY$4,'Agency percentages'!$D$4:$W$4,0)),FALSE),"") ->  | DZ39: =IF(DZ$3<>"",VLOOKUP($A39,'Agency percentages'!$A$5:$X$69,(3+MATCH(DZ$4,'Agency percentages'!$D$4:$W$4,0)),FALSE),"") ->  | EB39: =IF(AND(EB$3<>"",DG39<>0),HLOOKUP(EB$4,'Agency cashability'!$B$3:$U$5,2,0),0) -> 0 | EC39: =IF(AND(EC$3<>"",DH39<>0),HLOOKUP(EC$4,'Agency cashability'!$B$3:$U$5,2,0),0) -> 0.2 | ED39: =IF(AND(ED$3<>"",DI39<>0),HLOOKUP(ED$4,'Agency cashability'!$B$3:$U$5,2,0),0) -> 0 | EE39: =IF(AND(EE$3<>"",DJ39<>0),HLOOKUP(EE$4,'Agency cashability'!$B$3:$U$5,2,0),0) -> 0 | EF39: =IF(AND(EF$3<>"",DK39<>0),HLOOKUP(EF$4,'Agency cashability'!$B$3:$U$5,2,0),0) -> 0 | EG39: =IF(AND(EG$3<>"",DL39<>0),HLOOKUP(EG$4,'Agency cashability'!$B$3:$U$5,2,0),0) -> 0 | EH39: =IF(AND(EH$3<>"",DM39<>0),HLOOKUP(EH$4,'Agency cashability'!$B$3:$U$5,2,0),0) -> 0 | EI39: =IF(AND(EI$3<>"",DN39<>0),HLOOKUP(EI$4,'Agency cashability'!$B$3:$U$5,2,0),0) -> 0 | EJ39: =IF(AND(EJ$3<>"",DO39<>0),HLOOKUP(EJ$4,'Agency cashability'!$B$3:$U$5,2,0),0) -> 0 | EK39: =IF(AND(EK$3<>"",DP39<>0),HLOOKUP(EK$4,'Agency cashability'!$B$3:$U$5,2,0),0) -> 0 | EL39: =IF(AND(EL$3<>"",DQ39<>0),HLOOKUP(EL$4,'Agency cashability'!$B$3:$U$5,2,0),0) -> 0 | EM39: =IF(AND(EM$3<>"",DR39<>0),HLOOKUP(EM$4,'Agency cashability'!$B$3:$U$5,2,0),0) -> 0 | EN39: =IF(AND(EN$3<>"",DS39<>0),HLOOKUP(EN$4,'Agency cashability'!$B$3:$U$5,2,0),0) -> 0 | EO39: =IF(AND(EO$3<>"",DT39<>0),HLOOKUP(EO$4,'Agency cashability'!$B$3:$U$5,2,0),0) -> 0 | EP39: =IF(AND(EP$3<>"",DU39<>0),HLOOKUP(EP$4,'Agency cashability'!$B$3:$U$5,2,0),0) -> 0 | EQ39: =IF(AND(EQ$3<>"",DV39<>0),HLOOKUP(EQ$4,'Agency cashability'!$B$3:$U$5,2,0),0) -> 0 | ER39: =IF(AND(ER$3<>"",DW39<>0),HLOOKUP(ER$4,'Agency cashability'!$B$3:$U$5,2,0),0) -> 0 | ES39: =IF(AND(ES$3<>"",DX39<>0),HLOOKUP(ES$4,'Agency cashability'!$B$3:$U$5,2,0),0) -> 0 | ET39: =IF(AND(ET$3<>"",DY39<>0),HLOOKUP(ET$4,'Agency cashability'!$B$3:$U$5,2,0),0) -> 0 | EU39: =IF(AND(EU$3<>"",DZ39<>0),HLOOKUP(EU$4,'Agency cashability'!$B$3:$U$5,2,0),0) -> 0 | EW39: =IF(AND(EW$3<>"",DG39<>0),HLOOKUP(EW$4,'Agency cashability'!$B$3:$U$5,3,0),0) -> 0 | EX39: =IF(AND(EX$3<>"",DH39<>0),HLOOKUP(EX$4,'Agency cashability'!$B$3:$U$5,3,0),0) -> 0.5 | EY39: =IF(AND(EY$3<>"",DI39<>0),HLOOKUP(EY$4,'Agency cashability'!$B$3:$U$5,3,0),0) -> 0 | EZ39: =IF(AND(EZ$3<>"",DJ39<>0),HLOOKUP(EZ$4,'Agency cashability'!$B$3:$U$5,3,0),0) -> 0 | FA39: =IF(AND(FA$3<>"",DK39<>0),HLOOKUP(FA$4,'Agency cashability'!$B$3:$U$5,3,0),0) -> 0 | FB39: =IF(AND(FB$3<>"",DL39<>0),HLOOKUP(FB$4,'Agency cashability'!$B$3:$U$5,3,0),0) -> 0 | FC39: =IF(AND(FC$3<>"",DM39<>0),HLOOKUP(FC$4,'Agency cashability'!$B$3:$U$5,3,0),0) -> 0 | FD39: =IF(AND(FD$3<>"",DN39<>0),HLOOKUP(FD$4,'Agency cashability'!$B$3:$U$5,3,0),0) -> 0 | FE39: =IF(AND(FE$3<>"",DO39<>0),HLOOKUP(FE$4,'Agency cashability'!$B$3:$U$5,3,0),0) -> 0 | FF39: =IF(AND(FF$3<>"",DP39<>0),HLOOKUP(FF$4,'Agency cashability'!$B$3:$U$5,3,0),0) -> 0 | FG39: =IF(AND(FG$3<>"",DQ39<>0),HLOOKUP(FG$4,'Agency cashability'!$B$3:$U$5,3,0),0) -> 0 | FH39: =IF(AND(FH$3<>"",DR39<>0),HLOOKUP(FH$4,'Agency cashability'!$B$3:$U$5,3,0),0) -> 0 | FI39: =IF(AND(FI$3<>"",DS39<>0),HLOOKUP(FI$4,'Agency cashability'!$B$3:$U$5,3,0),0) -> 0 | FJ39: =IF(AND(FJ$3<>"",DT39<>0),HLOOKUP(FJ$4,'Agency cashability'!$B$3:$U$5,3,0),0) -> 0 | FK39: =IF(AND(FK$3<>"",DU39<>0),HLOOKUP(FK$4,'Agency cashability'!$B$3:$U$5,3,0),0) -> 0 | FL39: =IF(AND(FL$3<>"",DV39<>0),HLOOKUP(FL$4,'Agency cashability'!$B$3:$U$5,3,0),0) -> 0 | FM39: =IF(AND(FM$3<>"",DW39<>0),HLOOKUP(FM$4,'Agency cashability'!$B$3:$U$5,3,0),0) -> 0 | FN39: =IF(AND(FN$3<>"",DX39<>0),HLOOKUP(FN$4,'Agency cashability'!$B$3:$U$5,3,0),0) -> 0 | FO39: =IF(AND(FO$3<>"",DY39<>0),HLOOKUP(FO$4,'Agency cashability'!$B$3:$U$5,3,0),0) -> 0 | FP39: =IF(AND(FP$3<>"",DZ39<>0),HLOOKUP(FP$4,'Agency cashability'!$B$3:$U$5,3,0),0) -> 0 | FR39: 0 | FS39: 0 | FT39: 0 | FU39: 0 | FV39: 0 | FW39: 0 | FX39: 0 | FY39: 0 | FZ39: 0 | GA39: 0 | GB39: 0 | GM39: =IF((GM$3<>""),EB39*FR39,"") -> 0 | GN39: 0 | GO39: 0 | GP39: 0 | GQ39: 0 | GR39: 0 | GS39: 0 | GT39: 0 | GU39: 0 | GV39: 0 | GW39: 0 | HJ39: =IF((HJ$3<>""),EW39*FR39,"") -> 0 | HK39: 0 | HL39: 0 | HM39: 0 | HN39: 0 | HO39: 0 | HP39: 0 | HQ39: 0 | HR39: 0 | HS39: 0 | HT39: 0
A40: B15 | B40: Reduced persistent truancy (<85% attendance at school) | C40: Yes | D40: Improved health, reduced crime, increased earnings | E40: NHS, Police, Individual | R40: 803 | S40: 803 | T40: 842 | V40: 1645 | W40: 2016-17 | X40: =VLOOKUP(W40,'GDP Deflators'!$B$8:$C$72,2,0)*100/VLOOKUP('Model constants'!$B$3,'GDP Deflators'!$B$8:$C$72,2,0) -> 100 | Y40: NPC Misspent Youth report (2007) | AA40: 0 | AB40: 0 | BE40: 0 | BF40: 0 | BG40: 0 | BH40: 0 | BI40: 0 | BJ40: 0 | BK40: 0 | BL40: 0 | BM40: 0 | BN40: 0 | BO40: 0 | BP40: 0 | BQ40: 0 | BR40: 0 | BS40: 0 | BT40: 0 | BU40: 0 | BV40: 0 | BW40: 0 | BX40: 0 | BY40: 0 | BZ40: 0 | CA40: 0 | CB40: 0 | CC40: 0 | CD40: 0 | CF40: 0 | CG40: 0 | CH40: 0 | CI40: 0 | CJ40: 0 | CK40: 0 | CL40: 0 | CM40: 0 | CN40: 0 | CO40: 0 | CP40: 0 | CQ40: 0 | CR40: 0 | CS40: 0 | CT40: 0 | CU40: 0 | CV40: 0 | CW40: 0 | CX40: 0 | CY40: 0 | CZ40: 0 | DA40: 0 | DB40: 0 | DC40: 0 | DD40: 0 | DE40: 0 | DG40: =IF(DG$3<>"",VLOOKUP($A40,'Agency percentages'!$A$5:$X$69,(3+MATCH(DG$4,'Agency percentages'!$D$4:$W$4,0)),FALSE),"") -> 0 | DH40: =IF(DH$3<>"",VLOOKUP($A40,'Agency percentages'!$A$5:$X$69,(3+MATCH(DH$4,'Agency percentages'!$D$4:$W$4,0)),FALSE),"") -> 0.11 | DI40: =IF(DI$3<>"",VLOOKUP($A40,'Agency percentages'!$A$5:$X$69,(3+MATCH(DI$4,'Agency percentages'!$D$4:$W$4,0)),FALSE),"") -> 0.4085036285 | DJ40: =IF(DJ$3<>"",VLOOKUP($A40,'Agency percentages'!$A$5:$X$69,(3+MATCH(DJ$4,'Agency percentages'!$D$4:$W$4,0)),FALSE),"") -> 0.03799541875 | DK40: =IF(DK$3<>"",VLOOKUP($A40,'Agency percentages'!$A$5:$X$69,(3+MATCH(DK$4,'Agency percentages'!$D$4:$W$4,0)),FALSE),"") -> 0.1453936712 | DL40: =IF(DL$3<>"",VLOOKUP($A40,'Agency percentages'!$A$5:$X$69,(3+MATCH(DL$4,'Agency percentages'!$D$4:$W$4,0)),FALSE),"") -> 0.1936105009 | DM40: =IF(DM$3<>"",VLOOKUP($A40,'Agency percentages'!$A$5:$X$69,(3+MATCH(DM$4,'Agency percentages'!$D$4:$W$4,0)),FALSE),"") -> 0.1044967807 | DN40: =IF(DN$3<>"",VLOOKUP($A40,'Agency percentages'!$A$5:$X$69,(3+MATCH(DN$4,'Agency percentages'!$D$4:$W$4,0)),FALSE),"") -> 0 | DO40: =IF(DO$3<>"",VLOOKUP($A40,'Agency percentages'!$A$5:$X$69,(3+MATCH(DO$4,'Agency percentages'!$D$4:$W$4,0)),FALSE),"") -> 0 | DP40: =IF(DP$3<>"",VLOOKUP($A40,'Agency percentages'!$A$5:$X$69,(3+MATCH(DP$4,'Agency percentages'!$D$4:$W$4,0)),FALSE),"") -> 0 | DQ40: =IF(DQ$3<>"",VLOOKUP($A40,'Agency percentages'!$A$5:$X$69,(3+MATCH(DQ$4,'Agency percentages'!$D$4:$W$4,0)),FALSE),"") -> 0 | DR40: =IF(DR$3<>"",VLOOKUP($A40,'Agency percentages'!$A$5:$X$69,(3+MATCH(DR$4,'Agency percentages'!$D$4:$W$4,0)),FALSE),"") ->  | DS40: =IF(DS$3<>"",VLOOKUP($A40,'Agency percentages'!$A$5:$X$69,(3+MATCH(DS$4,'Agency percentages'!$D$4:$W$4,0)),FALSE),"") ->  | DT40: =IF(DT$3<>"",VLOOKUP($A40,'Agency percentages'!$A$5:$X$69,(3+MATCH(DT$4,'Agency percentages'!$D$4:$W$4,0)),FALSE),"") ->  | DU40: =IF(DU$3<>"",VLOOKUP($A40,'Agency percentages'!$A$5:$X$69,(3+MATCH(DU$4,'Agency percentages'!$D$4:$W$4,0)),FALSE),"") ->  | DV40: =IF(DV$3<>"",VLOOKUP($A40,'Agency percentages'!$A$5:$X$69,(3+MATCH(DV$4,'Agency percentages'!$D$4:$W$4,0)),FALSE),"") ->  | DW40: =IF(DW$3<>"",VLOOKUP($A40,'Agency percentages'!$A$5:$X$69,(3+MATCH(DW$4,'Agency percentages'!$D$4:$W$4,0)),FALSE),"") ->  | DX40: =IF(DX$3<>"",VLOOKUP($A40,'Agency percentages'!$A$5:$X$69,(3+MATCH(DX$4,'Agency percentages'!$D$4:$W$4,0)),FALSE),"") ->  | DY40: =IF(DY$3<>"",VLOOKUP($A40,'Agency percentages'!$A$5:$X$69,(3+MATCH(DY$4,'Agency percentages'!$D$4:$W$4,0)),FALSE),"") ->  | DZ40: =IF(DZ$3<>"",VLOOKUP($A40,'Agency percentages'!$A$5:$X$69,(3+MATCH(DZ$4,'Agency percentages'!$D$4:$W$4,0)),FALSE),"") ->  | EB40: =IF(AND(EB$3<>"",DG40<>0),HLOOKUP(EB$4,'Agency cashability'!$B$3:$U$5,2,0),0) -> 0 | EC40: =IF(AND(EC$3<>"",DH40<>0),HLOOKUP(EC$4,'Agency cashability'!$B$3:$U$5,2,0),0) -> 0.2 | ED40: =IF(AND(ED$3<>"",DI40<>0),HLOOKUP(ED$4,'Agency cashability'!$B$3:$U$5,2,0),0) -> 0.3 | EE40: =IF(AND(EE$3<>"",DJ40<>0),HLOOKUP(EE$4,'Agency cashability'!$B$3:$U$5,2,0),0) -> 0.2 | EF40: =IF(AND(EF$3<>"",DK40<>0),HLOOKUP(EF$4,'Agency cashability'!$B$3:$U$5,2,0),0) -> 0.2 | EG40: =IF(AND(EG$3<>"",DL40<>0),HLOOKUP(EG$4,'Agency cashability'!$B$3:$U$5,2,0),0) -> 0.2 | EH40: =IF(AND(EH$3<>"",DM40<>0),HLOOKUP(EH$4,'Agency cashability'!$B$3:$U$5,2,0),0) -> 0.2 | EI40: =IF(AND(EI$3<>"",DN40<>0),HLOOKUP(EI$4,'Agency cashability'!$B$3:$U$5,2,0),0) -> 0 | EJ40: =IF(AND(EJ$3<>"",DO40<>0),HLOOKUP(EJ$4,'Agency cashability'!$B$3:$U$5,2,0),0) -> 0 | EK40: =IF(AND(EK$3<>"",DP40<>0),HLOOKUP(EK$4,'Agency cashability'!$B$3:$U$5,2,0),0) -> 0 | EL40: =IF(AND(EL$3<>"",DQ40<>0),HLOOKUP(EL$4,'Agency cashability'!$B$3:$U$5,2,0),0) -> 0 | EM40: =IF(AND(EM$3<>"",DR40<>0),HLOOKUP(EM$4,'Agency cashability'!$B$3:$U$5,2,0),0) -> 0 | EN40: =IF(AND(EN$3<>"",DS40<>0),HLOOKUP(EN$4,'Agency cashability'!$B$3:$U$5,2,0),0) -> 0 | EO40: =IF(AND(EO$3<>"",DT40<>0),HLOOKUP(EO$4,'Agency cashability'!$B$3:$U$5,2,0),0) -> 0 | EP40: =IF(AND(EP$3<>"",DU40<>0),HLOOKUP(EP$4,'Agency cashability'!$B$3:$U$5,2,0),0) -> 0 | EQ40: =IF(AND(EQ$3<>"",DV40<>0),HLOOKUP(EQ$4,'Agency cashability'!$B$3:$U$5,2,0),0) -> 0 | ER40: =IF(AND(ER$3<>"",DW40<>0),HLOOKUP(ER$4,'Agency cashability'!$B$3:$U$5,2,0),0) -> 0 | ES40: =IF(AND(ES$3<>"",DX40<>0),HLOOKUP(ES$4,'Agency cashability'!$B$3:$U$5,2,0),0) -> 0 | ET40: =IF(AND(ET$3<>"",DY40<>0),HLOOKUP(ET$4,'Agency cashability'!$B$3:$U$5,2,0),0) -> 0 | EU40: =IF(AND(EU$3<>"",DZ40<>0),HLOOKUP(EU$4,'Agency cashability'!$B$3:$U$5,2,0),0) -> 0 | EW40: =IF(AND(EW$3<>"",DG40<>0),HLOOKUP(EW$4,'Agency cashability'!$B$3:$U$5,3,0),0) -> 0 | EX40: =IF(AND(EX$3<>"",DH40<>0),HLOOKUP(EX$4,'Agency cashability'!$B$3:$U$5,3,0),0) -> 0.5 | EY40: =IF(AND(EY$3<>"",DI40<>0),HLOOKUP(EY$4,'Agency cashability'!$B$3:$U$5,3,0),0) -> 0.6 | EZ40: =IF(AND(EZ$3<>"",DJ40<>0),HLOOKUP(EZ$4,'Agency cashability'!$B$3:$U$5,3,0),0) -> 0.5 | FA40: =IF(AND(FA$3<>"",DK40<>0),HLOOKUP(FA$4,'Agency cashability'!$B$3:$U$5,3,0),0) -> 0.5 | FB40: =IF(AND(FB$3<>"",DL40<>0),HLOOKUP(FB$4,'Agency cashability'!$B$3:$U$5,3,0),0) -> 0.5 | FC40: =IF(AND(FC$3<>"",DM40<>0),HLOOKUP(FC$4,'Agency cashability'!$B$3:$U$5,3,0),0) -> 0.5 | FD40: =IF(AND(FD$3<>"",DN40<>0),HLOOKUP(FD$4,'Agency cashability'!$B$3:$U$5,3,0),0) -> 0 | FE40: =IF(AND(FE$3<>"",DO40<>0),HLOOKUP(FE$4,'Agency cashability'!$B$3:$U$5,3,0),0) -> 0 | FF40: =IF(AND(FF$3<>"",DP40<>0),HLOOKUP(FF$4,'Agency cashability'!$B$3:$U$5,3,0),0) -> 0 | FG40: =IF(AND(FG$3<>"",DQ40<>0),HLOOKUP(FG$4,'Agency cashability'!$B$3:$U$5,3,0),0) -> 0 | FH40: =IF(AND(FH$3<>"",DR40<>0),HLOOKUP(FH$4,'Agency cashability'!$B$3:$U$5,3,0),0) -> 0 | FI40: =IF(AND(FI$3<>"",DS40<>0),HLOOKUP(FI$4,'Agency cashability'!$B$3:$U$5,3,0),0) -> 0 | FJ40: =IF(AND(FJ$3<>"",DT40<>0),HLOOKUP(FJ$4,'Agency cashability'!$B$3:$U$5,3,0),0) -> 0 | FK40: =IF(AND(FK$3<>"",DU40<>0),HLOOKUP(FK$4,'Agency cashability'!$B$3:$U$5,3,0),0) -> 0 | FL40: =IF(AND(FL$3<>"",DV40<>0),HLOOKUP(FL$4,'Agency cashability'!$B$3:$U$5,3,0),0) -> 0 | FM40: =IF(AND(FM$3<>"",DW40<>0),HLOOKUP(FM$4,'Agency cashability'!$B$3:$U$5,3,0),0) -> 0 | FN40: =IF(AND(FN$3<>"",DX40<>0),HLOOKUP(FN$4,'Agency cashability'!$B$3:$U$5,3,0),0) -> 0 | FO40: =IF(AND(FO$3<>"",DY40<>0),HLOOKUP(FO$4,'Agency cashability'!$B$3:$U$5,3,0),0) -> 0 | FP40: =IF(AND(FP$3<>"",DZ40<>0),HLOOKUP(FP$4,'Agency cashability'!$B$3:$U$5,3,0),0) -> 0 | FR40: 0 | FS40: 0 | FT40: 0 | FU40: 0 | FV40: 0 | FW40: 0 | FX40: 0 | FY40: 0 | FZ40: 0 | GA40: 0 | GB40: 0 | GM40: =IF((GM$3<>""),EB40*FR40,"") -> 0 | GN40: 0 | GO40: 0 | GP40: 0 | GQ40: 0 | GR40: 0 | GS40: 0 | GT40: 0 | GU40: 0 | GV40: 0 | GW40: 0 | HJ40: =IF((HJ$3<>""),EW40*FR40,"") -> 0 | HK40: 0 | HL40: 0 | HM40: 0 | HN40: 0 | HO40: 0 | HP40: 0 | HQ40: 0 | HR40: 0 | HS40: 0 | HT40: 0
